{"text_format":"2","workbook":"xlsx","n_sheets":8,"sheets":["NPP","Updated M&E Plan ","M&E Plan ","Comparison Sheet","Updated RRF ","Info Risk Sources","Annex Activities (Internal Use)","Chart Field Do note Delete "],"not_rendered":{"charts":0,"images":0,"macros":0,"external_links":1,"defined_names":27,"comments":1,"pivot_tables":0},"unopened":[],"bounds":{"document_bytes":16777216,"sheet_cells":100000,"run_cost":"one","rows_first":2000,"rows_last":500,"rows_between":2000,"halvings":0,"cell_chars":16384,"cell_head_chars":4096},"cells_cut":0,"cells_raw":0,"read":"whole","date_system":"1900"}

{"sheet":"NPP","index":0,"n_rows":115,"n_cols":19,"rows_kept":115,"cut":false,"hidden":true,"merged":[]}
["No-Cluster","NPP Cluster","NO-NPP","National Priority Programs","No-Compo","Components","No-Sub_compo","Sub-components","Programmatic UNDP Cluster ","TMAF","NEW DEAL","Project ID","Project Description","Project ID/ Description","Output ID","CPAP Outcome","Output Description","Budget","Output ID/ Description"]
[6,"6. SECURITY ",6.1,"6.1. Afghan Peace and Reintegration (APRP)","6.1.a. ","6.1.A. Social Outreach: Build national and international support for the peace and reintegration policy","6.1.A.a","6.1.a.b Outreach and grievance identification process is developed and functional, and includes detainee release issues and UNSC de-listing, with women\nincluded at all levels in discussions and decisions.","Justice, Human Rights and Rule of Law","Area 2: Governance , RoL, and HR","PSG 2: Security",61104,"Law and Order Trust Fund for Afghanistan",{"$f":"+CONCATENATE(L2,\" \",M2)","v":"61104 Law and Order Trust Fund for Afghanistan"},77273,"1: Capacity in state and non-state institutions increased to contribute to overall stabilization and peace-building.","Police  force  and uniformed personnel of Central Prisons Department (CPD) supported for contribution to their increased effectiveness and efficiency ",{"$f":"158254131.36*3","v":474762394.08000004},{"$f":"+CONCATENATE(O2,\" \",Q2)","v":"77273 Police  force  and uniformed personnel of Central Prisons Department (CPD) supported for contribution to their increased effectiveness and efficiency "}]
[6,"6. SECURITY ",6.1,"6.1. Afghan Peace and Reintegration (APRP)","6.1.b. ","6.1.B. Demobilization and Reintegration: Carry out demobilization and reintegration among those who join the peace process","6.1.A.b","6.1.a.c APRP implements communication strategy and provides support to the HPC Outreach Committee.","Justice, Human Rights and Rule of Law","Area 2: Governance , RoL, and HR","PSG 2: Security",61104,"Law and Order Trust Fund for Afghanistan",{"$f":"+CONCATENATE(L3,\" \",M3)","v":"61104 Law and Order Trust Fund for Afghanistan"},77273,"1: Capacity in state and non-state institutions increased to contribute to overall stabilization and peace-building.","Police  force  and uniformed personnel of Central Prisons Department (CPD) supported for contribution to their increased effectiveness and efficiency ",null,{"$f":"+CONCATENATE(O3,\" \",Q3)","v":"77273 Police  force  and uniformed personnel of Central Prisons Department (CPD) supported for contribution to their increased effectiveness and efficiency "}]
[6,"6. SECURITY ",6.1,"6.1. Afghan Peace and Reintegration (APRP)","6.1.c. ","6.1.C. Community Recovery: Assist communities to transition from conflict to peace, and increase access to services and jobs","6.1.A.c","6.1.b.a Demobilization and transition process and procedures are formalized and functional.","Justice, Human Rights and Rule of Law","Area 2: Governance , RoL, and HR","PSG 2: Security",61104,"Law and Order Trust Fund for Afghanistan","61104 Law and Order Trust Fund for Afghanistan",77273,"1: Capacity in state and non-state institutions increased to contribute to overall stabilization and peace-building.","Police  force  and uniformed personnel of Central Prisons Department (CPD) supported for contribution to their increased effectiveness and efficiency ",null,"77273 Police  force  and uniformed personnel of Central Prisons Department (CPD) supported for contribution to their increased effectiveness and efficiency "]
[6,"6. SECURITY ",6.1,"6.1. Afghan Peace and Reintegration (APRP)","6.1.d. ","6.1.D. Improved Institutional Capacity to Support the Peace Process.","6.1.A.d. ",{"$error":"#N/A"},"Justice, Human Rights and Rule of Law","Area 2: Governance , RoL, and HR","PSG 2: Security",61104,"Law and Order Trust Fund for Afghanistan","61104 Law and Order Trust Fund for Afghanistan",77273,"1: Capacity in state and non-state institutions increased to contribute to overall stabilization and peace-building.","Required Equipment and Infrastructure provided to MOI.",null,"77273 Required Equipment and Infrastructure provided to MOI."]
[6,"6. SECURITY ",6.1,"6.1. Afghan Peace and Reintegration (APRP)","6.1.d. ","6.1.D. Improved Institutional Capacity to Support the Peace Process.","6.1.A.d",{"$error":"#N/A"},"Justice, Human Rights and Rule of Law","Area 2: Governance , RoL, and HR","PSG 2: Security",61104,"Law and Order Trust Fund for Afghanistan","61104 Law and Order Trust Fund for Afghanistan",77273,"1: Capacity in state and non-state institutions increased to contribute to overall stabilization and peace-building.","Required Equipment and Infrastructure provided to MOI.",363367.67999999999,"77273 Required Equipment and Infrastructure provided to MOI."]
[6,"6. SECURITY ",6.1,"6.1. Afghan Peace and Reintegration (APRP)","6.1.d. ","6.1.D. Improved Institutional Capacity to Support the Peace Process.","6.1.A.d",{"$error":"#N/A"},"Justice, Human Rights and Rule of Law","Area 2: Governance , RoL, and HR","PSG 2: Security",61104,"Law and Order Trust Fund for Afghanistan","61104 Law and Order Trust Fund for Afghanistan",77274,"1: Capacity in state and non-state institutions increased to contribute to overall stabilization and peace-building.","Capacity of MoI at policy, organizational and individual level in identified areas as well as administrative systems improved; ",30139200,"77274 Capacity of MoI at policy, organizational and individual level in identified areas as well as administrative systems improved; "]
[6,"6. SECURITY ",6.1,"6.1. Afghan Peace and Reintegration (APRP)","6.1.d. ","6.1.D. Improved Institutional Capacity to Support the Peace Process.","6.1.A.d",{"$error":"#N/A"},"Justice, Human Rights and Rule of Law","Area 2: Governance , RoL, and HR","PSG 2: Security",61104,"Law and Order Trust Fund for Afghanistan","61104 Law and Order Trust Fund for Afghanistan",81410,"1: Capacity in state and non-state institutions increased to contribute to overall stabilization and peace-building.","Gender capacity and equality in the police force improved. ",9048000,"81410 Gender capacity and equality in the police force improved. "]
[6,"6. SECURITY ",6.1,"6.1. Afghan Peace and Reintegration (APRP)","6.1.d. ","6.1.D. Improved Institutional Capacity to Support the Peace Process.","6.1.A.d",{"$error":"#N/A"},"Justice, Human Rights and Rule of Law","Area 2: Governance , RoL, and HR","PSG 2: Security",61104,"Law and Order Trust Fund for Afghanistan","61104 Law and Order Trust Fund for Afghanistan",77275,"1: Capacity in state and non-state institutions increased to contribute to overall stabilization and peace-building.","Police-Community partnerships institutionalized for improved local security, accountability and service delivery",17771520,"77275 Police-Community partnerships institutionalized for improved local security, accountability and service delivery"]
[6,"6. SECURITY ",6.1,"6.1. Afghan Peace and Reintegration (APRP)","6.1.d. ","6.1.D. Improved Institutional Capacity to Support the Peace Process.","6.1.A.d",{"$error":"#N/A"},"Justice, Human Rights and Rule of Law","Area 2: Governance , RoL, and HR","PSG 2: Security",61104,"Law and Order Trust Fund for Afghanistan","61104 Law and Order Trust Fund for Afghanistan",78879,"1: Capacity in state and non-state institutions increased to contribute to overall stabilization and peace-building.","Project Implementation managed effectively and efficiently through Project Management Support Unit (PMU) ",40864334.245717749,"78879 Project Implementation managed effectively and efficiently through Project Management Support Unit (PMU) "]
[6,"6. SECURITY ",6.1,"6.1. Afghan Peace and Reintegration (APRP)","6.1.a. ","6.1.A. Social Outreach: Build national and international support for the peace and reintegration policy","6.1.A.a","6.1.a.b Outreach and grievance identification process is developed and functional, and includes detainee release issues and UNSC de-listing, with women\nincluded at all levels in discussions and decisions.","Sub-national Governance and Development","Area 2: Governance , RoL, and HR","PSG 2: Security",60777,"Afghanistan Peace and Reingetration Project","60777 Afghanistan Peace and Reingetration Project",79526,"Outcome 1: Capacity in state and non-state institutions increased to contribute to overall stabilization and peace-building"," All three windows of Peace and Reintegration Trust Fund are effectively managed and monitored",1788106.4519424462,"79526  All three windows of Peace and Reintegration Trust Fund are effectively managed and monitored"]
[6,"6. SECURITY ",6.1,"6.1. Afghan Peace and Reintegration (APRP)","6.1.a. ","6.1.A. Social Outreach: Build national and international support for the peace and reintegration policy","6.1.A.b","6.1.a.c APRP implements communication strategy and provides support to the HPC Outreach Committee.","Sub-national Governance and Development","Area 2: Governance , RoL, and HR","PSG 2: Security",60777,"Afghanistan Peace and Reingetration Project","60777 Afghanistan Peace and Reingetration Project",79480,"Outcome 1: Capacity in state and non-state institutions increased to contribute to overall stabilization and peace-building"," APRP Joint Secretariat (JS) is effectively supported to enhance the planning, monitoring, coordination and reporting on key components of APRP ",4529285.6896000002,"79480  APRP Joint Secretariat (JS) is effectively supported to enhance the planning, monitoring, coordination and reporting on key components of APRP "]
[6,"6. SECURITY ",6.1,"6.1. Afghan Peace and Reintegration (APRP)","6.1.a. ","6.1.A. Social Outreach: Build national and international support for the peace and reintegration policy","6.1.A.c","6.1.b.a Demobilization and transition process and procedures are formalized and functional.","Sub-national Governance and Development","Area 2: Governance , RoL, and HR","PSG 2: Security",60777,"Afghanistan Peace and Reingetration Project","60777 Afghanistan Peace and Reingetration Project",79526,"Outcome 1: Capacity in state and non-state institutions increased to contribute to overall stabilization and peace-building"," All three windows of Peace and Reintegration Trust Fund are effectively managed and monitored",null,"79526  All three windows of Peace and Reintegration Trust Fund are effectively managed and monitored"]
[6,"6. SECURITY ",6.1,"6.1. Afghan Peace and Reintegration (APRP)","6.1.b. ","6.1.B. Demobilization and Reintegration: Carry out demobilization and reintegration among those who join the peace process","6.1.b.a","6.1.b.b Weapons Management System formalized and functional between APRP and Afghan Security Institutions","Sub-national Governance and Development","Area 2: Governance , RoL, and HR","PSG 2: Security",60777,"Afghanistan Peace and Reingetration Project","60777 Afghanistan Peace and Reingetration Project",79527,"Outcome 1: Capacity in state and non-state institutions increased to contribute to overall stabilization and peace-building","Effective support provided to APRP field structures including the PPCs and PJSTs for sustainable reintegration and peace building ",null,"79527 Effective support provided to APRP field structures including the PPCs and PJSTs for sustainable reintegration and peace building "]
[6,"6. SECURITY ",6.1,"6.1. Afghan Peace and Reintegration (APRP)","6.1.b. ","6.1.B. Demobilization and Reintegration: Carry out demobilization and reintegration among those who join the peace process","6.1.b.b","6.1.c.a APRP-funded Ministry Programs implemented in provinces and districts where reintegration occuurs","Sub-national Governance and Development","Area 2: Governance , RoL, and HR","PSG 2: Security",60777,"Afghanistan Peace and Reingetration Project","60777 Afghanistan Peace and Reingetration Project",79527,"Outcome 1: Capacity in state and non-state institutions increased to contribute to overall stabilization and peace-building",null,null,"79527 "]
[6,"6. SECURITY ",6.1,"6.1. Afghan Peace and Reintegration (APRP)","6.1.c. ","6.1.C. Community Recovery: Assist communities to transition from conflict to peace, and increase access to services and jobs","6.1.c.a","6.1.c.b Small-Grant and Community Recovery projects implemented in provinces, reflecting community priorities, including the rights of women.","Sub-national Governance and Development","Area 2: Governance , RoL, and HR","PSG 2: Security",60777,"Afghanistan Peace and Reingetration Project","60777 Afghanistan Peace and Reingetration Project",79528,"Outcome 1: Capacity in state and non-state institutions increased to contribute to overall stabilization and peace-building","Contributions made to sustainable peace and reintegration in provinces through financial and programmatic support to the line minstries' community recovery programmes",27230841.853180394,"79528 Contributions made to sustainable peace and reintegration in provinces through financial and programmatic support to the line minstries' community recovery programmes"]
[6,"6. SECURITY ",6.1,"6.1. Afghan Peace and Reintegration (APRP)","6.1.c. ","6.1.C. Community Recovery: Assist communities to transition from conflict to peace, and increase access to services and jobs","6.1.c.b","6.1.d.a National institutional capacity of Joint Secretariat and Line Ministry Support Cells is established and strengthened","Sub-national Governance and Development","Area 2: Governance , RoL, and HR","PSG 2: Security",60777,"Afghanistan Peace and Reingetration Project","60777 Afghanistan Peace and Reingetration Project",79528,"Outcome 1: Capacity in state and non-state institutions increased to contribute to overall stabilization and peace-building","Effective support provided to APRP field structures including the PPCs and PJSTs for sustainable reintegration and peace building ",12518571.75912964,"79528 Effective support provided to APRP field structures including the PPCs and PJSTs for sustainable reintegration and peace building "]
[6,"6. SECURITY ",6.1,"6.1. Afghan Peace and Reintegration (APRP)","6.1.d. ","6.1.D. Improved Institutional Capacity to Support the Peace Process.","6.1.d.a",{"$error":"#N/A"},"Sub-national Governance and Development","Area 2: Governance , RoL, and HR","PSG 2: Security",60777,"Afghanistan Peace and Reingetration Project","60777 Afghanistan Peace and Reingetration Project",79528,"Outcome 1: Capacity in state and non-state institutions increased to contribute to overall stabilization and peace-building","Effective support provided to APRP field structures including the PPCs and PJSTs for sustainable reintegration and peace building ",null,"79528 Effective support provided to APRP field structures including the PPCs and PJSTs for sustainable reintegration and peace building "]
[6,"6. SECURITY ",6.1,"6.1. Afghan Peace and Reintegration (APRP)","6.1.d. ","6.1.D. Improved Institutional Capacity to Support the Peace Process.","6.1.d.b",{"$error":"#N/A"},"Sub-national Governance and Development","Area 2: Governance , RoL, and HR","PSG 2: Security",60777,"Afghanistan Peace and Reingetration Project","60777 Afghanistan Peace and Reingetration Project",79528,"Outcome 1: Capacity in state and non-state institutions increased to contribute to overall stabilization and peace-building","Effective support provided to APRP field structures including the PPCs and PJSTs for sustainable reintegration and peace building ",null,"79528 Effective support provided to APRP field structures including the PPCs and PJSTs for sustainable reintegration and peace building "]
[1,"1. AGRICULTURE AND RURAL DEVELOPMENT",1.1000000000000001,"1.1. National Water and Natural Resource Development ","1.1.a.","1.1.A. T1) The Water Resource and Irrigation Development (WRID)","1.1.a.a","1.1.A.a Institutional Reform and Capacity Development : Institutional strengthening at all levels and capacity development of the water sector;","Sub-national Governance and Development","Area 4: Government revenues, budget execution and sub national govenance \nArea 5: inclusive and sustainable development ","PSG 4: Economic Foundations \nPSG 5: Revenues and services",57359,"National Area Based Development Programme (NABDP)","57359 National Area Based Development Programme (NABDP)",81443," Increased Opportunities for income generaton  through promotion of diversified livelihoods , private sector development and public private partnership ","N/A",3294861.95,"81443 N/A"]
[1,"1. AGRICULTURE AND RURAL DEVELOPMENT",1.1000000000000001,"1.1. National Water and Natural Resource Development ","1.1.a.","1.1.A. T1) The Water Resource and Irrigation Development (WRID)","1.1.a.b","1.1.A.b Land and Water Monitoring : Better understanding of hydrological cycles, water resources potential and water infrastructure, for better management and development of water resources and irrigation; ","Sub-national Governance and Development","Area 4: Government revenues, budget execution and sub national govenance \nArea 5: inclusive and sustainable development ","PSG 4: Economic Foundations \nPSG 5: Revenues and services",57359,"National Area Based Development Programme (NABDP)","57359 National Area Based Development Programme (NABDP)",81444," Increased Opportunities for income generaton  through promotion of diversified livelihoods , private sector development and public private partnership ","N/A",36415539.43347881,"81444 N/A"]
[1,"1. AGRICULTURE AND RURAL DEVELOPMENT",1.1000000000000001,"1.1. National Water and Natural Resource Development ","1.1.a.","1.1.A. T1) The Water Resource and Irrigation Development (WRID)","1.1.a.c","1.1.A.c Irrigation Development : Development and modernisation of the Government’s off-farm and on-farm irrigation at all levels of Government ","Sub-national Governance and Development","Area 4: Government revenues, budget execution and sub national govenance \nArea 5: inclusive and sustainable development ","PSG 4: Economic Foundations \nPSG 5: Revenues and services",57359,"National Area Based Development Programme (NABDP)","57359 National Area Based Development Programme (NABDP)",81449," Increased Opportunities for income generaton  through promotion of diversified livelihoods , private sector development and public private partnership ","N/A",6750634.6184724784,"81449 N/A"]
[1,"1. AGRICULTURE AND RURAL DEVELOPMENT",1.1000000000000001,"1.1. National Water and Natural Resource Development ","1.1.a.","1.1.A. T1) The Water Resource and Irrigation Development (WRID)","1.1.a.d","1.1.A.d Water Resources Development and Management : Increased national water utilisation capacity through water resources development","Sub-national Governance and Development","Area 4: Government revenues, budget execution and sub national govenance \nArea 5: inclusive and sustainable development ","PSG 4: Economic Foundations \nPSG 5: Revenues and services",57359,"National Area Based Development Programme (NABDP)","57359 National Area Based Development Programme (NABDP)",81452," Increased Opportunities for income generaton  through promotion of diversified livelihoods , private sector development and public private partnership ","N/A",451300,"81452 N/A"]
[1,"1. AGRICULTURE AND RURAL DEVELOPMENT",1.1000000000000001,"1.1. National Water and Natural Resource Development ","1.1.a.","1.1.A. T1) The Water Resource and Irrigation Development (WRID)","1.1.a.e","1.1.A.e Flood Protection and Management : Protection of people, environment and infrastructure against floods to minimise flood damages","Sub-national Governance and Development","Area 4: Government revenues, budget execution and sub national govenance \nArea 5: inclusive and sustainable development ","PSG 4: Economic Foundations \nPSG 5: Revenues and services",57359,"National Area Based Development Programme (NABDP)","57359 National Area Based Development Programme (NABDP)",73419," Increased Opportunities for income generaton  through promotion of diversified livelihoods , private sector development and public private partnership ","N/A",null,"73419 N/A"]
[1,"1. AGRICULTURE AND RURAL DEVELOPMENT",1.1000000000000001,"1.1. National Water and Natural Resource Development ","1.1.a.","1.1.A. T1) The Water Resource and Irrigation Development (WRID)","1.1.a.f","1.1.A.f Rural Water Supply, Sanitation and Hygiene Promotion : Enhanced quality of life for people through improved access to safe, convenient, sustainable water and sanitation services ","Sub-national Governance and Development","Area 4: Government revenues, budget execution and sub national govenance \nArea 5: inclusive and sustainable development ","PSG 4: Economic Foundations \nPSG 5: Revenues and services",57359,"National Area Based Development Programme (NABDP)","57359 National Area Based Development Programme (NABDP)",78991," Increased Opportunities for income generaton  through promotion of diversified livelihoods , private sector development and public private partnership ","N/A",10440945.810980299,"78991 N/A"]
[1,"1. AGRICULTURE AND RURAL DEVELOPMENT",1.1000000000000001,"1.1. National Water and Natural Resource Development ","1.1.b.","1.1.B.  2) Environmental Conservative and Management (EC&M)","1.1.b.a","1.1.B.a Biodiversity and Land Management : Collate & analyze data for future environment conservation & management using CBNRM approach ","Sub-national Governance and Development","Area 4: Government revenues, budget execution and sub national govenance \nArea 5: inclusive and sustainable development ","PSG 4: Economic Foundations \nPSG 5: Revenues and services",57359,"National Area Based Development Programme (NABDP)","57359 National Area Based Development Programme (NABDP)",81444," Increased Opportunities for income generaton  through promotion of diversified livelihoods , private sector development and public private partnership ","N/A",null,"81444 N/A"]
[1,"1. AGRICULTURE AND RURAL DEVELOPMENT",1.1000000000000001,"1.1. National Water and Natural Resource Development ","1.1.b.","1.1.B.  2) Environmental Conservative and Management (EC&M)","1.1.b.b","1.1.B.b Energy for Rural Development in Afghanistan : Design & implement sustainable rural energy projects ensuring sustainability though empowerment of rural communities ","Sub-national Governance and Development","Area 4: Government revenues, budget execution and sub national govenance \nArea 5: inclusive and sustainable development ","PSG 4: Economic Foundations \nPSG 5: Revenues and services",57359,"National Area Based Development Programme (NABDP)","57359 National Area Based Development Programme (NABDP)",79239," Increased Opportunities for income generaton  through promotion of diversified livelihoods , private sector development and public private partnership ","Rural poor have improved access to key services",2854362.7291160002,"79239 Rural poor have improved access to key services"]
[1,"1. AGRICULTURE AND RURAL DEVELOPMENT",1.4,"1.4. Strenthening Local Institutions","1.4.a.","1.4.A. To improve the capacity of the Community Development Committees to increase development and provide productive assets\nfor the local villages","1.4.a.a","1.4.a.a Stabilizatino process is strengthened thorugh effective integrated support by the government and communities enhancing the government's capacity to deliver services to the poor and the vulnerable","Sub-national Governance and Development","Area 4: Government revenues, budget execution and sub national govenance \nArea 5: inclusive and sustainable development ","PSG 4: Economic Foundations \nPSG 5: Revenues and services",57359,"National Area Based Development Programme (NABDP)","57359 National Area Based Development Programme (NABDP)",81444," Increased Opportunities for income generaton  through promotion of diversified livelihoods , private sector development and public private partnership ","Rural poor have improved access to key services",null,"81444 Rural poor have improved access to key services"]
[1,"1. AGRICULTURE AND RURAL DEVELOPMENT",1.4,"1.4. Strenthening Local Institutions","1.4.a.","1.4.A. To improve the capacity of the Community Development Committees to increase development and provide productive assets\nfor the local villages","1.4.a.a","1.4.a.a Stabilizatino process is strengthened thorugh effective integrated support by the government and communities enhancing the government's capacity to deliver services to the poor and the vulnerable","Sub-national Governance and Development","Area 4: Government revenues, budget execution and sub national govenance \nArea 5: inclusive and sustainable development ","PSG 4: Economic Foundations \nPSG 5: Revenues and services",57359,"National Area Based Development Programme (NABDP)","57359 National Area Based Development Programme (NABDP)",81449," Increased Opportunities for income generaton  through promotion of diversified livelihoods , private sector development and public private partnership "," Stabilization in less secure regions and districts supported",null,"81449  Stabilization in less secure regions and districts supported"]
[1,"1. AGRICULTURE AND RURAL DEVELOPMENT",1.4,"1.4. Strenthening Local Institutions","1.4.b.","1.4.B.  To finalize development of an effective model of Cluster Community Development Councils (CCDs) at the sub-district level.","1.4.b.a","1.4.b.a Model finalized at the end of three year program","Sub-national Governance and Development","Area 4: Government revenues, budget execution and sub national govenance \nArea 5: inclusive and sustainable development ","PSG 4: Economic Foundations \nPSG 5: Revenues and services",57359,"National Area Based Development Programme (NABDP)","57359 National Area Based Development Programme (NABDP)",81443," Increased Opportunities for income generaton  through promotion of diversified livelihoods , private sector development and public private partnership ","Institutions strengthened at the district level to independently address priority local needs",4143305,"81443 Institutions strengthened at the district level to independently address priority local needs"]
[1,"1. AGRICULTURE AND RURAL DEVELOPMENT",1.4,"1.4. Strenthening Local Institutions","1.4.c.","1.4.C. To improve the capacity of District Development Assemblies to facilitate development at all levels and to increase the productive assets of districts,\ncompleting the connection from the village to district level.","1.4.c.a","1.4.c.a DDAs serve as coordination bodies, assisting communites to design to implementation, integrated plans for improved services","Sub-national Governance and Development","Area 4: Government revenues, budget execution and sub national govenance \nArea 5: inclusive and sustainable development ","PSG 4: Economic Foundations \nPSG 5: Revenues and services",57359,"National Area Based Development Programme (NABDP)","57359 National Area Based Development Programme (NABDP)",81443," Increased Opportunities for income generaton  through promotion of diversified livelihoods , private sector development and public private partnership ","Institutions strengthened at the district level to independently address priority local needs",null,"81443 Institutions strengthened at the district level to independently address priority local needs"]
[1,"1. AGRICULTURE AND RURAL DEVELOPMENT",1.4,"1.4. Strenthening Local Institutions","1.4.c.","1.4.C. To improve the capacity of District Development Assemblies to facilitate development at all levels and to increase the productive assets of districts,\ncompleting the connection from the village to district level.","1.4.c.a","1.4.c.a DDAs serve as coordination bodies, assisting communites to design to implementation, integrated plans for improved services","Sub-national Governance and Development","Area 4: Government revenues, budget execution and sub national govenance \nArea 5: inclusive and sustainable development ","PSG 4: Economic Foundations \nPSG 5: Revenues and services",57359,"National Area Based Development Programme (NABDP)","57359 National Area Based Development Programme (NABDP)",81444," Increased Opportunities for income generaton  through promotion of diversified livelihoods , private sector development and public private partnership ","Rural poor have improved access to key services",null,"81444 Rural poor have improved access to key services"]
[1,"1. AGRICULTURE AND RURAL DEVELOPMENT",1.4,"1.4. Strenthening Local Institutions","1.4.c.","1.4.C. To improve the capacity of District Development Assemblies to facilitate development at all levels and to increase the productive assets of districts,\ncompleting the connection from the village to district level.","1.4.c.a","1.4.c.a DDAs serve as coordination bodies, assisting communites to design to implementation, integrated plans for improved services","Sub-national Governance and Development","Area 4: Government revenues, budget execution and sub national govenance \nArea 5: inclusive and sustainable development ","PSG 4: Economic Foundations \nPSG 5: Revenues and services",57359,"National Area Based Development Programme (NABDP)","57359 National Area Based Development Programme (NABDP)",81449," Increased Opportunities for income generaton  through promotion of diversified livelihoods , private sector development and public private partnership "," Stabilization in less secure regions and districts supported",null,"81449  Stabilization in less secure regions and districts supported"]
[2,"2. GOVERNANCE ",2.4,"2.4. National Program For Local Governance","2.4.a. ","2.4.A. National Basis For Local Governance","2.4.a.a","2.4.A.a.  Prioritization of the Sub-national Governance Policy","Sub-national Governance and Development","Area 4: Government revenues, budget execution and sub national govenance \nArea 5: inclusive and sustainable development ","PSG 4: Economic Foundations \nPSG 5: Revenues and services",58922,"Afghanistan Sub-National Governance Programme (ASGP)","58922 Afghanistan Sub-National Governance Programme (ASGP)",null,"Outcome_3 The state has improved ability to deliver services to foster human development and elected bodies have greater oversight capacity (4) The state and non state are better able to promote democratic participation and accountable to the public","National Systems, procedure and legal framework to implement, coordinate and monitor the SNGP in place",4072714," National Systems, procedure and legal framework to implement, coordinate and monitor the SNGP in place"]
[2,"2. GOVERNANCE ",2.4,"2.4. National Program For Local Governance","2.4.a. ","2.4.A. National Basis For Local Governance","2.4.a.b","2.4.A.b.  Legislative Reform","Sub-national Governance and Development","Area 4: Government revenues, budget execution and sub national govenance \nArea 5: inclusive and sustainable development ","PSG 4: Economic Foundations \nPSG 5: Revenues and services",58922,"Afghanistan Sub-National Governance Programme (ASGP)","58922 Afghanistan Sub-National Governance Programme (ASGP)",null,"Outcome_3 The state has improved ability to deliver services to foster human development and elected bodies have greater oversight capacity (4) The state and non state are better able to promote democratic participation and accountable to the public","National Systems, procedure and legal framework to implement, coordinate and monitor the SNGP in place",null," National Systems, procedure and legal framework to implement, coordinate and monitor the SNGP in place"]
[2,"2. GOVERNANCE ",2.4,"2.4. National Program For Local Governance","2.4.a. ","2.4.A. National Basis For Local Governance","2.4.a.c","2.4.A.c.  Subnational Finance and Planning","Sub-national Governance and Development","Area 4: Government revenues, budget execution and sub national govenance \nArea 5: inclusive and sustainable development ","PSG 4: Economic Foundations \nPSG 5: Revenues and services",58922,"Afghanistan Sub-National Governance Programme (ASGP)","58922 Afghanistan Sub-National Governance Programme (ASGP)",null,"Outcome_3 The state has improved ability to deliver services to foster human development and elected bodies have greater oversight capacity (4) The state and non state are better able to promote democratic participation and accountable to the public","National Systems, procedure and legal framework to implement, coordinate and monitor the SNGP in place",null," National Systems, procedure and legal framework to implement, coordinate and monitor the SNGP in place"]
[2,"2. GOVERNANCE ",2.4,"2.4. National Program For Local Governance","2.4.a. ","2.4.A. National Basis For Local Governance","2.4.a.d","2.4.A.d. institutional and Capacity Development of IDLG centre","Sub-national Governance and Development","Area 4: Government revenues, budget execution and sub national govenance \nArea 5: inclusive and sustainable development ","PSG 4: Economic Foundations \nPSG 5: Revenues and services",58922,"Afghanistan Sub-National Governance Programme (ASGP)","58922 Afghanistan Sub-National Governance Programme (ASGP)",null,"Outcome_3 The state has improved ability to deliver services to foster human development and elected bodies have greater oversight capacity (4) The state and non state are better able to promote democratic participation and accountable to the public","National Systems, procedure and legal framework to implement, coordinate and monitor the SNGP in place",null," National Systems, procedure and legal framework to implement, coordinate and monitor the SNGP in place"]
[2,"2. GOVERNANCE ",2.4,"2.4. National Program For Local Governance","2.4.a. ","2.4.A. National Basis For Local Governance","2.4.a.e","2.4.A.e. IDLG Financial Management and Audit Capacity","Sub-national Governance and Development","Area 4: Government revenues, budget execution and sub national govenance \nArea 5: inclusive and sustainable development ","PSG 4: Economic Foundations \nPSG 5: Revenues and services",58922,"Afghanistan Sub-National Governance Programme (ASGP)","58922 Afghanistan Sub-National Governance Programme (ASGP)",null,"Outcome_3 The state has improved ability to deliver services to foster human development and elected bodies have greater oversight capacity (4) The state and non state are better able to promote democratic participation and accountable to the public","National Systems, procedure and legal framework to implement, coordinate and monitor the SNGP in place",null," National Systems, procedure and legal framework to implement, coordinate and monitor the SNGP in place"]
[2,"2. GOVERNANCE ",2.4,"2.4. National Program For Local Governance","2.4.a. ","2.4.A. National Basis For Local Governance","2.4.a.f","2.4.A.f.  Media & Strategic Communication","Sub-national Governance and Development","Area 4: Government revenues, budget execution and sub national govenance \nArea 5: inclusive and sustainable development ","PSG 4: Economic Foundations \nPSG 5: Revenues and services",58922,"Afghanistan Sub-National Governance Programme (ASGP)","58922 Afghanistan Sub-National Governance Programme (ASGP)",null,"Outcome_3 The state has improved ability to deliver services to foster human development and elected bodies have greater oversight capacity (4) The state and non state are better able to promote democratic participation and accountable to the public","N/A",null," N/A"]
[2,"2. GOVERNANCE ",2.4,"2.4. National Program For Local Governance","2.4.a. ","2.4.A. National Basis For Local Governance","2.4.a.g","2.4.A.g.  M&E, Surveys and Reporting","Sub-national Governance and Development","Area 4: Government revenues, budget execution and sub national govenance \nArea 5: inclusive and sustainable development ","PSG 4: Economic Foundations \nPSG 5: Revenues and services",58922,"Afghanistan Sub-National Governance Programme (ASGP)","58922 Afghanistan Sub-National Governance Programme (ASGP)",null,"Outcome_3 The state has improved ability to deliver services to foster human development and elected bodies have greater oversight capacity (4) The state and non state are better able to promote democratic participation and accountable to the public","PGO/DGO have capacity to lead and develop plans, programmes and implement strategies for improving governance development, and security in accordance with ANDS",10440945," PGO/DGO have capacity to lead and develop plans, programmes and implement strategies for improving governance development, and security in accordance with ANDS"]
[2,"2. GOVERNANCE ",2.4,"2.4. National Program For Local Governance","2.4.a. ","2.4.A. National Basis For Local Governance","2.4.a.h","2.4.A.h. Information, Communications and Technology","Sub-national Governance and Development","Area 4: Government revenues, budget execution and sub national govenance \nArea 5: inclusive and sustainable development ","PSG 4: Economic Foundations \nPSG 5: Revenues and services",58922,"Afghanistan Sub-National Governance Programme (ASGP)","58922 Afghanistan Sub-National Governance Programme (ASGP)",null,"Outcome_3 The state has improved ability to deliver services to foster human development and elected bodies have greater oversight capacity (4) The state and non state are better able to promote democratic participation and accountable to the public","PGO/DGO have capacity to lead and develop plans, programmes and implement strategies for improving governance development, and security in accordance with ANDS",null," PGO/DGO have capacity to lead and develop plans, programmes and implement strategies for improving governance development, and security in accordance with ANDS"]
[2,"2. GOVERNANCE ",2.4,"2.4. National Program For Local Governance","2.4.b. ","2.4.B. Provincial and District Administration","2.4.b.a","2.4.B.a.  Provincial and District Infrastructure & Provision of Facilities","Sub-national Governance and Development","Area 4: Government revenues, budget execution and sub national govenance \nArea 5: inclusive and sustainable development ","PSG 4: Economic Foundations \nPSG 5: Revenues and services",58922,"Afghanistan Sub-National Governance Programme (ASGP)","58922 Afghanistan Sub-National Governance Programme (ASGP)",null,"Outcome_3 The state has improved ability to deliver services to foster human development and elected bodies have greater oversight capacity (4) The state and non state are better able to promote democratic participation and accountable to the public","PGO/DGO have capacity to lead and develop plans, programmes and implement strategies for improving governance development, and security in accordance with ANDS",null," PGO/DGO have capacity to lead and develop plans, programmes and implement strategies for improving governance development, and security in accordance with ANDS"]
[2,"2. GOVERNANCE ",2.4,"2.4. National Program For Local Governance","2.4.b. ","2.4.B. Provincial and District Administration","2.4.b.b","2.4.B.b.  Public Administration Reform","Sub-national Governance and Development","Area 4: Government revenues, budget execution and sub national govenance \nArea 5: inclusive and sustainable development ","PSG 4: Economic Foundations \nPSG 5: Revenues and services",58922,"Afghanistan Sub-National Governance Programme (ASGP)","58922 Afghanistan Sub-National Governance Programme (ASGP)",null,"Outcome_3 The state has improved ability to deliver services to foster human development and elected bodies have greater oversight capacity (4) The state and non state are better able to promote democratic participation and accountable to the public","PGO/DGO have capacity to lead and develop plans, programmes and implement strategies for improving governance development, and security in accordance with ANDS",null," PGO/DGO have capacity to lead and develop plans, programmes and implement strategies for improving governance development, and security in accordance with ANDS"]
[2,"2. GOVERNANCE ",2.4,"2.4. National Program For Local Governance","2.4.b. ","2.4.B. Provincial and District Administration","2.4.b.c","2.4.B.c. Provincial & Districts' Institutional & Capacity Development","Sub-national Governance and Development","Area 4: Government revenues, budget execution and sub national govenance \nArea 5: inclusive and sustainable development ","PSG 4: Economic Foundations \nPSG 5: Revenues and services",58922,"Afghanistan Sub-National Governance Programme (ASGP)","58922 Afghanistan Sub-National Governance Programme (ASGP)",null,"Outcome_3 The state has improved ability to deliver services to foster human development and elected bodies have greater oversight capacity (4) The state and non state are better able to promote democratic participation and accountable to the public","National Systems, procedure and legal framework to implement, coordinate and monitor the SNGP in place",null," National Systems, procedure and legal framework to implement, coordinate and monitor the SNGP in place"]
[2,"2. GOVERNANCE ",2.4,"2.4. National Program For Local Governance","2.4.b. ","2.4.B. Provincial and District Administration","2.4.b.c","2.4.B.c. Provincial & Districts' Institutional & Capacity Development","Sub-national Governance and Development","Area 4: Government revenues, budget execution and sub national govenance \nArea 5: inclusive and sustainable development ","PSG 4: Economic Foundations \nPSG 5: Revenues and services",58922,"Afghanistan Sub-National Governance Programme (ASGP)","58922 Afghanistan Sub-National Governance Programme (ASGP)",null,"Outcome_3 The state has improved ability to deliver services to foster human development and elected bodies have greater oversight capacity (4) The state and non state are better able to promote democratic participation and accountable to the public","PGO/DGO have capacity to lead and develop plans, programmes and implement strategies for improving governance development, and security in accordance with ANDS",null," PGO/DGO have capacity to lead and develop plans, programmes and implement strategies for improving governance development, and security in accordance with ANDS"]
[2,"2. GOVERNANCE ",2.4,"2.4. National Program For Local Governance","2.4.b. ","2.4.B. Provincial and District Administration","2.4.b.d","2.4.B.d. Strengthening sub-national presence and coordination","Sub-national Governance and Development","Area 4: Government revenues, budget execution and sub national govenance \nArea 5: inclusive and sustainable development ","PSG 4: Economic Foundations \nPSG 5: Revenues and services",58922,"Afghanistan Sub-National Governance Programme (ASGP)","58922 Afghanistan Sub-National Governance Programme (ASGP)",null,"Outcome_3 The state has improved ability to deliver services to foster human development and elected bodies have greater oversight capacity (4) The state and non state are better able to promote democratic participation and accountable to the public","PGO/DGO have capacity to lead and develop plans, programmes and implement strategies for improving governance development, and security in accordance with ANDS",null," PGO/DGO have capacity to lead and develop plans, programmes and implement strategies for improving governance development, and security in accordance with ANDS"]
[2,"2. GOVERNANCE ",2.4,"2.4. National Program For Local Governance","2.4.b. ","2.4.B. Provincial and District Administration","2.4.b.e","2.4.B.e.  Support to Cross Cutting and National Issues","Sub-national Governance and Development","Area 4: Government revenues, budget execution and sub national govenance \nArea 5: inclusive and sustainable development ","PSG 4: Economic Foundations \nPSG 5: Revenues and services",58922,"Afghanistan Sub-National Governance Programme (ASGP)","58922 Afghanistan Sub-National Governance Programme (ASGP)",null,"Outcome_3 The state has improved ability to deliver services to foster human development and elected bodies have greater oversight capacity (4) The state and non state are better able to promote democratic participation and accountable to the public","N/A",null," N/A"]
[2,"2. GOVERNANCE ",2.4,"2.4. National Program For Local Governance","2.4.c. ","2.4.C. Municipal Administration","2.4.c.a","2.4.C.a.  Provincial municipal administrations' refurbishment and provision of facilities","Sub-national Governance and Development","Area 4: Government revenues, budget execution and sub national govenance \nArea 5: inclusive and sustainable development ","PSG 4: Economic Foundations \nPSG 5: Revenues and services",58922,"Afghanistan Sub-National Governance Programme (ASGP)","58922 Afghanistan Sub-National Governance Programme (ASGP)",null,"Outcome_3 The state has improved ability to deliver services to foster human development and elected bodies have greater oversight capacity (4) The state and non state are better able to promote democratic participation and accountable to the public","PGO/DGO have capacity to lead and develop plans, programmes and implement strategies for improving governance development, and security in accordance with ANDS",null," PGO/DGO have capacity to lead and develop plans, programmes and implement strategies for improving governance development, and security in accordance with ANDS"]
[2,"2. GOVERNANCE ",2.4,"2.4. National Program For Local Governance","2.4.c. ","2.4.C. Municipal Administration","2.4.c.b","2.4.C.b.  Municipal Administrative Reforms and Developing of Municipal Urban Strategic Development Plans","Sub-national Governance and Development","Area 4: Government revenues, budget execution and sub national govenance \nArea 5: inclusive and sustainable development ","PSG 4: Economic Foundations \nPSG 5: Revenues and services",58922,"Afghanistan Sub-National Governance Programme (ASGP)","58922 Afghanistan Sub-National Governance Programme (ASGP)",null,"Outcome_3 The state has improved ability to deliver services to foster human development and elected bodies have greater oversight capacity (4) The state and non state are better able to promote democratic participation and accountable to the public","Municipalities have improved institutional and organizational framework and capacity to collect increasing revenues and deliver basic public services by 2014",2804924," Municipalities have improved institutional and organizational framework and capacity to collect increasing revenues and deliver basic public services by 2014"]
[2,"2. GOVERNANCE ",2.4,"2.4. National Program For Local Governance","2.4.c. ","2.4.C. Municipal Administration","2.4.c.c","2.4.C.c. Municipal Finance and Revenues","Sub-national Governance and Development","Area 4: Government revenues, budget execution and sub national govenance \nArea 5: inclusive and sustainable development ","PSG 4: Economic Foundations \nPSG 5: Revenues and services",58922,"Afghanistan Sub-National Governance Programme (ASGP)","58922 Afghanistan Sub-National Governance Programme (ASGP)",null,"Outcome_3 The state has improved ability to deliver services to foster human development and elected bodies have greater oversight capacity (4) The state and non state are better able to promote democratic participation and accountable to the public","Municipalities have improved institutional and organizational framework and capacity to collect increasing revenues and deliver basic public services by 2014",null," Municipalities have improved institutional and organizational framework and capacity to collect increasing revenues and deliver basic public services by 2014"]
[2,"2. GOVERNANCE ",2.4,"2.4. National Program For Local Governance","2.4.c. ","2.4.C. Municipal Administration","2.4.c.d","2.4.C.d.  Community-Based Development & Governance in Municipalities","Sub-national Governance and Development","Area 4: Government revenues, budget execution and sub national govenance \nArea 5: inclusive and sustainable development ","PSG 4: Economic Foundations \nPSG 5: Revenues and services",58922,"Afghanistan Sub-National Governance Programme (ASGP)","58922 Afghanistan Sub-National Governance Programme (ASGP)",null,"Outcome_3 The state has improved ability to deliver services to foster human development and elected bodies have greater oversight capacity (4) The state and non state are better able to promote democratic participation and accountable to the public","Municipalities have improved institutional and organizational framework and capacity to collect increasing revenues and deliver basic public services by 2014",null," Municipalities have improved institutional and organizational framework and capacity to collect increasing revenues and deliver basic public services by 2014"]
[2,"2. GOVERNANCE ",2.4,"2.4. National Program For Local Governance","2.4.d. ","2.4.D. Local Representation, Accountability and Transparency","2.4.d.a","2.4.D.a.  Provincial Council capacity development","Sub-national Governance and Development","Area 4: Government revenues, budget execution and sub national govenance \nArea 5: inclusive and sustainable development ","PSG 4: Economic Foundations \nPSG 5: Revenues and services",58922,"Afghanistan Sub-National Governance Programme (ASGP)","58922 Afghanistan Sub-National Governance Programme (ASGP)",null,"Outcome_3 The state has improved ability to deliver services to foster human development and elected bodies have greater oversight capacity (4) The state and non state are better able to promote democratic participation and accountable to the public","N/A",null," N/A"]
[2,"2. GOVERNANCE ",2.4,"2.4. National Program For Local Governance","2.4.d. ","2.4.D. Local Representation, Accountability and Transparency","2.4.d.b","2.4.D.b. District–level and village-level representation","Sub-national Governance and Development","Area 4: Government revenues, budget execution and sub national govenance \nArea 5: inclusive and sustainable development ","PSG 4: Economic Foundations \nPSG 5: Revenues and services",58922,"Afghanistan Sub-National Governance Programme (ASGP)","58922 Afghanistan Sub-National Governance Programme (ASGP)",null,"Outcome_3 The state has improved ability to deliver services to foster human development and elected bodies have greater oversight capacity (4) The state and non state are better able to promote democratic participation and accountable to the public","N/A",null," N/A"]
[2,"2. GOVERNANCE ",2.4,"2.4. National Program For Local Governance","2.4.d. ","2.4.D. Local Representation, Accountability and Transparency","2.4.d.c","2.4.D.c.  Public grievances mechanisms","Sub-national Governance and Development","Area 4: Government revenues, budget execution and sub national govenance \nArea 5: inclusive and sustainable development ","PSG 4: Economic Foundations \nPSG 5: Revenues and services",58922,"Afghanistan Sub-National Governance Programme (ASGP)","58922 Afghanistan Sub-National Governance Programme (ASGP)",null,"Outcome_3 The state has improved ability to deliver services to foster human development and elected bodies have greater oversight capacity (4) The state and non state are better able to promote democratic participation and accountable to the public","N/A",null," N/A"]
[2,"2. GOVERNANCE ",2.4,"2.4. National Program For Local Governance","2.4.d. ","2.4.D. Local Representation, Accountability and Transparency","2.4.d.d","2.4.D.d.  Local council coordination & information-sharing","Sub-national Governance and Development","Area 4: Government revenues, budget execution and sub national govenance \nArea 5: inclusive and sustainable development ","PSG 4: Economic Foundations \nPSG 5: Revenues and services",58922,"Afghanistan Sub-National Governance Programme (ASGP)","58922 Afghanistan Sub-National Governance Programme (ASGP)",null,"Outcome_3 The state has improved ability to deliver services to foster human development and elected bodies have greater oversight capacity (4) The state and non state are better able to promote democratic participation and accountable to the public","N/A",null," N/A"]
[2,"2. GOVERNANCE ",2.4,"2.4. National Program For Local Governance","2.4.d. ","2.4.D. Local Representation, Accountability and Transparency","2.4.d.e","2.4.D.e.  Support to newly elected representatives","Sub-national Governance and Development","Area 4: Government revenues, budget execution and sub national govenance \nArea 5: inclusive and sustainable development ","PSG 4: Economic Foundations \nPSG 5: Revenues and services",58922,"Afghanistan Sub-National Governance Programme (ASGP)","58922 Afghanistan Sub-National Governance Programme (ASGP)",null,"Outcome_3 The state has improved ability to deliver services to foster human development and elected bodies have greater oversight capacity (4) The state and non state are better able to promote democratic participation and accountable to the public","N/A",null," N/A"]
[3,"3. HUMAN RESOURCE DEVELOPMENT",3.4,"3.4. Capacity Development To Accelerate NAPWA Implementation","3.4.a. ","3.4.A. Internal Organizational Reform and Capacity Building","3.4.a.a","3.4.a.a (a) To strengthen the organizational mechanism of MOWA (including DOWAs) as leader and oversight in ensuring NAPWA implementation","Gender and Capacity Development","Area 5: inclusive and sustainable development ","N/A",71928,"Gender Equality Project - II","71928 Gender Equality Project - II",85178,"6. Opportunities for decent work and income are improved and diversified, especially for vulnerable groups.","MOWA`s capacity of policy making and oversight of NAPWA Implementation improved.",802078.495,"85178 MOWA`s capacity of policy making and oversight of NAPWA Implementation improved."]
[3,"3. HUMAN RESOURCE DEVELOPMENT",3.4,"3.4. Capacity Development To Accelerate NAPWA Implementation","3.4.a. ","3.4.A. Internal Organizational Reform and Capacity Building","3.4.a.b","3.4.a.b (b) to improve the capacity and raise the level of performance of MOWA/DOWA officials and staff in policy advising, coordinating, monitoring, and providing technical guidance to ministries and local governments on NAPWA implementation","Gender and Capacity Development","Area 5: inclusive and sustainable development ","N/A",71928,"Gender Equality Project - II","71928 Gender Equality Project - II",85178,"6. Opportunities for decent work and income are improved and diversified, especially for vulnerable groups.","MOWA`s capacity of policy making and oversight of NAPWA Implementation improved.",null,"85178 MOWA`s capacity of policy making and oversight of NAPWA Implementation improved."]
[3,"3. HUMAN RESOURCE DEVELOPMENT",3.4,"3.4. Capacity Development To Accelerate NAPWA Implementation","3.4.b. ","3.4.B. Gender Training for Government Staff","3.4.b.a","3.4.b.a (a) To institutionalize capacity building on gender within government; ","Gender and Capacity Development","Area 5: inclusive and sustainable development ","N/A",71928,"Gender Equality Project - II","71928 Gender Equality Project - II",85152,"6. Opportunities for decent work and income are improved and diversified, especially for vulnerable groups.","Women’s entrepreneurship skills developed for women entrepreneurs and cooperatives in 19 provinces.",1418806.4550000001,"85152 Women’s entrepreneurship skills developed for women entrepreneurs and cooperatives in 19 provinces."]
[3,"3. HUMAN RESOURCE DEVELOPMENT",3.4,"3.4. Capacity Development To Accelerate NAPWA Implementation","3.4.b. ","3.4.B. Gender Training for Government Staff","3.4.b.b","3.4.b.b (b) to promote the establishment and management of data base on gender trainings for government staff;","Gender and Capacity Development","Area 5: inclusive and sustainable development ","N/A",71928,"Gender Equality Project - II","71928 Gender Equality Project - II",85152,"6. Opportunities for decent work and income are improved and diversified, especially for vulnerable groups.","Women’s entrepreneurship skills developed for women entrepreneurs and cooperatives in 19 provinces.",null,"85152 Women’s entrepreneurship skills developed for women entrepreneurs and cooperatives in 19 provinces."]
[3,"3. HUMAN RESOURCE DEVELOPMENT",3.4,"3.4. Capacity Development To Accelerate NAPWA Implementation","3.4.b. ","3.4.B. Gender Training for Government Staff","3.4.b.c ","3.4.b.c (c) to facilitate the consolidation of gender training resources, particularly those that have been used in Afghanistan","Gender and Capacity Development","Area 5: inclusive and sustainable development ","N/A",71928,"Gender Equality Project - II","71928 Gender Equality Project - II",85152,"6. Opportunities for decent work and income are improved and diversified, especially for vulnerable groups.","Women’s entrepreneurship skills developed for women entrepreneurs and cooperatives in 19 provinces.",null,"85152 Women’s entrepreneurship skills developed for women entrepreneurs and cooperatives in 19 provinces."]
[3,"3. HUMAN RESOURCE DEVELOPMENT",3.4,"3.4. Capacity Development To Accelerate NAPWA Implementation","3.4.c. ","3.4.C. Piloting of Gender Mainstreaming in Policies and Programs","3.4.c.a","3.4.c.a (a) To promote the mainstreaming of gender in all NPPs on a pilot basis; ","Gender and Capacity Development","Area 5: inclusive and sustainable development ","N/A",71928,"Gender Equality Project - II","71928 Gender Equality Project - II",85146,"6. Opportunities for decent work and income are improved and diversified, especially for vulnerable groups.","Access to justice for women including awareness on women’s rights among men & women increased.",961178.95499999996,"85146 Access to justice for women including awareness on women’s rights among men & women increased."]
[3,"3. HUMAN RESOURCE DEVELOPMENT",3.4,"3.4. Capacity Development To Accelerate NAPWA Implementation","3.4.c. ","3.4.C. Piloting of Gender Mainstreaming in Policies and Programs","3.4.c.b","3.4.c.b (b) To build the capacity of ministries to mainstream\ngender into their development programs; ","Gender and Capacity Development","Area 5: inclusive and sustainable development ","N/A",71928,"Gender Equality Project - II","71928 Gender Equality Project - II",85146,"6. Opportunities for decent work and income are improved and diversified, especially for vulnerable groups.","Access to justice for women including awareness on women’s rights among men & women increased.",null,"85146 Access to justice for women including awareness on women’s rights among men & women increased."]
[3,"3. HUMAN RESOURCE DEVELOPMENT",3.4,"3.4. Capacity Development To Accelerate NAPWA Implementation","3.4.c. ","3.4.C. Piloting of Gender Mainstreaming in Policies and Programs","3.4.c.c","3.4.c.c (c) To acquire experience‐based lessons on gender mainstreaming that will continuously improve governmentʹs ability to implement NAPWA","Gender and Capacity Development","Area 5: inclusive and sustainable development ","N/A",71928,"Gender Equality Project - II","71928 Gender Equality Project - II",85146,"6. Opportunities for decent work and income are improved and diversified, especially for vulnerable groups.","Access to justice for women including awareness on women’s rights among men & women increased.",null,"85146 Access to justice for women including awareness on women’s rights among men & women increased."]
[3,"3. HUMAN RESOURCE DEVELOPMENT",3.4,"3.4. Capacity Development To Accelerate NAPWA Implementation","3.4.d. ","3.4.D. Policy Research and Development","3.4.d.a","3.4.d.a (a) To raise awareness on the importance of gender sensitive researches; ","Gender and Capacity Development","Area 5: inclusive and sustainable development ","N/A",71928,"Gender Equality Project - II","71928 Gender Equality Project - II",85146,"6. Opportunities for decent work and income are improved and diversified, especially for vulnerable groups.","N/A",null,"85146 N/A"]
[3,"3. HUMAN RESOURCE DEVELOPMENT",3.4,"3.4. Capacity Development To Accelerate NAPWA Implementation","3.4.d. ","3.4.D. Policy Research and Development","3.4.d.b","3.4.d.b (b) to develop capacities in conducting gender sensitive\nresearches; ","Gender and Capacity Development","Area 5: inclusive and sustainable development ","N/A",71928,"Gender Equality Project - II","71928 Gender Equality Project - II",85146,"6. Opportunities for decent work and income are improved and diversified, especially for vulnerable groups.","N/A",null,"85146 N/A"]
[3,"3. HUMAN RESOURCE DEVELOPMENT",3.4,"3.4. Capacity Development To Accelerate NAPWA Implementation","3.4.d. ","3.4.D. Policy Research and Development","3.4.d.c","3.4.d.c (c) to promote the use of gender sensitive findings in policy making and programming; and","Gender and Capacity Development","Area 5: inclusive and sustainable development ","N/A",71928,"Gender Equality Project - II",{"$f":"+CONCATENATE(L67,\" \",M67)","v":"71928 Gender Equality Project - II"},85146,"6. Opportunities for decent work and income are improved and diversified, especially for vulnerable groups.","N/A",null,{"$f":"+CONCATENATE(O67,\" \",Q67)","v":"85146 N/A"}]
[3,"3. HUMAN RESOURCE DEVELOPMENT",3.4,"3.4. Capacity Development To Accelerate NAPWA Implementation","3.4.d. ","3.4.D. Policy Research and Development","3.4.d.d","3.4.d.d  (d) to improve MOWAʹs capacity to manage knowledge\nderived from gender researches to accelerate NAPWA implementation","Gender and Capacity Development","Area 5: inclusive and sustainable development ","N/A",71928,"Gender Equality Project - II","71928 Gender Equality Project - II",85146,"6. Opportunities for decent work and income are improved and diversified, especially for vulnerable groups.","N/A",null,"85146 N/A"]
[2,"2. GOVERNANCE ",2.2999999999999998,"2.3. The Afghanistan Program For Efficient And Effective Government","2.3.A. ","2.3.A. To strengthen policy, legal and regulatory frameworks governing the civil service and Public Administration Reform","2.3.A.a","2.3.A.a Strengthen the Civil Service and PAR legal / policy environment  -","Gender and Capacity Development","Area 2: Governance , RoL, and HR\nArea 4: Inclusive and sustained growth and development ","PSG 5: Revenues and Servces",58898," National Institution Building Project (NIBP )","58898  National Institution Building Project (NIBP )",81998,"Outcome 3 - The state has improved ability to deliver services to foster human development and elected bodies have greater oversight capacity","Organizational capacity in specified areas within select government entities strengthened.",3920062.29,"81998 Organizational capacity in specified areas within select government entities strengthened."]
[2,"2. GOVERNANCE ",2.2999999999999998,"2.3. The Afghanistan Program For Efficient And Effective Government","2.3.B. ","2.3.B. to increase civil service and public administration operational efficiency and effectiveness at the central, ministry and sub-national levels of government","2.3.B.a","2.3.B.a Carry out technical capacity assessments (TCA) of priority ministries","Gender and Capacity Development","Area 2: Governance , RoL, and HR\nArea 4: Inclusive and sustained growth and development ","PSG 5: Revenues and Servces",58898," National Institution Building Project (NIBP )","58898  National Institution Building Project (NIBP )",81998,"Outcome 3 - The state has improved ability to deliver services to foster human development and elected bodies have greater oversight capacity","Organizational capacity in specified areas within select government entities strengthened.",null,"81998 Organizational capacity in specified areas within select government entities strengthened."]
[2,"2. GOVERNANCE ",2.2999999999999998,"2.3. The Afghanistan Program For Efficient And Effective Government","2.3.B. ","2.3.B. to increase civil service and public administration operational efficiency and effectiveness at the central, ministry and sub-national levels of government","2.3.B.b",{"$error":"#N/A"},"Gender and Capacity Development","Area 2: Governance , RoL, and HR\nArea 4: Inclusive and sustained growth and development ","PSG 5: Revenues and Servces",58898," National Institution Building Project (NIBP )","58898  National Institution Building Project (NIBP )",81998,"Outcome 3 - The state has improved ability to deliver services to foster human development and elected bodies have greater oversight capacity","Organizational capacity in specified areas within select government entities strengthened.",null,"81998 Organizational capacity in specified areas within select government entities strengthened."]
[2,"2. GOVERNANCE ",2.2999999999999998,"2.3. The Afghanistan Program For Efficient And Effective Government","2.3.B. ","2.3.B. to increase civil service and public administration operational efficiency and effectiveness at the central, ministry and sub-national levels of government","2.3.B.c","2.3.B.c Strengthen Human Resources Management (HRM) performance within priority Ministries and Agencies, at national and subnational levels","Gender and Capacity Development","Area 2: Governance , RoL, and HR\nArea 4: Inclusive and sustained growth and development ","PSG 5: Revenues and Servces",58898," National Institution Building Project (NIBP )","58898  National Institution Building Project (NIBP )",81998,"Outcome 3 - The state has improved ability to deliver services to foster human development and elected bodies have greater oversight capacity","Organizational capacity in specified areas within select government entities strengthened.",null,"81998 Organizational capacity in specified areas within select government entities strengthened."]
[2,"2. GOVERNANCE ",2.2999999999999998,"2.3. The Afghanistan Program For Efficient And Effective Government","2.3.B. ","2.3.B. to increase civil service and public administration operational efficiency and effectiveness at the central, ministry and sub-national levels of government","2.3.B.c","2.3.B.c Strengthen Human Resources Management (HRM) performance within priority Ministries and Agencies, at national and subnational levels","Gender and Capacity Development","Area 2: Governance , RoL, and HR\nArea 4: Inclusive and sustained growth and development ","PSG 5: Revenues and Servces",58898," National Institution Building Project (NIBP )","58898  National Institution Building Project (NIBP )",82621,"Outcome 3 - The state has improved ability to deliver services to foster human development and elected bodies have greater oversight capacity","Institutional Capacity of IARCSC to build an efficient and effective Civil Service supported",1165870,"82621 Institutional Capacity of IARCSC to build an efficient and effective Civil Service supported"]
[2,"2. GOVERNANCE ",2.2999999999999998,"2.3. The Afghanistan Program For Efficient And Effective Government","2.3.B. ","2.3.B. to increase civil service and public administration operational efficiency and effectiveness at the central, ministry and sub-national levels of government","2.3.B.d","2.3.B.d Upgrade capacities of civil servants: high priority ministries/agencies","Gender and Capacity Development","Area 2: Governance , RoL, and HR\nArea 4: Inclusive and sustained growth and development ","PSG 5: Revenues and Servces",58898," National Institution Building Project (NIBP )","58898  National Institution Building Project (NIBP )",82621,"Outcome 3 - The state has improved ability to deliver services to foster human development and elected bodies have greater oversight capacity","Institutional Capacity of IARCSC to build an efficient and effective Civil Service supported",null,"82621 Institutional Capacity of IARCSC to build an efficient and effective Civil Service supported"]
[2,"2. GOVERNANCE ",2.2999999999999998,"2.3. The Afghanistan Program For Efficient And Effective Government","2.3.B. ","2.3.B. to increase civil service and public administration operational efficiency and effectiveness at the central, ministry and sub-national levels of government","2.3.B.e","2.3.B.e Simplify government business / administrative processes (BPS)","Gender and Capacity Development","Area 2: Governance , RoL, and HR\nArea 4: Inclusive and sustained growth and development ","PSG 5: Revenues and Servces",58898," National Institution Building Project (NIBP )","58898  National Institution Building Project (NIBP )",82621,"Outcome 3 - The state has improved ability to deliver services to foster human development and elected bodies have greater oversight capacity","Organizational capacity in specified areas within select government entities strengthened.",null,"82621 Organizational capacity in specified areas within select government entities strengthened."]
[2,"2. GOVERNANCE ",2.2999999999999998,"2.3. The Afghanistan Program For Efficient And Effective Government","2.3.B. ","2.3.B. to increase civil service and public administration operational efficiency and effectiveness at the central, ministry and sub-national levels of government","2.3.B.f","2.3.B.f Strenghtened government prsence and service delivery in provinces","Gender and Capacity Development","Area 2: Governance , RoL, and HR\nArea 4: Inclusive and sustained growth and development ","PSG 5: Revenues and Servces",58898," National Institution Building Project (NIBP )","58898  National Institution Building Project (NIBP )",82621,"Outcome 3 - The state has improved ability to deliver services to foster human development and elected bodies have greater oversight capacity","Institutional Capacity of IARCSC to build an efficient and effective Civil Service supported",null,"82621 Institutional Capacity of IARCSC to build an efficient and effective Civil Service supported"]
[2,"2. GOVERNANCE ",2.2999999999999998,"2.3. The Afghanistan Program For Efficient And Effective Government","2.3.B. ","2.3.B. to increase civil service and public administration operational efficiency and effectiveness at the central, ministry and sub-national levels of government","2.3.B.f","2.3.B.f Strenghtened government prsence and service delivery in provinces","Gender and Capacity Development","Area 2: Governance , RoL, and HR\nArea 4: Inclusive and sustained growth and development ","PSG 5: Revenues and Servces",58898," National Institution Building Project (NIBP )","58898  National Institution Building Project (NIBP )",82621,"Outcome 3 - The state has improved ability to deliver services to foster human development and elected bodies have greater oversight capacity","Organizational capacity in specified areas within select government entities strengthened.",null,"82621 Organizational capacity in specified areas within select government entities strengthened."]
[2,"2. GOVERNANCE ",2.2999999999999998,"2.3. The Afghanistan Program For Efficient And Effective Government","2.3.B. ","2.3.B. to increase civil service and public administration operational efficiency and effectiveness at the central, ministry and sub-national levels of government","2.3.B.g","2.3.B.g Implement gender and equality policies across government  ","Gender and Capacity Development","Area 2: Governance , RoL, and HR\nArea 4: Inclusive and sustained growth and development ","PSG 5: Revenues and Servces",58898," National Institution Building Project (NIBP )","58898  National Institution Building Project (NIBP )",82621,"Outcome 3 - The state has improved ability to deliver services to foster human development and elected bodies have greater oversight capacity","Institutional Capacity of IARCSC to build an efficient and effective Civil Service supported",null,"82621 Institutional Capacity of IARCSC to build an efficient and effective Civil Service supported"]
[2,"2. GOVERNANCE ",2.2999999999999998,"2.3. The Afghanistan Program For Efficient And Effective Government","2.3.B. ","2.3.B. to increase civil service and public administration operational efficiency and effectiveness at the central, ministry and sub-national levels of government","2.3.B.g","2.3.B.g Implement gender and equality policies across government  ","Gender and Capacity Development","Area 2: Governance , RoL, and HR\nArea 4: Inclusive and sustained growth and development ","PSG 5: Revenues and Servces",58898," National Institution Building Project (NIBP )","58898  National Institution Building Project (NIBP )",82621,"Outcome 3 - The state has improved ability to deliver services to foster human development and elected bodies have greater oversight capacity","Organizational capacity in specified areas within select government entities strengthened.",null,"82621 Organizational capacity in specified areas within select government entities strengthened."]
[2,"2. GOVERNANCE ",2.2999999999999998,"2.3. The Afghanistan Program For Efficient And Effective Government","2.3.B. ","2.3.B. to increase civil service and public administration operational efficiency and effectiveness at the central, ministry and sub-national levels of government","2.3.B.h","2.3.B.h Upgrade and implement the Human Resources Management Information System (HRMIS) across government","Gender and Capacity Development","Area 2: Governance , RoL, and HR\nArea 4: Inclusive and sustained growth and development ","PSG 5: Revenues and Servces",58898," National Institution Building Project (NIBP )","58898  National Institution Building Project (NIBP )",82621,"Outcome 3 - The state has improved ability to deliver services to foster human development and elected bodies have greater oversight capacity","Organizational capacity in specified areas within select government entities strengthened.",null,"82621 Organizational capacity in specified areas within select government entities strengthened."]
[2,"2. GOVERNANCE ",2.2999999999999998,"2.3. The Afghanistan Program For Efficient And Effective Government","2.3.B. ","2.3.B. to increase civil service and public administration operational efficiency and effectiveness at the central, ministry and sub-national levels of government","2.3.B.h","2.3.B.h Upgrade and implement the Human Resources Management Information System (HRMIS) across government","Gender and Capacity Development","Area 2: Governance , RoL, and HR\nArea 4: Inclusive and sustained growth and development ","PSG 5: Revenues and Servces",58898," National Institution Building Project (NIBP )","58898  National Institution Building Project (NIBP )",82621,"Outcome 3 - The state has improved ability to deliver services to foster human development and elected bodies have greater oversight capacity","Institutional Capacity of IARCSC to build an efficient and effective Civil Service supported",null,"82621 Institutional Capacity of IARCSC to build an efficient and effective Civil Service supported"]
[2,"2. GOVERNANCE ",2.2999999999999998,"2.3. The Afghanistan Program For Efficient And Effective Government","2.3.C. ","2.3.C. to develop a longer-term vision and strategy for reform of public administration that will meet the future needs of a self-sustaining Afghanistan","2.3.C.a  ",{"$error":"#N/A"},"Gender and Capacity Development","Area 2: Governance , RoL, and HR\nArea 4: Inclusive and sustained growth and development ","PSG 5: Revenues and Servces",58898," National Institution Building Project (NIBP )","58898  National Institution Building Project (NIBP )",82621,"Outcome 3 - The state has improved ability to deliver services to foster human development and elected bodies have greater oversight capacity","Institutional Capacity of IARCSC to build an efficient and effective Civil Service supported",null,"82621 Institutional Capacity of IARCSC to build an efficient and effective Civil Service supported"]
[2,"2. GOVERNANCE ",2.2999999999999998,"2.3. The Afghanistan Program For Efficient And Effective Government","2.3.D. ","2.3.D. to strengthen the performance of the IARCSC and its subsidiary bodies through focused capacity development in policy analysis, planning, management, service delivery, facilitation and oversight","2.3.D.a","2.3.D.a Develop and finalize IARCSC capacity development strategies & plans  -","Gender and Capacity Development","Area 2: Governance , RoL, and HR\nArea 4: Inclusive and sustained growth and development ","PSG 5: Revenues and Servces",58898," National Institution Building Project (NIBP )","58898  National Institution Building Project (NIBP )",82621,"Outcome 3 - The state has improved ability to deliver services to foster human development and elected bodies have greater oversight capacity","Institutional Capacity of IARCSC to build an efficient and effective Civil Service supported",null,"82621 Institutional Capacity of IARCSC to build an efficient and effective Civil Service supported"]
[2,"2. GOVERNANCE ",2.1,"2.1. Financial and Economic Reforms (PFM Roadmap)","2.1.a.","2.1.A. Strengthening the budget in driving effective delivery of key priority outcomes.","2.1.a.a","2.1.A.a.  Aid Management","Inclusive and Legitimate Politics","Area 3: Integrity for Public Financial Management and improve Banking","PSG 4: Economic Foundations \nPSG 5: Revenues and services",47111,"Making Budgets and Aid Work (MBAW) ","47111 Making Budgets and Aid Work (MBAW) ",81414,"Outcome 3 - The state has improved ability to deliver services to foster human development and elected bodies have greater oversight capacity","National Policy and Strategy Development and Coordination of External assistance aligned with Paris Declaration and ANDS implementation improved",567200,"81414 National Policy and Strategy Development and Coordination of External assistance aligned with Paris Declaration and ANDS implementation improved"]
[2,"2. GOVERNANCE ",2.1,"2.1. Financial and Economic Reforms (PFM Roadmap)","2.1.a.","2.1.A. Strengthening the budget in driving effective delivery of key priority outcomes.","2.1.a.b","2.1.A.b.   Medium term Fiscal Strategy","Inclusive and Legitimate Politics","Area 3: Integrity for Public Financial Management and improve Banking","PSG 4: Economic Foundations \nPSG 5: Revenues and services",47111,"Making Budgets and Aid Work (MBAW) ","47111 Making Budgets and Aid Work (MBAW) ",81415,"Outcome 3 - The state has improved ability to deliver services to foster human development and elected bodies have greater oversight capacity","Improved Budget planning and management (The budget is comprehensive, policy-based, prepared in an orderly manner, and supportive of the national development strategy)",224601,"81415 Improved Budget planning and management (The budget is comprehensive, policy-based, prepared in an orderly manner, and supportive of the national development strategy)"]
[2,"2. GOVERNANCE ",2.1,"2.1. Financial and Economic Reforms (PFM Roadmap)","2.1.a.","2.1.A. Strengthening the budget in driving effective delivery of key priority outcomes.","2.1.a.c","2.1.A.c.   Increase domestic revenue; Mining sector transparency & Public Enterprise reforms","Inclusive and Legitimate Politics","Area 3: Integrity for Public Financial Management and improve Banking","PSG 4: Economic Foundations \nPSG 5: Revenues and services",47111,"Making Budgets and Aid Work (MBAW) ","47111 Making Budgets and Aid Work (MBAW) ",81439,"Outcome 3 - The state has improved ability to deliver services to foster human development and elected bodies have greater oversight capacity","Improved Budget planning and management (The budget is comprehensive, policy-based, prepared in an orderly manner, and supportive of the national development strategy)",null,"81439 Improved Budget planning and management (The budget is comprehensive, policy-based, prepared in an orderly manner, and supportive of the national development strategy)"]
[2,"2. GOVERNANCE ",2.1,"2.1. Financial and Economic Reforms (PFM Roadmap)","2.1.a.","2.1.A. Strengthening the budget in driving effective delivery of key priority outcomes.","2.1.a.d","2.1.A.d.  Program budgeting","Inclusive and Legitimate Politics","Area 3: Integrity for Public Financial Management and improve Banking","PSG 4: Economic Foundations \nPSG 5: Revenues and services",47111,"Making Budgets and Aid Work (MBAW) ","47111 Making Budgets and Aid Work (MBAW) ",81439,"Outcome 3 - The state has improved ability to deliver services to foster human development and elected bodies have greater oversight capacity","Improved Budget planning and management (The budget is comprehensive, policy-based, prepared in an orderly manner, and supportive of the national development strategy)",null,"81439 Improved Budget planning and management (The budget is comprehensive, policy-based, prepared in an orderly manner, and supportive of the national development strategy)"]
[2,"2. GOVERNANCE ",2.1,"2.1. Financial and Economic Reforms (PFM Roadmap)","2.1.b.","2.1.B. Improved budget execution","2.1.b.a","2.1.B.a.  Provincial Budgeting","Inclusive and Legitimate Politics","Area 3: Integrity for Public Financial Management and improve Banking","PSG 4: Economic Foundations \nPSG 5: Revenues and services",47111,"Making Budgets and Aid Work (MBAW) ","47111 Making Budgets and Aid Work (MBAW) ",81439,"Outcome 3 - The state has improved ability to deliver services to foster human development and elected bodies have greater oversight capacity","Improved Budget planning and management (The budget is comprehensive, policy-based, prepared in an orderly manner, and supportive of the national development strategy)",null,"81439 Improved Budget planning and management (The budget is comprehensive, policy-based, prepared in an orderly manner, and supportive of the national development strategy)"]
[2,"2. GOVERNANCE ",2.1,"2.1. Financial and Economic Reforms (PFM Roadmap)","2.1.b.","2.1.B. Improved budget execution","2.1.b.b","2.1.B.b.  Procurement","Inclusive and Legitimate Politics","Area 3: Integrity for Public Financial Management and improve Banking","PSG 4: Economic Foundations \nPSG 5: Revenues and services",47111,"Making Budgets and Aid Work (MBAW) ","47111 Making Budgets and Aid Work (MBAW) ",81439,"Outcome 3 - The state has improved ability to deliver services to foster human development and elected bodies have greater oversight capacity","N/A",null,"81439 N/A"]
[2,"2. GOVERNANCE ",2.1,"2.1. Financial and Economic Reforms (PFM Roadmap)","2.1.b.","2.1.B. Improved budget execution","2.1.b.c","2.1.B.c.  Performance monitoring","Inclusive and Legitimate Politics","Area 3: Integrity for Public Financial Management and improve Banking","PSG 4: Economic Foundations \nPSG 5: Revenues and services",47111,"Making Budgets and Aid Work (MBAW) ","47111 Making Budgets and Aid Work (MBAW) ",81439,"Outcome 3 - The state has improved ability to deliver services to foster human development and elected bodies have greater oversight capacity","Improved Budget planning and management (The budget is comprehensive, policy-based, prepared in an orderly manner, and supportive of the national development strategy)",null,"81439 Improved Budget planning and management (The budget is comprehensive, policy-based, prepared in an orderly manner, and supportive of the national development strategy)"]
[2,"2. GOVERNANCE ",2.1,"2.1. Financial and Economic Reforms (PFM Roadmap)","2.1.b.","2.1.B. Improved budget execution","2.1.b.c","2.1.B.c.  Performance monitoring","Inclusive and Legitimate Politics","Area 3: Integrity for Public Financial Management and improve Banking","PSG 4: Economic Foundations \nPSG 5: Revenues and services",47111,"Making Budgets and Aid Work (MBAW) ","47111 Making Budgets and Aid Work (MBAW) ",81439,"Outcome 3 - The state has improved ability to deliver services to foster human development and elected bodies have greater oversight capacity"," Improved Budget Execution and delivery management and sustainable institutional Capacity developed at MoF and Govt. institutions",1228007,"81439  Improved Budget Execution and delivery management and sustainable institutional Capacity developed at MoF and Govt. institutions"]
[2,"2. GOVERNANCE ",2.1,"2.1. Financial and Economic Reforms (PFM Roadmap)","2.1.b.","2.1.B. Improved budget execution","2.1.b.d","2.1.B.d.  Other initiatives","Inclusive and Legitimate Politics","Area 3: Integrity for Public Financial Management and improve Banking","PSG 4: Economic Foundations \nPSG 5: Revenues and services",47111,"Making Budgets and Aid Work (MBAW) ","47111 Making Budgets and Aid Work (MBAW) ",81439,"Outcome 3 - The state has improved ability to deliver services to foster human development and elected bodies have greater oversight capacity","N/A",null,"81439 N/A"]
[2,"2. GOVERNANCE ",2.1,"2.1. Financial and Economic Reforms (PFM Roadmap)","2.1.c.","2.1.C. Increased transparency and accountability","2.1.c.a","2.1.C.a.  Communications","Inclusive and Legitimate Politics","Area 3: Integrity for Public Financial Management and improve Banking","PSG 4: Economic Foundations \nPSG 5: Revenues and services",47111,"Making Budgets and Aid Work (MBAW) ","47111 Making Budgets and Aid Work (MBAW) ",81439,"Outcome 3 - The state has improved ability to deliver services to foster human development and elected bodies have greater oversight capacity","National Policy and Strategy Development and Coordination of External assistance aligned with Paris Declaration and ANDS implementation improved",null,"81439 National Policy and Strategy Development and Coordination of External assistance aligned with Paris Declaration and ANDS implementation improved"]
[2,"2. GOVERNANCE ",2.1,"2.1. Financial and Economic Reforms (PFM Roadmap)","2.1.c.","2.1.C. Increased transparency and accountability","2.1.c.b","2.1.C.b.  Internal Audit","Inclusive and Legitimate Politics","Area 3: Integrity for Public Financial Management and improve Banking","PSG 4: Economic Foundations \nPSG 5: Revenues and services",47111,"Making Budgets and Aid Work (MBAW) ","47111 Making Budgets and Aid Work (MBAW) ",81439,"Outcome 3 - The state has improved ability to deliver services to foster human development and elected bodies have greater oversight capacity","N/A",null,"81439 N/A"]
[2,"2. GOVERNANCE ",2.1,"2.1. Financial and Economic Reforms (PFM Roadmap)","2.1.c.","2.1.C. Increased transparency and accountability","2.1.c.c","2.1.C.c.  External Audit","Inclusive and Legitimate Politics","Area 3: Integrity for Public Financial Management and improve Banking","PSG 4: Economic Foundations \nPSG 5: Revenues and services",47111,"Making Budgets and Aid Work (MBAW) ","47111 Making Budgets and Aid Work (MBAW) ",81439,"Outcome 3 - The state has improved ability to deliver services to foster human development and elected bodies have greater oversight capacity","N/A",null,"81439 N/A"]
[2,"2. GOVERNANCE ",2.1,"2.1. Financial and Economic Reforms (PFM Roadmap)","2.1.d. ","2.1.D. Reforms to improve capacity at line ministries","2.1.d.a","2.1.D.a. Reform to improve capacity of Line Ministries ","Inclusive and Legitimate Politics","Area 3: Integrity for Public Financial Management and improve Banking","PSG 4: Economic Foundations \nPSG 5: Revenues and services",47111,"Making Budgets and Aid Work (MBAW) ","47111 Making Budgets and Aid Work (MBAW) ",81439,"Outcome 3 - The state has improved ability to deliver services to foster human development and elected bodies have greater oversight capacity","Improved Budget planning and management (The budget is comprehensive, policy-based, prepared in an orderly manner, and supportive of the national development strategy)",null,"81439 Improved Budget planning and management (The budget is comprehensive, policy-based, prepared in an orderly manner, and supportive of the national development strategy)"]
[2,"2. GOVERNANCE ",2.1,"2.1. Financial and Economic Reforms (PFM Roadmap)","2.1.d. ","2.1.D. Reforms to improve capacity at line ministries","2.1.d.a","2.1.D.a. Reform to improve capacity of Line Ministries ","Inclusive and Legitimate Politics","Area 3: Integrity for Public Financial Management and improve Banking","PSG 4: Economic Foundations \nPSG 5: Revenues and services",47111,"Making Budgets and Aid Work (MBAW) ","47111 Making Budgets and Aid Work (MBAW) ",81439,"Outcome 3 - The state has improved ability to deliver services to foster human development and elected bodies have greater oversight capacity"," Improved Budget Execution and delivery management and sustainable institutional Capacity developed at MoF and Govt. institutions",null,"81439  Improved Budget Execution and delivery management and sustainable institutional Capacity developed at MoF and Govt. institutions"]
[2,"2. GOVERNANCE ",2.1,"2.1. Financial and Economic Reforms (PFM Roadmap)","2.1.d. ","2.1.D. Reforms to improve capacity at line ministries","2.1.d.b ",{"$error":"#N/A"},"Inclusive and Legitimate Politics","Area 3: Integrity for Public Financial Management and improve Banking","PSG 4: Economic Foundations \nPSG 5: Revenues and services",47111,"Making Budgets and Aid Work (MBAW) ","47111 Making Budgets and Aid Work (MBAW) ",81439,"Outcome 3 - The state has improved ability to deliver services to foster human development and elected bodies have greater oversight capacity","Improved Budget planning and management (The budget is comprehensive, policy-based, prepared in an orderly manner, and supportive of the national development strategy)",null,"81439 Improved Budget planning and management (The budget is comprehensive, policy-based, prepared in an orderly manner, and supportive of the national development strategy)"]
[2,"2. GOVERNANCE ",2.2999999999999998,"2.3. The Afghanistan Program For Efficient And Effective Government","2.3.A. ","2.3.A. To strengthen policy, legal and regulatory frameworks governing the civil service and Public Administration Reform","2.3.a.a","2.3.A.a Strengthen the Civil Service and PAR legal / policy environment  -","Inclusive and Legitimate Politics","Area 1: Representational Democracy and equitable elections\nArea 2: Governance, RoL, and Hurman rights","PSG 1: Legitimate Politics",58936,"National State Governance Project (NSGP)","58936 National State Governance Project (NSGP)",81108,"Outcome 3 - The state has improved ability to deliver services to foster human development and elected bodies have greater oversight capacity","An effective organisational and administrative capacity is in place to support the Office of the President (Chief of Staff Office)",348281,"81108 An effective organisational and administrative capacity is in place to support the Office of the President (Chief of Staff Office)"]
[2,"2. GOVERNANCE ",2.2999999999999998,"2.3. The Afghanistan Program For Efficient And Effective Government","2.3.A. ","2.3.A. To strengthen policy, legal and regulatory frameworks governing the civil service and Public Administration Reform","2.3.a.a","2.3.A.a Strengthen the Civil Service and PAR legal / policy environment  -","Inclusive and Legitimate Politics","Area 1: Representational Democracy and equitable elections\nArea 2: Governance, RoL, and Hurman rights","PSG 1: Legitimate Politics",58937,"National State Governance Project (NSGP)","58937 National State Governance Project (NSGP)",81108,"Outcome 3 - The state has improved ability to deliver services to foster human development and elected bodies have greater oversight capacity","The president's office has a functional and competent analytical policy, advisory and communicative capacity to support the office's constitutional mandat and to be accountable to the citizens",285010,"81108 The president's office has a functional and competent analytical policy, advisory and communicative capacity to support the office's constitutional mandat and to be accountable to the citizens"]
[2,"2. GOVERNANCE ",2.2999999999999998,"2.3. The Afghanistan Program For Efficient And Effective Government","2.3.A. ","2.3.A. To strengthen policy, legal and regulatory frameworks governing the civil service and Public Administration Reform","2.3.a.a","2.3.A.a Strengthen the Civil Service and PAR legal / policy environment  -","Inclusive and Legitimate Politics","Area 1: Representational Democracy and equitable elections\nArea 2: Governance, RoL, and Hurman rights","PSG 1: Legitimate Politics",58938,"National State Governance Project (NSGP)","58938 National State Governance Project (NSGP)",81108,"Outcome 3 - The state has improved ability to deliver services to foster human development and elected bodies have greater oversight capacity","Capacity of   First Vice-President Office in planning and service delivery improved. ",357250,"81108 Capacity of   First Vice-President Office in planning and service delivery improved. "]
[2,"2. GOVERNANCE ",2.2999999999999998,"2.3. The Afghanistan Program For Efficient And Effective Government","2.3.A. ","2.3.A. To strengthen policy, legal and regulatory frameworks governing the civil service and Public Administration Reform","2.3.a.a","2.3.A.a Strengthen the Civil Service and PAR legal / policy environment  -","Inclusive and Legitimate Politics","Area 1: Representational Democracy and equitable elections\nArea 2: Governance, RoL, and Hurman rights","PSG 1: Legitimate Politics",58939,"National State Governance Project (NSGP)","58939 National State Governance Project (NSGP)",81108,"Outcome 3 - The state has improved ability to deliver services to foster human development and elected bodies have greater oversight capacity"," Strengthened the human and institutional capacity of the Second Vice President to support the President in achieving his mandate.",420037.15,"81108  Strengthened the human and institutional capacity of the Second Vice President to support the President in achieving his mandate."]
[2,"2. GOVERNANCE ",2.2999999999999998,"2.3. The Afghanistan Program For Efficient And Effective Government","2.3.b. ","2.3.B. to increase civil service and public administration operational efficiency and effectiveness at the central, ministry and sub-national levels of government","2.3.b.a","2.3.B.a Carry out technical capacity assessments (TCA) of priority ministries","Inclusive and Legitimate Politics","Area 1: Representational Democracy and equitable elections\nArea 2: Governance, RoL, and Hurman rights","PSG 1: Legitimate Politics",58939,"National State Governance Project (NSGP)","58939 National State Governance Project (NSGP)",81108,"Outcome 3 - The state has improved ability to deliver services to foster human development and elected bodies have greater oversight capacity","NA",null,"81108 NA"]
[2,"2. GOVERNANCE ",2.2999999999999998,"2.3. The Afghanistan Program For Efficient And Effective Government","2.3.b. ","2.3.B. to increase civil service and public administration operational efficiency and effectiveness at the central, ministry and sub-national levels of government","2.3.b.b",{"$error":"#N/A"},"Inclusive and Legitimate Politics","Area 1: Representational Democracy and equitable elections\nArea 2: Governance, RoL, and Hurman rights","PSG 1: Legitimate Politics",58936,"National State Governance Project (NSGP)","58936 National State Governance Project (NSGP)",81108,"Outcome 3 - The state has improved ability to deliver services to foster human development and elected bodies have greater oversight capacity","An effective organisational and administrative capacity is in place to support the Office of the President (Chief of Staff Office)",null,"81108 An effective organisational and administrative capacity is in place to support the Office of the President (Chief of Staff Office)"]
[2,"2. GOVERNANCE ",2.2999999999999998,"2.3. The Afghanistan Program For Efficient And Effective Government","2.3.b. ","2.3.B. to increase civil service and public administration operational efficiency and effectiveness at the central, ministry and sub-national levels of government","2.3.b.b",{"$error":"#N/A"},"Inclusive and Legitimate Politics","Area 1: Representational Democracy and equitable elections\nArea 2: Governance, RoL, and Hurman rights","PSG 1: Legitimate Politics",58937,"National State Governance Project (NSGP)","58937 National State Governance Project (NSGP)",81108,"Outcome 3 - The state has improved ability to deliver services to foster human development and elected bodies have greater oversight capacity","The president's office has a functional and competent analytical policy, advisory and communicative capacity to support the office's constitutional mandat and to be accountable to the citizens",null,"81108 The president's office has a functional and competent analytical policy, advisory and communicative capacity to support the office's constitutional mandat and to be accountable to the citizens"]
[2,"2. GOVERNANCE ",2.2999999999999998,"2.3. The Afghanistan Program For Efficient And Effective Government","2.3.b. ","2.3.B. to increase civil service and public administration operational efficiency and effectiveness at the central, ministry and sub-national levels of government","2.3.b.b",{"$error":"#N/A"},"Inclusive and Legitimate Politics","Area 1: Representational Democracy and equitable elections\nArea 2: Governance, RoL, and Hurman rights","PSG 1: Legitimate Politics",58938,"National State Governance Project (NSGP)","58938 National State Governance Project (NSGP)",81108,"Outcome 3 - The state has improved ability to deliver services to foster human development and elected bodies have greater oversight capacity","Capacity of   First Vice-President Office in planning and service delivery improved. ",null,"81108 Capacity of   First Vice-President Office in planning and service delivery improved. "]
[2,"2. GOVERNANCE ",2.2999999999999998,"2.3. The Afghanistan Program For Efficient And Effective Government","2.3.b. ","2.3.B. to increase civil service and public administration operational efficiency and effectiveness at the central, ministry and sub-national levels of government","2.3.b.b",{"$error":"#N/A"},"Inclusive and Legitimate Politics","Area 1: Representational Democracy and equitable elections\nArea 2: Governance, RoL, and Hurman rights","PSG 1: Legitimate Politics",58939,"National State Governance Project (NSGP)","58939 National State Governance Project (NSGP)",81108,"Outcome 3 - The state has improved ability to deliver services to foster human development and elected bodies have greater oversight capacity"," Strengthened the human and institutional capacity of the Second Vice President to support the President in achieving his mandate.",null,"81108  Strengthened the human and institutional capacity of the Second Vice President to support the President in achieving his mandate."]
[2,"2. GOVERNANCE ",2.2999999999999998,"2.3. The Afghanistan Program For Efficient And Effective Government","2.3.b. ","2.3.B. to increase civil service and public administration operational efficiency and effectiveness at the central, ministry and sub-national levels of government","2.3.b.c","2.3.B.c Strengthen Human Resources Management (HRM) performance within priority Ministries and Agencies, at national and subnational levels","Inclusive and Legitimate Politics","Area 1: Representational Democracy and equitable elections\nArea 2: Governance, RoL, and Hurman rights","PSG 1: Legitimate Politics",58939,"National State Governance Project (NSGP)","58939 National State Governance Project (NSGP)",81108,"Outcome 3 - The state has improved ability to deliver services to foster human development and elected bodies have greater oversight capacity","N/A",null,"81108 N/A"]
[2,"2. GOVERNANCE ",2.2999999999999998,"2.3. The Afghanistan Program For Efficient And Effective Government","2.3.b. ","2.3.B. to increase civil service and public administration operational efficiency and effectiveness at the central, ministry and sub-national levels of government","2.3.b.d","2.3.B.d Upgrade capacities of civil servants: high priority ministries/agencies","Inclusive and Legitimate Politics","Area 1: Representational Democracy and equitable elections\nArea 2: Governance, RoL, and Hurman rights","PSG 1: Legitimate Politics",58936,"National State Governance Project (NSGP)","58936 National State Governance Project (NSGP)",81108,"Outcome 3 - The state has improved ability to deliver services to foster human development and elected bodies have greater oversight capacity","An effective organisational and administrative capacity is in place to support the Office of the President (Chief of Staff Office)",null,"81108 An effective organisational and administrative capacity is in place to support the Office of the President (Chief of Staff Office)"]
[2,"2. GOVERNANCE ",2.2999999999999998,"2.3. The Afghanistan Program For Efficient And Effective Government","2.3.b. ","2.3.B. to increase civil service and public administration operational efficiency and effectiveness at the central, ministry and sub-national levels of government","2.3.b.e","2.3.B.e Simplify government business / administrative processes (BPS)","Inclusive and Legitimate Politics","Area 1: Representational Democracy and equitable elections\nArea 2: Governance, RoL, and Hurman rights","PSG 1: Legitimate Politics",58939,"National State Governance Project (NSGP)","58939 National State Governance Project (NSGP)",81108,"Outcome 3 - The state has improved ability to deliver services to foster human development and elected bodies have greater oversight capacity","N/A",null,"81108 N/A"]
[2,"2. GOVERNANCE ",2.2999999999999998,"2.3. The Afghanistan Program For Efficient And Effective Government","2.3.b. ","2.3.B. to increase civil service and public administration operational efficiency and effectiveness at the central, ministry and sub-national levels of government","2.3.b.f","2.3.B.f Strenghtened government prsence and service delivery in provinces","Inclusive and Legitimate Politics","Area 1: Representational Democracy and equitable elections\nArea 2: Governance, RoL, and Hurman rights","PSG 1: Legitimate Politics",58939,"National State Governance Project (NSGP)","58939 National State Governance Project (NSGP)",81108,"Outcome 3 - The state has improved ability to deliver services to foster human development and elected bodies have greater oversight capacity","N/A",null,"81108 N/A"]
[2,"2. GOVERNANCE ",2.2999999999999998,"2.3. The Afghanistan Program For Efficient And Effective Government","2.3.b. ","2.3.B. to increase civil service and public administration operational efficiency and effectiveness at the central, ministry and sub-national levels of government","2.3.b.g","2.3.B.g Implement gender and equality policies across government  ","Inclusive and Legitimate Politics","Area 1: Representational Democracy and equitable elections\nArea 2: Governance, RoL, and Hurman rights","PSG 1: Legitimate Politics",58939,"National State Governance Project (NSGP)","58939 National State Governance Project (NSGP)",81108,"Outcome 3 - The state has improved ability to deliver services to foster human development and elected bodies have greater oversight capacity","N/A",null,"81108 N/A"]
[2,"2. GOVERNANCE ",2.2999999999999998,"2.3. The Afghanistan Program For Efficient And Effective Government","2.3.b. ","2.3.B. to increase civil service and public administration operational efficiency and effectiveness at the central, ministry and sub-national levels of government","2.3.b.h","2.3.B.h Upgrade and implement the Human Resources Management Information System (HRMIS) across government","Inclusive and Legitimate Politics","Area 1: Representational Democracy and equitable elections\nArea 2: Governance, RoL, and Hurman rights","PSG 1: Legitimate Politics",58939,"National State Governance Project (NSGP)","58939 National State Governance Project (NSGP)",81108,"Outcome 3 - The state has improved ability to deliver services to foster human development and elected bodies have greater oversight capacity","N/A",null,"81108 N/A"]
[2,"2. GOVERNANCE ",2.2999999999999998,"2.3. The Afghanistan Program For Efficient And Effective Government","2.3.C. ","2.3.C. to develop a longer-term vision and strategy for reform of public administration that will meet the future needs of a self-sustaining Afghanistan","2.3.c.a",{"$error":"#N/A"},"Inclusive and Legitimate Politics","Area 1: Representational Democracy and equitable elections\nArea 2: Governance, RoL, and Hurman rights","PSG 1: Legitimate Politics",58937,"National State Governance Project (NSGP)","58937 National State Governance Project (NSGP)",81108,"Outcome 3 - The state has improved ability to deliver services to foster human development and elected bodies have greater oversight capacity","The president's office has a functional and competent analytical policy, advisory and communicative capacity to support the office's constitutional mandat and to be accountable to the citizens",null,"81108 The president's office has a functional and competent analytical policy, advisory and communicative capacity to support the office's constitutional mandat and to be accountable to the citizens"]
[2,"2. GOVERNANCE ",2.2999999999999998,"2.3. The Afghanistan Program For Efficient And Effective Government","2.3.D. ","2.3.D. to strengthen the performance of the IARCSC and its subsidiary bodies through focused capacity development in policy analysis, planning, management, service delivery, facilitation and oversight","2.3.d.a","2.3.D.a Develop and finalize IARCSC capacity development strategies & plans  -","Inclusive and Legitimate Politics","Area 1: Representational Democracy and equitable elections\nArea 2: Governance, RoL, and Hurman rights","PSG 1: Legitimate Politics",58937,"National State Governance Project (NSGP)","58937 National State Governance Project (NSGP)",81108,"Outcome 3 - The state has improved ability to deliver services to foster human development and elected bodies have greater oversight capacity","n/A",null,"81108 n/A"]

{"sheet":"Updated M&E Plan ","index":1,"n_rows":25,"n_cols":37,"rows_kept":25,"cut":false,"hidden":true,"merged":[[5,19,5,22],[5,11,5,14],[5,15,5,18],[4,11,4,34],[11,0,14,0],[5,23,5,26],[5,27,5,30],[5,31,5,34],[4,8,5,8],[24,12,25,12],[24,13,25,13],[0,0,0,36],[1,0,1,36],[2,0,2,36],[3,0,3,36],[7,0,10,0],[4,35,6,35],[4,36,6,36],[4,0,6,0],[4,1,6,1],[4,2,6,2],[4,3,6,3],[4,4,6,4],[4,9,6,9],[4,10,6,10],[24,4,25,4],[24,8,25,8],[24,9,25,9],[24,10,25,10],[24,11,25,11],[24,7,25,7],[20,0,23,0],[24,0,25,0],[24,1,25,1],[24,2,25,2],[24,3,25,3],[24,20,25,20],[24,21,25,21],[24,22,25,22],[24,23,25,23],[24,14,25,14],[24,15,25,15],[24,16,25,16],[24,17,25,17],[24,18,25,18],[24,35,25,35],[24,29,25,29],[24,36,25,36],[29,3,32,9],[15,0,19,0],[24,30,25,30],[24,31,25,31],[24,32,25,32],[24,33,25,33],[24,34,25,34],[24,24,25,24],[24,25,25,25],[24,26,25,26],[24,27,25,27],[24,28,25,28],[24,19,25,19]]}
["Planning Matrix for Monitoring"]
["Project: Anti-Corruption Project Implementation Plan (PIP)"]
["Quarter 1 & 2, 2019"]
["Last Update: 27 March 2019"]
["Output and Key Results","Indicator","Baseline"," Target","Q1 Target","Q2 Target","Q3 Target","Q4 Target","Q2 Target","Means of Verification","Data Collection Method ","Time, Schedule and Frequency",{"$nulls":23},"Responsible Person","Assumptions and Risks if any"]
[{"$nulls":11},"January",null,null,null,"February",null,null,null,"March",null,null,null,"April",null,null,null,"May",null,null,null,"June"]
[{"$nulls":11},1,2,3,4,1,2,3,4,1,2,3,4,1,2,3,4,1,2,3,4,1,2,3,4]
["Output 1:Evidence-base established to inform UNDP’s anti-corruption programming in Afghanistan in the security and justice sectors ","1.1.Baseline for UNDP Anti-Corruption Project established","No","Yes","Yes","1.1.","1.1.","1.1.",null,"Survey note, questionnaires and datasets, enumerators' training attendance sheets, survey database, survey report with photos field work, journey mappings, barrier analysis","Review of related literature, \nsurvey,  enumerators' training attendance sheets, consultations ",{"$nulls":8},"X","X","X","X",{"$nulls":12},"UNDP/Consultants/Responsible Party IWA ","Change in security situation in targeted provinces and districts will affect the delivery; delays in the recruitment of international consultants will affect the delivery   "]
[null,"1.2.Number of actors mapped",22,30,8,"1.2.","1.2.","1.2.",null,"Digitalization of actors' mapping survey questionnaires and datasets, final actors' mapping report  indicating donors and partners working on the areas of security, justice and anti-corruption","Review of  Afghanistan's Development Assistant Database (DAD), online survey ",{"$nulls":10},"X","X",{"$nulls":12},"LOTFA M&E Team/Project Team ","Delays from national and international actors to respond to the survey questionnaire"]
[null,"1.3.Context analysis and need assessments report with defined entry points for UNDP support is in place","No","Yes","Yes","1.3.","1.3.","1.3.",null,"Survey note, questionnaire and datasets, enumerators' training attendance sheets, survey database, survery report with photos field work, journey mappings and barrier analysis","Review of related literature, consultations and survey  ",{"$nulls":8},"X","X","X","X",{"$nulls":12},"UNDP/Consultants / Responsible Party (IWA) and sub-implementer (Magenta) ","Change in security situation in targeted provinces and districts will affect the delivery; delays in the recruitment of international consultants will affect the delivery   "]
[null,"1.4. (a) Availability of report on the useful comparative anti-corruption practices for Afghanistan’s context prepared\n(b) Availability of an internet platform linking available material on anti-corruption and relevant to Afghanistan"," (a) No;   (b) No","(a) Yes; (b) Yes","(a) Yes;  (b) Yes",{"$nulls":4},"(a) Report \n(b) Internet platform with visualized of reports with data relating to anti-corruption relevant to Afghanistan","Review of related literature, report and online survey \n",{"$nulls":8},"X","X","X","X",{"$nulls":12},"UNDP/Consultants/LOTFA M&E Team/ Contracted parties ","Change in security situation in targeted provinces and districts will affect the delivery; delays in the recruitment of international consultants will affect the delivery   "]
["Output 2:Implementation strategies developed for prioritized anti-corruption measures with a focus on supporting the implementation of the Anti-Corruption Strategy in consultation with relevant stakeholders (institutions, media, civil society, communities, religious leaders, etc)  and on supporting the Anti-Corruption Justice Center","2.1.Percentage of agreed assets delivered to ACJC",95,100,5,"1.1.","1.1.","1.1.",null,"Proforma invoice of equipment and assets, bid analysis report, delivery note, equiment and assets transfer letters signed by UNDP and ACJC, equipement and assets transfer registered\n","Physical verification of equipment and  assets  delivered, equipment and assets registered and delivery note, UNDP equiment and assets transfer letters",{"$nulls":9},"X","X",{"$nulls":13},"UNDP Procurement Team/Project Team","Delay by suppliers to deliver the remaining equipment and assets"]
[null,"2.2.Reports from (a) discussion platform, (b) consultation workshops and (c) focus group discussions prepared","(a) 0\n(b) 0\n(c) 0","(a) 1\n(b) 1\n(c) 1","(a): 1\n(b): 1\n(c): 1","1.2.","1.2.","1.2.",null,"Event (discussion platform, consultation workshops and FGDs) discussion guides \nParticipants atendance sheets, event reports with photos from these activities  ","Participants atendance sheets with contact information",{"$nulls":24},"UNDP/Consultants ","Change in security situation in targeted provinces and districts will affect the delivery; delays in the recruitment of international consultants will affect the delivery   "]
[null,"2.3.(a)Number of consultations/workshops held with the security and justice sectors \n(b) Number of stakeholders/groups in the security and justice  sectors who have participated in the consultations","(a) 4; (b) 4\n\n\n\n","(a) 6; (b) 4\n\n\n\n","(a) 2; (b) 4\n\n\n\n","1.3.","1.3.","1.3.",null,"Event (consultation/workshops and) discussion guides and agenda \nParticipants atendance sheets, event reports with photos from these activities  ","Participants atendance sheets with contact information",{"$nulls":8},"X","X","X","X",{"$nulls":12},"UNDP/Consultants ","Change in security situation in targeted provinces and districts will affect the delivery; delays in the recruitment of international consultants will affect the delivery   "]
[null,"2.4.(a) Number of provinces covered for focus group discussions\n(b) Number of focus-group discussion conducted per provinces covered","(a) 0;  (b) 0","(a) 6;(b) 4","(a) 2;  (b) 4",{"$nulls":4},"FGD guides, participants attendance sheets, evert reports with photos of participants ","Participants atendance sheets with contact information",{"$nulls":8},"X","X","X",{"$nulls":13},"UNDP/Consultants ","Change in security situation in targeted provence and districts will affect the delivery, delayed in the recruitment of international consultant will affect the delivery  "]
["Output 3: Advocacy, public-outreach, awareness-raising campaigns developed and implemented in target areas, including through the initiation of a small grants facility for the implementation of community outreach initiatives, to increase ownership and support for anti-corruption measures\n","3.1.Grants mechanism for civil society engagement in anti-corruption is established and functional","No","Yes","Yes","1.1.","1.1.","1.1.",null,"Field monitoring reports,  CSOs proposals received analysis and awarded grant matrix \nCSOs' Micro-Capital Grant aggreements/contracts ","Implementation progress reports, CSOs proposals received analysis and awarded grant matrix \nCSOs' Micro-Capital Grant aggreements/contracts","X","X","X","X","X","X","X","X","X","X","X","X",{"$nulls":12},"Project Team","Change in security situation in targeted provinces and districts will affect the delivery; delays in the recruitment of international consultants will affect the delivery   "]
[null,"3.2. A public/community outreach and communication strategy is developed","No","Yes","Yes","1.2.","1.2.","1.2.",null,"Consultation workshops and FGDs guides, participants atendance sheets, event reports with photos from these activities, public/community outreach and communication strategy  ","Participants atendance sheets with contact information",{"$nulls":8},"X","X","X","X",{"$nulls":12},"Project Team/\nConsultants ","Change in security situation in targeted provinces and districts will affect the delivery; delays in the recruitment of international consultants will affect the delivery   "]
[null,"3.3.(a) Number of small grants distributed to local CSOs upon selected outreach projects \n(b) Amount of grant money distributed to locals CSOs upon selected outreach projects","(a) 7; (b) US$413,383","(a) 20; (b) US$500,000","(a) 7; (b) US$537,481","1.3.","1.3.","1.3.",null,"CSOs grant awarded matrix, \nCSOs Micro-Capital Grant aggreements/contracts \nImplementation progress reports \n","CSOs' results matrixs and implementation progress reports ","X","X","X","X","X","X","X","X","X","X","X","X",{"$nulls":12},"UNDP/Project Team","Change in security situation in targeted provinces and districts will affect the delivery; delays in the recruitment of international consultants will affect the delivery   "]
[null,"3.4. One anti-corruption hackathon organized","No ","Yes","Yes",{"$nulls":4},"Hackathon advertisement website link, invitations to participants, presenters and judges, photos from event, participants attendance sheets, contracts with the winning teams","Paticipants attendance sheets, event report ",{"$nulls":6},"X",{"$nulls":17},"UNDP Procurement Team/Project Team","Change in security situation in targeted provinces and districts will affect the delivery; delays in the recruitment of international consultants will affect the delivery   "]
[null," 3.5 (a): Number of small grants granted\n(b): Number of report of trial monitoring available","(a) 7\n(b) 0","(a) 10\n(b) 4",{"$nulls":4},"(a)10\n(b) 4","(a) ACJC/UNDP translation request database\n(b) Copies of monitoing trail monitoring reports ","(a) ACJC Translation request \n(b) Minutes of of trails ",{"$nulls":12},"X","X","X","X","X","X","X","X","X","X","X","X","UNDP/Project Team","Postponement of trials \nChange in security situation in\n"]
["Output 4: ","4.1: ",{"$nulls":21},"X","X","X","X","X","X","X","X","X","X","X","X","UNDP/Project Team","Postponement of trials \nChange in security situation in Kabul will affect the delivery "]
[null,"4.2: ",{"$nulls":21},"X","X","X","X","X","X","X","X","X","X","X","X","UNDP/Project Team","Delays in the recruitment of national  consultant will affect the delivery   "]
[null,"4.3: ",{"$nulls":21},"X","X","X","X","X","X","X","X","X","X","X","X","UNDP/Consultant ","Delays in the recruitment of national  consultant will affect the delivery   "]
[null,"4.4: ",{"$nulls":21},"X","X","X","X","X","X","X","X","X","X","X","X","UNDP Procurement Team/Project Team","Delay by suppliers to deliver the remaining equipment and assets"]
["Output 5: ","5.1: ",{"$nulls":21},"X","X","X","X","X","X","X","X","X","X","X","X","UNDP/Project Team","Delay in advertising CSO Call for Proposals will affect the delivery of this output \n"]

{"sheet":"M&E Plan ","index":2,"n_rows":5,"n_cols":23,"rows_kept":5,"cut":false,"hidden":false,"merged":[[5,0,9,0],[2,15,4,15],[2,16,4,16],[2,17,4,17],[2,18,4,18],[2,0,4,0],[2,1,4,1],[0,0,1,18],[2,13,4,13],[2,14,4,14],[2,2,4,2],[2,3,4,3],[2,4,3,12]]}
["Annex B:د ام ان اي د ستراتیژي یوه نمونه",{"$nulls":21},0]
[{"$nulls":22},0.25]
["پایلې او د نتیچو فعالیتونه","د پایلو شاخصونه","اساس د مالوماتو","د پروژې ټارګیټ (۹ میاشتې)\n","د تطبیق مهال ویش",{"$nulls":8},"د فعالیت د ثبوت لپاره اسناد","د مالوماتو د راټولولو طریقه","وخت، مهالویش او اندازه","مسول کس","فرضی او خطرات","د پرمختګ حالت"]
[]
[{"$nulls":4},"میشات ۱","میشات ۲","میشات ۳","میشات ۴ ","میشات۵ ","میشات ۶","میشات ۷ ","میشات ۸ ","میشات ۹",{"$nulls":9},1]

{"sheet":"Comparison Sheet","index":3,"n_rows":25,"n_cols":4,"rows_kept":25,"cut":false,"hidden":true,"merged":[[0,0,1,3],[20,0,22,0],[20,1,22,1],[20,3,22,3],[4,3,7,3],[9,3,12,3],[14,3,18,3],[4,0,7,0],[9,0,12,0],[14,0,18,0]]}
["Anti-Corruption Project Implementation Plan (PIP) \n Outputs and Indicators Comparison Sheet"]
[]
[null,"2018 description","2019 description","Comments"]
["Output 1","Evidence-base established to inform UNDP’s anti-corruption programming in Afghanistan in the security and justice sectors","Evidence-base established to inform UNDP’s anti-corruption programming in Afghanistan in the security and justice sectors","No changes"]
["Indicators","1.1: Baseline for UNDP Anti-Corruption Project established","1.1: Baseline for UNDP Anti-Corruption Project established","No changes"]
[null,"1.2: Number of actors mapped","1.2: Number of actors mapped"]
[null,"1.3: Context analysis and need assessments report with defined entry points for UNDP support is in place","1.3: Context analysis and need assessments report with defined entry points for UNDP support is in place"]
[null,"1.4: (a) Availability of report on the useful comparative anti-corruption practices for Afghanistan’s context prepared; (b) Availability of an internet platform linking available material on anti-corruption and relevant to Afghanistan","1.4: (a) Availability of report on the useful comparative anti-corruption practices for Afghanistan’s context prepared; (b) Availability of an internet platform linking available material on anti-corruption and relevant to Afghanistan"]
["Output 2","Implementation strategies developed for prioritized anti-corruption measures with a focus on supporting the implementation of the Anti-Corruption Strategy in consultation with relevant stakeholders (institutions, media, civil society, communities, religious leaders, etc) and on supporting the Anti-Corruption Justice Center.","Implementation strategies developed for prioritized anti-corruption measures with a focus on supporting the implementation of the Anti-Corruption Strategy in consultation with relevant stakeholders (institutions, media, civil society, communities, religious leaders, etc) and on supporting the Anti-Corruption Justice Center.","No change"]
["Indicators","2.1: Percentage of agreed assets delivered to ACJC","2.1: Percentage of agreed assets delivered to ACJC","No changes"]
[null,"2.2: Reports from (a) discussion platform, (b) consultation workshops and (c) focus group discussions prepared","2.2: Reports from (a) discussion platform, (b) consultation workshops and (c) focus group discussions prepared"]
[null,"2.3: (a) Number of consultations/workshops held with the security and justice sectors (b) Number of stakeholders/groups in the security and justice sectors who have participated in the consultations","2.3: (a) Number of consultations/workshops held with the security and justice sectors; (b) Number of stakeholders/groups in the security and justice sectors who have participated in the consultations"]
[null,"2.4: (a) Number of provinces covered for focus group discussions; (b) Number of focus-group discussion conducted per provinces covered","2.4: (a) Number of provinces covered for focus group discussions; (b) Number of focus-group discussion conducted per provinces covered"]
["Output 3","Advocacy, public-outreach, awareness-raising campaigns developed and implemented in target areas, including through the initiation of a small grants facility for the implementation of community outreach initiatives, to increase ownership and support for anti-corruption measures","Advocacy, public-outreach, awareness-raising campaigns developed and implemented in target areas, including through the initiation of a small grants facility for the implementation of community outreach initiatives, to increase ownership and support for anti-corruption measures","No changes"]
["Indicators","3.1: Grants mechanism for civil society engagement in anti-corruption is established and functional","3.1: Grants mechanism for civil society engagement in anti-corruption is established and functional","No changes"]
[null,"3.2: A public/community outreach and communication strategy is developed","3.2: A public/community outreach and communication strategy is developed"]
[null,"3.3: (a) Number of small grants distributed to local CSOs upon selected outreach projects; (b) Amount of grant money distributed to locals CSOs upon selected outreach projects","3.3: (a) Number of small grants distributed to local CSOs upon selected outreach projects;(b) Amount of grant money distributed to locals CSOs upon selected outreach projects"]
[null,"3.4: One anti-corruption hackathon organized","3.4: One anti-corruption hackathon organized"]
[null,"3.5: Number of reports of trial monitoring available","3.5: Number of reports of trial monitoring available"]
["Output 4","No Output ","ACJC strategic capacity enhanced to carry out their mandate efficiently  ","New output "]
["Indicators","No Indicator(s)","4.1:Strategic capacity needs assessment conducted for ACJC","New indicators "]
[null,null,"4.2: Strategic capacity training plan developed for for ACJC "]
[null,null,"4.3: Consolidated and inclusive assets receipt received from ACJC"]
["Output 5","No Output","Civil Society engagement is improved to enhance citizens ability to hold the Government for effective and transparent service delivery ","New ouput "]
["Indicators","No Indicator(s)","5.1:Number of CSO small grant implementation strategy developed   ","New indicator "]

{"sheet":"Updated RRF ","index":4,"n_rows":71,"n_cols":15,"rows_kept":71,"cut":false,"hidden":true,"merged":[[2,0,17,3],[2,4,17,7],[2,8,17,11],[2,12,17,13],[2,14,17,16],[0,0,0,16],[1,0,1,3],[1,4,1,7],[1,8,1,11],[1,12,1,13],[1,14,1,16],[18,0,34,3],[18,4,34,7],[18,8,34,11],[18,12,34,13],[18,14,34,16],[35,0,53,3],[35,4,53,7],[35,8,53,11],[35,12,53,13],[35,14,53,16],[70,14,73,16],[54,0,69,3],[54,4,69,7],[54,8,69,11],[54,12,69,13],[54,14,69,16],[70,0,73,3],[70,4,73,7],[70,8,73,11],[70,12,73,13]]}
["Anti-Corruption Implementation Plan (PIP)  \nResults and Resource Framework (RRF)"]
["EXPECTED OUTPUTS",null,null,null,"PERFORMANCE INDICATORS ",null,null,null,"INDICATIVES ACTIVITIES",null,null,null,"RESPONSIBLE PARTY",null,"INPUTS"]
["Output 1: Evidence-base established to inform UNDP’s anti-corruption programming in Afghanistan in the security and justice sectors\n\nKey deliverables: \n-One actor mapping\n-One context analysis and need assessment report with defined entry points for UNDP support\n-One internet platform for best practices and lessons learned ",null,null,null,"Indicator 1.1: Baseline for UNDP Anti-Corruption Project established\nBaseline: No; Target: Yes \nIndicator 1.2: Number of actors mapped\nBaseline 1.2: 0; Target 1.2: 30\n\nIndicator 1.3: Context analysis and need assessments report with defined entry points for UNDP support is in place\nBaseline 1.3: Yes; Target 1.3: No\n\nIndicator 1.4: (a) Availability of report on the useful comparative anti-corruption practices for Afghanistan’s context prepared\n(b) Availability of an internet platform linking available material on anti-corruption and relevant to Afghanistan\nBaseline 1.4: (a) No; (b) No; Target 1.4: (a) Yes; (b) Yes\n",null,null,null,"1.1.: Conduct mapping of anti-corruption initiatives/programs/activities implemented by all relevant actors (civil society, government’s institutions, donors and international organizations) and identify- existing gaps in the current or planned anti-corruption activities\n1.2.: Undertake situational analysis and need assessment on corruption issues \n1.2.1.: Conduct primary and secondary data collection (quantitative and qualitative) on corruption in Afghanistan, including on its financial and economic implication \n1.2.2.: Conduct a gap analysis of the legal and policy framework to combat corruption in Afghanistan conducted\n1.2.3.: Analyse data and identify knowledge, attitude and practices (KAP) in relation to corruption\n1.2.4.: Conduct a desk review of comparative studies on anti-corruption including lessons learned, best practices, innovative solutions and experiences from UNDP’s engagement on supporting anti-corruption measures worldwide and establish an internet platform linking available material\n1.2.5.: Compile and produce full-fledged situational analysis and needs assessments report with clearly defined entry points for UNDP support to combat corruption in Afghanistan",null,null,null,"UNDP",null,"1.1.:\n-1 project analyst\n-1 international consultant \n-1 national consultant \n-Stationary and office supply \n\n1.2.: \n-1 project analyst\n-1 international consultant \n-1 finance and administrative associate \n- Stationary and office supply"]
{"$rows_empty":15}
["Output 2: Implementation strategies developed for prioritized anti-corruption measures with a focus on supporting the implementation of the Anti-Corruption Strategy in consultation with relevant stakeholders (institutions, media, civil society, communities, religious leaders, etc) and on supporting the Anti-Corruption Justice Center\n\nKey deliverables: \n-Delivery of all agreed assets to ACJC\n-Consultations and focus group reports\n",null,null,null,"Indicator 2.1 Percentage of agreed assets delivered to ACJC\nBaseline: 0; Target: 100\n\nIndicator 2.2 Reports from (a) discussion platform, (b) consultation workshops and (c) focus group discussions prepared\nBaseline: (a) 0, (b) 0, (c) 0; Target: (a) 1, (b) 1, (c) 1 \n\nIndicator 2.3: (a)Number of consultations/workshops held with the security and justice sectors; (b) Number of stakeholders/groups in the security and justice sectors who have participated in the consultations\nBaseline 2.3: (a): 0; (b): 0; Target 2.3: (a): 6; (b): 4\n\nIndicator 2.4: (a) Number of provinces covered for focus group discussions; (b) Number of focus-group discussion conducted per provinces covered\nBaseline 2.4: (a): 0; (b): 0; Target 2.4: (a): 6; (b): 4",null,null,null,"2.1:  Support to the anti-Corruption Justice Center efforts to shift the perception of impunity for corruption crimes through providing prioritized start up equipment requested by the ACJC (including vehicles) and logistical support (including simultaneous translation of the trials and sound system) to enable them to conduct trial and administrative procedures with greater efficiency\n2.2: Conduct consultations and/or focus group discussion with security and justice stakeholders in Afghanistan especially at the sub-national level\n2.2.1: Conduct consultations with the security and justice governmental stakeholders\n2.2.2: Conduct thematic workshops on corruption within the security and justice sector with all relevant stakeholders to inform the development of effective implementation strategies and modalities for addressing corruption in Afghanistan and coordinated development activities including workshops for civil servants promoting ethical behaviour and anti-corruption measures\n2.2.3: Conduct country-wide consultations with targeted focus groups (citizens, elders and community leaders, religious leaders, media and civil society organisations)",null,null,null,"UNDP in partnership with GIZ for activity 2.1.1.\nUNDP for all other activities\n\n  \n\n",null,"2.1: Annex I for detailed start-up equipment provided\n2.2.1.:-Meetings/workshops (6 rental of location for 30 people including refreshment and lunch)\n-1 project management specialist on small grants and public outreach\n-1 project analyst \n-1 finance and administrative associate\n\n2.2.2.: -Workshop (4 rental of location for 60 people including refreshment and lunch)\n-1 project management specialist on small grants and public outreach\n-1 project analyst\n-1 finance and administrative associate\n2.2.3.:\n-6 Travel (domestic) for 1 project analyst and one national consultant\n-1 project management specialist for small grants and public outreach\n-1 project analyst\n-1 finance and  administrative associate\n-1 national consultant\n-Meetings/workshop (6*4 rental of location for 50 people including refreshment and lunch)"]
{"$rows_empty":16}
["Output 3:\nAdvocacy, public-outreach, awareness-raising campaigns developed and implemented in target areas, including through the initiation of a small grants facility for the implementation of community outreach initiatives, to increase ownership and support for anti-corruption measures\n\nKey deliverables: \n-Communication strategy elaborated\n-Grants distributed to local CSOs on outreach projects\n-Outreach activities such as hackathon, anti-corruption day, radio programmes, etc\n-Trial monitoring of ACJC ensured by local civil society organisations\n\n",null,null,null,"Indicator 3.1. Grants mechanism for civil society engagement in anti-corruption is established and functional\nBaseline: No; Target: Yes \n\nIndicator 3.2: A public/community outreach and communication strategy is developed\nBaseline 3.2: Yes; Target 3.2.: No\n\nIndicator 3.3: (a) Number of small grants distributed to local CSOs upon selected outreach projects\n(b) Amount of grant money distributed to local CSOs upon selected outreach projects \nBaseline 3.3: (a): 0; (b): 0; Target 3.3: (a): 20; (b): USD 500,000\n\nIndicator 3.4: One anti-corruption hackathon organized\nBaseline 3.4: Yes; Target 3.4: No\n\nIndicator 3.5 (a): Number of small grants granted\n(b).: Number of report of trial monitoring available\nBaseline 3.5 (a): 0; (b):0; Target 3.5 (a) 10; (b): 4",null,null,null,"3.1: Develop a public/community outreach and communication strategy\n3.2: Organize and conduct different outreach activities to raise awareness on the impact of corruption and empower citizens \n3.2.1.:  Implement community outreach through the use of community leaders and different media outlets such as radio, TV, web-based and print publications \n3.2.2.: Organize and conduct promotion events on the 9 December anti-corruption day \n3.2.3:   Organize an Hackathon directed at solving corruption-related issue through data\n3.2.4: Provide technical assistance to facilitation implementation of the Open Government’s Partnership’s commitments\n3.3: Establish and implement a small grant facilities for the implementation of community outreach initiative in partnership with CSO in rural and conflict-affected areas (including strengthening the capacities of civil society organisations to take over trial monitoring of the Anti-Corruption Justice Center and enable CSOs to better implement the Access to Information Law)\n ",null,null,null,"Local CSOs for activity 3.2\n\nUNDP for all other activities",null,"3.1.: 1 project management specialist for small grants and public outreach\n-1 national consultant\n\n3.2.1.: \n-1 international consultant \n-1 project management specialist for small grants and public outreach\n-Printing of 5000 booklets of 4 pages\n\n3.2.2.: 1 rental location for 200 people\n\n3.3.: \n-1 project management specialist for small grants and public outreach\n-1 project analyst\n-Grants of a total of 500,000 USD including a  grant to a local civil society organisation selected for trainings in trial monitoring\n\n\n\n\n\n\n\n\n"]
{"$rows_empty":18}
["Output 4: ACJC is empowered to effectively investigated, prosecuted, and adjudicated corruption cases under its jurisdiction in a timely, fair, accountable and transparent manner.\n\nKey deliverables:\n-Translation services provided at ACJC trails \n-A compressive capacity needs training plan developed for ACJ based on results from capacity needs assessment baseline data  \n- List of agreed assets delivered to ACJC to increase their operational capacity",null,null,null,"Output indicators:\n4.1. No. of cases of high-profile individuals supported by translation service to increase transparency to the public and donors community. (including under detection and rejected to the relevant authorities), prosecuted and resolved (judges by primary, appeal and/or supreme court) respectfully.\nBaseline: 47 trials are supported with simultaneous translation and public-address facilities (as of January 1st 2019)\nTarget: 20 cases will be supported (By 30th June 2019).\n\nIndicator 4.2.: Yearly training plan established \nBaseline 4.2: No\nTarget: 4.2: Yes\n\nIndicator 4.3: Capacity baseline established\nBaseline 4.3: No\nTarget: 4.3: Yes\n\nIndicator 4.4: Number of consolidated and inclusive assets receipt received from ACJC",null,null,null,"4.1.: Provide translation services to ACJC  trials\n\n4.2: Identified training needs of ACJC staff and train them\n\n4.3: Establish a comprehensive capacity assessment baseline  \n\n \n\n\n\n\n",null,null,null,"UNDP/National Consultant ",null,"1 Project anagement Analyst \n1 Finance and Administrative 1 Associate\n National Consultant "]
{"$rows_empty":15}
["Output 5: Citizens are enabled to hold the government accountable for effective transparent service delivery\n\nKey deliverables:\n- CSOs Call for Proposals developed and publicly advertised ",null,null,null,"Output indicators:\n5.1 Grant mechanism is introduced to broader geographic areas\nBaseline: 0\nTarget 18",null,null,null,"5.1 Develop and publicly advertise CSOs Call for Proposal  ",null,null,null,"UNDP/Project Team",null,"1 Project Management Analyst\n1 Planning, Monotoring and Reporting Specialist "]

{"sheet":"Info Risk Sources","index":5,"n_rows":24,"n_cols":7,"rows_kept":24,"cut":false,"hidden":true,"merged":[]}
["Typology of Risk Sources"]
["Categories","Sub-categories (interrelated)","Examples of risk events","Examples of indicators that can be monitored","additional: generic indicators (usually country-level)"]
[null,"Please Select"]
["1. Contextual Risks (=External Risks: events outside a project; likelyhood of risk cannot be reduced, but likelyhood of how this affects project management/operations)","1.a. Contextual Risks/Safety & Security Situation ","War, civil unrest, violent crime, terror, natural disasters, pandemics; > AFFECT THE OPERATING ENVIRONMENT OF THE PROJECT: e.g. accessibility of intervention areas; staff recruitment/productivity; operational infrastructure; monitoring options; stakeholder priorities; theft/distruction of project assets; ","UNDSS incidence statistics; ","*UNOCHA's reports (some at provincial level); *Global Peace Index: www.economicsandpeace.org; *Official travel advice; *UN security ratings;","Context Risks",{"$f":"CONCATENATE(F4,\"__\",B4)","v":"Context Risks__1.a. Contextual Risks/Safety & Security Situation "}]
[null,"1.b Contextual Risks/Political environment","Changing policies and legislation; changes in political institutions and decision rights; changes in law-enforcement; corruption levels; AFFECT THE OPERATING ENVIRONMENT OF THE PROJECT: e.g. government support; power of implementing partner to take decisions; complementary investments into achieving outcome objectives; ",null,"*Failed State Index: www.fundforpeace.org; *Worldwide Governance Indicators: www.info.worldbank.org/governance/wgi ;  "]
[null,"1.c Contextual Risks/Socio-economic environment","Outbreak/increase of social discord: religious, ethnic, social class, gender;  likelihood of corruption/fraud; AFFECT THE OPERATING ENVIRONMENT OF THE PROJECT: e.g. level of community organisation and support; priorities of stakeholders; degree of resistance against shifts in cultural norms; options to attract/work with female personnel, staff from particular population groups;",null,"*Human Development Index: www.hdr.undp.org;"]
[null,"1.d Contextual Risks/Financial & economical","Shrinking resources of government, private sector or household; Change in relative prices; weaknesses in PFM system; AFFECT THE OPERATING ENVIRONMENT OF THE PROJECT: complementary funding available; increase in target group;  declining (share) of state budget; late transfers from MoF; ",null,"*EIU reports; \n*Transparency International Country ratings & reports: www.transparency.org; \n*PEFA Assessments: www.pefa.org;\n"]
["2. Stakeholder Risks (= Risks that stem from the groups outside UNDP associated with a project)","2.a Stakeholder Risks/Implementing Partners / Responsible Parties","Lack of commitment and leadership; intransparent or slow decision-making processes; limited financial resources; limited human capacity; insufficient internal controls; bad reputation, leading to bad reputation by association; changes of key decision-makers; individual agendas of decision-makers; "]
[null,"2.b Stakeholder Risks/Donors","time-consuming micro-management; changes in priorities/direction; changes of key decision makers; un-aligned reporting requirements; political agendas;"]
[null,"2.c Stakeholder Risks/Target beneficiaries"]
[null,"2.d Stakeholder Risks/Other stakeholders (e.g. other aid or government agencies working in the same/related field; CSOs; vendors; explicit adversaries)","Lack of government support; negative perceptions affecting co-operation;"]
["3. UNDP ","3.a. UNDP/Unclear/overambitious objectives in relation to available financial and human resources"]
[null,"3.b UNDP/Insufficient understanding of context"]
[null,"3.c UNDP/Flawed understanding of needs","Ineffectiveness; doing harm; "]
[null,"3.d UNDP/Unclear / flawed governance structure","Inefficiency"]
[null,"3.e  UNDP/Management failures, incl. planning failures"]
[null,"3.f  UNDP/Inadequate compliance and financial controls","Fraud"]
[null,"3.g UNDP/Delivery chain dependency","Delays; cost"]
[null,"3.g  UNDP/Inadequate results monitoring arrangements"]
[null,"3.h UNDP/Coordination failures"]
[null,"3.i UNDP/Communication/Partnership Management failures"]
[null,"3.j UNDP/Inadequacy of rules,regulations and procedures for planned tasks"]
[null,"3.k UNDP/Vulnerability to pressure from power holders"]
[null,"3.i UNDP/Lack of contingency plans/resources"]

{"sheet":"Annex Activities (Internal Use)","index":6,"n_rows":3,"n_cols":8,"rows_kept":3,"cut":false,"hidden":true,"merged":[]}
["AWP Annex for Activities"]
[]
["Activity ID","Activity ID Description","Start Date","End Date","Purpose","Description","Quality Criteria","Quality Method"]

{"sheet":"Chart Field Do note Delete ","index":7,"n_rows":3316,"n_cols":11,"rows_kept":3316,"cut":false,"hidden":true,"merged":[]}
["Reference Tables - Donors",null," 3077"]
["Donor","Description","Short Description","Donor",null,"Budget Account & Description"]
["00001","UN DEPT OF ECONOMIC AND SOCIAL","UNDESA","00001-UNDESA",null,"61100 - Salary Costs - NP Staff","2015-01-01","00001","Please Select","Please Select","Please select"]
["00002","UN DEPARTMENT OF INTERNATIONAL","UNDIESA","00002-UNDIESA",null,"61200 - Salaries Costs - GS Staff","2015-02-01","00002","Area 1: Representational Democracy and equitable elections","PSG 1: Legitimate Politics","High"]
["00003","INTERNATIONAL LABOUR ORGANIZAT","ILO","00003-ILO",null,"61300 - Salary & Post Adj Cst-IP Staff","2015-03-01","00003","Area 2: Governance , RoL, and HR","PSG 2: Security","Significant"]
["00004","FOOD AND AGRICULTURE ORGANIZAT","FAO","00004-FAO",null,"62100 - Recur Payroll Costs - NP Staff","2015-04-01","00004","Area 3: Integrity for Public Financial Management and improve Banking","PSG 3: Justice for All","Moderate"]
["00005","UNESCO","UNESCO","00005-UNESCO",null,"62200 - Recur Payroll Costs-GS Staff","2015-05-01","00200","Area 4: Government revenues, budget execution and sub national govenance ","PSG 4: Economic Foundations ","Low"]
["00006","WORLD HEALTH ORGANIZATION","WHO","00006-WHO",null,"62300 - Recurrent Payroll Costs-IP Stf","2015-06-01","00300","Area 5: inclusive and sustainable development ","PSG 5: Revenues and services"]
["00007","INTERNATIONAL  CIVIL AVIATION","ICAO","00007-ICAO",null,"63100 - Non-Recurrent Payroll - NP Stf","2015-07-01","02000"]
["00008","WORLD METEOROLOGICAL ORGANIZAT","WMO","00008-WMO",null,"63200 - Non-Recurrent Payroll - GS Stf","2015-08-01","02100",null,"Select here"]
["00009","INTERNATIONAL MARITIME ORGANIZ","IMO","00009-IMO",null,"63300 - Non-Recurrent Payroll - IP Stf","2015-09-01","02200",null,"NTA New"]
["00010","INTERNATIONAL TELECOMMUNICATIO","ITU","00010-ITU",null,"63400 - Learning Costs","2015-10-01","02300",null,"NTA Old"]
["00011","UNITED NATIONS VOLUNTEERS","UNDP(UNV)","00011-UNDP(UNV)",null,"63500 - Insurance and Security Costs","2015-11-01","02302",null,"LOA New"]
["00012","UNITED NATIONS DEVELOPMENT PRO","UNDP","00012-UNDP",null,"64100 - Staff Mgmt Costs-NP Staff","2015-12-01","02320",null,"LOA Old"]
["00013","UN INDUSTRIAL DEVELOPMENT ORGA","UNIDO","00013-UNIDO",null,"64100 - Staff Mgmt Costs-NP Staff",null,"02324",null,"FTA"]
["00014","UNIVERSAL POSTAL UNION","UPU","00014-UPU",null,"64200 - Staff Mgmt Costs - GS Staff",null,"02325",null,"SC"]
["00015","WORLD BANK (INT'L. BANK FOR RE","IBRD","00015-IBRD",null,"64300 - Staff Mgmt Costs - IP Staff",null,"02330",null,"N/A"]
["00016","INTER-AMERICAN DEVELOPMENT BAN","IDB","00016-IDB",null,"65100 - After Service Insurance",null,"02400"]
["00017","AFRICAN DEVELOPMENT BANK","ADB","00017-ADB",null,"66100 - Overtime & Night Differential",null,"02500"]
["00018","ASIAN DEVELOPMENT BANK","AsDB","00018-AsDB",null,"71100 - ALD Employee Costs",null,"02510"]
["00019","ARAB FUND FOR ECONOMIC & SOCIA","AFESD","00019-AFESD",null,"71200 - International Consultants",null,"02520"]
["00020","ISLAMIC DEVELOPMENT BANK","ISDB","00020-ISDB",null,"71300 - Local Consultants",null,"02530"]
["00021","ECONOMIC COMMISSION FOR LATIN","ECLAC","00021-ECLAC",null,"71400 - Contractual Services - Individ",null,"02600"]
["00022","ESCWA","ESCWA","00022-ESCWA",null,"71500 - UN Volunteers",null,"02650"]
["00023","UN CENTRE FOR HUMAN SETTLEMENT","UNCHS","00023-UNCHS",null,"71600 - Travel",null,"02700"]
["00024","INTERNATIONAL FINANCE CORPORAT","IFC","00024-IFC",null,"72100 - Contractual Services-Companies",null,"02800"]
["00025","EUROPEAN BANK FOR RECONSTRUCTI","EBRD","00025-EBRD",null,"72200 - Equipment and Furniture",null,"02899"]
["00026","CARIBBEAN DEVELOPMENT BANK","CDB","00026-CDB",null,"72300 - Materials & Goods",null,"02900"]
["00027","INTERNATIONAL TRADE CENTRE","ITC","00027-ITC",null,"72400 - Communic & Audio Visual Equip",null,"02910"]
["00028","UN INTERNATIONAL DRUG CONTROL","UNODC","00028-UNODC",null,"72500 - Supplies",null,"02920"]
["00029","INTERNATIONAL NON-GOVERNMENTAL","NGO(INTL)","00029-NGO(INTL)",null,"72600 - Grants",null,"02930"]
["00030","NON-GOVERNMENTAL ORGANIZATION","NGO(NATL)","00030-NGO(NATL)",null,"72700 - Hospitality/Catering",null,"02940"]
["00031","UNITED NATIONS POPULATION FUND","UNFPA","00031-UNFPA",null,"72800 - Information Technology Equipmt",null,"02950"]
["00032","UN DEVELOPMENT FUND FOR WOMEN","UNIFEM","00032-UNIFEM",null,"72900 - MDTF & DBS Reporting",null,"02980"]
["00033","UN TRUST FUND FOR SUDANO-SAHEL","UNSO","00033-UNSO",null,"73100 - Rental & Maintenance-Premises",null,"02990"]
["00034","UNITED NATIONS UNIVERSITY","UNU","00034-UNU",null,"73200 - Premises Alternations",null,"02995"]
["00035","UNITED NATIONS CHILDREN'S FUND","UNICEF","00035-UNICEF",null,"73300 - Rental & Maint of Info Tech Eq",null,"02999"]
["00036","INTERNATIONAL FUND FOR AGRICUL","IFAD","00036-IFAD",null,"73400 - Rental & Maint of Other Equip",null,"04000"]
["00037","WORLD FOOD PROGRAMME","WFP","00037-WFP",null,"73500 - Reimbursement Costs",null,"04100"]
["00038","UNOCHA","UNOCHA","00038-UNOCHA",null,"74100 - Professional Services",null,"04110"]
["00039","INTERNATIONAL MONETARY FUND","IMF","00039-IMF",null,"74200 - Audio Visual&Print Prod Costs",null,"04120"]
["00040","UN HIGH COMMISSIONER FOR REFUG","UNHCR","00040-UNHCR",null,"74300 - Contributions",null,"04130"]
["00041","UNITED NATIONS ENVIRONMENT PRO","UNEP","00041-UNEP",null,"74400 - Provisions & Write-offs",null,"04140"]
["00042","DEVELOPMENT  NETWORK","DEVNET","00042-DEVNET",null,"74500 - Miscellaneous Expenses",null,"04150"]
["00043","INTERNATIONAL ORGANIZATION FOR","IOM","00043-IOM",null,"74600 - Prepaid Project Expenses",null,"04160"]
["00044","GOVERNMENT OF AFGHANISTAN","AFG","00044-AFG",null,"74700 - Transport, Shipping and handle",null,"04170"]
["00045","GOVERNMENT OF ALBANIA","ALB","00045-ALB",null,"74800 - Depreciation Expense",null,"04180"]
["00046","GOVERNMENT OF ALGERIA","ALG","00046-ALG",null,"74900 - Depreciation Exp - Accumulated",null,"04190"]
["00047","GOVERNMENT OF SAMOA (USA)","AMS","00047-AMS",null,"75100 - Facilities & Administration",null,"04200"]
["00048","GOVERNMENT OF ANDORRA","AND","00048-AND",null,"75700 - Training, Workshops and Confer",null,"04210"]
["00049","GOVERNMENT OF ANGOLA","ANG","00049-ANG",null,"76100 - Foreign Exchange Currency Loss",null,"04220"]
["00050","GOVERNMENT OF ANGUILLA","ANL","00050-ANL",null,"76100 - Foreign Exchange Currency Loss",null,"04230"]
["00051","GOVERNMENT OF ANTIGUA AND BARB","ANT","00051-ANT",null,"77100 - Salary and related costs–TA/NP",null,"04240"]
["00052","GOVERNMENT OF ARGENTINA","ARG","00052-ARG",null,"77200 - Salary and related costs–TA/GS",null,"04250"]
["00053","GOVERNMENT OF ARMENIA","ARM","00053-ARM",null,"77300 - Salary and related costs–TA/IP",null,"04300"]
["00054","GOVERNMENT OF ARUBA","USD","00054-USD",null,"BA001 -Land - Budget",null,"04310"]
["00055","GOVERNMENT OF AUSTRALIA","AUL","00055-AUL",null,"BA002 -Building - Budget",null,"04400"]
["00056","GOVERNMENT OF AUSTRIA","AUS","00056-AUS",null,"BA003 -Leasehold Impr - Budget",null,"04500"]
["00057","GOVERNMENT OF AZERBAIJAN","AZE","00057-AZE",null,"BA004 -Vehicles - Budget",null,"04600"]
["00058","GOVERNMENT OF BAHRAIN","BAH","00058-BAH",null,"BA005 -Furniture - Budget",null,"04700"]
["00059","GOVERNMENT OF BARBADOS","BAR","00059-BAR",null,"BA006 -Heavy Equipment - Budget",null,"04800"]
["00060","GOVERNMENT OF BURUNDI","BDI","00060-BDI",null,"BA007 -IT&C - Budget",null,"04810"]
["00061","GOVERNMENT OF BELGIUM","BEL","00061-BEL",null,"BA008 -Security Equip - Budget",null,"04820"]
["00062","GOVERNMENT OF BENIN","BEN","00062-BEN",null,"BA009 -Intangible - Budget",null,"04840"]
["00063","GOVERNMENT OF BERMUDA","BER","00063-BER",null,"BA010 -Construct Fixed Asset - Budget",null,"04900"]
["00064","GOVERNMENT OF BANGLADESH","BGD","00064-BGD",null,"BA011 -Construct Intangible - Budget",null,"04950"]
["00065","GOVERNMENT OF BAHAMAS","BHA","00065-BHA",null,"BA012 -Asset NBV Transfer- Budget",null,"05000"]
["00066","GOVERNMENT OF BHUTAN","BHU","00066-BHU",null,null,null,"05100"]
["00067","GOVERNMENT OF BOSNIA AND HERZE","BIH","00067-BIH",null,null,null,"05200"]
["00068","GOVERNMENT OF BURKINA FASO","BKF","00068-BKF",null,null,null,"05300"]
["00069","GOVERNMENT OF BOLIVIA","BOL","00069-BOL",null,null,null,"05400"]
["00070","GOVERNMENT OF BOTSWANA","BOT","00070-BOT",null,null,null,"05500"]
["00071","GOVERNMENT OF BRAZIL","BRA","00071-BRA",null,null,null,"05600"]
["00072","GOVERNMENT OF BRUNEI DARUSSALA","BRU","00072-BRU",null,null,null,"05700"]
["00073","GOVERNMENT OF BULGARIA","BUL","00073-BUL",null,null,null,"05800"]
["00074","GOVERNMENT OF VIRGIN ISLANDS (","BVI","00074-BVI",null,null,null,"05900"]
["00075","GOVERNMENT OF BELARUS, REPUBLI","BYE","00075-BYE",null,null,null,"06000"]
["00076","GOVERNMENT OF BELIZE","BZE","00076-BZE",null,null,null,"06100"]
["00077","GOVERNMENT OF CENTRAL AFRICAN","CAF","00077-CAF",null,null,null,"06200"]
["00078","GOVERNMENT OF CANADA","CAN","00078-CAN",null,null,null,"11000"]
["00079","GOVERNMENT OF CAYMAN ISLANDS","CAY","00079-CAY",null,null,null,"11010"]
["00080","GOVERNMENT OF CZECH REPUBLIC","CEH","00080-CEH",null,null,null,"11020"]
["00081","GOVERNMENT OF CHAD","CHD","00081-CHD",null,null,null,"11100"]
["00082","GOVERNMENT OF CHILE","CHI","00082-CHI",null,null,null,"11300"]
["00083","GOVERNMENT OF COOK ISLANDS","CKI","00083-CKI",null,null,null,"11310"]
["00084","GOVERNMENT OF CAMBODIA","CMB","00084-CMB",null,null,null,"11315"]
["00085","GOVERNMENT OF CAMEROON, REPUBL","CMR","00085-CMR",null,null,null,"11320"]
["00086","GOVERNMENT OF COMOROS","COI","00086-COI",null,null,null,"11700"]
["00087","GOVERNMENT OF COLOMBIA","COL","00087-COL",null,null,null,"11800"]
["00088","GOVERNMENT OF COSTA RICA","COS","00088-COS",null,null,null,"11801"]
["00089","GOVERNMENT OF CHINA","CPR","00089-CPR",null,null,null,"11802"]
["00090","GOVERNMENT OF CROATIA","CRO","00090-CRO",null,null,null,"11805"]
["00091","GOVERNMENT OF CUBA","CUB","00091-CUB",null,null,null,"11808"]
["00092","GOVERNMENT OF CAPE VERDE","CVI","00092-CVI",null,null,null,"11810"]
["00093","GOVERNMENT OF CYPRUS","CYP","00093-CYP",null,null,null,"11888"]
["00094","GOVERNMENT OF CZECHOSLOVAKIA","CZE","00094-CZE",null,null,null,"11900"]
["00095","GOVERNMENT OF DENMARK","DEN","00095-DEN",null,null,null,"11910"]
["00096","GOVERNMENT OF DJIBOUTI","DJI","00096-DJI",null,null,null,"11920"]
["00097","GOVERNMENT OF DOMINICA","DMI","00097-DMI",null,null,null,"11925"]
["00098","GOVERNMENT OF DOMINICAN REPUBL","DOM","00098-DOM",null,null,null,"11930"]
["00099","GOVERNMENT OF DEMOCRATIC PEOPL","DRK","00099-DRK",null,null,null,"11935"]
["00100","GOVERNMENT OF ECUADOR","ECU","00100-ECU",null,null,null,"11940"]
["00101","GOVERNMENT OF EGYPT","EGY","00101-EGY",null,null,null,"11941"]
["00102","GOVERNMENT OF EL SALVADOR","ELS","00102-ELS",null,null,null,"11945"]
["00103","GOVERNMENT OF EQUATORIAL GUINE","EQG","00103-EQG",null,null,null,"11950"]
["00104","GOVERNMENT OF ERITREA","ERI","00104-ERI",null,null,null,"11975"]
["00105","GOVERNMENT OF ESTONIA, REPUBLI","EST","00105-EST",null,null,null,"11999"]
["00106","GOVERNMENT OF ETHIOPIA","ETH","00106-ETH",null,null,null,"12000"]
["00107","GOVERNMENT OF ANTILLES (FRENCH","FAN","00107-FAN",null,null,null,"13999"]
["00108","GOVERNMENT OF GUINEA (FRENCH)","FGU","00108-FGU",null,null,null,"14000"]
["00109","GOVERNMENT OF FIJI","FIJ","00109-FIJ",null,null,null,"14100"]
["00110","GOVERNMENT OF FINLAND","FIN","00110-FIN",null,null,null,"16000"]
["00111","GOVERNMENT OF POLYNESIA (FRENC","FPL","00111-FPL",null,null,null,"16010"]
["00112","GOVERNMENT OF FRANCE","FRA","00112-FRA",null,null,null,"16100"]
["00113","GOVERNMENT OF GABON","GAB","00113-GAB",null,null,null,"16300"]
["00114","GOVERNMENT OF GAMBIA","GAM","00114-GAM",null,null,null,"16350"]
["00115","GOVERNMENT OF GUINEA-BISSAU","GBS","00115-GBS",null,null,null,"16500"]
["00116","GOVERNMENT OF GEORGIA, REPUBLI","GEO","00116-GEO",null,null,null,"16510"]
["00117","GOVERNMENT OF GERMANY","GER","00117-GER",null,null,null,"16600"]
["00118","GOVERNMENT OF GHANA","GHA","00118-GHA",null,null,null,"16605"]
["00119","GOVERNMENT OF GREECE","GRE","00119-GRE",null,null,null,"16610"]
["00120","GOVERNMENT OF GRENADA","GRN","00120-GRN",null,null,null,"16615"]
["00121","GOVERNMENT OF GUATEMALA","GUA","00121-GUA",null,null,null,"16700"]
["00122","GOVERNMENT OF GUADELOUPE","GUD","00122-GUD",null,null,null,"17000"]
["00123","GOVERNMENT OF GUINEA","GUI","00123-GUI",null,null,null,"17999"]
["00124","GOVERNMENT OF GUYANA","GUY","00124-GUY",null,null,null,"18000"]
["00125","GOVERNMENT OF HAITI","HAI","00125-HAI",null,null,null,"19000"]
["00126","HOLY SEE","HLS","00126-HLS",null,null,null,"19005"]
["00127","GOVERNMENT OF TERRITORY OF HON","HOK","00127-HOK",null,null,null,"19100"]
["00128","GOVERNMENT OF HONDURAS","HON","00128-HON",null,null,null,"19102"]
["00129","GOVERNMENT OF HUNGARY","HUN","00129-HUN",null,null,null,"19104"]
["00130","GOVERNMENT OF ICELAND","ICE","00130-ICE",null,null,null,"19106"]
["00131","GOVERNMENT OF INDIA","IND","00131-IND",null,null,null,"19108"]
["00132","GOVERNMENT OF INDONESIA","INS","00132-INS",null,null,null,"19110"]
["00133","GOVERNMENT OF IRAN (ISLAMIC RE","IRA","00133-IRA",null,null,null,"19112"]
["00134","GOVERNMENT OF IRELAND","IRE","00134-IRE",null,null,null,"19114"]
["00135","GOVERNMENT OF IRAQ","IRQ","00135-IRQ",null,null,null,"19115"]
["00136","GOVERNMENT OF ISRAEL","ISR","00136-ISR",null,null,null,"19990"]
["00137","GOVERNMENT OF ITALY","ITA","00137-ITA",null,null,null,"19995"]
["00138","GOVERNMENT OF COTE D'IVOIRE","IVC","00138-IVC",null,null,null,"19999"]
["00139","GOVERNMENT OF JAMAICA","JAM","00139-JAM",null,null,null,"20000"]
["00140","GOVERNMENT OF JORDAN","JOR","00140-JOR",null,null,null,"20001"]
["00141","GOVERNMENT OF JAPAN","JPN","00141-JPN",null,null,null,"20002"]
["00142","GOVERNMENT OF KAZAKHSTAN","KAZ","00142-KAZ",null,null,null,"20003"]
["00143","GOVERNMENT OF KENYA","KEN","00143-KEN",null,null,null,"20004"]
["00144","GOVERNMENT OF KIRIBATI","KIR","00144-KIR",null,null,null,"20005"]
["00145","GOVERNMENT OF KUWAIT","KWT","00145-KWT",null,null,null,"20006"]
["00146","GOVERNMENT OF KYRGYZSTAN","KYR","00146-KYR",null,null,null,"20007"]
["00147","GOVERNMENT OF LAO PEOPLE'S DEM","LAO","00147-LAO",null,null,null,"20008"]
["00148","GOVERNMENT OF LATVIA, REPUBLIC","LAT","00148-LAT",null,null,null,"20009"]
["00149","GOVERNMENT OF LEBANON","LEB","00149-LEB",null,null,null,"20012"]
["00150","GOVERNMENT OF LESOTHO","LES","00150-LES",null,null,null,"20014"]
["00151","GOVERNMENT OF LIBYAN ARAB JAMA","LIB","00151-LIB",null,null,null,"20016"]
["00152","GOVERNMENT OF LIECHTENSTEIN","LIE","00152-LIE",null,null,null,"20019"]
["00153","GOVERNMENT OF LIBERIA","LIR","00153-LIR",null,null,null,"20100"]
["00154","GOVERNMENT OF LITHUANIA, REPUB","LIT","00154-LIT",null,null,null,"20200"]
["00155","GOVERNMENT OF LUXEMBOURG","LUX","00155-LUX",null,null,null,"20300"]
["00156","GOVERNMENT OF MADAGASCAR","MAG","00156-MAG",null,null,null,"20400"]
["00157","GOVERNMENT OF MALAYSIA","MYS","00157-MYS",null,null,null,"20500"]
["00158","GOVERNMENT OF MARTINIQUE","MAQ","00158-MAQ",null,null,null,"20600"]
["00159","GOVERNMENT OF MAURITIUS","MAR","00159-MAR",null,null,null,"20700"]
["00160","GOVERNMENT OF MARSHAL ISLANDS","MAS","00160-MAS",null,null,null,"20701"]
["00161","GOVERNMENT OF MALTA","MAT","00161-MAT",null,null,null,"20702"]
["00162","GOVERNMENT OF MAURITANIA","MAU","00162-MAU",null,null,null,"20703"]
["00163","GOVERNMENT OF MACEDONIA, THE F","MCD","00163-MCD",null,null,null,"20704"]
["00164","GOVERNMENT OF MALDIVES","MDV","00164-MDV",null,null,null,"20705"]
["00165","GOVERNMENT OF MEXICO","MEX","00165-MEX",null,null,null,"20706"]
["00166","GOVERNMENT OF MICRONESIA, THE","MIC","00166-MIC",null,null,null,"20707"]
["00167","GOVERNMENT OF MALI","MLI","00167-MLI",null,null,null,"20708"]
["00168","GOVERNMENT OF MALAWI","MLW","00168-MLW",null,null,null,"20709"]
["00169","GOVERNMENT OF MONACO","MNC","00169-MNC",null,null,null,"21000"]
["00170","GOVERNMENT OF MOLDOVA, REPUBLI","MOL","00170-MOL",null,null,null,"21100"]
["00171","GOVERNMENT OF MONGOLIA","MON","00171-MON",null,null,null,"21200"]
["00172","GOVERNMENT OF MOROCCO","MOR","00172-MOR",null,null,null,"21300"]
["00173","GOVERNMENT OF MONTSERRAT","MOT","00173-MOT",null,null,null,"21400"]
["00174","GOVERNMENT OF MOZAMBIQUE","MOZ","00174-MOZ",null,null,null,"21500"]
["00175","GOVERNMENT OF MYANMAR","MYA","00175-MYA",null,null,null,"21600"]
["00176","GOVERNMENT OF NAMIBIA","NAM","00176-NAM",null,null,null,"22000"]
["00177","GOVERNMENT OF NETHERLANDS ANTI","NAN","00177-NAN",null,null,null,"22100"]
["00178","GOVERNMENT OF NAURU","NAU","00178-NAU",null,null,null,"22200"]
["00179","GOVERNMENT OF NEW CALEDONIA","NCA","00179-NCA",null,null,null,"22300"]
["00180","GOVERNMENT OF NEPAL","NEP","00180-NEP",null,null,null,"22400"]
["00181","GOVERNMENT OF NIGER","NER","00181-NER",null,null,null,"22500"]
["00182","GOVERNMENT OF NETHERLANDS","NET","00182-NET",null,null,null,"23000"]
["00183","GOVERNMENT OF NEW HEBRIDES","NHE","00183-NHE",null,null,null,"23100"]
["00184","GOVERNMENT OF NICARAGUA","NIC","00184-NIC",null,null,null,"23200"]
["00185","GOVERNMENT OF NIGERIA","NIR","00185-NIR",null,null,null,"23300"]
["00186","GOVERNMENT OF NIUE","NIU","00186-NIU",null,null,null,"23400"]
["00187","GOVERNMENT OF NORWAY","NOR","00187-NOR",null,null,null,"23500"]
["00188","GOVERNMENT OF NEW ZEALAND","NZE","00188-NZE",null,null,null,"23600"]
["00189","GOVERNMENT OF OMAN","OMA","00189-OMA",null,null,null,"23700"]
["00190","GOVERNMENT OF PAKISTAN","PAK","00190-PAK",null,null,null,"23800"]
["00191","GOVERNMENT OF OCCUPIED PALESTI","PAL","00191-PAL",null,null,null,"24000"]
["00192","GOVERNMENT OF PANAMA","PAN","00192-PAN",null,null,null,"24100"]
["00193","GOVERNMENT OF PARAGUAY","PAR","00193-PAR",null,null,null,"24200"]
["00194","GOVERNMENT OF PERU","PER","00194-PER",null,null,null,"24300"]
["00195","GOVERNMENT OF PHILIPPINES","PHI","00195-PHI",null,null,null,"24400"]
["00196","GOVERNMENT OF PACIFIC MULTI IS","PMI","00196-PMI",null,null,null,"24500"]
["00197","GOVERNMENT OF PAPUA NEW GUINEA","PNG","00197-PNG",null,null,null,"25000"]
["00198","GOVERNMENT OF POLAND","POL","00198-POL",null,null,null,"25100"]
["00199","GOVERNMENT OF PORTUGAL","POR","00199-POR",null,null,null,"25200"]
["00200","GOVERNMENT OF CONGO","PRC","00200-PRC",null,null,null,"25300"]
["00201","GOVERNMENT OF PUERTO RICO","PUE","00201-PUE",null,null,null,"25400"]
["00202","GOVERNMENT OF QATAR","QAT","00202-QAT",null,null,null,"25500"]
["00203","GOVERNMENT OF REUNION","REU","00203-REU",null,null,null,"25600"]
["00204","GOVERNMENT OF REPUBLIC OF KORE","ROK","00204-ROK",null,null,null,"25610"]
["00205","GOVERNMENT OF ROMANIA","ROM","00205-ROM",null,null,null,"25620"]
["00206","GOVERNMENT OF RUSSIAN FEDERATI","RUS","00206-RUS",null,null,null,"25630"]
["00207","GOVERNMENT OF RWANDA","RWA","00207-RWA",null,null,null,"25640"]
["00208","GOVERNMENT OF SOUTH AFRICA","SAF","00208-SAF",null,null,null,"25660"]
["00209","GOVERNMENT OF SAMOA","SAM","00209-SAM",null,null,null,"25670"]
["00210","GOVERNMENT OF SAUDI ARABIA","SAU","00210-SAU",null,null,null,"26000"]
["00211","GOVERNMENT OF SENEGAL","SEN","00211-SEN",null,null,null,"26100"]
["00212","GOVERNMENT OF SEYCHELLES","SEY","00212-SEY",null,null,null,"26200"]
["00213","GOVERNMENT OF SIKKIM","SIK","00213-SIK",null,null,null,"26300"]
["00214","GOVERNMENT OF SIERRA LEONE","SIL","00214-SIL",null,null,null,"26400"]
["00215","GOVERNMENT OF SINGAPORE","SIN","00215-SIN",null,null,null,"26500"]
["00216","GOVERNMENT OF SLOVAK REPUBLIC","SLO","00216-SLO",null,null,null,"26600"]
["00217","GOVERNMENT OF SAN MARINO","SNM","00217-SNM",null,null,null,"26700"]
["00218","GOVERNMENT OF SOLOMON ISLANDS","SOI","00218-SOI",null,null,null,"26800"]
["00219","GOVERNMENT OF SOMALIA","SOM","00219-SOM",null,null,null,"26900"]
["00220","GOVERNMENT OF SPAIN","SPA","00220-SPA",null,null,null,"26910"]
["00221","GOVERNMENT OF SRI LANKA","SRL","00221-SRL",null,null,null,"26920"]
["00222","GOVERNMENT OF SAINT HELENA","USD","00222-USD",null,null,null,"26921"]
["00223","GOVERNMENT OF SAINT KITTS AND","STK","00223-STK",null,null,null,"26930"]
["00224","GOVERNMENT OF SAINT LUCIA","STL","00224-STL",null,null,null,"26931"]
["00225","GOVERNMENT OF SAO TOME AND PRI","STP","00225-STP",null,null,null,"26940"]
["00226","GOVERNMENT OF SAINT VINCENT AN","STV","00226-STV",null,null,null,"26941"]
["00227","GOVERNMENT OF SUDAN","SUD","00227-SUD",null,null,null,"26950"]
["00228","GOVERNMENT OF SURINAME","SUR","00228-SUR",null,null,null,"26951"]
["00229","GOVERNMENT OF SLOVENIA","SVN","00229-SVN",null,null,null,"26952"]
["00230","GOVERNMENT OF SWAZILAND","SWA","00230-SWA",null,null,null,"26960"]
["00231","GOVERNMENT OF SWEDEN","SWE","00231-SWE",null,null,null,"26970"]
["00232","GOVERNMENT OF SWITZERLAND","SWI","00232-SWI",null,null,null,"26980"]
["00233","GOVERNMENT OF SYRIAN ARAB REPU","SYR","00233-SYR",null,null,null,"27000"]
["00234","GOVERNMENT OF TAJIKISTAN","TAJ","00234-TAJ",null,null,null,"27100"]
["00235","GOVERNMENT OF TURKS AND CAICOS","TCI","00235-TCI",null,null,null,"27200"]
["00236","GOVERNMENT OF THAILAND","THA","00236-THA",null,null,null,"27300"]
["00237","GOVERNMENT OF TOGO","TOG","00237-TOG",null,null,null,"27400"]
["00238","GOVERNMENT OF TOKELAU","TOK","00238-TOK",null,null,null,"27500"]
["00239","GOVERNMENT OF TONGA","TON","00239-TON",null,null,null,"27600"]
["00240","GOVERNMENT OF TRINIDAD AND TOB","TRI","00240-TRI",null,null,null,"30000"]
["00241","GOVERNMENT OF TRUST TERRITORY","TTP","00241-TTP",null,null,null,"30010"]
["00242","GOVERNMENT OF TURKMENISTAN","TUK","00242-TUK",null,null,null,"30011"]
["00243","GOVERNMENT OF TUNISIA","TUN","00243-TUN",null,null,null,"30012"]
["00244","GOVERNMENT OF TURKEY","TUR","00244-TUR",null,null,null,"30013"]
["00245","GOVERNMENT OF TUVALU","TUV","00245-TUV",null,null,null,"30014"]
["00246","GOVERNMENT OF UNITED ARAB EMIR","UAE","00246-UAE",null,null,null,"30015"]
["00247","GOVERNMENT OF UGANDA","UGA","00247-UGA",null,null,null,"30020"]
["00248","GOVERNMENT OF UNITED KINGDOM","UKM","00248-UKM",null,null,null,"30021"]
["00249","GOVERNMENT OF UKRAINE","UKR","00249-UKR",null,null,null,"30022"]
["00250","UNDETERMINED","UND","00250-UND",null,null,null,"30023"]
["00251","GOVERNMENT OF UNITED REPUBLIC","URT","00251-URT",null,null,null,"30024"]
["00252","GOVERNMENT OF URUGUAY","URU","00252-URU",null,null,null,"30025"]
["00253","GOVERNMENT OF UNITED STATES OF","USA","00253-USA",null,null,null,"30030"]
["00254","GOVERNMENT OF UZBEKISTAN","UZB","00254-UZB",null,null,null,"30031"]
["00255","GOVERNMENT OF VENEZUELA","VEN","00255-VEN",null,null,null,"30032"]
["00256","GOVERNMENT OF VIET NAM","VIE","00256-VIE",null,null,null,"30033"]
["00257","GOVERNMENT OF YEMEN","YEM","00257-YEM",null,null,null,"30041"]
["00258","GOVERNMENT OF YUGOSLAVIA","YUG","00258-YUG",null,null,null,"30042"]
["00259","GOVERNMENT OF DEMOCRATIC REPUB","ZAI","00259-ZAI",null,null,null,"30043"]
["00260","GOVERNMENT OF ZAMBIA","ZAM","00260-ZAM",null,null,null,"30051"]
["00261","GOVERNMENT OF ZIMBABWE","ZIM","00261-ZIM",null,null,null,"30052"]
["00262","ASOCIACION CHILENA DE LA PROPI","ACHIPI","00262-ACHIPI",null,null,null,"30053"]
["00263","AGENCE DE COOPERATION CULTUREL","ACCT","00263-ACCT",null,null,null,"30061"]
["00264","ARAB GULF PROGRAMME FOR UN DEV","AGFUND","00264-AGFUND",null,null,null,"30062"]
["00265","ASSISTANCE TO THE LATIN AMERIC","ALADI","00265-ALADI",null,null,null,"30063"]
["00266","AFRICA LEADERSHIP FORUM","ALF","00266-ALF",null,null,null,"30071"]
["00267","ARAB LABOUR ORGANISATION","ALO","00267-ALO",null,null,null,"30072"]
["00268","ARAB MARITIME TRANSPORT ACADEM","AMTA","00268-AMTA",null,null,null,"30073"]
["00269","AFRICAN NATIONAL CONGRESS","ANC","00269-ANC",null,null,null,"30074"]
["00270","ARAB TRADE FINANCING PROGRAMME","ATFP","00270-ATFP",null,null,null,"30075"]
["00271","ASOCIACION DE ZONAS FRANCAS DE","AZOLCA","00271-AZOLCA",null,null,null,"30076"]
["00272","BISCHOFLICHES HILFSWERK MISERE","BHM","00272-BHM",null,null,null,"30077"]
["00273","CENTRAL AFRICAN DEVELOPMENT BA","CADB","00273-CADB",null,null,null,"30078"]
["00274","CENTRAL AFRICAN CUSTOMS & ECON","CAC","00274-CAC",null,null,null,"30079"]
["00275","CENTRAL AMER BANK FOR EOCNOMIC","CABEI","00275-CABEI",null,null,null,"31100"]
["00276","EL COMITE INTERGUBERNAMENTAL D","CIHP","00276-CIHP",null,null,null,"31200"]
["00277","LATIN AMERICAN CENTRE FOR DEVE","LACDA","00277-LACDA",null,null,null,"31201"]
["00278","CARIBBEAN COMMUNITY","CARICOM","00278-CARICOM",null,null,null,"31300"]
["00279","EAST AFRICAN DEVELOPMENT BANK","EADB","00279-EADB",null,null,null,"31400"]
["00280","EUROPEAN UNION","EU","00280-EU",null,null,null,"31500"]
["00281","INTERNATIONAL DEVELOPMENT RESE","IDRC","00281-IDRC",null,null,null,"31600"]
["00282","LATIN AMERICAN INSTITUTE FOR E","ILPES","00282-ILPES",null,null,null,"31650"]
["00283","INSTITUTE REGIONAL DECO-COOPER","IRCOD","00283-IRCOD",null,null,null,"31700"]
["00284","JUNTA DEL ACUERDO DE CARTEGENA","JUNAC","00284-JUNAC",null,null,null,"31800"]
["00285","LIVE AID FUNDATION","LAF","00285-LAF",null,null,null,"31900"]
["00286","LEAGUE OF ARAB STATES","LAS","00286-LAS",null,null,null,"32000"]
["00287","NIGER BASIN AUTHORITY","NBA","00287-NBA",null,null,null,"32040"]
["00288","ORGANIZATION OF AMERICAN STATE","OAS","00288-OAS",null,null,null,"32041"]
["00289","ORGANIZATION OF AFRICAN UNITY","OAU","00289-OAU",null,null,null,"32042"]
["00290","ORGANIZATION OF EASTERN CARRIB","OECS","00290-OECS",null,null,null,"32043"]
["00291","ORGANIZATION OF PETROLEUM EXPO","OPEC","00291-OPEC",null,null,null,"32044"]
["00292","SOUTHERN AFRICAN CENTRE FOR CO","SACCA","00292-SACCA",null,null,null,"32045"]
["00293","SECRETARIA EJECUTIVA DEL CONVE","SECAB","00293-SECAB",null,null,null,"32100"]
["00294","SOUTH PACIFIC FUND","SPF","00294-SPF",null,null,null,"32101"]
["00295","SOUTH WEST AFRICA PEOPLE'S ORG","SWAPO","00295-SWAPO",null,null,null,"33000"]
["00296","UNITED NATIONS","UN","00296-UN",null,null,null,"35001"]
["00297","UNAIDS","UNAIDS","00297-UNAIDS",null,null,null,"35002"]
["00298","MAC ARTHUR FOUNDATION","MAF","00298-MAF",null,null,null,"35003"]
["00299","SOROS FOUNDATION","SOROS","00299-SOROS",null,null,null,"35004"]
["00300","UNITED NATIONS FUND FOR DRUG A","UNFDAC","00300-UNFDAC",null,null,null,"35005"]
["00301","ARAB MONETARY FUND","AMF","00301-AMF",null,null,null,"35006"]
["00302","UNFIP TURNER FOUNDATION","UNFIP","00302-UNFIP",null,null,null,"35008"]
["00303","PAN AMERICAN HEALTH ORGANIZATI","PAHO","00303-PAHO",null,null,null,"35009"]
["00304","FORD FOUNDATION","FF","00304-FF",null,null,null,"35010"]
["00305","INTL RESEARCH & TRAINING INSTI","INSTRAW","00305-INSTRAW",null,null,null,"35011"]
["00306","SOROPTIMIST INTERNATIONAL","SI","00306-SI",null,null,null,"35012"]
["00307","US COMMITTEE FOR UNDP","USANC","00307-USANC",null,null,null,"35013"]
["00308","PHILIPPINES NATIONAL COMMITTEE","PHINC","00308-PHINC",null,null,null,"35200"]
["00309","AUSTRALIA NATIONAL COMMITTEE","AULNC","00309-AULNC",null,null,null,"35400"]
["00310","JAPAN NATIONAL COMMITTEE","JPNNC","00310-JPNNC",null,null,null,"35401"]
["00311","PRIVATE SECTOR","PRIVSECT","00311-PRIVSECT",null,null,null,"35402"]
["00312","UNIFEM CONNECTICUT CHAPTER","UCC","00312-UCC",null,null,null,"35403"]
["00313","INCOME GENERATED FROM PROJECTS","IGP","00313-IGP",null,null,null,"35404"]
["00314","CISCO SYSTEMS FOUNDATION","CISCOSF","00314-CISCOSF",null,null,null,"35405"]
["00315","ICELAND NATIONAL COMMITTEE","ICENC","00315-ICENC",null,null,null,"35406"]
["00316","CONRAD HILTON FOUNDATION","CHF","00316-CHF",null,null,null,"35407"]
["00317","UNIFEM NATIONAL COMMITTEE SWIT","SLNC","00317-SLNC",null,null,null,"35408"]
["00318","IRISH NATIONAL COMMITTEE FOR U","IRENC","00318-IRENC",null,null,null,"35410"]
["00319","CANADA NATIONAL COMMITTEE","CANNC","00319-CANNC",null,null,null,"35411"]
["00320","UK NATIONAL COMMITTEE","UKMNC","00320-UKMNC",null,null,null,"35501"]
["00321","NETHERLANDS ORGANISATION FOR I","NOFIC","00321-NOFIC",null,null,null,"35600"]
["00322","NETHERLANDS TRADE UNION CONFED","NTUC","00322-NTUC",null,null,null,"35800"]
["00323","FINLAND NATIONAL COMMITTEE","FINNC","00323-FINNC",null,null,null,"35801"]
["00324","SINGAPORE NATIONAL COMMITTEE","SINNC","00324-SINNC",null,null,null,"36000"]
["00325","SWITZERLAND/LIECHTENSTEIN NATI","SWI/LIENC","00325-SWI/LIENC",null,null,null,"36001"]
["00326","NEW ZEALAND NATIONAL COMMITTEE","NZENC","00326-NZENC",null,null,null,"36002"]
["00327","GLOBAL FUND TO FIGHT AIDS, TUB","GFATM","00327-GFATM",null,null,null,"36003"]
["00328","AUSTRALIA AG FOR INTNL DEV:UNC","AUSAID","00328-AUSAID",null,null,null,"36004"]
["00329","DANIDA:","DANIDA","00329-DANIDA",null,null,null,"36200"]
["00330","ROYAL DANISH MINI FOR AFF:UNCD","ROYALDAN","00330-ROYALDAN",null,null,null,"36201"]
["00331","MINISTRY OF FOR AFF-ITA:UNCDF","MINISTRYOF","00331-MINISTRYOF",null,null,null,"36202"]
["00332","AG FRANCAISE DE DVLPP:UNCDF","AFD","00332-AFD",null,null,null,"36203"]
["00333","MINIST DES AFF ETRANG-FRA:UNCD","MAEDCT","00333-MAEDCT",null,null,null,"36204"]
["00334","GESELLSCHAFT FUR TECH:UNCDF","GTZ","00334-GTZ",null,null,null,"36205"]
["00335","DEPT OF FOREIGN AFF-BEL: UNCDF","DEPARTMEN","00335-DEPARTMEN",null,null,null,"36206"]
["00336","MINISTRY OF FORAFF-FIN:UNCDF","DGCS","00336-DGCS",null,null,null,"36207"]
["00337","FED MIN OF FOR AFF-AUS:UNCDF","FEDERALMIN","00337-FEDERALMIN",null,null,null,"36208"]
["00338","MINI OF FORAFF-JPN:UNCDF ONLY","MOFA","00338-MOFA",null,null,null,"36209"]
["00339","MIN OF PLAN, ECO & MANP :UNCDF","MINISTRYOF","00339-MINISTRYOF",null,null,null,"36210"]
["00340","MIN DES FINANCES-LUX:UNCDF","MOFA-LUX","00340-MOFA-LUX",null,null,null,"36211"]
["00341","MINISTRY OF FINANCE-MAL: UNCDF","MINISTRYOF","00341-MINISTRYOF",null,null,null,"36212"]
["00342","MIN OF FOR AFF& COOP-MOZ:UNCDF","MINISTRYOF","00342-MINISTRYOF",null,null,null,"36213"]
["00343","MIN NATL PLAN& ECO DEV.-MYA:","MINISTRYOF","00343-MINISTRYOF",null,null,null,"36400"]
["00344","MIN OF FOR AFF-NET:UNCDF","MINISTRYOF","00344-MINISTRYOF",null,null,null,"36401"]
["00345","MIN FOR AFF-NOR:UNCDF","MINISTRYOF","00345-MINISTRYOF",null,null,null,"36402"]
["00346","NORWEGIAN AG  DEV COOP:UNCDF","NORAD","00346-NORAD",null,null,null,"36403"]
["00347","MIN FOR AFF &TRADE-NZE:UNCDF","MINISTRYOF","00347-MINISTRYOF",null,null,null,"36404"]
["00348","BELGIAN SURVIVAL FUND","BFS","00348-BFS",null,null,null,"36600"]
["00349","MIN OF FOR AFF-KOR:UNCDF","MINISTRYOF","00349-MINISTRYOF",null,null,null,"36601"]
["00350","MIN  TRADE&ECO COOP-SAU:UNCDF","MOFTEC","00350-MOFTEC",null,null,null,"36602"]
["00351","MIN  AFF, TRADE&INTNLCOOP-BEL","BELGIANADM","00351-BELGIANADM",null,null,null,"36603"]
["00352","MIN OF FOR AFF-BHU:UNCDF","MOFAVIET","00352-MOFAVIET",null,null,null,"36620"]
["00353","CANADIAN INTL DEV AG:UNCDF","CIDA","00353-CIDA",null,null,null,"36700"]
["00354","MIN OF FINANCE-CHILE: UNCDF","MINISTRYOF","00354-MINISTRYOF",null,null,null,"36701"]
["00355","ADVENTIST DEV & REL AGY IN:","ADRA","00355-ADRA",null,null,null,"36702"]
["00356","UNDP NAMIBIA: UNCDF ONLY","UNDPNAM","00356-UNDPNAM",null,null,null,"36703"]
["00357","UNDP NEPAL: UNCDF ONLY","UNDPNEP","00357-UNDPNEP",null,null,null,"36704"]
["00358","UNDP NICARAGUA: UNCDF ONLY","UNDPNIC","00358-UNDPNIC",null,null,null,"36705"]
["00359","UNDP NIGER: UNCDF ONLY","UNDPNER","00359-UNDPNER",null,null,null,"36706"]
["00360","UNDP NIGERIA: UNCDF ONLY","UNDPNIR","00360-UNDPNIR",null,null,null,"36800"]
["00361","UNDP PANAMA: UNCDF ONLY","UNDPPANAMA","00361-UNDPPANAMA",null,null,null,"36801"]
["00362","UNDP PARAGUAY: UNCDF ONLY","UNDPPARAG","00362-UNDPPARAG",null,null,null,"37000"]
["00363","UNDP PERU: UNCDF ONLY","UNDPPERU","00363-UNDPPERU",null,null,null,"37001"]
["00364","UNDP RWANDA: UNCDF ONLY","UNDPRWANDA","00364-UNDPRWANDA",null,null,null,"37002"]
["00365","UNDP SAO TOME & PRINCIPE UNCDF","UNDPSAOTOM","00365-UNDPSAOTOM",null,null,null,"37004"]
["00366","UNDP SAUDI ARABIA: UNCDF ONLY","UNDPSAUDIA","00366-UNDPSAUDIA",null,null,null,"37005"]
["00367","UNDP SENEGAL: UNCDF ONLY","UNDPSENEGA","00367-UNDPSENEGA",null,null,null,"37006"]
["00368","UNDP SIERRA LEONE: UNCDF ONLY","UNDPSIERRA","00368-UNDPSIERRA",null,null,null,"37007"]
["00369","UNDP SOMALIA: UNCDF ONLY","UNDPSOMAL","00369-UNDPSOMAL",null,null,null,"37008"]
["00370","UNDP SOUTH AFRICA: UNCDF ONLY","UNDPSOUTHA","00370-UNDPSOUTHA",null,null,null,"37050"]
["00371","UNDP SRI LANKA: UNCDF ONLY","UNDPSRILAN","00371-UNDPSRILAN",null,null,null,"37100"]
["00372","UNDP SUDAN: UNCDF ONLY","UNDPSUDAN","00372-UNDPSUDAN",null,null,null,"37201"]
["00373","UNDP SWAZILAND: UNCDF ONLY","UNDPSWAZIL","00373-UNDPSWAZIL",null,null,null,"37202"]
["00374","UNDP SYRIA: UNCDF ONLY","UNDPSYRIA","00374-UNDPSYRIA",null,null,null,"37203"]
["00375","UNDP TANZANIA: UNCDF ONLY","UNDPTANZAN","00375-UNDPTANZAN",null,null,null,"37204"]
["00376","DEUTSCHE INV-UND ENTWICKLUN","DEG","00376-DEG",null,null,null,"37400"]
["00377","UNDP TOGO: UNCDF ONLY","UNDPTOGO","00377-UNDPTOGO",null,null,null,"37401"]
["00378","UNDP TRINIDAD & TOBAGO:UNCDF","UNDPTRINID","00378-UNDPTRINID",null,null,null,"37402"]
["00379","UNDP TUNESIA:UNCDF ONLY","UNDPTUNESI","00379-UNDPTUNESI",null,null,null,"37403"]
["00380","UNDP TURKEY: UNCDF ONLY","UNDPTURKEY","00380-UNDPTURKEY",null,null,null,"37501"]
["00381","UNDP TURKMENISTAN: UNCDF ONLY","UNDPTURKME","00381-UNDPTURKME",null,null,null,"37502"]
["00382","UNDP UGANDA: UNCDF ONLY","UNDPUGANDA","00382-UNDPUGANDA",null,null,null,"37600"]
["00383","UNDP UKRAINE: UNCDF ONLY","UNDPUKRAIN","00383-UNDPUKRAIN",null,null,null,"37601"]
["00384","UNDP UNITED ARAB EMIRATE UNCDF","UNDPUNITED","00384-UNDPUNITED",null,null,null,"37602"]
["00385","UNDP VENEZUELA:UNCDF ONLY","UNDPVENEZU","00385-UNDPVENEZU",null,null,null,"37603"]
["00386","UNDP VIETNAM: UNCDF ONLY","UNDPVIETNA","00386-UNDPVIETNA",null,null,null,"37604"]
["00387","UNDP YEMEN: UNCDF ONLY","UNDPYEMEN","00387-UNDPYEMEN",null,null,null,"37605"]
["00388","UNDP ZAMBIA: UNCDF ONLY","UNDPZAMBIA","00388-UNDPZAMBIA",null,null,null,"37606"]
["00389","UNDP ZIMBABWE: UNCDF ONLY","UNDPZIMBAB","00389-UNDPZIMBAB",null,null,null,"37607"]
["00390","UN CONF ON TRADE & DEVELOPMENT","UNCTAD","00390-UNCTAD",null,null,null,"37608"]
["00391","UNOPS ASIA OFFICE:UNCDF ONLY","UNOPSMAL","00391-UNOPSMAL",null,null,null,"37609"]
["00392","US AG FOR INTNL. DEVLP :UNCDF","USAID","00392-USAID",null,null,null,"37610"]
["00393","WORLD VISION","WORLDVISIO","00393-WORLDVISIO",null,null,null,"37611"]
["00394","UNDP AFGHANISTAN:","UNDPAFG","00394-UNDPAFG",null,null,null,"37612"]
["00396","ENIP: UNCDF ONLY","ENIP","00396-ENIP",null,null,null,"37614"]
["00400","UNDP DEM PEO REPOF KOREA:UNCDF","UNDPDRK","00400-UNDPDRK",null,null,null,"37615"]
["00401","UNDP EAST TIMOR:","UNDPTIM","00401-UNDPTIM",null,null,null,"37616"]
["00403","UNDP INDIA: UNCDF ONLY","UNDPIND","00403-UNDPIND",null,null,null,"37617"]
["00404","UNDP INDONESIA: UNCDF ONLY","UNDPINS","00404-UNDPINS",null,null,null,"37618"]
["00405","UNDP IRAN: UNCDF ONLY","UNDPIRA","00405-UNDPIRA",null,null,null,"37619"]
["00406","UNDP JAPAN: UNCDF ONLY","UNDPJPN","00406-UNDPJPN",null,null,null,"37620"]
["00407","EUROPEAID: UNCDF ONLY","EUROPEAID","00407-EUROPEAID",null,null,null,"37621"]
["00408","UNDP LAO: UNCDF ONLY","UNDPLAO","00408-UNDPLAO",null,null,null,"37800"]
["00409","UNDP MALAYSIA: UNCDF ONLY","UNDPMAL","00409-UNDPMAL",null,null,null,"38000"]
["00410","UNDP MALDIVES: UNCDF ONLY","UNDPMDV","00410-UNDPMDV",null,null,null,"38001"]
["00411","UNDP MONGOLIA: UNCDF ONLY","UNDPMON","00411-UNDPMON",null,null,null,"38002"]
["00412","UNDP NEPAL: UNCDF ONLY","UNDPNEP","00412-UNDPNEP",null,null,null,"38003"]
["00413","UNDP PAKISTAN: UNCDF ONLY","UNDPPAK","00413-UNDPPAK",null,null,null,"38004"]
["00414","UNDP PAPUA NEW GUINEA: UNCDF","UNDPPNG","00414-UNDPPNG",null,null,null,"38005"]
["00415","UNDP PHILIPPINES: UNCDF ONLY","UNDPPHI","00415-UNDPPHI",null,null,null,"38006"]
["00416","UNDP KOREA: UNCDF ONLY","UNDPROK","00416-UNDPROK",null,null,null,"38007"]
["00417","UNDP SAMOA: UNCDF ONLY","UNDPSAM","00417-UNDPSAM",null,null,null,"38200"]
["00418","UNDP SRI LANKA: UNCDF ONLY","UNDPSRL","00418-UNDPSRL",null,null,null,"38201"]
["00419","UNDP THAILAND: UNCDF ONLY","UNDPTHA","00419-UNDPTHA",null,null,null,"38202"]
["00420","UNDP VIET NAM: UNCDF ONLY","UNDPVIE","00420-UNDPVIE",null,null,null,"38203"]
["00424","UNDP REP OF BELARUS: UNCDF","UNDPBYE","00424-UNDPBYE",null,null,null,"38204"]
["00426","UNDP BOSNIA & HERZEGOV:UNCDF","UNDPBIH","00426-UNDPBIH",null,null,null,"38205"]
["00428","HIVOS: UNCDF ONLY","HIVOS","00428-HIVOS",null,null,null,"38206"]
["00430","UNDP CZECH REPUBLIC: UNCDF","UNDP CEH","00430-UNDP CEH",null,null,null,"38207"]
["00434","UNDP GERMANY: UNCDF ONLY","UNDPGER","00434-UNDPGER",null,null,null,"38208"]
["00435","UNDP HUNGARY: UNCDF ONLY","UNDPHUN","00435-UNDPHUN",null,null,null,"38209"]
["00436","UNDP KAZAKHSTAN: UNCDF ONLY","UNDPKAZ","00436-UNDPKAZ",null,null,null,"38210"]
["00437","UNDP KOZOVO: UNCDF ONLY","UNDPKOS","00437-UNDPKOS",null,null,null,"38211"]
["00439","UNDP LITHUANIA: UNCDF ONLY","UNDPLIT","00439-UNDPLIT",null,null,null,"38212"]
["00440","UNDP MACEDONIA: UNCDF ONLY","UNDPMCD","00440-UNDPMCD",null,null,null,"38213"]
["00441","UNDP MALTA: UNCDF ONLY","UNDPMAT","00441-UNDPMAT",null,null,null,"38214"]
["00442","UNDP MOLDOVA: UNCDF ONLY","UNDPMOL","00442-UNDPMOL",null,null,null,"38215"]
["00443","UNDP NORWAY: UNCDF ONLY","UNDPNOR","00443-UNDPNOR",null,null,null,"38216"]
["00444","UNDP POLAND: UNCDF ONLY","UNDPPOL","00444-UNDPPOL",null,null,null,"38217"]
["00445","UNDP ROMANIA: UNCDF ONLY","UNDPROM","00445-UNDPROM",null,null,null,"38220"]
["00446","UNDP RUSSIAN FEDERATION: UNCDF","UNDPRUS","00446-UNDPRUS",null,null,null,"38221"]
["00447","UNDP SLOVAKIA: UNCDF ONLY","UNDPSLO","00447-UNDPSLO",null,null,null,"38222"]
["00448","UNDP SLOVENIA: UNCDF ONLY","UNDPSVN","00448-UNDPSVN",null,null,null,"38400"]
["00449","UNDP SWITZERLAND: UNCDF ONLY","UNDPSWI","00449-UNDPSWI",null,null,null,"38401"]
["00450","UNDP TAJIKISTAN: UNCDF ONLY","UNDPTAJ","00450-UNDPTAJ",null,null,null,"38402"]
["00451","UNDP TURKMENISTAN: UNCDF ONLY","UNDPTUK","00451-UNDPTUK",null,null,null,"38403"]
["00452","UNDP UZBEKISTAN: UNCDF ONLY","UNDPUZB","00452-UNDPUZB",null,null,null,"38600"]
["00453","UNDP YUGOSLAVIA: UNCDF ONLY","UNDPYUG","00453-UNDPYUG",null,null,null,"38601"]
["00454","JAPAN BANK FOR INTL COOP:UNCDF","JBIC","00454-JBIC",null,null,null,"38602"]
["00455","JAPANESE INTNL COOP  AC.:UNCDF","JICA","00455-JICA",null,null,null,"38800"]
["00456","KONRAD ADNAUER FOUN:UNCDF","KONRAD","00456-KONRAD",null,null,null,"38801"]
["00457","KREDITANSTALT FUR WIED:UNCDF","KFW","00457-KFW",null,null,null,"39200"]
["00458","MERCY CORPS INTNL:UNCDF","MERCY","00458-MERCY",null,null,null,"39400"]
["00459","NORWEGIAN CHURCH AID:UNCDF","NORWEGIANC","00459-NORWEGIANC",null,null,null,"39401"]
["00460","NOVIB:UNCDF ONLY","NOVIB","00460-NOVIB",null,null,null,"39402"]
["00461","OIKOCREDIT FOUNDATION:UNCDF","OIKOCREDIT","00461-OIKOCREDIT",null,null,null,"39403"]
["00462","AG FOR PERS SER OVERSEAS:UNCDF","APSO","00462-APSO",null,null,null,"39600"]
["00463","PACT PUBLICATIONS:UNCDF ONLY","PACTPUB","00463-PACTPUB",null,null,null,"39601"]
["00464","STROMME FOUNDATION: UNCDF ONLY","STROMME","00464-STROMME",null,null,null,"39602"]
["00465","THE ASIA FOUNDATION:UNCDF ONLY","ASIAFOUND","00465-ASIAFOUND",null,null,null,"39603"]
["00466","THE WORLD BANK CGAP","WB CGAP","00466-WB CGAP",null,null,null,"39604"]
["00467","UNOPS :UNCDF ONLY","UNOPS","00467-UNOPS",null,null,null,"39605"]
["00468","UN PUBLICATIONS:UNCDF ONLY","UNPUBLIC","00468-UNPUBLIC",null,null,null,"39606"]
["00470","UNDP ANGOLA:","UNDPANG","00470-UNDPANG",null,null,null,"39607"]
["00471","AUSTRALIAN AG INTL DEV.:UNCDF","AUSAID","00471-AUSAID",null,null,null,"39608"]
["00482","AUSTRIAN AID","AUSTRIANAI","00482-AUSTRIANAI",null,null,null,"39800"]
["00489","UNDP COLOMBIA:UNCDF ONLY","UNDPCOL","00489-UNDPCOL",null,null,null,"39801"]
["00493","BANQUE OUEST AFRI DE DEV:UNCDF","BOAD","00493-BOAD",null,null,null,"39802"]
["00496","UNDP DEM REP OF CONGO:UNCDF","UNDPZAI","00496-UNDPZAI",null,null,null,"39803"]
["00502","UNDP EQUATORIAL GUINEA:UNCDF","UNDPEQUI","00502-UNDPEQUI",null,null,null,"39804"]
["00505","UNDP ETHIOPIA:","UNDPETH","00505-UNDPETH",null,null,null,"39805"]
["00506","UNDP GABON:UNCDF ONLY","UNDPGAB","00506-UNDPGAB",null,null,null,"39806"]
["00507","UNDP GAMBIA:UNCDF ONLY","UNDPGAM","00507-UNDPGAM",null,null,null,"39807"]
["00508","UNDP GHANA:UNCDF ONLY","UNDPGHA","00508-UNDPGHA",null,null,null,"39808"]
["00509","UNDP GUATEMALA:UNCDF ONLY","UNDPGUAT","00509-UNDPGUAT",null,null,null,"39809"]
["00510","UNDP GUINEA:UNCDF ONLY","UNDPGUINEA","00510-UNDPGUINEA",null,null,null,"39810"]
["00511","UNDP GUINEA-BISSAU:UNCDF ONLY","UNDPGUIN","00511-UNDPGUIN",null,null,null,"39811"]
["00512","UNDP GUYANA:UNCDF ONLY","UNDPDGUYA","00512-UNDPDGUYA",null,null,null,"39812"]
["00513","UNDP HAITI:UNCDF ONLY","UNDPHAI","00513-UNDPHAI",null,null,null,"39813"]
["00514","UNDP HONDURAS:UNCDF ONLY","UNDPHON","00514-UNDPHON",null,null,null,"39814"]
["00515","BUREAU FOR DEVLNT POLICY:UNCDF","BDP","00515-BDP",null,null,null,"39815"]
["00516","UNDP JAMAICA:UNCDF ONLY","UNDPJAIM","00516-UNDPJAIM",null,null,null,"39816"]
["00517","UNDP JERUSALEM PAPP:UNCDF ONLY","UNDPJERUSA","00517-UNDPJERUSA",null,null,null,"39817"]
["00518","UNDP JORDAN:UNCDF ONLY","UNDPJORDAN","00518-UNDPJORDAN",null,null,null,"39818"]
["00519","UNDP KENYA:UNCDF ONLY","UNDPKEN","00519-UNDPKEN",null,null,null,"39819"]
["00520","UNDP KUWAIT:UNCDF ONLY","UNDPKUWAIT","00520-UNDPKUWAIT",null,null,null,"39820"]
["00521","UNDP KYRGYZSTAN:UNCDF ONLY","UNDPKYR","00521-UNDPKYR",null,null,null,"39821"]
["00522","UNDP LAOS:UNCDF ONLY","UNDPLAOS","00522-UNDPLAOS",null,null,null,"39822"]
["00523","UNDP LEBANON:UNCDF ONLY","UNDPLEBANO","00523-UNDPLEBANO",null,null,null,"39823"]
["00524","UNDP LESOTHO:UNCDF ONLY","UNDPLESO","00524-UNDPLESO",null,null,null,"39824"]
["00525","UNDP LIBERIA:UNCDF ONLY","UNDPLIB","00525-UNDPLIB",null,null,null,"39825"]
["00526","UNDP LIBYA:UNCDF ONLY","UNDPLIBYA","00526-UNDPLIBYA",null,null,null,"39826"]
["00527","UNDP MADAGASCAR:UNCDF ONLY","UNDPMADAG","00527-UNDPMADAG",null,null,null,"39827"]
["00528","UNDP MALAWI:UNCDF ONLY","UNDPMALAW","00528-UNDPMALAW",null,null,null,"39828"]
["00529","UNDP MALI:UNCDF ONLY","UNDPMALI","00529-UNDPMALI",null,null,null,"39829"]
["00530","UNDP MAURITANIA:UNCDF ONLY","UNDPMAURI","00530-UNDPMAURI",null,null,null,"39830"]
["00531","UNDP MAURITIUS:UNCDF ONLY","UNDPMAR","00531-UNDPMAR",null,null,null,"39831"]
["00532","UNDP MEXICO:UNCDF ONLY","UNDPMEX","00532-UNDPMEX",null,null,null,"39832"]
["00533","UNDP MOROCCO:UNCDF ONLY","UNDPMOR","00533-UNDPMOR",null,null,null,"39833"]
["00534","UNDP MOZAMBIQUE:UNCDF ONLY","UNDPMOZ","00534-UNDPMOZ",null,null,null,"39834"]
["00535","UNDP MYANMAR:UNCDF ONLY","UNDPMYA","00535-UNDPMYA",null,null,null,"39835"]
["00536","DENMARK NATIONAL COMMITTEE","DENNC","00536-DENNC",null,null,null,"39836"]
["00537","FRANCE NATIONAL COMMITTEE","FRANC","00537-FRANC",null,null,null,"39837"]
["00538","GERMANY NATIONAL COMMITTEE","GERNC","00538-GERNC",null,null,null,"39838"]
["00539","NORWAY NATIONAL COMMITTEE","NORNC","00539-NORNC",null,null,null,"39839"]
["00540","SWEDEN NATIONAL COMMITTEE","SWENC","00540-SWENC",null,null,null,"39841"]
["00541","BELGIUM NATIONAL COMMITTEE","BELNC","00541-BELNC",null,null,null,"39842"]
["00542","ATSUHITO NAKATA MEMORIAL FOUND","ATSUHITO","00542-ATSUHITO",null,null,null,"39843"]
["00543","FORUM SYD","FORUMSYD","00543-FORUMSYD",null,null,null,"40000"]
["00544","INTERNATIONAL YOUTH FOUNDATION","IYF","00544-IYF",null,null,null,"40001"]
["00545","JAPAN OVERSEAS COOPERATION VOL","JOCV","00545-JOCV",null,null,null,"40002"]
["00546","MELLEMFOLKELIGT SAMVIRKE","MS","00546-MS",null,null,null,"40003"]
["00547","PEACE CORPS","PC","00547-PC",null,null,null,"40040"]
["00548","VOLUNTARY SERVICE OVERSEAS","VSO","00548-VSO",null,null,null,"40050"]
["00549","WORLD UNIVERSITY SERVICE CANAD","WUSC","00549-WUSC",null,null,null,"40100"]
["00550","CANADIAN INTERNATIONAL DEVELOP","CIDA","00550-CIDA",null,null,null,"40200"]
["00551","DEPARTMENT FOR INT'L DEVELOPME","DFID","00551-DFID",null,null,null,"40201"]
["00552","DIRECTION GINIRALE COOPIRATION","DGCD","00552-DGCD",null,null,null,"40202"]
["00553","TOYOTA FOUNDATION","TOYOTA","00553-TOYOTA",null,null,null,"40203"]
["00554","KOBE CITY","KOBE","00554-KOBE",null,null,null,"40204"]
["00555","SWEDISH INT'L DEVELOPMENT COOP","SIDA","00555-SIDA",null,null,null,"40205"]
["00556","SNV NETHERLANDS DEVELOPMENT OR","SNV","00556-SNV",null,null,null,"40206"]
["00557","BENETTON GROUP S P A","BENETTON","00557-BENETTON",null,null,null,"40207"]
["00558","CISCO CORPORATE PHILANTHROPY","CISCO","00558-CISCO",null,null,null,"40208"]
["00559","OFFICE OF THE HIGH COMMISSIONE","OHCHR","00559-OHCHR",null,null,null,"40209"]
["00560","INTERNATIONAL DEVELOPMENT AGEN","IDA","00560-IDA",null,null,null,"40211"]
["00561","INTERNATIONAL DEVELOPMENT LAW","IDLI","00561-IDLI",null,null,null,"40212"]
["00562","INTERNATIONAL VACCINE INSTITUT","IVI","00562-IVI",null,null,null,"40213"]
["00563","ASSOCIATION OF MEDICAL DOCTORS","AMDA","00563-AMDA",null,null,null,"40400"]
["00564","AUSTRALIAN VOLUNTEERS INTERNAT","AVI","00564-AVI",null,null,null,"40401"]
["00565","DEUTSCHER ENTWICKLUNGSDIENST","DED","00565-DED",null,null,null,"40402"]
["00566","ECU-INSTITUTO NACIONAL DEL NIÑ","INNFA","00566-INNFA",null,null,null,"40403"]
["00567","VEN-ASAMBLEA NACIONAL","A.N.","00567-A.N.",null,null,null,"40404"]
["00568","KAZ-ATYRAU BUSINESS CONTACT","ABC","00568-ABC",null,null,null,"40405"]
["00569","COL-ASOCIACION COLOMBIANA PARA","ACAC","00569-ACAC",null,null,null,"40406"]
["00570","ROM-ALBA COUNTY COUNCIL","ACC","00570-ACC",null,null,null,"40407"]
["00571","COL-ACCION COMUNAL","ACC COMUNA","00571-ACC COMUNA",null,null,null,"40408"]
["00572","COL-AGENCIA COLOMBIANA DE COOP","ACCI","00572-ACCI",null,null,null,"40409"]
["00573","CPR-ALL CHINA FERATION TRADE U","ACFTU","00573-ACFTU",null,null,null,"40499"]
["00574","COL-ASOCIACION COLOMBIANA DE P","ACOPI","00574-ACOPI",null,null,null,"40500"]
["00575","MEX-ASOCIACIÓN DE ACUACULTORES","ACUMEX","00575-ACUMEX",null,null,null,"40501"]
["00576","UAE-ABU DHABI  MUNICIPALITY","ADM","00576-ADM",null,null,null,"40502"]
["00577","POL-ASSOCIATION OF EDUCATORS &","AEP","00577-AEP",null,null,null,"40503"]
["00578","URU-ADMINISTRACIÓN DE FERROCAR","AFE","00578-AFE",null,null,null,"40504"]
["00579","RUS-GOVENMENT OF ADYGEYA","AG","00579-AG",null,null,null,"40505"]
["00580","CHI-AGENCIA DE COOPERACION INT","AGCI","00580-AGCI",null,null,null,"40506"]
["00581","GEO-ASSOCIATION OF GEORGIAN EX","AGE","00581-AGE",null,null,null,"40507"]
["00582","AGENCE INTERGOVERNEMENTALE -FR","AGENCE FRA","00582-AGENCE FRA",null,null,null,"40508"]
["00583","MON-AGFUND","AGFUND","00583-AGFUND",null,null,null,"40509"]
["00584","BOL-AGUAS DEL  ILLIMANI","AGUILL","00584-AGUILL",null,null,null,"40510"]
["00585","BUL-AGENCY FOR INTERNATIONAL","AIA","00585-AIA",null,null,null,"40511"]
["00586","PER-AGENCIA INTERNACIONAL DE D","AID","00586-AID",null,null,null,"40512"]
["00587","ROM-ALBA IULIA MUNICIPALITY","AIM","00587-AIM",null,null,null,"40513"]
["00588","CHI-AJUSTE CONTABLE PARA PROYE","AJUSTE","00588-AJUSTE",null,null,null,"40514"]
["00589","RUS-AKTEKH","AKTEKH","00589-AKTEKH",null,null,null,"40515"]
["00590","COL-ALCALDIA DE ARMENIA","ALC ARMENI","00590-ALC ARMENI",null,null,null,"40516"]
["00591","COL-ALCALDIA DE BUGA","ALC BUGA","00591-ALC BUGA",null,null,null,"40517"]
["00592","COL-ALCALDIA DE MANAURE","ALC MANAUR","00592-ALC MANAUR",null,null,null,"40518"]
["00593","COL-ALCALDIA DE PEREIRA","ALC PEREIR","00593-ALC PEREIR",null,null,null,"40519"]
["00594","COL-ALCALDIA DE RIOHACHA","ALC RIOHAC","00594-ALC RIOHAC",null,null,null,"40520"]
["00595","COL-ALCALDIA DE SANTA MARTA","ALC STA MA","00595-ALC STA MA",null,null,null,"40521"]
["00596","COL-ALCALDIA DE VALLEDUPAR","ALC. VDPAR","00596-ALC. VDPAR",null,null,null,"40522"]
["00597","COL-ALCALDIA LOCAL ANTONIO NAR","ALC.ANTNRÑ","00597-ALC.ANTNRÑ",null,null,null,"40523"]
["00598","COL-ALCALDIA DE BARRANCABERMEJ","ALC.BARRAN","00598-ALC.BARRAN",null,null,null,"40524"]
["00599","COL-ALCALDIA DE BUCARAMANGA","ALC.BMANGA","00599-ALC.BMANGA",null,null,null,"40525"]
["00600","COL-ALCALDIA MAYOR DE SANTAFE","ALC.BOGOTA","00600-ALC.BOGOTA",null,null,null,"40526"]
["00601","COL-ALOCALDIA LOCAL BOSA","ALC.BOSA","00601-ALC.BOSA",null,null,null,"40527"]
["00602","COL-ALCALDIA DE BARRANQUILLA","ALC.BQILLA","00602-ALC.BQILLA",null,null,null,"40700"]
["00603","COL-ALCALDIA SANTIAGO DE CALI","ALC.CALI","00603-ALC.CALI",null,null,null,"40701"]
["00604","COL-ALCALDIA  MAYOR DE CARTAGE","ALC.CGENA","00604-ALC.CGENA",null,null,null,"40703"]
["00605","COL-ALCALDIA LOCAL CIUDAD BOLI","ALC.CIUBOL","00605-ALC.CIUBOL",null,null,null,"40704"]
["00606","COL-ALCALDIA DE CUCUTA","ALC.CUCUTA","00606-ALC.CUCUTA",null,null,null,"40706"]
["00607","COL-ALCALDIA DE IBAGUE","ALC.IBAGUE","00607-ALC.IBAGUE",null,null,null,"40707"]
["00608","COL-ALCALDIA LOCAL KENNEDY","ALC.KENN","00608-ALC.KENN",null,null,null,"40708"]
["00609","COL-ALCALDIA DE MANIZALES","ALC.MANIZA","00609-ALC.MANIZA",null,null,null,"40709"]
["00610","COL-ALCALDIA METROPOLITANA DE","ALC.MEDELL","00610-ALC.MEDELL",null,null,null,"40710"]
["00611","COL-ALCALDIA DE PALMIRA","ALC.PALMIR","00611-ALC.PALMIR",null,null,null,"40711"]
["00612","COL-ALCALDIA DE PASTO","ALC.PASTO","00612-ALC.PASTO",null,null,null,"40712"]
["00613","COL-ALCALDIA DE QUIBDO","ALC.QUIBDO","00613-ALC.QUIBDO",null,null,null,"40713"]
["00614","COL-ALCALDIA DE RICAURTE","ALC.RICAUR","00614-ALC.RICAUR",null,null,null,"40714"]
["00615","COL-ALCALDIA LOCAL SAN CRISTOB","ALC.SNCRI","00615-ALC.SNCRI",null,null,null,"40715"]
["00616","COL-ALCALDIA LOCAL DE USME","ALC.USME","00616-ALC.USME",null,null,null,"40716"]
["00617","CHI-ASOCIACION DE MUNICIPALIDA","AMBIO","00617-AMBIO",null,null,null,"40717"]
["00618","GUY-AMAZON CARIBBEAN (GUYANA)","AMCAR","00618-AMCAR",null,null,null,"40718"]
["00619","SLO-ANALYT INVEST","ANALYT","00619-ANALYT",null,null,null,"40719"]
["00620","URU-ADMINISTRACION NACIONAL DE","ANEP","00620-ANEP",null,null,null,"40720"]
["00621","MEX-ACADEMIA NACIONAL DE INGEN","ANI, A.C.","00621-ANI, A.C.",null,null,null,"40900"]
["00622","URU-ADMINISTRACION NACIONAL DE","ANP","00622-ANP",null,null,null,"40901"]
["00623","PER-COMPAÑIA MINERA ANTAMINA","ANTAMINA","00623-ANTAMINA",null,null,null,"40902"]
["00624","URU-ADMINISTRACIÓN NACIONAL DE","ANTEL","00624-ANTEL",null,null,null,"40903"]
["00625","CHI-SERV. SALUD ANTOFAGASTA","ANTOFAGAS","00625-ANTOFAGAS",null,null,null,"40904"]
["00626","BOL-ASOCIACIÓN PERSONAL PNUD C","APCR","00626-APCR",null,null,null,"40905"]
["00627","PAR-PAR/91/888 PROGRAME COST-S","APORT.PNUD","00627-APORT.PNUD",null,null,null,"40906"]
["00628","FIJ-ASIA PACIFIC FORUM ON WOME","APWLD","00628-APWLD",null,null,null,"40907"]
["00629","ROM-MUNICIPALITY OF ARAD","ARAD","00629-ARAD",null,null,null,"40908"]
["00630","CHI-SERVICIO SALUD ARAUCANIA S","ARAUCA S","00630-ARAUCA S",null,null,null,"40909"]
["00631","CHI-SERV. SALUD ARAUCO","ARAUCO","00631-ARAUCO",null,null,null,"40910"]
["00632","CHI-SERVICI SALUD ARAUCANIA NO","ARAUCO N","00632-ARAUCO N",null,null,null,"40911"]
["00633","COL-AREA METROPOLITANA  DE MED","AREA METRO","00633-AREA METRO",null,null,null,"40912"]
["00634","CHI-SERVICIO SALUD ARICA","ARICA","00634-ARICA",null,null,null,"40913"]
["00635","POL-FUNDACJA ARKA IN LÓD\u009f","ARKA","00635-ARKA",null,null,null,"41200"]
["00636","RUS-ART","ART","00636-ART",null,null,null,"41400"]
["00637","TRI-GOVERNMENT OF ARUBA","ARU GOVT","00637-ARU GOVT",null,null,null,"41401"]
["00638","ECU-ASOCIACION DE SERVIDORES D","ASA","00638-ASA",null,null,null,"41402"]
["00639","POL-ASSOCIATION OF SOCIAL ASSI","ASA","00639-ASA",null,null,null,"41403"]
["00640","COS-ASAMBLEA LEGISLATIVA","ASAM LEGIS","00640-ASAM LEGIS",null,null,null,"41405"]
["00641","COL-ASOBANCARIA","ASOBANCARI","00641-ASOBANCARI",null,null,null,"41600"]
["00642","COL-ASOCIACION COLOMBIANA DE P","ASOCAÑA","00642-ASOCAÑA",null,null,null,"41601"]
["00643","UKR-ASSOCIATION OF MUNICIPAL S","ASSOC","00643-ASSOC",null,null,null,"41602"]
["00644","CHI-SERVICIO SALUD METROPOLITA","ATACAMA","00644-ATACAMA",null,null,null,"41603"]
["00645","KAZ-ATYRAU OBLAST ADMINISTRATI","ATYRAU","00645-ATYRAU",null,null,null,"42000"]
["00646","URU-ASOCIACION URUGUAYA DE AGE","AUAPI","00646-AUAPI",null,null,null,"42001"]
["00647","FEM-AUSTRALIA NATIONAL COMMITT","AUL NC","00647-AUL NC",null,null,null,"42002"]
["00648","FEM-AUSTRIAN NATIONAL COMMITTE","AUS-NC","00648-AUS-NC",null,null,null,"42006"]
["00649","PRC-AUTRES CS","AUTRES CS","00649-AUTRES CS",null,null,null,"42007"]
["00650","CHI-SERV. SALUD AYSEN","AYSEN","00650-AYSEN",null,null,null,"42008"]
["00651","MEX-AYUNTAMIENTO DE PUEBLA","AYTTO PUE","00651-AYTTO PUE",null,null,null,"42009"]
["00652","URU-BOLSA DE COMERCIO","B.COMERC.","00652-B.COMERC.",null,null,null,"42010"]
["00653","ARG-PROV.BS AS-MOYSP-DIR. DE A","BA DAIS","00653-BA DAIS",null,null,null,"42011"]
["00654","BAH-GOVERNMENT OF BAHRAIN/ CCF","BAH/CCF CS","00654-BAH/CCF CS",null,null,null,"42012"]
["00655","BAH-GOVERNMENT OF BAHRAIN, MIN","BAH/MOT","00655-BAH/MOT",null,null,null,"42013"]
["00656","BAH-GOVERNMENT OF BAHRAIN/ MIN","BAH/MOWH","00656-BAH/MOWH",null,null,null,"42014"]
["00657","BAH-GOVERNMENT OF BAHRAIN","BAHRAIN","00657-BAHRAIN",null,null,null,"42015"]
["00658","BYE-BELARUSSIAN ASSOCIATION OF","BAL","00658-BAL",null,null,null,"42016"]
["00659","KAZ-WEST KAZAKHSTAN CHILDREN F","BALDYRGAN","00659-BALDYRGAN",null,null,null,"42017"]
["00660","RUS-JSC BALASHIKHA EXPERIMENTA","BALSHIKHA","00660-BALSHIKHA",null,null,null,"42018"]
["00661","COL-BANCO AGRARIO","BANAGRAR","00661-BANAGRAR",null,null,null,"42019"]
["00662","COL-BANCO SUPERIOR","BANC SUP","00662-BANC SUP",null,null,null,"42020"]
["00663","COS-BANCO POPULAR Y DE DESARRO","BANCO POPU","00663-BANCO POPU",null,null,null,"42021"]
["00664","COS-BANCO COOPERATIVO","BANCOOP","00664-BANCOOP",null,null,null,"42022"]
["00665","PER-BANCO DE MATERIALES","BANMAT SAC","00665-BANMAT SAC",null,null,null,"42023"]
["00666","FEM-BARBADOS NGO","BARCLAYS","00666-BARCLAYS",null,null,null,"42024"]
["00667","VEN-GOBERNACION DEL ESTADO BAR","BARINAS","00667-BARINAS",null,null,null,"42025"]
["00668","POL-STEFAN BATORY FOUNDATION","BATORY","00668-BATORY",null,null,null,"42026"]
["00669","COL-BAVARIA S.A.","BAVARIA","00669-BAVARIA",null,null,null,"42027"]
["00670","BYE-BELBUSINESSPRESS","BBP","00670-BBP",null,null,null,"42028"]
["00671","RUS-BRITISH COUNCIL","BC","00671-BC",null,null,null,"42029"]
["00672","BOL-BANCO CENTRAL DE BOLIVIA","BCB","00672-BCB",null,null,null,"42030"]
["00673","ROM-BRASOV COUNTY COUNCIL","BCC","00673-BCC",null,null,null,"42031"]
["00674","URU-BANCO CENTRAL DEL URUGUAY","BCU","00674-BCU",null,null,null,"42032"]
["00675","TUK-BRITISH EMBASSY IN TURKMEN","BE","00675-BE",null,null,null,"42033"]
["00676","POL-ASSOCIATION BE WITH US","BE WITH US","00676-BE WITH US",null,null,null,"42034"]
["00677","BYE-BOBRUISK EXECUTIVE COMMITT","BEC","00677-BEC",null,null,null,"42035"]
["00678","BYE-BELVEB","BELVEB","00678-BELVEB",null,null,null,"42100"]
["00679","YUG-LOCAL MUNICIPALITIES - BG","BG MUNICIP","00679-BG MUNICIP",null,null,null,"42101"]
["00680","BYE-BELARUSSIAN STATE ECONOMIC","BGEU","00680-BGEU",null,null,null,"42200"]
["00681","URU-BANCO HIPOTECARIO DEL URUG","BHU","00681-BHU",null,null,null,"42201"]
["00682","ARG-BANCO INTERAMERICANO DE DE","BID","00682-BID",null,null,null,"42202"]
["00683","PER-BANCO INTERAMERICANO DE DE","BID","00683-BID",null,null,null,"42203"]
["00684","PAR-BID-CSJ","BID-CSJ","00684-BID-CSJ",null,null,null,"42204"]
["00685","PAR-BID-FGE","BID-FGE","00685-BID-FGE",null,null,null,"42205"]
["00686","HON-BANCO INTERAMERICANO DESAR","BID/GEF","00686-BID/GEF",null,null,null,"42206"]
["00687","PER-BILATERALES","BILATERA","00687-BILATERA",null,null,null,"42207"]
["00688","CHI-SERV. SALUD BIO BIO","BIO BIO","00688-BIO BIO",null,null,null,"42208"]
["00689","URU-PEDECIBA- AREA BIOLOGIA","BIOLOGIA","00689-BIOLOGIA",null,null,null,"42209"]
["00690","VEN-INSTITUTO DE BIOMEDICINA","BIOMEDIC","00690-BIOMEDIC",null,null,null,"42210"]
["00691","BYE-CONCERN BELBIOPHARM","BIOPHARM","00691-BIOPHARM",null,null,null,"42211"]
["00692","BYE-BIRDLIFE","BIRDLIFE","00692-BIRDLIFE",null,null,null,"42212"]
["00693","ARG-BANCO MUNDIAL","BIRF","00693-BIRF",null,null,null,"42214"]
["00694","ARG-BANCO MUNDIAL (PRÉSTAMO BI","BIRF 3836","00694-BIRF 3836",null,null,null,"42215"]
["00695","ARG-BANCO MUNDIAL - PRESTAMO P","BIRF 4164","00695-BIRF 4164",null,null,null,"42400"]
["00696","PER-BANCO MUNDIAL","BM","00696-BM",null,null,null,"42401"]
["00697","ROM-BRAILA MUNICIPALITY","BM","00697-BM",null,null,null,"42402"]
["00698","URU-BANCO DE PREVISON SOCIAL","BPS","00698-BPS",null,null,null,"42404"]
["00699","URU-BANCO DE LA REPUBLICA ORIE","BROU","00699-BROU",null,null,null,"42405"]
["00700","GHA-BUREAU FOR RESOURCES & STR","BRSP","00700-BRSP",null,null,null,"42406"]
["00701","BYE-BELARUSSIAN STATE ECONOMIC","BSEU","00701-BSEU",null,null,null,"42407"]
["00702","BYE-BELARUSSIAN SOROS FOUNDATI","BSF","00702-BSF",null,null,null,"42408"]
["00703","RUS-BSK","BSK","00703-BSK",null,null,null,"42409"]
["00704","BYE-BELARUSSIAN STATE UNIVERSI","BSU","00704-BSU",null,null,null,"42410"]
["00705","ROM-BUCHAREST MUNICIPALITY","BUCHAREST","00705-BUCHAREST",null,null,null,"42411"]
["00706","RUS-OAO TIMBER HOLDING COMPANY","BUYLESPROM","00706-BUYLESPROM",null,null,null,"42412"]
["00707","TUN-COUR DES COMPTES","C C","00707-C C",null,null,null,"42413"]
["00708","COL-CAMARA DE COMERCIO DE PERE","C.C. PEREI","00708-C.C. PEREI",null,null,null,"42414"]
["00709","PER-COSTO COMPARTIDO DE PROGRA","C.C. PROG.","00709-C.C. PROG.",null,null,null,"42415"]
["00710","COL-CAMARA DE COMERCIO DE BUCA","C.C.BUCAR","00710-C.C.BUCAR",null,null,null,"42416"]
["00711","COL-CAMARA DE COMERCIO DE MANI","C.C.MANIZA","00711-C.C.MANIZA",null,null,null,"42417"]
["00712","COL-CONTRALORIA GENERAL DE LA","C.G.R.","00712-C.G.R.",null,null,null,"42600"]
["00713","URU-COMISION NACIONAL PUENTE B","C.PUENTE","00713-C.PUENTE",null,null,null,"42601"]
["00714","CPR-THE GOVERNMENT OF CHINA","C/S-CPR","00714-C/S-CPR",null,null,null,"42602"]
["00715","CPR-THE GOVERNMENT OF DPRK","C/S-DRK","00715-C/S-DRK",null,null,null,"42603"]
["00716","CPR-THE GOVERNMENT OF MONGOLIA","C/S-MON","00716-C/S-MON",null,null,null,"42604"]
["00717","CPR-THE GOVERMENT OF KOREA","C/S-ROK","00717-C/S-ROK",null,null,null,"42800"]
["00718","CPR-THE GOVERNMENT OF RUSSIA","C/S-RUS","00718-C/S-RUS",null,null,null,"42801"]
["00719","BYE-COMPUTER ANALYTICAL CENTER","CAC","00719-CAC",null,null,null,"42802"]
["00720","BOL-CORPORACIÓN ANDINA DE FOME","CAF","00720-CAF",null,null,null,"42803"]
["00721","PER-COOPORACION ANDINA DE FOME","CAF","00721-CAF",null,null,null,"43000"]
["00722","RLA-CAF","CAF","00722-CAF",null,null,null,"43002"]
["00723","COL-CAMARA DE COMERCIO DE ARME","CAM.ARMENI","00723-CAM.ARMENI",null,null,null,"43003"]
["00724","COL-CAMARA DE COMERCIO DE MANI","CAM.MANIZ","00724-CAM.MANIZ",null,null,null,"43004"]
["00725","PER-CANADA","CANADA","00725-CANADA",null,null,null,"43005"]
["00726","MEX-CÁMARA NACIONAL DE LAS ART","CANAGRAF","00726-CANAGRAF",null,null,null,"43006"]
["00727","CHI-CANCILLERIA","CANCILLERA","00727-CANCILLERA",null,null,null,"43007"]
["00728","MEX-COMPAÑIA DE NITROGENO DE C","CANTARELL","00728-CANTARELL",null,null,null,"43008"]
["00729","COL-CORPORACION AUTONOMA REGIO","CAR","00729-CAR",null,null,null,"43009"]
["00730","IND-CARE TODAY FUND","CARE","00730-CARE",null,null,null,"43010"]
["00731","NIC-CARE INTERNACIONAL EN NICA","CARE","00731-CARE",null,null,null,"43011"]
["00732","URU-COMISIÓN ADM. R. DE LA PLA","CARP-CTMFM","00732-CARP-CTMFM",null,null,null,"43012"]
["00733","PAN-CENTRO DEL AGUA - TROPICO","CATHALAC","00733-CATHALAC",null,null,null,"43013"]
["00734","COS-CCAD/PROARCA II","CCAD/PROAR","00734-CCAD/PROAR",null,null,null,"43014"]
["00735","COL-CAMARA DE COMERCIO DE BOGO","CCB","00735-CCB",null,null,null,"43015"]
["00736","PER-CONGRESO CONSTITUYENTE DEM","CCD","00736-CCD",null,null,null,"43016"]
["00737","COL-CCF- COST SHARING - COLOMB","CCF - C.S","00737-CCF - C.S",null,null,null,"43017"]
["00738","KAZ-CCF COST SHARING","CCF CS","00738-CCF CS",null,null,null,"43018"]
["00739","PER-CCF COST SHARING ACCOUNT","CCF CS","00739-CCF CS",null,null,null,"43019"]
["00740","GEO-CONSTITUTIONAL COURT OF GE","CCG","00740-CCG",null,null,null,"43020"]
["00741","MEX-CERVECERÍA CUAUHTÉMOC MOCT","CCM","00741-CCM",null,null,null,"43021"]
["00742","ARM-CAUCASIAN CENTER FOR PROP.","CCPNTMCR","00742-CCPNTMCR",null,null,null,"43101"]
["00743","COS-CAJA COSTARRICENSE DEL SEG","CCSS","00743-CCSS",null,null,null,"43102"]
["00744","MOR-CENTRE POUR LE DÉVELOPPEME","CDER","00744-CDER",null,null,null,"43103"]
["00745","LEB-COUNCIL FOR DEVELOPMENT &","CDR","00745-CDR",null,null,null,"43104"]
["00746","RUS-CARGILL ENTERPRISES, INC.","CE","00746-CE",null,null,null,"43200"]
["00747","COL-FUNDACION SOCIAL CEA","CEA ONG","00747-CEA ONG",null,null,null,"43201"]
["00748","ECU-COMISION DE ESTUDIOS PARA","CEDEGE","00748-CEDEGE",null,null,null,"43202"]
["00749","ECU-COMITE ECUATORIANO PARA LA","CEDENMA","00749-CEDENMA",null,null,null,"43203"]
["00750","URU-CENTRO DE ESTUDIOS JUDICIA","CEJU","00750-CEJU",null,null,null,"43204"]
["00751","DRC-CELTEL","CELTEL","00751-CELTEL",null,null,null,"43205"]
["00752","POL-CENTRUM EDUKACJI MEDYCZNEJ","CEM","00752-CEM",null,null,null,"43206"]
["00753","MEX-CENTRO MEXICANO PARA LA FI","CEMEFI","00753-CEMEFI",null,null,null,"43207"]
["00754","STP-COMMISSION ELECTORALE NATI","CEN","00754-CEN",null,null,null,"43400"]
["00755","CHI-SERVICIO SALUD METROPOLITA","CENTRAL","00755-CENTRAL",null,null,null,"43410"]
["00756","URU-CONSEJO DE EDUCACION PRIMA","CEP","00756-CEP",null,null,null,"43411"]
["00757","UZB-CENTER FOR ECONOMIC RESEAR","CER","00757-CER",null,null,null,"43412"]
["00758","PER-CERTIFICACIONES PESQUERAS","CERPER","00758-CERPER",null,null,null,"43601"]
["00759","MEX-CENTRO TECNOLÓGICO DEL MUE","CETEDEM","00759-CETEDEM",null,null,null,"43800"]
["00760","COS-CONTRALORIA GENERAL DE LA","CGR","00760-CGR",null,null,null,"43801"]
["00761","HON-CONTRALORIA GENERAL DE LA","CGR","00761-CGR",null,null,null,"43802"]
["00762","NIC-CONTRALORIA GENERAL DE LA","CGR","00762-CGR",null,null,null,"43803"]
["00763","RAF-CHAD","CHAD","00763-CHAD",null,null,null,"44000"]
["00764","BYE-CHERNOBYL COMMITTEE OF BEL","CHERNOBYL","00764-CHERNOBYL",null,null,null,"44001"]
["00765","PRC-CHEVRON","CHEVRON","00765-CHEVRON",null,null,null,"44002"]
["00766","GUA-GOBIERNO DE CHILE","CHILE","00766-CHILE",null,null,null,"44003"]
["00767","COS-CHILE","CHILE","00767-CHILE",null,null,null,"44004"]
["00768","CPR-CHINA INTERNATIONAL CENTRE","CICETE","00768-CICETE",null,null,null,"44005"]
["00769","COL-COMISION INTERNACIONAL DE","CIJ","00769-CIJ",null,null,null,"44200"]
["00770","RAF-CIMMYT","CIMMYT","00770-CIMMYT",null,null,null,"44201"]
["00771","CHI-CENTRO INTERUNIVERSITARIO","CINDA","00771-CINDA",null,null,null,"44202"]
["00772","COS-CINDE","CINDE","00772-CINDE",null,null,null,"44401"]
["00773","MEX-CENTRO DE INVESTIGACIÓN Y","CINVESTAV","00773-CINVESTAV",null,null,null,"44402"]
["00774","RLA-CLAD","CLAD","00774-CLAD",null,null,null,"44403"]
["00775","ROM-CAMPINA MUNICIPALITY","CMP","00775-CMP",null,null,null,"44404"]
["00776","ECU-COMITE NACIONAL SOBRE CAMB","CNCC","00776-CNCC",null,null,null,"44500"]
["00777","URU-COMISION NACIONAL DEL CAMB","CNCG","00777-CNCG",null,null,null,"44601"]
["00778","CHI-COMISION NACIONAL DE ENERG","CNE","00778-CNE",null,null,null,"44602"]
["00779","PER-CAMARA NACIONAL FORESTAL","CNF","00779-CNF",null,null,null,"44700"]
["00780","LIR-COORDINATING PARTNER NGOS","CNGOS","00780-CNGOS",null,null,null,"44800"]
["00781","COL-COMISION NACIONAL DE REGAL","CNR","00781-CNR",null,null,null,"44801"]
["00782","BOL-CAJA NACIONAL DE SALUD","CNS","00782-CNS",null,null,null,"44802"]
["00783","VEN-CENTRO NACIONAL DE TECNOLO","CNTI","00783-CNTI",null,null,null,"44803"]
["00784","RLA-COCESNA","COCESNA","00784-COCESNA",null,null,null,"44804"]
["00785","MEX-CONSEJO ESTATAL DE CIENCIA","COECYT JAL","00785-COECYT JAL",null,null,null,"44805"]
["00786","ECU-CONSEJO CAFETALERO NACIONA","COFENAC","00786-COFENAC",null,null,null,"44806"]
["00787","PER-COFIDE","COFIDE","00787-COFIDE",null,null,null,"44807"]
["00788","HON-COMISION HONDUREÑA DE CIEN","COHCIT","00788-COHCIT",null,null,null,"44809"]
["00789","HON-CORPORACION HONDUREÑA DE D","COHDEFOR","00789-COHDEFOR",null,null,null,"44810"]
["00790","VEN-GOBERNACION DEL ESTADO COJ","COJEDES","00790-COJEDES",null,null,null,"44811"]
["00791","COL-APOYO A FUNBIMA PARA DLLO","COL01044","00791-COL01044",null,null,null,"44812"]
["00792","COL-FORMULACION DE ISTRUMENTOS","COL02019","00792-COL02019",null,null,null,"44813"]
["00793","RLA-COLOMBIA","COL94019","00793-COL94019",null,null,null,"44814"]
["00794","COL-PROYECTO RED DE DESARROLLO","COL97003","00794-COL97003",null,null,null,"44815"]
["00795","COL-INSTITUTO COLOMBIANO DE CU","COLCULTURA","00795-COLCULTURA",null,null,null,"44816"]
["00796","TUK-CABINET OF MINISTERS OF TU","COM","00796-COM",null,null,null,"44817"]
["00797","COL-COMFAMA","COMFAMA","00797-COMFAMA",null,null,null,"44818"]
["00798","BOL-CORPORACION MINERA DE BOLI","COMIBOL","00798-COMIBOL",null,null,null,"44901"]
["00799","URU-COMISION SECTORIAL DEL MER","COMISEC","00799-COMISEC",null,null,null,"44902"]
["00800","MOR-COMMUNE DE TANGER","COMM.TANGE","00800-COMM.TANGE",null,null,null,"45000"]
["00801","COL-CONTRALORIA  DE SANTAFE DE","CON-BOGOTA","00801-CON-BOGOTA",null,null,null,"45001"]
["00802","MEX-COMISIÓN NAL. PARA EL CONO","CONABIO","00802-CONABIO",null,null,null,"45002"]
["00803","CHI-CONSEJO NACIONAL PARA EL C","CONACE","00803-CONACE",null,null,null,"45003"]
["00804","CHI-CORPORACION NACIONAL DE DE","CONADI","00804-CONADI",null,null,null,"45004"]
["00805","CHI-CORPORACION NACIONAL FORES","CONAF","00805-CONAF",null,null,null,"45005"]
["00806","PER-CONSEJO NACIONAL DEL AMBIE","CONAM","00806-CONAM",null,null,null,"45006"]
["00807","COS-CONSEJO NACIONAL DE RECTOR","CONARE","00807-CONARE",null,null,null,"45007"]
["00808","COL-CONSEJO NAL DE REFORMA DEL","CONARE","00808-CONARE",null,null,null,"45008"]
["00809","DOM-CONAU","CONAU","00809-CONAU",null,null,null,"45009"]
["00810","CHI-SERV. SALUD CONCEPCION","CONCEPCION","00810-CONCEPCION",null,null,null,"45010"]
["00811","ECU-CONSORCIO DE CONSEJOS PROV","CONCOPE","00811-CONCOPE",null,null,null,"45011"]
["00812","PER-CONGRESO DE LA REPUBLICA D","CONGR-IP","00812-CONGR-IP",null,null,null,"45200"]
["00813","VEN-CONSEJO NACIONAL DE INVEST","CONICIT","00813-CONICIT",null,null,null,"45201"]
["00814","CHI-COMISION NACIONAL DE INVES","CONICYT","00814-CONICYT",null,null,null,"45202"]
["00815","PER-COMISION NACIONAL DE INVER","CONITE","00815-CONITE",null,null,null,"45400"]
["00816","FEM-CONNC","CONNC","00816-CONNC",null,null,null,"45401"]
["00817","ECU-CONSEJO DE PLANIFICACION D","CONPLADEIN","00817-CONPLADEIN",null,null,null,"45402"]
["00818","MEX-CONSULTORES","CONSULTOR","00818-CONSULTOR",null,null,null,"45403"]
["00819","COL-CONTADURIA GENERAL DE LA N","CONTA.G.N.","00819-CONTA.G.N.",null,null,null,"45602"]
["00820","KAZ-CONTACT (PVT) LTD","CONTACT","00820-CONTACT",null,null,null,"45605"]
["00821","POL-POLISH-JAPANESE COOPERATIO","COOP.FUND","00821-COOP.FUND",null,null,null,"45607"]
["00822","ECU-UNIDAD COORDINADORA DEL PR","COPEFEN","00822-COPEFEN",null,null,null,"45608"]
["00823","PER-COMITE DE PRIVATIZACION","COPRI","00823-COPRI",null,null,null,"45609"]
["00824","CHI-SERV.SALUD COQUIMBO","COQUIMBO","00824-COQUIMBO",null,null,null,"45610"]
["00825","PER-CORPORACION DE DESARROLLO","CORDELICA","00825-CORDELICA",null,null,null,"45611"]
["00826","VEN-OFICINA CENTRAL DE COORDIN","CORDIPLAN","00826-CORDIPLAN",null,null,null,"45612"]
["00827","PER-CORPAC","CORPAC","00827-CORPAC",null,null,null,"45613"]
["00828","COL-CORPORACION AUTONOMA REGIO","CORPOCHIVR","00828-CORPOCHIVR",null,null,null,"45614"]
["00829","VEN-CORPOINDUSTRIA","CORPOIND","00829-CORPOIND",null,null,null,"45615"]
["00830","COL-CORPORACION AUTONOMA REGIO","CORPONARIO","00830-CORPONARIO",null,null,null,"45616"]
["00831","COS-COS/91/888 PROG C/S","COS/91/888","00831-COS/91/888",null,null,null,"45617"]
["00832","COS-COS/93/888 PROG C/S","COS/93/888","00832-COS/93/888",null,null,null,"45618"]
["00833","NIC-COOPERACION SUIZA AL DESAR","COSUDE","00833-COSUDE",null,null,null,"45621"]
["00834","HON-COMISION PRESIDENCIAL DE M","CPME","00834-CPME",null,null,null,"45622"]
["00835","COL-COMISION DE REGULACION DE","CRA","00835-CRA",null,null,null,"45623"]
["00836","COL-COMISION DE REGULACION DE","CRT","00836-CRT",null,null,null,"45626"]
["00837","RUS-CENTER FOR SUSTAINABLE DEV","CSDT","00837-CSDT",null,null,null,"45627"]
["00838","PER-CONSEJO TRANSITORIO DE ADM","CTARPIURA","00838-CTARPIURA",null,null,null,"45628"]
["00839","ROM-CONSTANTA COUNTY COUNCIL","CTCC","00839-CTCC",null,null,null,"45629"]
["00840","POL-CITY HALL OF CZÊSTOCHOWA","CZESTOCHOW","00840-CZESTOCHOW",null,null,null,"45630"]
["00841","HON-DIRECCION EJECUTIVA DE ING","D.E.I.","00841-D.E.I.",null,null,null,"45631"]
["00842","URU-DIRECCION GENERAL DE COMER","D.G.C.E.","00842-D.G.C.E.",null,null,null,"45632"]
["00843","PHI-DEPT. OF AGRICULTURE-BUREA","DA-BFAR","00843-DA-BFAR",null,null,null,"45800"]
["00844","COL-DEPARTAMENTO ADMINSITRATIV","DABS","00844-DABS",null,null,null,"45801"]
["00845","COL-DEPARTAMENTO ADMINISTRATIV","DAGMA","00845-DAGMA",null,null,null,"45802"]
["00846","COL-DEPARTAMENTO TECNICO ADMIN","DAMA","00846-DAMA",null,null,null,"45803"]
["00847","COL-DEPARTAMENTO ADMINISTRATIV","DANE","00847-DANE",null,null,null,"46000"]
["00848","COL-DANSOCIAL","DANSOCIAL","00848-DANSOCIAL",null,null,null,"46001"]
["00849","COL-DEPARTAMENTO ADMINISTRATIV","DAPD","00849-DAPD",null,null,null,"46002"]
["00850","COL-DEPARTAMENTO ADMINISTRATIV","DAPRE","00850-DAPRE",null,null,null,"46003"]
["00851","GEO-DANISH CENTER FOR HUMAN RI","DCHR","00851-DCHR",null,null,null,"46004"]
["00852","IVC-SWISS AGENCY FOR DEVELOPME","DDC","00852-DDC",null,null,null,"46005"]
["00853","UAE-DUBAI DEVELOPMENT & INVEST","DDIA","00853-DDIA",null,null,null,"46006"]
["00854","ECU-DIRECCION DE ENERGIAS ALTE","DEA/MEM","00854-DEA/MEM",null,null,null,"46007"]
["00855","HON-DIRECCION EJECUTIVA DE CAT","DEC","00855-DEC",null,null,null,"46008"]
["00856","COS-DEFENSORIA DE LOS HABITANT","DEFENSORIA","00856-DEFENSORIA",null,null,null,"46009"]
["00857","PER-DEFENSORIA DEL PUEBLO","DEFENSORIA","00857-DEFENSORIA",null,null,null,"46200"]
["00858","HON-DIRECCION EJECUTIVA DE ING","DEI","00858-DEI",null,null,null,"46201"]
["00859","POL-DUTCH EMBASSY","DEMB","00859-DEMB",null,null,null,"46202"]
["00860","COL-DEFENSORIA DEL ESPACIO PUB","DEP","00860-DEP",null,null,null,"46203"]
["00861","COS-UNDP - DIRECT EXECUTION","DEX","00861-DEX",null,null,null,"46204"]
["00862","PER-MINISTERIO PARA EL DESARRO","DFID","00862-DFID",null,null,null,"46205"]
["00863","CHI-DIRECCION GENERAL DE AERON","DGAC","00863-DGAC",null,null,null,"46206"]
["00864","ECU-DIRECCION GENERAL DE AVIAC","DGAC","00864-DGAC",null,null,null,"46207"]
["00865","COL-DIRECCION GENERAL PARA LA","DGAPD","00865-DGAPD",null,null,null,"46208"]
["00866","HON-DIRECCION GENERAL DE ESTAD","DGEC","00866-DGEC",null,null,null,"46209"]
["00867","BOL-DIRECCIÓN GENERAL DE IMPUE","DGII","00867-DGII",null,null,null,"46210"]
["00868","MEX-DIRECCIÓN GENERAL DE PLANE","DGP","00868-DGP",null,null,null,"46400"]
["00869","DOM-DIRECCION GENERAL DE PROMO","DGPM","00869-DGPM",null,null,null,"46600"]
["00870","VEN-DIRECCION GENERAL SECTORIA","DGSCTI-COR","00870-DGSCTI-COR",null,null,null,"46601"]
["00871","COL-DIRECCION GENERAL DE ADUAN","DIAN","00871-DIAN",null,null,null,"46801"]
["00872","URU-DIRECCION NACIONAL DE AVIA","DINACIA","00872-DINACIA",null,null,null,"46802"]
["00873","URU-DIRECCIÓN NACIONAL DE MEDI","DINAMA","00873-DINAMA",null,null,null,"46803"]
["00874","PER-GOBIERNO DE DINAMARCA","DINAMARCA","00874-DINAMARCA",null,null,null,"46804"]
["00875","COL-DIRECCION NACIONAL DE EQUI","DINEM","00875-DINEM",null,null,null,"46805"]
["00876","UAE-DUBAI MUNICIPALITY","DM","00876-DM",null,null,null,"46806"]
["00877","COL-DEPARTAMENTO NACIONAL DE P","DNP","00877-DNP",null,null,null,"46807"]
["00878","URU-DIRECCION NACIONAL DE PROP","DNPI","00878-DNPI",null,null,null,"46808"]
["00879","POL-TOWARZYSTWO PRZYJACIÓ³ DOM","DOM CIEPLA","00879-DOM CIEPLA",null,null,null,"46809"]
["00880","PER-DONACION JAPONESA","DONJAP","00880-DONJAP",null,null,null,"46810"]
["00881","GAM-DEPARTMENT OF STATE FOR AG","DOSA","00881-DOSA",null,null,null,"47000"]
["00882","BYE-DUTCH ROTARY CLUB","DRC","00882-DRC",null,null,null,"47001"]
["00883","COL-FONDO DE COFINANCIACION PA","DRI","00883-DRI",null,null,null,"47002"]
["00884","PER-ARTICULO 1O. DECRETO LEGIL","DS36-94-EF","00884-DS36-94-EF",null,null,null,"47200"]
["00885","UAE-OFFICE OF THE PRESIDENT, D","DWRS","00885-DWRS",null,null,null,"47201"]
["00886","COL-EMPRESA DE ACUEDUCTO Y ALC","EAAB","00886-EAAB",null,null,null,"47202"]
["00887","BOT-ENTERPRISE BOTSWANA","EB","00887-EB",null,null,null,"47203"]
["00888","POL-EUROPEAN COUNCIL OF AIDS S","ECASO","00888-ECASO",null,null,null,"47204"]
["00889","ECONOMIC COMMISSION FOR EUROPE","ECE","00889-ECE",null,null,null,"47400"]
["00890","PAR-ECONOMIC COMMISSION FOR LA","ECLAC","00890-ECLAC",null,null,null,"47402"]
["00891","BOL-EMPRESA DE CORREOS DE BOLI","ECOBOL","00891-ECOBOL",null,null,null,"47403"]
["00892","ARG-MINISTERIO ECONOMÍA -DIREC","ECON/PESCA","00892-ECON/PESCA",null,null,null,"47404"]
["00893","COL-EMPRESA COLOMBIANADE PETRO","ECOPETROL","00893-ECOPETROL",null,null,null,"47405"]
["00894","UKR-ECOTECHNOLOGY, UKRAINE","ECOTECH","00894-ECOTECH",null,null,null,"47406"]
["00895","RUS-AUTONOMOUS NON-PROFIT ORGA","ECOYURCNTR","00895-ECOYURCNTR",null,null,null,"47407"]
["00896","FEM-ECUADOR GOVERNMENT","ECU GVT","00896-ECU GVT",null,null,null,"47408"]
["00897","PRC-EDUC FOR DVT & DEMOCR INIT","EDDI/CUSAA","00897-EDDI/CUSAA",null,null,null,"47409"]
["00898","COL-EMPRESA DE ENERGIA DE BOGO","EEEB","00898-EEEB",null,null,null,"47410"]
["00899","BYE-EUROPEAN HOUSE","EH","00899-EH",null,null,null,"47411"]
["00900","POL-ASSOCIATION ZDROWIE I EKO","EKO-","00900-EKO-",null,null,null,"47412"]
["00901","PER-ELECTROLIMA","ELECTRO","00901-ELECTRO",null,null,null,"47413"]
["00902","ARG-EMBAJADA DE BRASIL","EM.BRASIL","00902-EM.BRASIL",null,null,null,"47414"]
["00903","ECU-EMPRESA MUNICIPAL DE AGUA","EMAAP-Q","00903-EMAAP-Q",null,null,null,"47415"]
["00904","ECU-EMBAJADA DE GRAN BRETAÑA","EMB. G. BR","00904-EMB. G. BR",null,null,null,"47416"]
["00905","ECU-EMPRESA METROPOLITANA DE O","EMOP-Q  T","00905-EMOP-Q  T",null,null,null,"47417"]
["00906","ECU-EMPRESA METROPOLITANA DE O","EMOP-Q M","00906-EMOP-Q M",null,null,null,"47418"]
["00907","URU-EMPRESAS PUBLICAS","EMP.PUB-","00907-EMP.PUB-",null,null,null,"47600"]
["00908","UKR-EMPLOYMENT CENTRE OF THE M","EMPLOYMT","00908-EMPLOYMT",null,null,null,"47601"]
["00909","CHI-EMPRESA PORTUARIA DE CHILE","EMPORCHI","00909-EMPORCHI",null,null,null,"47800"]
["00910","HON-EMPRESA NACIONAL DE ENERGI","ENEE","00910-ENEE",null,null,null,"47801"]
["00911","BYE-STATE COMMITTEE ON ENERGY","ENERGY COM","00911-ENERGY COM",null,null,null,"48000"]
["00912","BOL-EMPRESA NACIONAL DE TELECO","ENTEL","00912-ENTEL",null,null,null,"48001"]
["00913","PER-ENTEL  PERU","ENTEL","00913-ENTEL",null,null,null,"48002"]
["00914","CHI-EMPRESA PORTUARIA  ARICA","EPA","00914-EPA",null,null,null,"48003"]
["00915","TOG-ETABLISSEMENT PUBLIC AUTON","EPAM","00915-EPAM",null,null,null,"48004"]
["00916","COL-ESCUELA SUPERIOR DE ADMINI","ESAP","00916-ESAP",null,null,null,"48005"]
["00917","INS-ECUMENICAL SCHOLARSHIP PRO","ESP","00917-ESP",null,null,null,"48006"]
["00918","PER-ESPAÑA","ESPANA","00918-ESPANA",null,null,null,"48200"]
["00919","PRC-CONGO EXPLORATION CONGO LT","ESSO","00919-ESSO",null,null,null,"48201"]
["00920","PRC-ETATS UNIES D'AMÉRIQUE","ETATS-UNIS","00920-ETATS-UNIS",null,null,null,"48202"]
["00921","COL-EMPRESA DE TELECOMUNICACIO","ETB","00921-ETB",null,null,null,"48203"]
["00922","CUB-ESCUELA TECNICA EMPRESARIO","ETEA","00922-ETEA",null,null,null,"48204"]
["00923","UKR-UK EVEREST INC","EVEREST","00923-EVEREST",null,null,null,"48300"]
["00924","COL-FUNDACION LUKER","F. LUKER","00924-F. LUKER",null,null,null,"48301"]
["00925","PER-FONDO BINACIONAL DE DESARR","F.BINAC","00925-F.BINAC",null,null,null,"48599"]
["00926","URU-FACULTAD DE CIENCIAS","F.CIENCIAS","00926-F.CIENCIAS",null,null,null,"48600"]
["00927","URU-FACULTAD DE QUIMICA","F.QUIMICA","00927-F.QUIMICA",null,null,null,"48601"]
["00928","GUA-FUNDACION 2020","F2020","00928-F2020",null,null,null,"48602"]
["00929","HAI-FAES","FAES","00929-FAES",null,null,null,"48603"]
["00930","CHI-FUNDACION ARTURO LOPEZ PER","FALP","00930-FALP",null,null,null,"48604"]
["00931","ROM-MUNICIPALITY OF FALTICENI","FAT","00931-FAT",null,null,null,"48605"]
["00932","COL-FONDO DE AHORRO Y VIVIENDA","FAVIDI","00932-FAVIDI",null,null,null,"48606"]
["00933","GUA-FIDEICOMISO PARA LA CONSER","FCG","00933-FCG",null,null,null,"48607"]
["00934","URU-FUNDACIÓN CÍRCULO DE MONTE","FCM","00934-FCM",null,null,null,"48608"]
["00935","BOL-FONDO DE DESARROLLO CAMPES","FDC","00935-FDC",null,null,null,"48609"]
["00936","UAE-FEDERAL ENVIRONMENTAL AGEN","FEA","00936-FEA",null,null,null,"48610"]
["00937","LIT-FOUNDATION FOR EDUCATIONAL","FEC","00937-FEC",null,null,null,"48611"]
["00938","UAE-FOOD & ENVIRONMENT CONTROL","FECC","00938-FECC",null,null,null,"48612"]
["00939","PER-FONDO ESPECIAL DE ADMINIST","FEDADOI","00939-FEDADOI",null,null,null,"48613"]
["00940","BUL-FRIEDRICH EBERT FOUNDATION","FEF","00940-FEF",null,null,null,"48614"]
["00941","PRC-FONDS POUR L'ENVIRONNEMENT","FEM","00941-FEM",null,null,null,"48615"]
["00942","ARG-FUNDACIÓN EXPORT.AR","FEXPORT.AR","00942-FEXPORT.AR",null,null,null,"48616"]
["00943","FEM-FORD FOUNDATION","FF","00943-FF",null,null,null,"48617"]
["00944","PER-FONDO GENERAL DE CONTRAVAL","FGCPJ","00944-FGCPJ",null,null,null,"48618"]
["00945","VEN-FUNDAYACUCHO","FGMA","00945-FGMA",null,null,null,"48619"]
["00946","HON-FONDO HONDUREÑO DE  INVERS","FHIS","00946-FHIS",null,null,null,"48820"]
["00947","ETH-FONDATION INTERNATIONALE C","FIC","00947-FIC",null,null,null,"49000"]
["00948","COS-FONDO INTEGRACION Y DESARR","FID","00948-FID",null,null,null,"49001"]
["00949","FEM-FINLAND NATIONAL COMMITTEE","FIN NC","00949-FIN NC",null,null,null,"49002"]
["00950","COS-FINACIO (ANTES BANCOOP)","FINACIO","00950-FINACIO",null,null,null,"49003"]
["00951","HON-MINISTERIO DE FINANZAS","FINANZAS","00951-FINANZAS",null,null,null,"49004"]
["00952","COL-FONDO DE INVERSION PARA LA","FIP","00952-FIP",null,null,null,"49005"]
["00953","MEX-FIDEICOMISOS INSTITUIDOS E","FIRA","00953-FIRA",null,null,null,"49006"]
["00954","URU-PEDECIBA- AREA FISICA","FISICA","00954-FISICA",null,null,null,"49007"]
["00955","COL-FONDO NACIONAL DEL AHORRO","FNA","00955-FNA",null,null,null,"49008"]
["00956","BOL-FONDO NACIONAL DE DESARROL","FNDR","00956-FNDR",null,null,null,"49009"]
["00957","CHI-FONDO NACIONAL DE DESARROL","FNDR","00957-FNDR",null,null,null,"49010"]
["00958","FEM-NETHERLANDS TRADE UNION CO","FNV","00958-FNV",null,null,null,"49011"]
["00959","ECU-FONDO DE CONTRAVALOR ECUAT","FOES","00959-FOES",null,null,null,"49012"]
["00960","COS-FONDO NACIONAL DE BECAS","FONABE","00960-FONABE",null,null,null,"49013"]
["00961","PER-FONDO NACIONAL DE FOMENTO","FONAFE","00961-FONAFE",null,null,null,"49014"]
["00962","BOL-FONDO NACIONAL DE MEDIO AM","FONAMA","00962-FONAMA",null,null,null,"49015"]
["00963","CHI-FONDO NACIONAL DE SALUD","FONASA","00963-FONASA",null,null,null,"49050"]
["00964","PER-FONDO DE COOPERACION Y DES","FONCODES","00964-FONCODES",null,null,null,"49200"]
["00965","PER-FONDO DE PROMOCION DEL DES","FONDEBOSQU","00965-FONDEBOSQU",null,null,null,"49201"]
["00966","HON-FONDO VIAL-SOPTRAVI","FONDO VIAL","00966-FONDO VIAL",null,null,null,"49202"]
["00967","MEX-FONDO PARA EL DESARROLLO D","FONDOIND","00967-FONDOIND",null,null,null,"49203"]
["00968","ECU-FONDO INDIGENA DEL BID","FONDOINDIG","00968-FONDOINDIG",null,null,null,"49204"]
["00969","RLA-FONPLATA","FONPLATA","00969-FONPLATA",null,null,null,"49205"]
["00970","COL-FONDO DE SEGURIDAD Y CONVI","FONSECON","00970-FONSECON",null,null,null,"49300"]
["00971","VEN-FONDO NACIONAL DE TRANSPOR","FONTUR","00971-FONTUR",null,null,null,"49301"]
["00972","VEN-FONDO DE INVERSION SOCIAL","FONVIS","00972-FONVIS",null,null,null,"49400"]
["00973","BOL-FONDO NACIONAL DE VIVIENDA","FONVIS LIQ","00973-FONVIS LIQ",null,null,null,"49401"]
["00974","PER-FONDO DE PRIVATIZACION","FOPRI","00974-FOPRI",null,null,null,"49402"]
["00975","PER-FOPRI - 2% DE LAS VENTAS","FOPRI-2%","00975-FOPRI-2%",null,null,null,"49403"]
["00976","PER-FOPRI-APORTE DE LAS EMPRES","FOPRI-EMP","00976-FOPRI-EMP",null,null,null,"49404"]
["00977","PER-FOPRI-OTROS INGRESOS","FOPRI-OTRO","00977-FOPRI-OTRO",null,null,null,"49405"]
["00978","MEX-FIDEICOMISO DEL FONDO DE L","FORCO","00978-FORCO",null,null,null,"49406"]
["00979","VIE-FORD FOUNDATION","FORD","00979-FORD",null,null,null,"49600"]
["00980","EGY-FORD FOUNDATION","FORD FOUND","00980-FORD FOUND",null,null,null,"49601"]
["00981","COL-FONDO PARA LA RECONST. Y D","FOREC","00981-FOREC",null,null,null,"49602"]
["00982","BYE-FORUM SYD/ NGO-CENTER","FORUM SYD","00982-FORUM SYD",null,null,null,"49603"]
["00983","BYE-FOUNDATION OPEN SOCIETY IN","FOSI","00983-FOSI",null,null,null,"49604"]
["00984","MCD-FOUNDATION OPEN SOCIETY IN","FOSI-M","00984-FOSI-M",null,null,null,"49605"]
["00985","CHI-APOYO A LA GESTION DEL FON","FOSIS","00985-FOSIS",null,null,null,"49606"]
["00986","HON-FONDO SOCIAL DE LA VIVIEND","FOSOVI","00986-FOSOVI",null,null,null,"49607"]
["00987","YUG-FUND FOR AN OPEN SOCIETY Y","FOSYU","00987-FOSYU",null,null,null,"49608"]
["00988","RUS-FEDERAL FUND FOR THE SUPPO","FPSB","00988-FPSB",null,null,null,"49609"]
["00989","HON-FUNDACION VIDA","FUN-VIDA","00989-FUN-VIDA",null,null,null,"49610"]
["00990","COL-FUNDACION LUKER","FUN. LUKER","00990-FUN. LUKER",null,null,null,"49611"]
["00991","VEN-FUNDACION BANCO DE LA MUJE","FUNBANMU","00991-FUNBANMU",null,null,null,"49612"]
["00992","COL-FUNDACION AMANECER","FUND.AMAN.","00992-FUND.AMAN.",null,null,null,"49613"]
["00993","CUB-FUNDACION BARCELONA","FUND.BAR.","00993-FUND.BAR.",null,null,null,"49614"]
["00994","COL-FUNDACION CARVAJAL","FUND.CARVA","00994-FUND.CARVA",null,null,null,"49615"]
["00995","PER-FUNDACION FORD","FUND.FORD","00995-FUND.FORD",null,null,null,"49616"]
["00996","PER-FUNDACION SUECA PARA DEREC","FUND.SUECA","00996-FUND.SUECA",null,null,null,"49617"]
["00997","VEN-FUNDACION PARA EL DESARROL","FUNDACOMUN","00997-FUNDACOMUN",null,null,null,"49618"]
["00998","COS-FUNDACION PRO PATRIMONIO D","FUNDAPATRI","00998-FUNDAPATRI",null,null,null,"49619"]
["00999","COL-FUNDACION PARA EL DESARROL","FUNDECOR","00999-FUNDECOR",null,null,null,"49620"]
["01000","GUA-FUNDEMI","FUNDEMI","01000-FUNDEMI",null,null,null,"49621"]
["01001","MEX-FUNDACIÓN MEXICANA PARA LA","FUNTEC","01001-FUNTEC",null,null,null,"49622"]
["01002","HON-GABINETE ESPECIAL DE RECON","GABINETE","01002-GABINETE",null,null,null,"49623"]
["01003","URU-GRUPO ASESOR SOBRE REFORMA","GARE","01003-GARE",null,null,null,"49624"]
["01004","RUS-GAZPROMMEDSTRAKH","GAZPROMED","01004-GAZPROMED",null,null,null,"49625"]
["01005","BZE-GOVERNMENT OF BELIZE","GBZE","01005-GBZE",null,null,null,"49626"]
["01006","JAM-GOVERNMENT OF THE CAYMAN I","GCI","01006-GCI",null,null,null,"49627"]
["01007","ARG-FONDO MUNDIAL PARA EL MEDI","GEF","01007-GEF",null,null,null,"49628"]
["01008","ECU-GLOBAL ENVIRONMENT FACILIT","GEF/GRANT","01008-GEF/GRANT",null,null,null,"49629"]
["01009","ECU-GLOBAL ENVIRONMENT FACILIT","GEF/PPA","01009-GEF/PPA",null,null,null,"49630"]
["01010","CUB-GLOBAL FUND TO FIGHT AIDS,","GFATM 4215","01010-GFATM 4215",null,null,null,"49631"]
["01011","GHA-GHANA GOVERNMENT","GHANA","01011-GHANA",null,null,null,"49632"]
["01012","UZB-COMMITTEE OF STATE PROPERT","GKI","01012-GKI",null,null,null,"49633"]
["01013","ARG-GOBIERNO","GOB","01013-GOB",null,null,null,"49634"]
["01014","CHI-GOB","GOB","01014-GOB",null,null,null,"49635"]
["01015","CHI-GOBIERNO DE ARGENTINA","GOB ARG","01015-GOB ARG",null,null,null,"49636"]
["01016","CHI-GOBIERNO  DE COSTA RICA","GOB C.RICA","01016-GOB C.RICA",null,null,null,"49637"]
["01017","CHI-GOBIERNO DE CHILE","GOB CHILE","01017-GOB CHILE",null,null,null,"50000"]
["01018","COL-GOBIERNO DE COLOMBIA","GOB COL","01018-GOB COL",null,null,null,"50050"]
["01019","VEN-GOBERNACION DEL ESTADO ZUL","GOB-ZULIA","01019-GOB-ZULIA",null,null,null,"50051"]
["01020","COL-GOBERNACION DEL CESAR","GOB. CESAR","01020-GOB. CESAR",null,null,null,"50100"]
["01021","URU-GOBIERNO URUGUAY - FAS (UR","GOB.-FAS","01021-GOB.-FAS",null,null,null,"50101"]
["01022","COL-GOBERNACION DE ANTIOQUIA","GOB.ANTIOQ","01022-GOB.ANTIOQ",null,null,null,"50102"]
["01023","COL-GOBERNACION DE BOLIVAR","GOB.BOLIV","01023-GOB.BOLIV",null,null,null,"50200"]
["01024","MEX-GOBIERNO / CADELEC","GOB.CADELE","01024-GOB.CADELE",null,null,null,"50201"]
["01025","COL-GOBERNACION DE CORDOBA","GOB.CORD","01025-GOB.CORD",null,null,null,"50203"]
["01026","COL-GOBERNACION DE CUNDIAMARCA","GOB.CUND.","01026-GOB.CUND.",null,null,null,"50204"]
["01027","COL-GOBERNACION DE LA GUAJIRA","GOB.GUAJ","01027-GOB.GUAJ",null,null,null,"50205"]
["01028","ECU-GOBIERNO DE ITALIA","GOB.ITAL.","01028-GOB.ITAL.",null,null,null,"50300"]
["01029","COL-GOBRENACION DEL META","GOB.META","01029-GOB.META",null,null,null,"50301"]
["01030","URU-GOBIERNO URUGUAY - PRSS (U","GOB.PRSS","01030-GOB.PRSS",null,null,null,"50302"]
["01031","COL-GOBERNACION DEL RISARALDA","GOB.RISAR","01031-GOB.RISAR",null,null,null,"50400"]
["01032","COL-GOBERNACION DE SANTANDER","GOB.SANT","01032-GOB.SANT",null,null,null,"50401"]
["01033","COL-GOBERNACION DEL TOLIMA","GOB.TOLIMA","01033-GOB.TOLIMA",null,null,null,"50402"]
["01034","URU-GOBIERNO DEL URUGUAY","GOB.URU.","01034-GOB.URU.",null,null,null,"50403"]
["01035","COL-GOBERNACION DEL VALLE DEL","GOB.VALLE","01035-GOB.VALLE",null,null,null,"50404"]
["01036","MEX-GOBIERNO/CEDEP","GOB/CEDEP","01036-GOB/CEDEP",null,null,null,"50405"]
["01037","COL-GOBERNACIÓN DEL ATLÁNTICO","GOBATLANT","01037-GOBATLANT",null,null,null,"50600"]
["01038","MEX-GOBIERNO DEL ESTADO DE CAM","GOBCAMP.","01038-GOBCAMP.",null,null,null,"50601"]
["01039","COL-GOBERNACION DEPTO CALDAS","GOBE.CALDS","01039-GOBE.CALDS",null,null,null,"50602"]
["01040","PAR-GOBIERNO DEL PARAGUAY","GOBIERNO","01040-GOBIERNO",null,null,null,"50603"]
["01041","VEN-GOBIERNO DE VENEZUELA","GOBIERNO","01041-GOBIERNO",null,null,null,"50800"]
["01042","MEX-GOBIERNO DE MEXICO","GOBMEX","01042-GOBMEX",null,null,null,"50801"]
["01043","MEX-GOB DE NUEVA ZELANDA","GOBNZELAN","01043-GOBNZELAN",null,null,null,"50802"]
["01044","MEX-GOBIERNO DEL ESTADO DE TAB","GOBTAB","01044-GOBTAB",null,null,null,"51000"]
["01045","UNV-ROYAL GOVT. OF CAMBODIA","GOCMB","01045-GOCMB",null,null,null,"51001"]
["01046","ELS-GOBIERNO DE EL SALVADOR","GOES","01046-GOES",null,null,null,"51002"]
["01047","HON-GOBIERNO DE HONDURAS","GOH","01047-GOH",null,null,null,"51003"]
["01048","JAM-GOVERNMENT OF JAMAICA","GOJ","01048-GOJ",null,null,null,"51004"]
["01049","PAK-GOVERNMENT OF PUNJJAB","GOPB","01049-GOPB",null,null,null,"51005"]
["01050","EGY-GENERAL ORGANIZATTION FOR","GOPP","01050-GOPP",null,null,null,"51006"]
["01051","SIL-GOVERNMENT OF SIERRA LEONE","GOSL","01051-GOSL",null,null,null,"51007"]
["01052","IVC-MINISTERE DE L'ENVIRONNEME","GOUVERNEMT","01052-GOUVERNEMT",null,null,null,"51008"]
["01053","BRA-MIN DO DESENVOL  VIMENTO S","MDS","01053-MDS",null,null,null,"51200"]
["01054","CUB-GOVERNMENT OF CUBA","GOV-CUBA","01054-GOV-CUBA",null,null,null,"51201"]
["01055","GUY-GOVERNMENT OF GUYANA","GOVERNMENT","01055-GOVERNMENT",null,null,null,"51220"]
["01056","BAR-GOVERNMENT OF ST. LUCIA","GOVSTL","01056-GOVSTL",null,null,null,"51400"]
["01057","BAR-GOVERNMENT OF ST. LUCIA","GOVSTL.","01057-GOVSTL.",null,null,null,"51401"]
["01058","ALB-GOVT AS EXECUTING & IMPLEM","GOVT","01058-GOVT",null,null,null,"51600"]
["01059","ARM-GOVERNMENT","GOVT","01059-GOVT",null,null,null,"51701"]
["01060","AZE-GOVERNMENT","GOVT","01060-GOVT",null,null,null,"51900"]
["01061","BUL-GOVT AS EXECUTING & IMPLEM","GOVT","01061-GOVT",null,null,null,"51901"]
["01062","BYE-GOVERNMENT","GOVT","01062-GOVT",null,null,null,"51902"]
["01063","DOM-GOBIERNO REPUBLICA DOMINIC","GOVT","01063-GOVT",null,null,null,"51903"]
["01064","GEO-GOVERNMENT","GOVT","01064-GOVT",null,null,null,"52100"]
["01065","GUY-GOVERNMENT OF GUYANA","GOVT","01065-GOVT",null,null,null,"52101"]
["01066","LAT-GOVERNMENT","GOVT","01066-GOVT",null,null,null,"52300"]
["01067","MAG-NATIONAL EXECUTION","GOVT","01067-GOVT",null,null,null,"52500"]
["01068","MOL-GOVERNMENT","GOVT","01068-GOVT",null,null,null,"52501"]
["01069","NIR-GOVERNMENT OF NIGERIA","GOVT","01069-GOVT",null,null,null,"52502"]
["01070","PAN-GOVT","GOVT","01070-GOVT",null,null,null,"52503"]
["01071","PER-GOVERNMENT","GOVT","01071-GOVT",null,null,null,"52504"]
["01072","POL-GOVERNMENT","GOVT","01072-GOVT",null,null,null,"52505"]
["01073","ROM-GOVERNMENT","GOVT","01073-GOVT",null,null,null,"52506"]
["01074","TAJ-GOVERNMENT OF TAJIKISTAN","GOVT","01074-GOVT",null,null,null,"52507"]
["01075","TUK-GOVERNMENT","GOVT","01075-GOVT",null,null,null,"52508"]
["01076","UKR-GOVERNMENT","GOVT","01076-GOVT",null,null,null,"52509"]
["01077","UZB-GOVERNMENT","GOVT","01077-GOVT",null,null,null,"52510"]
["01078","DRC-REPUBLIQUE DEMOCRATIQUE DU","GOVT","01078-GOVT",null,null,null,"52511"]
["01079","BAR-MINISTRY OF PLANNING","GOVTANL","01079-GOVTANL",null,null,null,"52512"]
["01080","BAR-GOVERNMENT OF ANTIGUA","GOVTANT","01080-GOVTANT",null,null,null,"52513"]
["01081","BAR-GOVERNMENT OF BARBADOS","GOVTBAR","01081-GOVTBAR",null,null,null,"52514"]
["01082","BAR-GOVERNMENT OF  THE BAHAMAS","GOVTBHA","01082-GOVTBHA",null,null,null,"52515"]
["01083","BAR-GOVT OF THE BRITISH VIRGIN","GOVTBVI","01083-GOVTBVI",null,null,null,"52516"]
["01084","BAR-GOVERNMENT OF BELIZE","GOVTBZE","01084-GOVTBZE",null,null,null,"52517"]
["01085","BAR-GOVT OF CAYMAN ISLANDS","GOVTCAY","01085-GOVTCAY",null,null,null,"52518"]
["01086","BAR-GOVERNMENT OF DOMINICA","GOVTDMI","01086-GOVTDMI",null,null,null,"52600"]
["01087","BAR-DOMINICAN REPUBLIC","GOVTDOM","01087-GOVTDOM",null,null,null,"53000"]
["01088","BAR-GOVERNMENT OF GRENADA","GOVTGRN","01088-GOVTGRN",null,null,null,"53030"]
["01089","BAR-GOVERNMENT OF GUYANA","GOVTGUY","01089-GOVTGUY",null,null,null,"53050"]
["01090","BAR-GOVERNMENT OF HAITI","GOVTHAI","01090-GOVTHAI",null,null,null,"53060"]
["01091","BAR-GOVERNMENT OF JAMAICA","GOVTJAM","01091-GOVTJAM",null,null,null,"53070"]
["01092","BAR-GOVERNMENT OF MONSERRAT","GOVTMOT","01092-GOVTMOT",null,null,null,"53080"]
["01093","BAR-GOVERNMENT OF ST. KITTS/NE","GOVTSTK","01093-GOVTSTK",null,null,null,"53090"]
["01094","BAR-GOVT OF ST VINCENT & THE G","GOVTSTV","01094-GOVTSTV",null,null,null,"53110"]
["01095","GOVERNMENT OF SURINAME","GOVTSUR","01095-GOVTSUR",null,null,null,"53120"]
["01096","BAR-GOVT OF TURKS AND CAICOS","GOVTTCI","01096-GOVTTCI",null,null,null,"53140"]
["01097","THA-GOVERNMENT OF THAILAND","GOVTTHA","01097-GOVTTHA",null,null,null,"53150"]
["01098","GOVERNMENT OF TRINIDAD & TOBAG","GOVTTRI","01098-GOVTTRI",null,null,null,"53170"]
["01099","ZIM-GOVERNMENT OF ZIMBABWE","GOZ","01099-GOZ",null,null,null,"53172"]
["01100","CUB-GRUPO DE INVESTIGACION E I","GRET","01100-GRET",null,null,null,"53173"]
["01101","COS-GRUPO INSTITUTO COSTARRICE","GRUPO ICE","01101-GRUPO ICE",null,null,null,"53180"]
["01102","JAM-GOVERNMENT OF TURKS & CAIC","GTCI","01102-GTCI",null,null,null,"53190"]
["01103","PER-COOPERACION ALEMANA AL DES","GTZ","01103-GTZ",null,null,null,"53200"]
["01104","CPR-GUANGXI ZHUANG AUTONOMOUS","GUANGXI","01104-GUANGXI",null,null,null,"53210"]
["01105","BOL-EMPRESA GUARACACHI S.A.","GUARACACHI","01105-GUARACACHI",null,null,null,"53215"]
["01106","VEN-GOBERNACION EDO. GUARICO","GUARICO","01106-GUARICO",null,null,null,"54010"]
["01107","HAI-GOVERNMENT OF HAITI","GVT","01107-GVT",null,null,null,"54020"]
["01108","COS-MINISTERIO DE HACIENDA","HACIENDA","01108-HACIENDA",null,null,null,"54030"]
["01109","BOL-HONORABLE ALCALDÍA MUNICIP","HAMCBB","01109-HAMCBB",null,null,null,"54040"]
["01110","BOL-HONORABLE ALCALDÍA MUNICIP","HAMEA","01110-HAMEA",null,null,null,"54050"]
["01111","BOL-HONORABLE ALCALDÍA MUNICIP","HAMLPZ","01111-HAMLPZ",null,null,null,"54060"]
["01112","MOZ-HIDROELECTRICA DE CAHORA B","HCB","01112-HCB",null,null,null,"54063"]
["01113","CHD-HAUT COMMISSARIAT  AUX DRO","HCDH","01113-HCDH",null,null,null,"54070"]
["01114","JAM-HEART","HEART","01114-HEART",null,null,null,"54080"]
["01115","VEN-C.A.HIDROLÓGICA VENEZOLANA","HIDROVEN","01115-HIDROVEN",null,null,null,"54090"]
["01116","PER-HOLANDA","HOLANDA","01116-HOLANDA",null,null,null,"54100"]
["01117","HON-EMPRESA HONDUREÑA DE TELEC","HONDUTEL","01117-HONDUTEL",null,null,null,"54105"]
["01118","CPR-HONGXIANG GROUP-LAIZHOU FR","HONGXIANG","01118-HONGXIANG",null,null,null,"55000"]
["01119","ROM-HOPE","HOPE","01119-HOPE",null,null,null,"55010"]
["01120","LEB-HIGH RELIEF COMMITTEE","HRC","01120-HRC",null,null,null,"55012"]
["01121","COS-I VICEPRESIDENCIA DE LA RE","I VICEPRES","01121-I VICEPRES",null,null,null,"55015"]
["01122","URU-INTENDENCIA MUNICIPAL DE M","I.M.MALD","01122-I.M.MALD",null,null,null,"55020"]
["01123","VEN-INSTITUTO AUTONOMO BIBLIOT","IABN","01123-IABN",null,null,null,"55021"]
["01124","MEX-WORLD BANK","IBRD","01124-IBRD",null,null,null,"55022"]
["01125","COL-INSTITUTO COLOMBIANO DE BI","ICBF","01125-ICBF",null,null,null,"55025"]
["01126","COS-INSTITUTO COSTARRICENSE DE","ICE","01126-ICE",null,null,null,"55030"]
["01127","SEN-INDUSTRIES CHIMIQUES DU SE","ICS","01127-ICS",null,null,null,"55040"]
["01128","LEB-INVESTMENT DEVELOPMENT AUT","IDAL","01128-IDAL",null,null,null,"55041"]
["01129","GUY-INTER-AMERICAN DEVELOPMENT","IDB","01129-IDB",null,null,null,"55042"]
["01130","MEX-INTERAMERICAN DEVELOPMENT","IDB","01130-IDB",null,null,null,"55043"]
["01131","MEX-INTERNATIONAL INSTITUTE FO","IDEA","01131-IDEA",null,null,null,"55044"]
["01132","COL-INSTITUTO DE HIDROLOGIA ,","IDEAM","01132-IDEAM",null,null,null,"55045"]
["01133","COL-INSTITUTO DISTRITAL DE REC","IDRD","01133-IDRD",null,null,null,"55060"]
["01134","EGY-INFORMATION DECISION SUPPO","IDSC","01134-IDSC",null,null,null,"56000"]
["01135","COL-INSTITUTO DE DESARROLLO UR","IDU","01135-IDU",null,null,null,"56010"]
["01136","PHI-INDUSTRIAL ECOLOGY - ASIA","IE ASIA","01136-IE ASIA",null,null,null,"56020"]
["01137","PER-INSTITUTO DE ESTUDIOS PERU","IEP","01137-IEP",null,null,null,"57000"]
["01138","PER-INSTITUTO ESTUDIOS PERUANO","IEP 2","01138-IEP 2",null,null,null,"57010"]
["01139","ECU-INSTITUTO ECUATORIANO DE S","IESS","01139-IESS",null,null,null,"57020"]
["01140","ARG-FONDO INTERNACIONAL PARA E","IFAD","01140-IFAD",null,null,null,"57030"]
["01141","KAZ-INTERNATIONAL FUND FOR ARA","IFAS","01141-IFAS",null,null,null,"58000"]
["01142","MEX-INSTITUTO FEDERAL ELECTORA","IFE","01142-IFE",null,null,null,"58010"]
["01143","RUS-GOVERNMENT OF THE REPUBLIC","IG","01143-IG",null,null,null,"58012"]
["01144","COL-INSTITUTO GEOGRAFICO AGUST","IGAC","01144-IGAC",null,null,null,"58014"]
["01145","DOM-IGLESIA CATÓLICA","IGLESIA","01145-IGLESIA",null,null,null,"58015"]
["01146","GUY-INC. GENERATED FR. THE PRJ","IGP","01146-IGP",null,null,null,"58100"]
["01147","JOR-INCOME GENERATED FR. PRJT","IGP","01147-IGP",null,null,null,"59000"]
["01148","MLW-SDNP INTERNET SER. PRJCT I","IGP","01148-IGP",null,null,null,"59010"]
["01149","HON-INSTITUTO HONDUREÑO DE ANT","IHAH","01149-IHAH",null,null,null,"59020"]
["01150","HON-INSTITUTO HONDUREÑOS DE SE","IHSS","01150-IHSS",null,null,null,"60000"]
["01151","HON-INSTITUTO HONDUREÑO DE TUR","IHT","01151-IHT",null,null,null,"60010"]
["01152","PER-INSTITUTO DE INVESTIGACION","IIAP","01152-IIAP",null,null,null,"60020"]
["01153","COL-INSTITUTO INTERAMERICANO D","IICA","01153-IICA",null,null,null,"60022"]
["01154","COS-INSTITUTO MIXTO DE AYUDA S","IMAS","01154-IMAS",null,null,null,"60030"]
["01155","URU-INTENDENCIA MUNICIPAL DE M","IMM","01155-IMM",null,null,null,"60033"]
["01156","RUS-INNOVATIONS, METHODIC, TEC","IMT","01156-IMT",null,null,null,"60040"]
["01157","MEX-INSTITUTO MEXICANO DE TECN","IMTA","01157-IMTA",null,null,null,"60050"]
["01158","PER-INSTIT. NACIONAL DE BIENES","INABIF RO","01158-INABIF RO",null,null,null,"60060"]
["01159","URU-INSTITUTO NACIONAL DEL MEN","INAME","01159-INAME",null,null,null,"60070"]
["01160","URU-INSTITUTO NACIONAL DE PESC","INAPE","01160-INAPE",null,null,null,"60080"]
["01161","VEN-INAVI","INAVI","01161-INAVI",null,null,null,"60090"]
["01162","NIC-INSTITUTO NICARAGUENSE DE","INC","01162-INC",null,null,null,"60100"]
["01163","COL-INSTITUTO COLOMBIANO DE LA","INCORA","01163-INCORA",null,null,null,"60200"]
["01164","CHI-INSTITUTO DE DESARROLLO AG","INDAP","01164-INDAP",null,null,null,"60201"]
["01165","PER-INSTITUTO NACIONAL DE DEFE","INDECI","01165-INDECI",null,null,null,"60202"]
["01166","PER-INDECOPI","INDECOPI","01166-INDECOPI",null,null,null,"60203"]
["01167","MEX-INSTITUTO NAL. DE DIAGNÓST","INDRE","01167-INDRE",null,null,null,"60250"]
["01168","HON-INSTITUTO NACIONAL DE ESTA","INE","01168-INE",null,null,null,"61000"]
["01169","URU-INSTITUTO NACIONAL DE ESTA","INE","01169-INE",null,null,null,"61010"]
["01170","VEN-INSTITUTO NACIONAL DE ESTA","INE","01170-INE",null,null,null,"61020"]
["01171","ECU-INSTITUTO ECUATORIANO DE E","INECEL","01171-INECEL",null,null,null,"61022"]
["01172","ECU-INST.NACIONAL DE AREAS NAT","INEFAN","01172-INEFAN",null,null,null,"61030"]
["01173","PER-INSTITUTO NACIONAL DE ESTA","INEI","01173-INEI",null,null,null,"61040"]
["01174","COL-INSTITUTO DE FINANCIAMIENT","INFICALDAS","01174-INFICALDAS",null,null,null,"61050"]
["01175","COL-INFI MANIZALES","INFIMAN","01175-INFIMAN",null,null,null,"61060"]
["01176","COL-INST.DE FINANCIAMIENTO, PR","INFIMANIZA","01176-INFIMANIZA",null,null,null,"61068"]
["01177","COS-INSTITUTO DE FOMENTO COOPE","INFOCOOP","01177-INFOCOOP",null,null,null,"61070"]
["01178","URU-AREA INFORMÁTICA","INFORMAT.","01178-INFORMAT.",null,null,null,"61080"]
["01179","RUS-INFOTEL","INFOTEL","01179-INFOTEL",null,null,null,"61100"]
["01180","TUN-INSTITUT NAT. DE RECHERCHE","INGREF","01180-INGREF",null,null,null,"62000"]
["01181","COS-INGRESOS FERIA AMBIENTAL","INGRESOS F","01181-INGRESOS F",null,null,null,"62002"]
["01182","MEX-INSTITUTO NACIONAL INDIGEN","INI","01182-INI",null,null,null,"62003"]
["01183","URU-INSTITUTO NACIONAL DE INVE","INIA","01183-INIA",null,null,null,"62009"]
["01184","MDV-BUONA VISTA YOUTH GROUP'S","INITIATE","01184-INITIATE",null,null,null,"62010"]
["01185","CHI-INSTITUTO NACIONAL DE LA J","INJ","01185-INJ",null,null,null,"62020"]
["01186","MEX-INMODA","INMODA","01186-INMODA",null,null,null,"62030"]
["01187","MEX-INSTITUTO NACIONAL DE LAS","INMUJER","01187-INMUJER",null,null,null,"62040"]
["01188","MEX-INSTITUTO NACIONAL DE LA N","INNSZ","01188-INNSZ",null,null,null,"62041"]
["01189","RUS-INOKAR","INOKAR","01189-INOKAR",null,null,null,"62050"]
["01190","KAZ-INSTITUTE OF NUCLEAR PHYSI","INP","01190-INP",null,null,null,"62051"]
["01191","PER-INSTITUTO NACIONAL PENITEN","INPE","01191-INPE",null,null,null,"62052"]
["01192","COL-INST.NACIONAL PENITENCIARI","INPEC","01192-INPEC",null,null,null,"62053"]
["01193","PER-INSTITUTO NACIONAL DE RECU","INRENA","01193-INRENA",null,null,null,"62054"]
["01194","BYE-INTERNATIONAL NETWORK FOR","INSE","01194-INSE",null,null,null,"62060"]
["01195","MEX-INSTITUTO NACIONAL DE SOLI","INSOL","01195-INSOL",null,null,null,"62061"]
["01196","COL-INSTITUTO DE CULTURA Y TUR","INST.CULTU","01196-INST.CULTU",null,null,null,"62070"]
["01197","COL-INSTITUTO ALEXANDER VON HU","INSTHUMBOL","01197-INSTHUMBOL",null,null,null,"62071"]
["01198","PER-INSTITUTO DE DEFENSA CIVIL","INTDEFCIV","01198-INTDEFCIV",null,null,null,"62072"]
["01199","CHI-INTENDENCIA DE LA VIII REG","INTEN.VIII","01199-INTEN.VIII",null,null,null,"62080"]
["01200","CHI-INTENDENCIA DE LA X REGION","INTEND. X","01200-INTEND. X",null,null,null,"62081"]
["01201","CHI-INTENDENCIA I REGION","INTEND.I","01201-INTEND.I",null,null,null,"62090"]
["01202","CHI-INTENDENCIA DE LA II REGIO","INTEND.II","01202-INTEND.II",null,null,null,"62091"]
["01203","CHI-INTENDENCIA DE LA III REGI","INTEND.III","01203-INTEND.III",null,null,null,"62100"]
["01204","CHI-INTENDENCIA DE LA IV REGIO","INTEND.IV","01204-INTEND.IV",null,null,null,"62101"]
["01205","CHI-INTENDENCIA DE LA IX REGIO","INTEND.IX","01205-INTEND.IX",null,null,null,"62110"]
["01206","CHI-INTENDENCIA DE LA REGION M","INTEND.RM","01206-INTEND.RM",null,null,null,"62111"]
["01207","CHI-INTENDENCIA DE LA V REGION","INTEND.V","01207-INTEND.V",null,null,null,"62120"]
["01208","CHI-INTENDENCIA DE LA VI REGIO","INTEND.VI","01208-INTEND.VI",null,null,null,"62121"]
["01209","CHI-INTENDENCIA DE LA VII REGI","INTEND.VII","01209-INTEND.VII",null,null,null,"62130"]
["01210","CHI-INTENDENCIA DE LA XI REGIO","INTEND.XI","01210-INTEND.XI",null,null,null,"62131"]
["01211","CHI-INTENDENCIA DE LA XII REGI","INTEND.XII","01211-INTEND.XII",null,null,null,"62140"]
["01212","LAO-INTEREST FROM DONOR'S CONT","INTEREST","01212-INTEREST",null,null,null,"62141"]
["01213","COL-INSTITUTO NAL DE VIVIENDA","INURBE","01213-INURBE",null,null,null,"62150"]
["01214","COL-INSTITUTO NACIONAL DE VOIA","INVIAS","01214-INVIAS",null,null,null,"62160"]
["01215","PAK-INTERNATIONAL ORGANIZATION","IOM","01215-IOM",null,null,null,"62161"]
["01216","PRC-INTERNATIONAL ORGANIZATION","IOM","01216-IOM",null,null,null,"62170"]
["01217","KAZ-INSTITUTE OF NUTRITION","ION","01217-ION",null,null,null,"62171"]
["01218","PRC-INTERNATIONAL PARTNERSHIP","IPHD","01218-IPHD",null,null,null,"62180"]
["01219","CHI-SERV.SALUD IQUIQUE","IQUIQUE","01219-IQUIQUE",null,null,null,"63000"]
["01220","FEM-IRISH NATIONAL COMMITTEE F","IRE NC","01220-IRE NC",null,null,null,"63002"]
["01221","IRA-ISLAMIC REPUB. OF IRAN CUS","IRICA","01221-IRICA",null,null,null,"63003"]
["01222","PER-INST. NAC. RADIO TELEVISIÓ","IRTP DON","01222-IRTP DON",null,null,null,"63010"]
["01223","PER-INST. NAC. RADIO TEL. PERÚ","IRTP RDR","01223-IRTP RDR",null,null,null,"63020"]
["01224","PER-INST. NAC. RADIO TELEVISIÓ","IRTP RO","01224-IRTP RO",null,null,null,"63030"]
["01225","RUS-INSTITUTE OF NATURE PROTEC","ISC IIA","01225-ISC IIA",null,null,null,"63040"]
["01226","GUA-FUNDACION ISEP","ISEP","01226-ISEP",null,null,null,"63041"]
["01227","BUL-ISPRA","ISPRA","01227-ISPRA",null,null,null,"63042"]
["01228","USO-GOVERNMENT OF ISRAEL","ISRAEL","01228-ISRAEL",null,null,null,"63050"]
["01229","COL-INSTITUTO DE SEGUROS SOCIA","ISS","01229-ISS",null,null,null,"63060"]
["01230","PER-ITALIA","ITALIA","01230-ITALIA",null,null,null,"63070"]
["01231","TUN-INSTITUT TUNISIEN DES ETUD","ITES","01231-ITES",null,null,null,"63080"]
["01232","ALB-SLOVENIAN ITF FOR MINE ACT","ITF","01232-ITF",null,null,null,"63090"]
["01233","UKR-IVANOFRANKIVSK MUNICIPALIT","IVANO-FRAN","01233-IVANO-FRAN",null,null,null,"63100"]
["01234","VEN-INSTITUO VENEZOLANO DE SEG","IVSS","01234-IVSS",null,null,null,"63110"]
["01235","PER-JAPON","JAPON","01235-JAPON",null,null,null,"63120"]
["01236","PER-JURADO NACIONAL DE ELECCIO","JNE","01236-JNE",null,null,null,"63121"]
["01237","POL-ASSOCIATION JUPITER","JOWISZ","01237-JOWISZ",null,null,null,"63130"]
["01238","COS-MINISTERIO DE JUSTICIA","JUSTICIA","01238-JUSTICIA",null,null,null,"63140"]
["01239","JOR-KING ABDULLAH II FUND","KAF","01239-KAF",null,null,null,"63150"]
["01240","BYE-KALEGIUM - SWEDISH NGO","KALEGIUM","01240-KALEGIUM",null,null,null,"63160"]
["01241","KAZ-ISPAT/KARMET","KARMET","01241-KARMET",null,null,null,"63170"]
["01242","KAZ-GOVERNMENT OF KAZAKHSTAN","KAZ GOVT","01242-KAZ GOVT",null,null,null,"64000"]
["01243","ROK-KOREA ENVIRONMENTAL PROMOT","KEPF","01243-KEPF",null,null,null,"64010"]
["01244","RUS-KOSTROMA FUND ENERGY SAVI","KFES","01244-KFES",null,null,null,"64012"]
["01245","KOS-KOSOVO FOUND. FOR OPEN SOC","KFOS","01245-KFOS",null,null,null,"64013"]
["01246","UKR-KIEV INTERNL UNIV. OF CIVI","KIUCA","01246-KIUCA",null,null,null,"64015"]
["01247","RUS-KOMI REPUBLIC GOVERNMENT","KOMI","01247-KOMI",null,null,null,"64019"]
["01248","GUA-FUNDACION KUKULKAN","KUKU","01248-KUKU",null,null,null,"64020"]
["01249","RUS-HOLY TRINITY ST. SERGIUS L","LAVR","01249-LAVR",null,null,null,"64023"]
["01250","CUB-LECCO DECENTRALIZED COOP.","LECCO","01250-LECCO",null,null,null,"64030"]
["01251","POL-THE LEVI'S COMPANY","LEVI'S","01251-LEVI'S",null,null,null,"64040"]
["01252","POL-LITHUANIAN GOVERNMENT","LIT-GOV","01252-LIT-GOV",null,null,null,"64050"]
["01253","LIT-GOVERNMENT OF LITHUANIA","LITHUANIA","01253-LITHUANIA",null,null,null,"64060"]
["01254","CHI-SERV. SALUD LLANCHIPAL","LLANCHIPAL","01254-LLANCHIPAL",null,null,null,"64070"]
["01255","POL-LOCAL GOVERNMENT","LOC.GOV","01255-LOC.GOV",null,null,null,"64080"]
["01256","ROM-OTHER LOCAL AUTHORITIES","LOCA","01256-LOCA",null,null,null,"64081"]
["01257","UKR-LOCAL GOVERNMENTAL STRUCTU","LOCAL GOVT","01257-LOCAL GOVT",null,null,null,"65010"]
["01258","BUL-LOVETCH MUNICIPALITY","LOV MUN","01258-LOV MUN",null,null,null,"65020"]
["01259","BYE-LANDSRADET FOR SVERIGES UN","LSU","01259-LSU",null,null,null,"65030"]
["01260","POL-LUBELSKIE TOWARZYSTWO SPO³","LTS","01260-LTS",null,null,null,"65040"]
["01261","LEB-LEBANESE UNIVERSITY","LU","01261-LU",null,null,null,"65050"]
["01262","RUS-LUKOIL","LUKOIL","01262-LUKOIL",null,null,null,"65060"]
["01263","NIC-LUTHERAN WORLD RELIEF","LUTH W R","01263-LUTH W R",null,null,null,"65080"]
["01264","PRC-FONDATION MARIE BOUANGA","M. BOUANGA","01264-M. BOUANGA",null,null,null,"65081"]
["01265","MINISTERIO DEFENSA","MINDEFENSA","01265-MINDEFENSA",null,null,null,"65090"]
["01266","BUL-MINISTRY OF AGRICULTURE &","MAF","01266-MAF",null,null,null,"65100"]
["01267","FEM-MAC AUTHUR FOUNDATION","MAF","01267-MAF",null,null,null,"65110"]
["01268","COS-MINISTERIO DE AGRICULTURA","MAG","01268-MAG",null,null,null,"65120"]
["01269","CHI-SERV.SALUD MAGALLANES","MAGALLANES","01269-MAGALLANES",null,null,null,"65130"]
["01270","VEN-MINIST.  DEL AMBIENTE Y DE","MARN","01270-MARN",null,null,null,"65140"]
["01271","URU-PEDECIBA-AREA  MATEMATICAS","MATEMATICA","01271-MATEMATICA",null,null,null,"65150"]
["01272","CHI-SERV. SALUD MAULE","MAULE","01272-MAULE",null,null,null,"65170"]
["01273","UAE-MOHAMMED BIN RASHID EST. F","MBREYBL","01273-MBREYBL",null,null,null,"65190"]
["01274","ECU-MINISTERIO DE BIENESTAR SO","MBS","01274-MBS",null,null,null,"65200"]
["01275","TRI-MINISTRY OF COMM. DEVELOPM","MCDGA","01275-MCDGA",null,null,null,"65210"]
["01276","KAZ-MERCY CORPS INTERNATIONAL","MCI","01276-MCI",null,null,null,"65220"]
["01277","EGY-MINISTRY OF COMMUNICATION","MCIT","01277-MCIT",null,null,null,"65230"]
["01278","ROM-MINISTRY OF CULTURE & RELI","MCRA","01278-MCRA",null,null,null,"65300"]
["01279","VEN-MINISTERIO DE CIENCIA Y TE","MCT","01279-MCT",null,null,null,"65320"]
["01280","BOL-MINISTERIO DE DESARROLLO E","MDE","01280-MDE",null,null,null,"65330"]
["01281","BOL-MINISTERIO DE DEFENSA NACI","MDN","01281-MDN",null,null,null,"65360"]
["01282","ARG-MINISTERIO DESARROLLO SOCI","MDS/SAYDS","01282-MDS/SAYDS",null,null,null,"65365"]
["01283","ARG-MDSYMA-SUBSECRETARÍA DE OR","MDS/SSOAMB","01283-MDS/SSOAMB",null,null,null,"65410"]
["01284","BOL-MINISTERIO DE DESARROLLO S","MDSP","01284-MDSP",null,null,null,"65420"]
["01285","BYE-MINISTRY OF ECONOMY","MEC","01285-MEC",null,null,null,"65430"]
["01286","ECU-MINISTERIO DE EDUCACION Y","MEC","01286-MEC",null,null,null,"65440"]
["01287","URU-MINISTERIO DE EDUCACION Y","MEC","01287-MEC",null,null,null,"65490"]
["01288","BOL-MINISTERIO DE EDUCACIÓN, C","MECD","01288-MECD",null,null,null,"65492"]
["01289","PER-MINISTERIO DE EDUCACION","MED","01289-MED",null,null,null,"65493"]
["01290","ROM-MEDIAS MUNICIPALITY","MED","01290-MED",null,null,null,"65494"]
["01291","COL-MEDICINA LEGAL","MED.LEGAL","01291-MED.LEGAL",null,null,null,"65495"]
["01292","PER-MINISTERIO DE ECONOMIA Y F","MEF","01292-MEF",null,null,null,"65500"]
["01293","URU-MINISTERIO DE ECONOMIA Y F","MEF","01293-MEF",null,null,null,"65501"]
["01294","URU-MIN.ECONOMÍA Y FINANZAS/ME","MEF/MERCOS","01294-MEF/MERCOS",null,null,null,"65503"]
["01295","MOR-MINISTÈRE DE L'ENERGIE ET","MEM","01295-MEM",null,null,null,"65504"]
["01296","PER-MINISTERIO DE ENERGIA Y MI","MEM","01296-MEM",null,null,null,"65505"]
["01297","POL-MINISTRY OF EDUCATION","MEN","01297-MEN",null,null,null,"65506"]
["01298","KAZ-MINISTRY OF ENVIRONMENTAL","MEP","01298-MEP",null,null,null,"67000"]
["01299","MAR-MINISTRY OF ECONOMIC DEVEL","MEPD","01299-MEPD",null,null,null,"68000"]
["01300","VEN-GOBERNACION DEL ESTADO MER","MERIDA","01300-MERIDA",null,null,null,"68005"]
["01301","BYE-MINISTRY OF EMERGENCY OG B","MES","01301-MES",null,null,null,"68010"]
["01302","ROM-M. EMINESCU TRUST","MET","01302-MET",null,null,null,"68015"]
["01303","CHI-SERVICIO SALUD METROPOLITA","METROP N","01303-METROP N",null,null,null,"68020"]
["01304","CHI-SERVICIO SALUD METROPOLITA","METROP O","01304-METROP O",null,null,null,"68025"]
["01305","CHI-SERVICIO SALUD METROPOLITA","METROP S/W","01305-METROP S/W",null,null,null,"68030"]
["01306","CHI-SERV. SALUD METROPOLITANO","METROP. S","01306-METROP. S",null,null,null,"68035"]
["01307","COL-METROVIVIENDA","METROVIVIE","01307-METROVIVIE",null,null,null,"68040"]
["01308","LEB-MINISTRY OF ENERGY & WATER","MEW","01308-MEW",null,null,null,"68041"]
["01309","MEX-BA'ASOLAY - FASE II","MEX/97/010","01309-MEX/97/010",null,null,null,"68050"]
["01310","BOT-MERK FOUNDATION","MF","01310-MF",null,null,null,"68055"]
["01311","VEN-MINISTERIO DE FINANZAS","MF","01311-MF",null,null,null,"68060"]
["01312","URU-MINISTERIO DE GANADERIA AG","MGAP","01312-MGAP",null,null,null,"68065"]
["01313","RUS-MGIMO","MGIMO","01313-MGIMO",null,null,null,"68070"]
["01314","BOL-MINISTERIO DE HACIENDA","MH","01314-MH",null,null,null,"68071"]
["01315","VEN-MINISTERIO DE HACIENDA","MH","01315-MH",null,null,null,"68075"]
["01316","ARG-MINISTERIO DE HACIENDA Y C","MHCP-CHUBU","01316-MHCP-CHUBU",null,null,null,"68076"]
["01317","URU-MINISTERIO DEL INTERIOR","MI","01317-MI",null,null,null,"68100"]
["01318","RUS-THE MIANKHEL FALCONS BREED","MIANKHEL","01318-MIANKHEL",null,null,null,"68105"]
["01319","EGY-MINISTRY OF INTERNATIONAL","MIC","01319-MIC",null,null,null,"68110"]
["01320","PAN-MINISTERIO DE COMERCIO E I","MICI","01320-MICI",null,null,null,"68115"]
["01321","ECU-MINISTERIO DE IND.COMERCIO","MICIP","01321-MICIP",null,null,null,"68120"]
["01322","CHI-MINISTERIO DE PLANIFICACIO","MIDEPLAN","01322-MIDEPLAN",null,null,null,"68125"]
["01323","COS-MINISTERIO DE PLANIFICACIO","MIDEPLAN","01323-MIDEPLAN",null,null,null,"68130"]
["01324","ECU-MINISTERIO DE LA VIVIENDA","MIDUVI","01324-MIDUVI",null,null,null,"68135"]
["01325","NIC-MINISTERIO DE FOMENTO, IND","MIFIC","01325-MIFIC",null,null,null,"68140"]
["01326","VEN-MINISTERIO DE INTERIOR Y J","MIJ","01326-MIJ",null,null,null,"68145"]
["01327","PER-MINISTERIO DE LA MUJER Y D","MIMDES","01327-MIMDES",null,null,null,"68150"]
["01328","TRI-MINISTRY OF ECONOMIC AFFAI","MIN ECON","01328-MIN ECON",null,null,null,"69999"]
["01329","BYE-MINISTRY OF ENVIRONMENT","MIN ENV","01329-MIN ENV",null,null,null,"70000"]
["01330","TRI-MINISTRY OF PUBLIC HEALTH,","MIN HEALTH","01330-MIN HEALTH",null,null,null,"70010"]
["01331","COS-MINISTERIO DE RELACIONES E","MIN RREE","01331-MIN RREE",null,null,null,"70100"]
["01332","COS-MINISTERIO DE SALUD PUBLIC","MIN SALUD","01332-MIN SALUD",null,null,null,"70189"]
["01333","TRI-MINISTRY OF PUBLIC HEALTH,","MIN SOCIAL","01333-MIN SOCIAL",null,null,null,"70190"]
["01334","BUL-MINISTER OF STATE ADMINIST","MIN ST","01334-MIN ST",null,null,null,"70191"]
["01335","ECU-MINISTERIO DE TRABAJO","MIN-TRABAJ","01335-MIN-TRABAJ",null,null,null,"70192"]
["01336","BUL-MINISTRY OF LABOUR & SOCIA","MIN. LAB.","01336-MIN. LAB.",null,null,null,"70193"]
["01337","PER-MINISTERIO DE AGRICULTURA","MINAGRIC","01337-MINAGRIC",null,null,null,"70194"]
["01338","COL-MINISTERIO DE AGRICULTURA","MINAGRICUL","01338-MINAGRICUL",null,null,null,"70195"]
["01339","COL-MINISTERIO DEL MEDIO AMBIE","MINAMBIENT","01339-MINAMBIENT",null,null,null,"70196"]
["01340","PER-MINISTERIO DE COMERCIO EXT","MINCETUR I","01340-MINCETUR I",null,null,null,"70197"]
["01341","COL-MINISTERIO DE CULTURA","MINCULTURA","01341-MINCULTURA",null,null,null,"70198"]
["01342","COL-MINISTERIO DE DEFENSA NACI","MINDEFENSA","01342-MINDEFENSA",null,null,null,"70199"]
["01343","COL-MINISTERIO DE DESARROLLO E","MINDESARRO","01343-MINDESARRO",null,null,null,"70200"]
["01344","VEN-MINISTERIO DE DESARROLLO U","MINDUR","01344-MINDUR",null,null,null,"70300"]
["01345","CHI-MINISTERIO DE EDUCACION","MINEDUC","01345-MINEDUC",null,null,null,"70501"]
["01346","UKR-MINISTRY OF EDUCATION & SC","MINEDUC","01346-MINEDUC",null,null,null,"70503"]
["01347","VEN-MINISTERIO DE EDUCACION","MINEDUC","01347-MINEDUC",null,null,null,"70504"]
["01348","COL-MINISTERIO  DE EDUCACION N","MINEDUCAC","01348-MINEDUCAC",null,null,null,"70505"]
["01349","HON-SECRETARIA DE EDUCACION","MINEDUCAC","01349-MINEDUCAC",null,null,null,"70506"]
["01350","CHI-MINERA ESCONDIDA","MINERA","01350-MINERA",null,null,null,"70507"]
["01351","COL-EMPRESA NACIONAL MINERA","MINERCOL","01351-MINERCOL",null,null,null,"70508"]
["01352","COL-MINITERIO DE RELACIONES EX","MINEXTE","01352-MINEXTE",null,null,null,"70509"]
["01353","HON-MINISTERIO DE FINANZAS","MINFIN","01353-MINFIN",null,null,null,"70511"]
["01354","COL-MINISTERIO DE HACIENDA Y C","MINHACIEND","01354-MINHACIEND",null,null,null,"70512"]
["01355","PER-MINISTERIO DEL INTERIOR","MININTER","01355-MININTER",null,null,null,"70513"]
["01356","COL-MINISTERIO DEL INTERIOR","MININTERIO","01356-MININTERIO",null,null,null,"70514"]
["01357","PER-MINISTERIO DE JUSTICIA  -","MINJU INPE","01357-MINJU INPE",null,null,null,"70517"]
["01358","PER-MINISTERIO DE JUSTICIA","MINJUS","01358-MINJUS",null,null,null,"70519"]
["01359","UKR-MINISTRY OF JUSTICE","MINJUST","01359-MINJUST",null,null,null,"70520"]
["01360","COL-MINISTERIO DE MINAS  Y ENE","MINMINAS","01360-MINMINAS",null,null,null,"70521"]
["01361","PER-MINISTERIO DE PROMOCION DE","MINMUJER","01361-MINMUJER",null,null,null,"70522"]
["01362","PER-MINERO PERU","MINPECO","01362-MINPECO",null,null,null,"70523"]
["01363","PER-MINISTERIO DE PESQUERÍA","MINPESQ","01363-MINPESQ",null,null,null,"70525"]
["01364","HON-MINISTERIO DE LA PRESIDENC","MINPRES","01364-MINPRES",null,null,null,"70526"]
["01365","COS-MINISTERIO DE LA PRESIDENC","MINPRESID","01365-MINPRESID",null,null,null,"70527"]
["01366","COL-MINISTERIO DE PROTECCION S","MINPROT","01366-MINPROT",null,null,null,"70528"]
["01367","PER-MINISTERIO PUBLICO","MINPUBL","01367-MINPUBL",null,null,null,"70529"]
["01368","NIC-MINISTERIO DE RELACIONES E","MINREX","01368-MINREX",null,null,null,"70530"]
["01369","PER-MINISTERIO DE   RELACIONES","MINRREE","01369-MINRREE",null,null,null,"70531"]
["01370","PER-MINISTERIO DE SALUD","MINSA","01370-MINSA",null,null,null,"70532"]
["01371","CHI-MINISTERIO DE SALUD","MINSAL","01371-MINSAL",null,null,null,"70533"]
["01372","HON-MINISTERIO DE SALUD PUBLIC","MINSALUD","01372-MINSALUD",null,null,null,"70534"]
["01373","COL-MINISTERIO DE TRABAJO Y SE","MINTRABAJO","01373-MINTRABAJO",null,null,null,"70700"]
["01374","COS-MINISTERIO DE TRABAJO DE C","MINTRABAJO","01374-MINTRABAJO",null,null,null,"70702"]
["01375","COL-MINISTERIO DE TRANSPORTE","MINTRANSPO","01375-MINTRANSPO",null,null,null,"70703"]
["01376","CUB-MINISTERIO INVERSIÓN EXTRA","MINVEC","01376-MINVEC",null,null,null,"70798"]
["01377","CHI-MINISTERIO DE VIVIENDA Y U","MINVU","01377-MINVU",null,null,null,"70799"]
["01378","PER-MINISTERIO DE LA PRESIDENC","MIPRE","01378-MIPRE",null,null,null,"70800"]
["01379","EGY-MINISTRY OF INDUSTRY & TEC","MITD","01379-MITD",null,null,null,"70801"]
["01380","PER-MINIST.INDUSTRIA, TURISMO,","MITINCI","01380-MITINCI",null,null,null,"70802"]
["01381","COS-MINISTERIO DE VIVIENDA","MIVAH","01381-MIVAH",null,null,null,"70803"]
["01382","PER-FONDO MIVIVIENDA","MIVIVIENDA","01382-MIVIVIENDA",null,null,null,"70804"]
["01383","BOL-MINISTERIO DE JUSTICIA Y D","MJDH","01383-MJDH",null,null,null,"70805"]
["01384","BYE-MINISTRY OF LABOR & SOCIAL","ML","01384-ML",null,null,null,"70806"]
["01385","UNV-MULTILATERAL ACADEMY","MLA","01385-MLA",null,null,null,"70807"]
["01386","ROM-MINISTRY OF LABOR & SOCIAL","MLPS","01386-MLPS",null,null,null,"70808"]
["01387","BUL-MINISTRY OF LABOUR & SOCIA","MLSP","01387-MLSP",null,null,null,"70809"]
["01388","BUL-TRANSFER BETWEEN PROJECTS","MLSP/TRANS","01388-MLSP/TRANS",null,null,null,"70810"]
["01389","ECU-MINISTERIO DE MEDIO AMBIEN","MMA","01389-MMA",null,null,null,"70811"]
["01390","NAM-MINISTRY OF MINES & ENERGY","MME","01390-MME",null,null,null,"70812"]
["01391","PER-MUNICIPALIDAD METROPOLITAN","MML","01391-MML",null,null,null,"70813"]
["01392","YUG-GOVERNMENT OF THE REPUBLIC","MN GOVT","01392-MN GOVT",null,null,null,"70814"]
["01393","LEB-MINISTRY OF AGRICULTURE","MOA","01393-MOA",null,null,null,"70999"]
["01394","EGY-MINISTRY OF STATE FOR ADMI","MOAD","01394-MOAD",null,null,null,"71000"]
["01395","CPR-MINISTRY OF CIVIL AFFAIRS","MOCA","01395-MOCA",null,null,null,"71001"]
["01396","LEB-MINISTRY OF DISPLACED","MOD","01396-MOD",null,null,null,"71003"]
["01397","MEX-MODITEC","MODITEC","01397-MODITEC",null,null,null,"71004"]
["01398","LEB-MINISTRY OF ENVIRONMENT","MOE","01398-MOE",null,null,null,"71006"]
["01399","TUK-MINISTRY OF ENVIRONMENT","MOE","01399-MOE",null,null,null,"71007"]
["01400","EGY-MINISTRY OF ECONOMY","MOEC","01400-MOEC",null,null,null,"71008"]
["01401","UAE-MINISTRY OF ECONOMY & COMM","MOEC","01401-MOEC",null,null,null,"71009"]
["01402","LEB-MINISTRY OF ECONOMY & TRAD","MOET","01402-MOET",null,null,null,"71010"]
["01403","EGY-MINISTRY OF FINANCE","MOF","01403-MOF",null,null,null,"71011"]
["01404","KAZ-MINISTRY OF FINANCE","MOF","01404-MOF",null,null,null,"71012"]
["01405","LEB-MINISTRY OF FINANCE","MOF","01405-MOF",null,null,null,"71013"]
["01406","TUK-MINISTRY OF FINANCE","MOF","01406-MOF",null,null,null,"71014"]
["01407","KAZ-MINISTRY OF FOREIGN AFFAIR","MOFA","01407-MOFA",null,null,null,"71015"]
["01408","UAE-MINISTRY OF FINANCE & INDU","MOFI","01408-MOFI",null,null,null,"71016"]
["01409","BYE-MOGILEV REGIONAL EXECUTIVE","MOG","01409-MOG",null,null,null,"71017"]
["01410","LEB-MINISTRY OF HEALTH","MOH","01410-MOH",null,null,null,"71018"]
["01411","LEB-MINISTRY OF CULTURE & HIGH","MOHE","01411-MOHE",null,null,null,"71019"]
["01412","SRL-MINISTRY OF INDUSTRIAL DEV","MOID","01412-MOID",null,null,null,"71020"]
["01413","ROK-MINISTRY OF JUSTICE","MOJ","01413-MOJ",null,null,null,"71021"]
["01414","YUG-MINSITRY OF LABOUR","MOLE","01414-MOLE",null,null,null,"71023"]
["01415","YEM-MINISTRY OF LABOUR & SOCIA","MOLSA","01415-MOLSA",null,null,null,"71025"]
["01416","RUS-MINISTRY OF LABOUR & SOCIA","MOLSD","01416-MOLSD",null,null,null,"71026"]
["01417","POL-MONAR KRAKÓW","MONAR KR","01417-MONAR KR",null,null,null,"71027"]
["01418","ECU-MINISTERIO DE OBRAS PUBLIC","MOP","01418-MOP",null,null,null,"71028"]
["01419","EGY-MINISTRY OF PLANNING","MOP","01419-MOP",null,null,null,"71029"]
["01420","TRI-MINISTRY OF PLANNING & DEV","MOPAD","01420-MOPAD",null,null,null,"71030"]
["01421","PAR-MINISTERIO DE OBRAS PUBLIC","MOPC","01421-MOPC",null,null,null,"71031"]
["01422","EGY-MINISTRY OF PUBLIC ENTERPR","MOPE","01422-MOPE",null,null,null,"71032"]
["01423","YEM-MINISTRY OF PLANNING & INT","MOPIC","01423-MOPIC",null,null,null,"71033"]
["01424","LEB-MINISTRY OF SOCIAL AFFAIRS","MOSA","01424-MOSA",null,null,null,"71034"]
["01425","CPR-MINISTRY OF SCIENCE & TECH","MOST","01425-MOST",null,null,null,"71999"]
["01426","ROK-MINISTRY OF SCIENCE & TECH","MOST","01426-MOST",null,null,null,"72000"]
["01427","TRI-MINISTRY OF PUBLIC ADMINIS","MPA","01427-MPA",null,null,null,"72010"]
["01428","VEN-MINISTERIO DE PLANIFICACIÓ","MPD","01428-MPD",null,null,null,"72020"]
["01429","BOL-MINISTERIO DE LA PRESIDENC","MPRES","01429-MPRES",null,null,null,"72030"]
["01430","MOR-MINISTÈRE DE LA PROTECTION","MPSFE","01430-MPSFE",null,null,null,"72040"]
["01431","CHI-MINISTERIO DE RELACIONES E","MRE","01431-MRE",null,null,null,"72050"]
["01432","ECU-MINISTERIO DE RELACIONES E","MRE","01432-MRE",null,null,null,"72060"]
["01433","ARG-MRECIYC-SUBSECRETARÍA DE C","MRE/SUBCO","01433-MRE/SUBCO",null,null,null,"72070"]
["01434","ARG-MIN.SALUD-UNIDAD COORD.PRO","MS-UCPPFE","01434-MS-UCPPFE",null,null,null,"72080"]
["01435","POL-MERCK SHARP & DOHME IDEA I","MSD","01435-MSD",null,null,null,"72090"]
["01436","VEN-MINISTERIO DE SALUD Y DESA","MSDS","01436-MSDS",null,null,null,"72100"]
["01437","UNV-MINISTERE DE LA SANTÉ PUBL","MSP","01437-MSP",null,null,null,"72200"]
["01438","ECU-MINISTERIO DE SALUD PUBLIC","MSP","01438-MSP",null,null,null,"72202"]
["01439","BOL-MINISTERIO DE SALUD Y PREV","MSPS","01439-MSPS",null,null,null,"72209"]
["01440","VEN-MINISTERIO DEL TRABAJO","MT","01440-MT",null,null,null,"72210"]
["01441","ARG-MINISTERIO DE TRABAJO, EMP","MT/SEMPLEO","01441-MT/SEMPLEO",null,null,null,"72220"]
["01442","BUL-MINISTRY OF TRANSPORT & CO","MTC","01442-MTC",null,null,null,"72230"]
["01443","PER-MINISTERIO TRANSPORTES Y C","MTC","01443-MTC",null,null,null,"72240"]
["01444","VEN-MINISTERIO DE TRANSPORTE Y","MTC","01444-MTC",null,null,null,"72400"]
["01445","URU-MINISTERIO DE TRANSPORTE Y","MTOP","01445-MTOP",null,null,null,"72410"]
["01446","PER-MIN.TRAB. Y PROM. EMPLEO R","MTPE RO","01446-MTPE RO",null,null,null,"72420"]
["01447","PER-MINISTERIO DE TRABAJO Y PR","MTPS","01447-MTPS",null,null,null,"72425"]
["01448","PER-MIN. TRAB. Y PROM. SOCIAL","MTPS RDR","01448-MTPS RDR",null,null,null,"72430"]
["01449","PER-MTPS DONACIONES Y TRANSFER","MTPSDONFE","01449-MTPSDONFE",null,null,null,"72440"]
["01450","PER-MTPS DON. Y TRANSF. ACUERD","MTPSDONKFW","01450-MTPSDONKFW",null,null,null,"72450"]
["01451","COS-MINISTERIO DE TRABAJO Y SE","MTSS","01451-MTSS",null,null,null,"72460"]
["01452","BUL-MUNICIPALITIES","MUN","01452-MUN",null,null,null,"72470"]
["01453","ECU-MUNICIPIO DE CUENCA","MUN CUENCA","01453-MUN CUENCA",null,null,null,"72480"]
["01454","ECU-MUNICIPALIDAD DE PEDRO MON","MUN P.MONC","01454-MUN P.MONC",null,null,null,"72485"]
["01455","ECU-MUNICIPALIDAD DE RUMIÑAHUI","MUN RUMIÑ","01455-MUN RUMIÑ",null,null,null,"72490"]
["01456","ECU-MUNICIPIO DE ESMERALDAS","MUN. ESM","01456-MUN. ESM",null,null,null,"72491"]
["01457","ECU-MUNICIPIO DE CAYAMBE","MUN.CAY.","01457-MUN.CAY.",null,null,null,"72492"]
["01458","ECU-ILUSTRE MUNICIPIO DE GUAYA","MUN.GUAY","01458-MUN.GUAY",null,null,null,"72493"]
["01459","ECU-MUNICIPIO DEL DISTRITO MET","MUN.QUITO","01459-MUN.QUITO",null,null,null,"72494"]
["01460","HON-MUNICIPALIDADES DEL PROYEC","MUNICIP.","01460-MUNICIP.",null,null,null,"72500"]
["01461","CHI-MUNICIPALIDADES","MUNICIPAL","01461-MUNICIPAL",null,null,null,"72510"]
["01462","UKR-CENTRE OF MUNICIPAL MANAGE","MUNICIPAL","01462-MUNICIPAL",null,null,null,"72520"]
["01463","TUK-MUNICIPALITY","MUNICIPAL","01463-MUNICIPAL",null,null,null,"72530"]
["01464","PER-MINISTERIO DE VIVIENDA CON","MVCS","01464-MVCS",null,null,null,"72540"]
["01465","URU-MINISTERIO DE VIVIENDA, OR","MVOTMA","01465-MVOTMA",null,null,null,"72550"]
["01466","ARG-GOBIERNO DE LA PROVINCIA D","MZA","01466-MZA",null,null,null,"72560"]
["01467","POL-MINISTRY OF HEALTH & SOCIA","MZOIS","01467-MZOIS",null,null,null,"72562"]
["01468","GEO-NON-GOVERNMENTAL ORGANISAT","N G O","01468-N G O",null,null,null,"72564"]
["01469","ROM-NATIONAL AUTHORITY FOR DIS","NADP","01469-NADP",null,null,null,"72570"]
["01470","MEX-NACIONAL FINANCIERA","NAFIN","01470-NAFIN",null,null,null,"72572"]
["01471","LIB-NATIONAL AUTHORITY FOR INF","NAID","01471-NAID",null,null,null,"80000"]
["01472","TRI-GOVERNMENT OF THE NETHERLA","NANGOVT","01472-NANGOVT",null,null,null,"80050"]
["01473","UKR-NATIONAL ACADEMY OF SCIENC","NASU","01473-NASU",null,null,null,"80100"]
["01474","ROM-NATL","NATL","01474-NATL",null,null,null,"80150"]
["01475","BYE-NATUURMONUMENTEN, NATURE-C","NATUURMON","01475-NATUURMON",null,null,null,"80161"]
["01476","BYE-NATIONAL BANK OF THE REPUB","NBRB","01476-NBRB",null,null,null,"80190"]
["01477","EGY-NATIONAL COUNCIL FOR CHILD","NCCM","01477-NCCM",null,null,null,"80195"]
["01478","BUL-NATIONAL COUNCIL ON ETHNIC","NCEDI","01478-NCEDI",null,null,null,"80196"]
["01479","PAK-NATIONAL COMMISSION ON HUM","NCHD","01479-NCHD",null,null,null,"85000"]
["01480","NAT'L DEMOCRATIC INSTITUTE FOR","NDI","01480-NDI",null,null,null,"85001"]
["01481","RUS-NORILSK ECOLOGICAL FUND","NEF","01481-NEF",null,null,null,"85002"]
["01482","JAM-ROYAL NETHERLANDS EMBASSY","NET","01482-NET",null,null,null,"85003"]
["01483","BUL-NEW MUNICIPALITIES IN BB I","NEW MUN","01483-NEW MUN",null,null,null,"85004"]
["01484","BRA-NATIONAL EXECUTION","NEX","01484-NEX",null,null,null,"85005"]
["01485","PER-NATIONAL EXECUTION (GVT AS","NEX","01485-NEX",null,null,null,"85006"]
["01486","LAT-MINISTRY OF WELFARE","NEX-MOW","01486-NEX-MOW",null,null,null,"85007"]
["01487","ALB-CARE INTERNATIONAL","NGO","01487-NGO",null,null,null,"85008"]
["01488","BRA-NON-GOVERNMENTAL ORGANISAT","NGO","01488-NGO",null,null,null,"85009"]
["01489","ELS-NON-GOVERNMENTAL ORGANIZAT","NGO","01489-NGO",null,null,null,"85010"]
["01490","SLO-NGO","NGO","01490-NGO",null,null,null,"85011"]
["01491","RUS-NATIONAL NGO","NGO","01491-NGO",null,null,null,"85012"]
["01492","INS-NGO (INTERNATIONAL)","NGO (INT)","01492-NGO (INT)",null,null,null,"85013"]
["01493","OBR-NGO INTERNATIONAL","NGO INT","01493-NGO INT",null,null,null,"85014"]
["01494","DJI-KUWAITI RED CRESCENT","NGO KW RC","01494-NGO KW RC",null,null,null,"85015"]
["01495","TUR-NGO NATIONAL","NGO NAT","01495-NGO NAT",null,null,null,"85016"]
["01496","SLO-NGO (INT'L)","NGO(INT'L)","01496-NGO(INT'L)",null,null,null,"85017"]
["01497","OBR-NGO NATIONAL","NGO-NAT","01497-NGO-NAT",null,null,null,"85018"]
["01498","TIM-INTERNATIONAL &  NATIONAL","NGOS","01498-NGOS",null,null,null,"85019"]
["01499","MEX-NATURAL HERITAGE INSTITUTE","NHI","01499-NHI",null,null,null,"85020"]
["01500","NIC-GOBIERNO DE NICARAGUA","NICARAGUA","01500-NICARAGUA",null,null,null,"85021"]
["01501","NAM-NATIONAL INSTITUTE FOR EDU","NIED","01501-NIED",null,null,null,"85022"]
["01502","CPR-NINGXIA GOVERNMENT","NINGXIA","01502-NINGXIA",null,null,null,"85023"]
["01503","YUG-MUNICIPALITY OF NIS","NIS MUNIC","01503-NIS MUNIC",null,null,null,"85024"]
["01504","RUS-RAO NORILSK NICKEL","NNICKEL","01504-NNICKEL",null,null,null,"86000"]
["01505","FEM-NOEL FOUNDATION","NOEL","01505-NOEL",null,null,null,"86015"]
["01506","PRC-NOMECO","NOMECO","01506-NOMECO",null,null,null,"86030"]
["01507","RUS-NATIONAL ORGANIZATION FOR","NOSPCA","01507-NOSPCA",null,null,null,"86050"]
["01508","CHI-SERV.SALUD ÑUBLE","ÑUBLE","01508-ÑUBLE",null,null,null,"86051"]
["01509","VEN-GOBERNACION DEL ESTADO NUE","NVA.ESP","01509-NVA.ESP",null,null,null,"86052"]
["01510","FEM-NEW ZEALAND NAIONAL COMMIT","NZ NC","01510-NZ NC",null,null,null,"86055"]
["01511","COL-OFICINA DEL ALTO COMISIONA","O.A.C.P.","01511-O.A.C.P.",null,null,null,"86057"]
["01512","BAR-ORGANISATION OF AMERICAN S","OAS","01512-OAS",null,null,null,"86060"]
["01513","CHI-SERVICIO SALUD METROPOLITA","OCCIDENTE","01513-OCCIDENTE",null,null,null,"86061"]
["01514","ECU-OFICINA PARA LA COORDINACI","OCHA","01514-OCHA",null,null,null,"86062"]
["01515","ECU-PROGRAMA PARA LA ELIMINACI","OEPA","01515-OEPA",null,null,null,"86063"]
["01516","HAI-OFFICE NATIONAL DE L'AVIAT","OFNAC","01516-OFNAC",null,null,null,"86064"]
["01517","UKR-ORGANISATION GROMADYANSKA","OGI","01517-OGI",null,null,null,"86065"]
["01518","BYE-HIDROLISE PLANT (BOBRUISK)","OGPZ BOBRU","01518-OGPZ BOBRU",null,null,null,"86066"]
["01519","BYE-HYDROLISE PLANT (RECHITSA)","OGPZ RECH","01519-OGPZ RECH",null,null,null,"86068"]
["01520","RUS-LUK-SINTEZ OIL  LTD","OIL-SINTEZ","01520-OIL-SINTEZ",null,null,null,"86069"]
["01521","RUS-OIL COMPANY","OILCOMPANY","01521-OILCOMPANY",null,null,null,"86070"]
["01522","GUA-ORGANIZACION INTERNACIONAL","OIM","01522-OIM",null,null,null,"86071"]
["01523","COS-ORGANIZACION INTERNACIONAL","OIT","01523-OIT",null,null,null,"86073"]
["01524","POL-MIASTO & GMINA OAWA","OLAWA","01524-OLAWA",null,null,null,"86074"]
["01525","RUS-OLIFF","OLIFF","01525-OLIFF",null,null,null,"86075"]
["01526","RUS-SPORT COMPLEX OLIMPIYA","OLIMIPIYA","01526-OLIMIPIYA",null,null,null,"86076"]
["01527","PER-PROYECTO OLMOS","OLMOS","01527-OLMOS",null,null,null,"86077"]
["01528","LEB-OFFICE OF THE MINISTER OF","OMSAR","01528-OMSAR",null,null,null,"86078"]
["01529","MOR-OFFICE NATIONAL D'ELECTRIC","ONE","01529-ONE",null,null,null,"86079"]
["01530","COS-ONE WORLD INTERNATIONAL","ONE WORLD","01530-ONE WORLD",null,null,null,"86080"]
["01531","CHI-OFICINA NACIONAL DE EMERGE","ONEMI","01531-ONEMI",null,null,null,"86090"]
["01532","PER-OFICINA NACIONAL DE PROCES","ONPE","01532-ONPE",null,null,null,"86100"]
["01533","PER-OFICINA NACIONAL DE PROCES","ONPE DEX","01533-ONPE DEX",null,null,null,"86105"]
["01534","CUB-PROGRAMA DE NNUU PARA EL S","ONUSIDA","01534-ONUSIDA",null,null,null,"86106"]
["01535","VEN-PROGRAMA CONJUNTO DE LAS N","ONUSIDA","01535-ONUSIDA",null,null,null,"86110"]
["01536","URU-OFICINA DE PLANEAMIENTO Y","OPP","01536-OPP",null,null,null,"86121"]
["01537","URU-OPP - DIVISIÓN COOPERACIÓN","OPP/DCI","01537-OPP/DCI",null,null,null,"86122"]
["01538","URU-OPP/COM.NAL.PARA CONSTRUCC","OPP/EJE VI","01538-OPP/EJE VI",null,null,null,"86123"]
["01539","URU-OPP - INFANCIA Y FAMILIA","OPP/INFFAM","01539-OPP/INFFAM",null,null,null,"86124"]
["01540","URU-OFICINA PLANEAMIENTO Y PRE","OPP/MRREE","01540-OPP/MRREE",null,null,null,"86125"]
["01541","URU-OPP/UNIDAD DE COORDINACIÓN","OPP/UCG","01541-OPP/UCG",null,null,null,"86126"]
["01542","MEX-OFICINA PANAMERICANA DE LA","OPS/OMS","01542-OPS/OMS",null,null,null,"86127"]
["01543","EGY-ORGANIZATION FOR RESTRUCTU","ORDEV","01543-ORDEV",null,null,null,"86128"]
["01544","PER-OFICINA REGISTRAL DE LIMA","ORLC","01544-ORLC",null,null,null,"86130"]
["01545","GEO-OSCE","OSCE","01545-OSCE",null,null,null,"86131"]
["01546","BUL-OPEN SOCIETY FOUNDATION/BU","OSF","01546-OSF",null,null,null,"86132"]
["01547","BIH-OPEN SOCIETY FUND","OSF","01547-OSF",null,null,null,"86133"]
["01548","SLO-OPEN SOCIETY INSTITUTE","OSI","01548-OSI",null,null,null,"86134"]
["01549","PER-OPEN SOCIETY INSTITUTE","OSI","01549-OSI",null,null,null,"86135"]
["01550","GEO-OPEN SOCIETY INSTITUTE","OSI","01550-OSI",null,null,null,"86136"]
["01551","TAJ-OPEN SOCIETY INSTITUTE/SOR","OSI/SOROS","01551-OSI/SOROS",null,null,null,"86140"]
["01552","MEX-OSI DEVELOPMENT FOUNDATION","OSIDEV","01552-OSIDEV",null,null,null,"86141"]
["01553","PER-ORGANISMO SUPERVISOR DE IN","OSIPTEL","01553-OSIPTEL",null,null,null,"86142"]
["01554","SWA-OPEN SOCIETY INITIATIVE FO","OSISA","01554-OSISA",null,null,null,"86143"]
["01555","CHI-SERVICIO SALUD OSORNO","OSORNO","01555-OSORNO",null,null,null,"86144"]
["01556","BRA-OTHER","OTHER","01556-OTHER",null,null,null,"86145"]
["01557","MEX-ANGELES ESPINOZA R.","OTHER","01557-OTHER",null,null,null,"86150"]
["01558","COL-BENEFICIARIOS COL/00/007","OTROS","01558-OTROS",null,null,null,"86200"]
["01559","MEX-OTRAS INSTANCIAS DE APOYO","OTROS","01559-OTROS",null,null,null,"86300"]
["01560","GUA-OTROS","OTROS","01560-OTROS",null,null,null,"86301"]
["01561","PAR-OTHER DONORS","OTROS","01561-OTROS",null,null,null,"86302"]
["01562","BYE-OTTO FOUNDATION","OTTO","01562-OTTO",null,null,null,"86303"]
["01563","ECU-OXFORD COMITTEE FOR  FAMIN","OXFAM","01563-OXFAM",null,null,null,"86999"]
["01564","PER-OXFORD COMMITTEE FOR FAMIN","OXFAM","01564-OXFAM",null,null,null,"87001"]
["01565","PER-PAISES BAJOS","P.BAJOS","01565-P.BAJOS",null,null,null,"87002"]
["01566","URU-PROGRAMA DE COOPERACIÓN CI","P.C.C.I.P.","01566-P.C.C.I.P.",null,null,null,"87003"]
["01567","MEX-PRESIDENCIA MUNICIPAL DE T","P.MUNIC","01567-P.MUNIC",null,null,null,"87004"]
["01568","FEM-PAN AMERICAN HEALTH ORGANI","PAHO","01568-PAHO",null,null,null,"87005"]
["01569","COS-PATRONATO NACIONAL DE LA I","PANI","01569-PANI",null,null,null,"87006"]
["01570","RLA-PAR96005","PAR96005","01570-PAR96005",null,null,null,"87007"]
["01571","VEN-GRUPO VENEZOLANO PARLAMENT","PARLATINO","01571-PARLATINO",null,null,null,"87008"]
["01572","LEB-PARLEMENT LIBANAIS","PARLEMENT","01572-PARLEMENT",null,null,null,"87009"]
["01573","PER-PRESIDENCIA DEL CONSEJO DE","PCM","01573-PCM",null,null,null,"87010"]
["01574","POL-POLISH COPPER PROMOTION CE","PCPC","01574-PCPC",null,null,null,"87011"]
["01575","MEX-PROGRAM COST SHARING","PCSH","01575-PCSH",null,null,null,"87020"]
["01576","UAE-PROGRAMME COST SHARING","PCSH","01576-PCSH",null,null,null,"87101"]
["01577","VEN-PETROLEOS DE VENEZUELA, S.","PDVSA","01577-PDVSA",null,null,null,"87102"]
["01578","COL-PERSONERIA DE SANTAFE DE B","PERSONERIA","01578-PERSONERIA",null,null,null,"87103"]
["01579","PER-PESCA PERU","PESCA","01579-PESCA",null,null,null,"87104"]
["01580","PER-PETROLEOS DEL PERU","PETROPERU","01580-PETROPERU",null,null,null,"87105"]
["01581","POL-NATIONAL FUND FOR REHABILI","PFRON","01581-PFRON",null,null,null,"87111"]
["01582","UKR-CHEMICAL-PHARMACEUTICAL PL","PHARMPLANT","01582-PHARMPLANT",null,null,null,"87112"]
["01583","UAE-PUBLIC HEALTH& ENVIRONMENT","PHEA","01583-PHEA",null,null,null,"87114"]
["01584","RUS-EKO PHOENIX","PHOENIX","01584-PHOENIX",null,null,null,"87115"]
["01585","JAM-PLANNING INSTITUTE OF JAMA","PIOJ","01585-PIOJ",null,null,null,"87116"]
["01586","ROM-PITESTI MUNICIPALITY","PIT","01586-PIT",null,null,null,"87117"]
["01587","PER-PL480","PL480","01587-PL480",null,null,null,"87118"]
["01588","URU-PLAN DESREGULACION DEL COM","PLADES","01588-PLADES",null,null,null,"87119"]
["01589","COL-PLAN CARIBE","PLAN CARIB","01589-PLAN CARIB",null,null,null,"87120"]
["01590","COL-PLAN NACIONAL DE DESARROLL","PLANTE","01590-PLANTE",null,null,null,"87121"]
["01591","BOL-PREFECTURA DEL DEPARTAMENT","PLPZ","01591-PLPZ",null,null,null,"87130"]
["01592","PER-EMPRESA PLUSPETROL","PLUSPETROL","01592-PLUSPETROL",null,null,null,"87131"]
["01593","LEB-PRIME MINISTER OFFICE","PMO","01593-PMO",null,null,null,"87132"]
["01594","COL-PLAN NACIONAL DE REHABILIT","PNR","01594-PNR",null,null,null,"87133"]
["01595","BOL-PROGRAMA NACIONAL DEL SERV","PNSC","01595-PNSC",null,null,null,"87134"]
["01596","COI-PROGRAMME DES NATIONS UNIE","PNUD","01596-PNUD",null,null,null,"87135"]
["01597","COL-PROGRAMA DE LAS NACIONES U","PNUD","01597-PNUD",null,null,null,"87136"]
["01598","HON-PROGRAMA DE LAS NAC.UNIDAS","PNUD C-S","01598-PNUD C-S",null,null,null,"87137"]
["01599","PER-PODER JUDICIAL","PODJUD","01599-PODJUD",null,null,null,"87138"]
["01600","URU-OPP/POLITICA CAMBIARIA","POL.CAM.","01600-POL.CAM.",null,null,null,"87139"]
["01601","KAZ-NATIONAL FUND FOR ENVIRONM","POLAND","01601-POLAND",null,null,null,"87140"]
["01602","VEN-GOBERNACION DEL ESTADO POR","PORTUGUESA","01602-PORTUGUESA",null,null,null,"87141"]
["01603","POL-TOWARZYSTWO POWRÓT Z U","POWROT","01603-POWROT",null,null,null,"87142"]
["01604","BOL-PREFECTURA DEL DEPARTAMENT","PPTS","01604-PPTS",null,null,null,"87143"]
["01605","HON-PROGRAMA DE ASIGNACION FAM","PRAF","01605-PRAF",null,null,null,"87144"]
["01606","ECU-PRESIDENCIA DE LA REPUBLIC","PRES AS EC","01606-PRES AS EC",null,null,null,"87145"]
["01607","ECU-PRESIDENCIA DE LA REPUBLIC","PRESID.","01607-PRESID.",null,null,null,"87146"]
["01608","CHI-MINISTERIO SEC. GENERAL DE","PRESIDENCA","01608-PRESIDENCA",null,null,null,"87150"]
["01609","COS-PRESTAMO US$200,000 DE LA","PRESTAMO","01609-PRESTAMO",null,null,null,"87151"]
["01610","MAG-GOVERNMENT OF MADAGASCAR","PRIMATURE","01610-PRIMATURE",null,null,null,"87152"]
["01611","MOZ-PRIVATE SECTOR","PRIV SECT","01611-PRIV SECT",null,null,null,"87153"]
["01612","TUR-PRIVATE SECTOR","PRIV-SECT","01612-PRIV-SECT",null,null,null,"87154"]
["01613","URU-PROGR.CONSERV.BIODIVERSIDA","PROBIDES","01613-PROBIDES",null,null,null,"87155"]
["01614","MEX-PRODUCTORES ACUÍCOLAS DEL","PRODUCTORE","01614-PRODUCTORE",null,null,null,"87156"]
["01615","PER-AGENCIA DE PROMOCION DE LA","PROINVERSI","01615-PROINVERSI",null,null,null,"87160"]
["01616","PER-COMISION DE PROMOCION DE C","PROMCEPRI","01616-PROMCEPRI",null,null,null,"87161"]
["01617","RUS-RESEARCH& PRODUCTION ENTER","PROMLES","01617-PROMLES",null,null,null,"87162"]
["01618","PER-PROMOCION DE IMAGEN DEL PE","PROMPERU","01618-PROMPERU",null,null,null,"87163"]
["01619","PER-PROM.EXP","PROMPEX","01619-PROMPEX",null,null,null,"87164"]
["01620","MEX-PROVEEDORES DE CERVECERÍA","PROVEEDOR","01620-PROVEEDOR",null,null,null,"87165"]
["01621","PER-PROYECTO PER/93/037","PROY 93037","01621-PROY 93037",null,null,null,"87166"]
["01622","CPR-PRIVATE SECTOR","PS","01622-PS",null,null,null,"87167"]
["01623","BOL-PREFECTURA DEL DEPARTAMENT","PSCZ","01623-PSCZ",null,null,null,"87168"]
["01624","POL-PRIVATE SECTOR","PSEC","01624-PSEC",null,null,null,"87170"]
["01625","BOL-PREFECTURA DEL DEPARTAMENT","PTJA","01625-PTJA",null,null,null,"87180"]
["01626","HON-MUNICIPALIDAD DE PUERTO CO","PTOCORTES","01626-PTOCORTES",null,null,null,"87181"]
["01627","BRA-PONTIFICIE UNIVERSIDADE CA","PUC","01627-PUC",null,null,null,"87182"]
["01628","CHI-COMISIÓN RECONSTRUCCIÓN PU","PUERTOS","01628-PUERTOS",null,null,null,"87183"]
["01629","NAM-RENEWABLE ENERGY & ENERGY","R3E BUREAU","01629-R3E BUREAU",null,null,null,"87184"]
["01630","CHI-SERV.SALUD  IV REGION","RANCAGUA","01630-RANCAGUA",null,null,null,"87185"]
["01631","BUL-RAZLOG MUNICIPALITY","RAZ  MUN","01631-RAZ  MUN",null,null,null,"87186"]
["01632","ROM-REGIONAL DEVELOPMENT AGENC","RDA","01632-RDA",null,null,null,"87190"]
["01633","BYE-RECHITSA EXECUTIVE COMMITT","REC","01633-REC",null,null,null,"87191"]
["01634","COS-REFINADORA COSTARRICENSE D","RECOPE","01634-RECOPE",null,null,null,"87192"]
["01635","COS-REDES DE CENTRO AMERICA","RED CA","01635-RED CA",null,null,null,"87193"]
["01636","COL-RED DE SOLIDARIDAD SOCIAL","REDSOLIDAR","01636-REDSOLIDAR",null,null,null,"87194"]
["01637","CUB-REGIÓN DE EMILIA ROMAGNA","REG EMROM","01637-REG EMROM",null,null,null,"87195"]
["01638","PER-REGION INKA","REG.INKA","01638-REG.INKA",null,null,null,"87196"]
["01639","COL-REGISTRADURIA NACIONAL DEL","REGNACIV","01639-REGNACIV",null,null,null,"87197"]
["01640","PER-REGISTRO NACIONAL DE IDENT","RENIEC","01640-RENIEC",null,null,null,"87198"]
["01641","CHI-GOB. REPUBLICA DOMINICANA","REP. DOM.","01641-REP. DOM.",null,null,null,"87199"]
["01642","JAM-SUPPORT TO RES COORD.","RES COORD.","01642-RES COORD.",null,null,null,"87200"]
["01643","POL-POLISH FOUNDATION FOR HUMA","RES HUMANA","01643-RES HUMANA",null,null,null,"87201"]
["01644","RUS-REZO-GARANTIA","REZO-G","01644-REZO-G",null,null,null,"87210"]
["01645","BYE-REPUBLICAN INSTITUTE OG HI","RIHE","01645-RIHE",null,null,null,"87220"]
["01646","UKR-RIVNE MUNICIPALITY","RIVNE","01646-RIVNE",null,null,null,"87221"]
["01647","COL-RLA02M04MZ","RLA02M04MZ","01647-RLA02M04MZ",null,null,null,"87222"]
["01648","ECU-PROYECTO ACCESS TO JUSTICE","RLAM09","01648-RLAM09",null,null,null,"87223"]
["01649","ROCKEFELLER FOUNDATION","ROCKE","01649-ROCKE",null,null,null,"87224"]
["01650","JOR-ROYAL COURT","ROYAL CRT","01650-ROYAL CRT",null,null,null,"87230"]
["01651","URU-MINISTERIO DE RELACIONES E","RREE","01651-RREE",null,null,null,"87231"]
["01652","BIH-GOVERNMENT OF REPUBLIKA SR","RS","01652-RS",null,null,null,"87232"]
["01653","BUL-RUSSE MUNICIPALITY","RUS MUN","01653-RUS MUN",null,null,null,"87233"]
["01654","BUL-RUSSE MUNICIPALITY","RUSSE MUN","01654-RUSSE MUN",null,null,null,"87234"]
["01655","RUS-RUSSIAN GOVERNMENT","RUSSIA","01655-RUSSIA",null,null,null,"87240"]
["01656","GEO-ROUL WALLENBURG INSTITUTE","RWI","01656-RWI",null,null,null,"87241"]
["01657","COL-SEC. DE TRANSITO Y TRANSPO","S.T.T.MAN.","01657-S.T.T.MAN.",null,null,null,"87242"]
["01658","HON-SECRETARIA DE AGRICULTURA","SAG","01658-SAG",null,null,null,"87243"]
["01659","MEX-SECRETARIA DE AGRICULTURA,","SAGARPA","01659-SAGARPA",null,null,null,"87244"]
["01660","HON-SECRETARIA PARA ASUNTOS DE","SAICA","01660-SAICA",null,null,null,"87245"]
["01661","COS-EL SALVADOR","SALVADOR","01661-SALVADOR",null,null,null,"87250"]
["01662","PER-EMPRESA DE GENERACION ELEC","SAN GABAN","01662-SAN GABAN",null,null,null,"87251"]
["01663","POL-SANEPID IN LÓD\u009f","SANEPID","01663-SANEPID",null,null,null,"87252"]
["01664","NIC-SECRETARIA DE COOPERACION","SCE","01664-SCE",null,null,null,"87253"]
["01665","URU-SUPREMA CORTE DE JUSTICIA","SCJ","01665-SCJ",null,null,null,"87254"]
["01666","BYE-STATE COMMITTEE ON SECURIT","SCS","01666-SCS",null,null,null,"87255"]
["01667","MEX-SDC DE MEX ICO CD. JUAREZ","SDC MEXICO","01667-SDC MEXICO",null,null,null,"87256"]
["01668","MEX-SECRETARIA DE ECONOMIA","SE","01668-SE",null,null,null,"87260"]
["01669","COL-SECRETARIA DE GOBIERNO","SEC GOB","01669-SEC GOB",null,null,null,"87261"]
["01670","COL-SECRETARIA DISTRITAL DE SA","SEC SALUD","01670-SEC SALUD",null,null,null,"87299"]
["01671","URU-SECRETARIA PRESIDENCIA DE","SEC.PRESID","01671-SEC.PRESID",null,null,null,"89001"]
["01672","ECU-SECRETARIA NACIONAL DE DIA","SECDIAL","01672-SECDIAL",null,null,null,"89002"]
["01673","COL-SECRETARIA DESARROLLO COMU","SECDLLALMZ","01673-SECDLLALMZ",null,null,null,"89003"]
["01674","COL-SECRETARIA DE HACIENDA DE","SECHACIEND","01674-SECHACIEND",null,null,null,"89100"]
["01675","ROM-MUNICIPALITY SECTOR 3","SECTOR 3","01675-SECTOR 3",null,null,null,"89101"]
["01676","COL-SECTOR PRIVADO GENERAL","SECTPRIV","01676-SECTPRIV",null,null,null,"89102"]
["01677","COL-SECRETARIA DE TRANSITO Y T","SECTRANSP","01677-SECTRANSP",null,null,null,"89103"]
["01678","HON-SECRETARIA DE TURISMO","SECTUR","01678-SECTUR",null,null,null,"89104"]
["01679","MEX-SECRETARÍA DE DESARROLLO A","SEDAGRO","01679-SEDAGRO",null,null,null,"89105"]
["01680","MEX-SECRETARIA DE DESARROLLO S","SEDESOL","01680-SEDESOL",null,null,null,"89106"]
["01681","DOM-SECRETARIA DE ESTADO DE ED","SEEC","01681-SEEC",null,null,null,"89107"]
["01682","CHI-SECRETARIA GENERAL DE LA P","SEGPRES","01682-SEGPRES",null,null,null,"89108"]
["01683","MEX-SECRETARIA DE MEDIO AMBIEN","SEMARNAT","01683-SEMARNAT",null,null,null,"89109"]
["01684","COL-SERVICIO NACIONAL DE APREN","SENA","01684-SENA",null,null,null,"89110"]
["01685","PER-SERVIC. NAC. DE ADIESTRAMI","SENATI","01685-SENATI",null,null,null,"89111"]
["01686","VEN-SERVICIO NACIONAL INTEGRAD","SENIAT","01686-SENIAT",null,null,null,"89112"]
["01687","MEX-SECRETARIA DE PROMOCIÓN EC","SEPROE EST","01687-SEPROE EST",null,null,null,"89113"]
["01688","HON-SECRETARIA DE RECURSOS NAT","SERNA","01688-SERNA",null,null,null,"89114"]
["01689","COL-SERVICOMERCIO LTDA","SERVICOM","01689-SERVICOM",null,null,null,"89115"]
["01690","EGY-SMALL ENTERPRISE SUPPORT &","SESFI","01690-SESFI",null,null,null,"89116"]
["01691","BRA-SERVIÇO SOCIAL DA INDÚSTRI","SESI","01691-SESI",null,null,null,"89117"]
["01692","HON-SECRETARIA TECNICA Y DE CO","SETCO","01692-SETCO",null,null,null,"89118"]
["01693","RUS-SEVERSTAL","SEVERSTAL","01693-SEVERSTAL",null,null,null,"89119"]
["01694","ARM-SPITAK FAMERS' ASSOCIATION","SFA","01694-SFA",null,null,null,"89120"]
["01695","EGY-SOCIAL FUND FOR DEVELOPMEN","SFD","01695-SFD",null,null,null,"89121"]
["01696","HON-SECRETARIA DE GOBERNACION","SGJ","01696-SGJ",null,null,null,"89122"]
["01697","BKF-SHELL FOUDATION","SHELL","01697-SHELL",null,null,null,"89123"]
["01698","STH-ST HELENA GOVERNMENT","SHG","01698-SHG",null,null,null,"89124"]
["01699","CUB-NGO MEXICANA","SIDALAC","01699-SIDALAC",null,null,null,"89125"]
["01700","CHI-SERVICIO DE IMPUESTOS INTE","SII","01700-SII",null,null,null,"89126"]
["01701","ARG-PROVINCIA DE SAN JUAN-MINI","SJUAN-HAC","01701-SJUAN-HAC",null,null,null,"89127"]
["01702","ROM-SLATINA MUNICIPALITY","SLA","01702-SLA",null,null,null,"89128"]
["01703","UNV-SLOVAK MINISTRY OF ECONOMY","SLO  MOE","01703-SLO  MOE",null,null,null,"89129"]
["01704","MEX-SOCIEDAD MEXICANA DE CRIMI","SMC","01704-SMC",null,null,null,"89130"]
["01705","CDF-WADI CROSSING","SMEA","01705-SMEA",null,null,null,"89131"]
["01706","CHI-SERV. SALUD SAN FELIPE","SN.FELIPE","01706-SN.FELIPE",null,null,null,"89132"]
["01707","PER-SOCIEDAD NACIONAL DE INDUS","SNI","01707-SNI",null,null,null,"89133"]
["01708","BUL-SOFIA GREAT MUNICIPALITY","SOF  MUN","01708-SOF  MUN",null,null,null,"89134"]
["01709","HON-SECRETARIA OBRAS PUBLICAS,","SOPTRAVI","01709-SOPTRAVI",null,null,null,"89135"]
["01710","POL-THE SOROS FUNDATION","SOROS FUND","01710-SOROS FUND",null,null,null,"89136"]
["01711","AZE-OPEN SOCIETY INSTITUTE","SOROS-OSI","01711-SOROS-OSI",null,null,null,"89137"]
["01712","POL-M³ODZIE¿OWY O\u008cRODEK SOCJOT","SOS","01712-SOS",null,null,null,"89138"]
["01713","PER-SOUTHERN PERU","SOUTHERN","01713-SOUTHERN",null,null,null,"89139"]
["01714","COL-SUPERINTENDENCIA DE PUERTO","SP.PUERTOS","01714-SP.PUERTOS",null,null,null,"89140"]
["01715","POL-SCHOOL OF PUBLIC HEALTH IN","SPH","01715-SPH",null,null,null,"89141"]
["01716","COL-SOCIEDAD PORTUARIA REGIONA","SPRB","01716-SPRB",null,null,null,"89142"]
["01717","MEX-SECRETARIA DE RELACIONES E","SRE","01717-SRE",null,null,null,"89143"]
["01718","COL-SURAMERICANA DE SEGUROS S.","SS","01718-SS",null,null,null,"89144"]
["01719","MEX-SECRETARÍA DE SALUD","SS","01719-SS",null,null,null,"89145"]
["01720","COL-SUPERINTENDENCIA DE SERVIC","SSPD","01720-SSPD",null,null,null,"89146"]
["01721","TCD-KOREA CONTRIBUTION TO SSTF","SSTF ROK","01721-SSTF ROK",null,null,null,"89147"]
["01722","BOL-SEGURO SOCIAL UNIVERSITARI","SSU","01722-SSU",null,null,null,"89148"]
["01723","BOL-SUPERINTENDENCIA DE TELECO","ST","01723-ST",null,null,null,"89149"]
["01724","MEX-SERVICIO DE TRANSPORTES EL","STE","01724-STE",null,null,null,"89150"]
["01725","BUL-SAINT TRIPHON FOUNDATION","STF","01725-STF",null,null,null,"89200"]
["01726","CHI-SUBSECRETARÍA DE DESARROLL","SUBDERE","01726-SUBDERE",null,null,null,"89201"]
["01727","VEN-GOBERNACION DEL ESTADO SUC","SUCRE","01727-SUCRE",null,null,null,"89202"]
["01728","PER-SUPERINTENDECIA NACIONAL D","SUNAD","01728-SUNAD",null,null,null,"89203"]
["01729","TRI-GOVERNMENT OF SURINAME","SUR G VT","01729-SUR G VT",null,null,null,"89204"]
["01730","LAO-MANAGEMENT SUPPORT TO SUB-","SURF","01730-SURF",null,null,null,"89205"]
["01731","CPR-SUZHOU PURIFICATION EQUIPM","SUZHOU","01731-SUZHOU",null,null,null,"89206"]
["01732","RUS-INSURANCE COMPANY SPASSKIE","SV","01732-SV",null,null,null,"89207"]
["01733","BUL-SVISHTOV MUNICIPALITY","SVI MUN","01733-SVI MUN",null,null,null,"89208"]
["01734","FEM-SWISS NATIONAL COMMITTEE","SWINC","01734-SWINC",null,null,null,"89209"]
["01735","BDI-SWITERLAND","SWIZ","01735-SWIZ",null,null,null,"89210"]
["01736","CHI-SERVICIO SALUD TALCAHUANO","TALCAHUANO","01736-TALCAHUANO",null,null,null,"89300"]
["01737","RUS-TANA","TANA","01737-TANA",null,null,null,"89301"]
["01738","MOR-FONDATION TELEFONICA","TELEFONICA","01738-TELEFONICA",null,null,null,"89302"]
["01739","MEX-TRIBUNAL ELECTORAL DEL POD","TEPJF","01739-TEPJF",null,null,null,"89303"]
["01740","ARG-PROV.TIERRA DEL FUEGO-MIN.","TFUE ECON","01740-TFUE ECON",null,null,null,"89304"]
["01741","ROM-TARGU JIU MUNICIPALITY","TGJIU","01741-TGJIU",null,null,null,"89305"]
["01742","ROM-MUNICIPALITY OF TARGOVISTE","TGV","01742-TGV",null,null,null,"89306"]
["01743","UKR-TICA","TICA","01743-TICA",null,null,null,"89307"]
["01744","BYE-TIDES FOUNDATION","TIDES","01744-TIDES",null,null,null,"89308"]
["01745","URU-TORNAY Y MORI S.A.","TORNAY","01745-TORNAY",null,null,null,"89309"]
["01746","PER-TESORO PUBLICO","TP","01746-TP",null,null,null,"89310"]
["01747","JAM-TOWN PLANNING DEPARTMENT","TPD","01747-TPD",null,null,null,"89999"]
["01748","HAI-MINISTERE DES TRAVAUX PUBL","TPTC","01748-TPTC",null,null,null,"90075"]
["01749","CHI-TRANSANTTIAGO","TRANSANTIA","01749-TRANSANTIA",null,null,null,"90076"]
["01750","COL-TRANSMILENIO S.A","TRANSMILEN","01750-TRANSMILEN",null,null,null,"90078"]
["01751","TRI-THE GOVERNMENT OF TRINIDAD","TRI GOVT","01751-TRI GOVT",null,null,null,"90082"]
["01752","UNV-TRINIDAD & TOBAGO","TRI GOVT","01752-TRI GOVT",null,null,null,"90083"]
["01753","TRI-MINISTRY OF HEALTH, TRINID","TRIMOH","01753-TRIMOH",null,null,null,"90084"]
["01754","POL-TOWARZYSTWO ROZWOJU RODZIN","TRR O","01754-TRR O",null,null,null,"90085"]
["01755","POL-TOWARZYSTWO ROZWOJU RODZIN","TRR ZG","01755-TRR ZG"]
["01756","VEN-GOBERNACION DEL ESTADO TRU","TRUJILLO","01756-TRUJILLO"]
["01757","COS-TRIBUNAL SUPREMO DE ELECCI","TSE","01757-TSE"]
["01758","BUL-VELIKO TURNOVO MUNICIPALIT","TUR MUN","01758-TUR MUN"]
["01759","CHI-UNIVERSIDAD AUSTRAL DE CHI","UACH","01759-UACH"]
["01760","COL-UNIDAD ADMINISTRATIVA ESPE","UAEAC","01760-UAEAC"]
["01761","COL-UNIDAD ADMTIVA ESPECIAL SI","UAESPNN","01761-UAESPNN"]
["01762","BOL-UNIVERSIDAD AUTÓNOMA GABRI","UAGRM","01762-UAGRM"]
["01763","HAI-UCG","UCG","01763-UCG"]
["01764","CHI-UNIVERSIDAD DE CHILE","UCHILE","01764-UCHILE"]
["01765","ECU-UNUDAD DE COORD. PARA ENFR","UCNIÑO","01765-UCNIÑO"]
["01766","URU-UNIVERSIDAD CATOLICA DEL U","UCUDAL","01766-UCUDAL"]
["01767","CHI-UNIVERSIDAD DE CONCEPCION","UDEC","01767-UDEC"]
["01768","ECU-UNIDAD DE DESARROLLO NORTE","UDENOR","01768-UDENOR"]
["01769","CHI-UNIVERSIDAD DIEGO PORTALES","UDP","01769-UDP"]
["01770","ARG-UNIÓN EUROPEA","UE","01770-UE"]
["01771","NIC-UNION EUROPEA","UE","01771-UE"]
["01772","PER-UNION EUROPEA","UE","01772-UE"]
["01773","POL-UKRAINIAN GOVERNMENTT","UKR-GOV","01773-UKR-GOV"]
["01774","UKR-UKRAINE","UKRAINE","01774-UKRAINE"]
["01775","UKR-UKRTELECOM","UKRTELECOM","01775-UKRTELECOM"]
["01776","MOR-UNION DU MAGHREB ARABE","UMA","01776-UMA"]
["01777","BOL-UNIVERSIDAD MAYOR DE SAN A","UMSA","01777-UMSA"]
["01778","BOL-UNIVERSIDAD MAYOR DE SAN S","UMSS","01778-UMSS"]
["01779","CMB-UNITED NATIONS ASSOCIATION","UNA/USA","01779-UNA/USA"]
["01780","DOM-UNITED NATIONS PROGRAMME O","UNAIDS","01780-UNAIDS"]
["01781","LAO-UNITED NATIONS AIDS PROGRA","UNAIDS","01781-UNAIDS"]
["01782","MEX-U N A I D S","UNAIDS","01782-UNAIDS"]
["01783","NIR-UN AIDS","UNAIDS","01783-UNAIDS"]
["01784","POL-UNAIDS","UNAIDS","01784-UNAIDS"]
["01785","MEX-UNIVERSIDAD NACIONAL AUTON","UNAM","01785-UNAM"]
["01786","SLO-C/S INTEREST INCOME","UND","01786-UND"]
["01787","COL-UNITED NATIONS DEVELOPMENT","UND","01787-UND"]
["01788","BOT-UNITED NATIONS DEPARTMENT","UNDESA","01788-UNDESA"]
["01789","BKF-UNDP (DIRECT EXECUTION)","UNDP","01789-UNDP"]
["01790","CHI-UNITED NATIONS  DEVELOPMEN","UNDP","01790-UNDP"]
["01791","ECU-UNDP - ADJUSTMENTS","UNDP","01791-UNDP"]
["01792","NIC-PROGRAMA DE NACIONES UNIDA","UNDP","01792-UNDP"]
["01793","YUG-UNDP","UNDP","01793-UNDP"]
["01794","THA-UNDP - ADJUSTMENT","UNDP (ADJ)","01794-UNDP (ADJ)"]
["01795","UGA-UNDP/ ADJUSTMENTS","UNDP (ADJ)","01795-UNDP (ADJ)"]
["01796","GHA-UNDP (RBA)","UNDP (RBA)","01796-UNDP (RBA)"]
["01797","DOM-UNITED NATIONS DEVELOPMENT","UNDP /ADJ.","01797-UNDP /ADJ."]
["01798","ZIM-UNDP ADJUSTMENTS","UNDP ADJ","01798-UNDP ADJ"]
["01799","MEX-UNITED NATIONS DEVELOPMENT","UNDP-ADJ","01799-UNDP-ADJ"]
["01800","PER-UNDP EXTRABUDGETARY ACCOUN","UNDP-XB","01800-UNDP-XB"]
["01801","ELS-UNDP ADJUSTMENT","UNDP/ADJ","01801-UNDP/ADJ"]
["01802","VIE-CCF CS ACCOUNT","UNDP/ADJ","01802-UNDP/ADJ"]
["01803","BAH-UNDP ADJUSTMENTS","UNDP/ADJ.","01803-UNDP/ADJ."]
["01804","BAR-UNITED NATIONS ENVIRONMENT","UNEP","01804-UNEP"]
["01805","BOT-UNITED NATIONS FOUNDATION","UNFP","01805-UNFP"]
["01806","MEX-UN CHILDREN´S FUND","UNICEF","01806-UNICEF"]
["01807","NIC-FONDO DE LAS NACIONES UNID","UNICEF","01807-UNICEF"]
["01808","COL-UNIVERSIDAD DE CORDOBA","UNICORDOBA","01808-UNICORDOBA"]
["01809","UKR-KIEV NAT-L T. SHEVCHENKO U","UNIVERSITY","01809-UNIVERSITY"]
["01810","VEN-OFFICE OF PROJECT SERVICES","UNOPS","01810-UNOPS"]
["01811","TUN-UNSIDA","UNSIDA","01811-UNSIDA"]
["01812","URU-UNIDAD REGULADORA DE SERVI","URSEA","01812-URSEA"]
["01813","FEM-US NATIONAL COMMITTEE","US NC","01813-US NC"]
["01814","CHI-UNIVERSIDAD DE SANTIAGO","USACH","01814-USACH"]
["01815","MAG-UNITED STATES AGENCY","USAID","01815-USAID"]
["01816","URU-UNIDA DE SEGUIMIENTO DE PR","USPI","01816-USPI"]
["01817","CHI-UNIVERSIDAD TÉCNICA FEDERI","UTFSM","01817-UTFSM"]
["01818","CHI-UNIVERSIDAD DE VALPARAISO","UV","01818-UV"]
["01819","CHI-SERVICIO SALUD VALDIVIA","VALDIVIA","01819-VALDIVIA"]
["01820","CHI-SERV. SALUD VALPARAISO","VALPARAISO","01820-VALPARAISO"]
["01821","ECU-VARIOS DONANTES","VARIOS","01821-VARIOS"]
["01822","PER-VARIOS PROYECTOS","VARPRO","01822-VARPRO"]
["01823","ROM-VATRA DORNEI MUNICIPALITY","VDORNEI","01823-VDORNEI"]
["01824","COL-VEEDURIA DISTRITAL","VEEDIST.","01824-VEEDIST."]
["01825","BOL-VICEMINISTERIO DE ENERGÍA","VEH","01825-VEH"]
["01826","COL-VICEMINISTERIO DE DESARROL","VICEDESAR","01826-VICEDESAR"]
["01827","CHI-SERV. SALUD VIÑA DEL MAR Q","VIÑA","01827-VIÑA"]
["01828","BOL-VICEMINISTERIO DE INVERSIÓ","VIPFE","01828-VIPFE"]
["01829","RUS-NPO VIRION","VIRION","01829-VIRION"]
["01830","BOL-VICEMINISTERIO DE MINERÍA","VMM","01830-VMM"]
["01831","BOL-VICEMINISTERIO DE PLANIFIC","VPEPP","01831-VPEPP"]
["01832","BOL-VICEPRESIDENCIA DE LA REPÚ","VPRES","01832-VPRES"]
["01833","BOL-VICEMINISTERIO DE POLÍTICA","VPT","01833-VPT"]
["01834","BOL-VICEMINISTERIO DE SERVICIO","VSB","01834-VSB"]
["01835","BUL-VELIKO TARNOVO MUNICIPALIT","VT MUN","01835-VT MUN"]
["01836","BOL-VICEMINISTERIO DE TESORO Y","VTCP","01836-VTCP"]
["01837","TRI-WORLD BANK","WB","01837-WB"]
["01838","TUK-WOMEN'S COUNCIL NAMED AFTE","WC","01838-WC"]
["01839","BYE-WORLD HEALTH ORGANIZATION","WHO","01839-WHO"]
["01840","BYE-WETLANDS INTERNATIONAL","WI","01840-WI"]
["01841","UKR-NGO WOMEN IN MEDIA","WIM NGO","01841-WIM NGO"]
["01842","POL-CITY OF WROCLAW","WROCLAW","01842-WROCLAW"]
["01843","POL-WY¿SZA SZKO³A PEDAGOGICZNA","WSP ZG","01843-WSP ZG"]
["01844","POL-WARSZAWSKIE TOWARZYSTWO DO","WTD","01844-WTD"]
["01845","TUK-YOUTH UNION","YU","01845-YU"]
["01846","FEM-ZONTA INTERNATIONAL","ZI","01846-ZI"]
["01847","NIR-ZENITH INTERNATIONAL BANK","ZIB","01847-ZIB"]
["01848","POL-MIASTO & GMINA ZMIGRÓD","ZMIGROD","01848-ZMIGROD"]
["01849","PER-ZONA FRANCA DE ILO","ZOFRILO","01849-ZOFRILO"]
["01850","PER-ZONA FRANCA DE TACNA","ZOTAC","01850-ZOTAC"]
["01851","CONVERSION MULTI-SPONSOR","CNVMULTI","01851-CNVMULTI"]
["01852","International Atomic Energy Ag","IAEA","01852-IAEA"]
["01853","UNITED NATIONS CAPITAL DEVELOP","UNCDF","01853-UNCDF"]
["01854","ESCAP","ESCAP","01854-ESCAP"]
["01855","Economic Commission for Africa","ECA","01855-ECA"]
["01856","World Intellectual Property Or","WIPO","01856-WIPO"]
["01857","World Tourism Organization","WTO","01857-WTO"]
["01858","UN Mission in DRC","MONUC","01858-MONUC"]
["01859","UN Centre Int'l Crime Prev'n >","UNCICP","01859-UNCICP"]
["01860","UN High Com'r Human Rights","UNHCHR","01860-UNHCHR"]
["01861","UN Office in Geneva","UNOG","01861-UNOG"]
["01862","UN Office in Nairobi","UNON","01862-UNON"]
["01863","UN Office in Vienna","UNOV","01863-UNOV"]
["01864","World Trade Organization","WTRADE","01864-WTRADE"]
["01865","UN Information Centre","UNIC","01865-UNIC"]
["10003","Global Environment Fund Truste","GEFTrustee","10003-GEFTrustee"]
["10004","UN INSITUTION FOR TRAINING AND","UNITAR","10004-UNITAR"]
["10005","UNIVERSITY FOR PEACE","UNIVERSITY","10005-UNIVERSITY"]
["10006","COMMON FUND FOR COMMODITIES","CFC","10006-CFC"]
["10007","UN Joint Staff Pension Fund","UNJSPF","10007-UNJSPF"]
["10008","UN Office for Project Services","UNOPS","10008-UNOPS"]
["10009","MONTREAL PROTOCOL","MPU","10009-MPU"]
["10010","UNITED NATIONS FEDERAL CREDIT","UNFCU","10010-UNFCU"]
["10011","FORO NACIONAL DEL VIH/SIDA","FORO VIH","10011-FORO VIH"]
["10012","BILL AND MELINDA GATES FOUNDAT","GATESFOUND","10012-GATESFOUND"]
["10013","GLOBAL ALLIANCE FOR IMPROVED N","GAIN","10013-GAIN"]
["10014","STATOIL INTERNATIONAL VENEZULA","STATOIL IN","10014-STATOIL IN"]
["10015","CONEX AIR SERVICES","CONEX AIR","10015-CONEX AIR"]
["10016","CHEVRON OVERSEAS CONGO LTD","CHEVRON OV","10016-CHEVRON OV"]
["10017","IBRAHIMA TRAORE","RR UNHCR","10017-RR UNHCR"]
["10018","INTER BANK FOR RECONST AND DEV","IBRD","10018-IBRD"]
["10020","APPUI A L'ELABORATION ET A LA","PROJET PRC","10020-PROJET PRC"]
["10021","PUMA INTERNATIONALE","PUMA INTER","10021-PUMA INTER"]
["10022","ETS SUPER MARKET","ETS SUPER","10022-ETS SUPER"]
["10024","ZETHA MP CONGO","ZMPCOG","10024-ZMPCOG"]
["10025","UN INTERREGIONAL CRIME AND JUS","UNICRI","10025-UNICRI"]
["10026","BUL MINISTRY OF JUSTICE","MINJUSTICE","10026-MINJUSTICE"]
["10027","BUL MINISTRY OF ECONOMY","MINECONOMY","10027-MINECONOMY"]
["10028","PKN ORLEN S.A.","PKN ORLEN","10028-PKN ORLEN"]
["10029","PLATEAU STATE GOVERNMENT","PLATEAU ST","10029-PLATEAU ST"]
["10030","KWARA STATE GOVERNMENT","KWARA STAT","10030-KWARA STAT"]
["10031","OSUN STATE GOVERNMENT","OSUN STATE","10031-OSUN STATE"]
["10032","KOGI STATE GOVERNMENT","KOGI STATE","10032-KOGI STATE"]
["10033","KEBBI STATE GOVERNMENT","KEBBI STAT","10033-KEBBI STAT"]
["10034","JIGAWA STATE GOVERNMENT","JIGAWA STA","10034-JIGAWA STA"]
["10035","IMO STATE GOVERNMENT","IMO STATE","10035-IMO STATE"]
["10036","UNOPS for interunit billing","UNOPS for","10036-UNOPS for"]
["10037","UNFPA INTERUNIT BILLING","UNFPA BILL","10037-UNFPA BILL"]
["10038","UNCDF INTERUNIT BILLING","UNCDF","10038-UNCDF"]
["10039","UNIFEM - INTERUNIT BILLING","UNIFEM - I","10039-UNIFEM - I"]
["10040","NAZHRAN ELECTROMACHINERY PLANT","FGUP NZEMM","10040-FGUP NZEMM"]
["10041","AZE ENGINEERING GMBH","AZE ENG","10041-AZE ENG"]
["10042","MUNCIPIO DE DISTRITO QUITO (DO","MUNCIPIO","10042-MUNCIPIO"]
["10043","IAPSO CUSTOMER - PRIVATE","IAPSOPRIVA","10043-IAPSOPRIVA"]
["10044","IAPSO CUSTOMER- MISC","IAPSO MISC","10044-IAPSO MISC"]
["10045","IAPSO CUSTOMER - NON CLASSIFIE","IAPSOUNID","10045-IAPSOUNID"]
["10046","GTZ","GTZ","10046-GTZ"]
["10047","CIAT-INT CEN TROPICAL AGRIC","CIAT","10047-CIAT"]
["10048","CARE INTERNATIONAL","CARE","10048-CARE"]
["10049","EGLISE EVANG LUTHERIENNE CAM","EVANGLUTH","10049-EVANGLUTH"]
["10050","ENRP/IRAQ","ENRPIRAQ","10050-ENRPIRAQ"]
["10051","ICRAF - INTL CENTRE FRO RESEA","ICRAF","10051-ICRAF"]
["10052","ICRISAT","ICRISAT","10052-ICRISAT"]
["10053","INT CENTRE OF INSECT P&E","ICIPE","10053-ICIPE"]
["10054","MISSION AVIATION FELLOWSHIP -","MISSIONAVA","10054-MISSIONAVA"]
["10055","PINGST MISSIONENS ULANSHJAELP","PINGST","10055-PINGST"]
["10056","SAVE THE CHILDREN FUND","SAVECHILD","10056-SAVECHILD"]
["10057","EMPRESAS PRIVADAS","MEX EMPRES","10057-MEX EMPRES"]
["10058","TECHNISCHES HILFSWERK","TECHHILFSW","10058-TECHHILFSW"]
["10059","UGANDA CTB PROJECT","RCTBUGA","10059-RCTBUGA"]
["10060","UNIDEP-AFR INST FOR ECONOM DEV","UNIDEPAFR","10060-UNIDEPAFR"]
["10061","STOP TB PROGRAMME - WHO","WHOSTOPTB","10061-WHOSTOPTB"]
["10062","World Wildlife Fund -WWF","WWF","10062-WWF"]
["10063","BEGECA","BEGECA","10063-BEGECA"]
["10064","CROWN AGENTS DENMARK","CROWNAGEN","10064-CROWNAGEN"]
["10065","MEDECINS SANS FRONTIERES","MSF","10065-MSF"]
["10066","WEM","WEM","10066-WEM"]
["10067","DEUTSCHE WELTHUNGERHILFE","DWHH","10067-DWHH"]
["10068","AUTO TRADING A/S","AUTOTRADIN","10068-AUTOTRADIN"]
["10069","AFRICAN INSTITUTE FOR ECONOMIC","AFRINSTECO","10069-AFRINSTECO"]
["10070","AMERICAN EXPRESS CORPORATE","AMEX","10070-AMEX"]
["10071","AMERICAN FRIENDS SERVICE COMM.","AMRFRIEND","10071-AMRFRIEND"]
["10072","AMERICAN REFUGEE COMMITTEE","REFUGEUSA","10072-REFUGEUSA"]
["10073","APOPO","APOPO","10073-APOPO"]
["10074","CENAGREF","CENAGREF","10074-CENAGREF"]
["10075","CHURCH OF CHRIST","CHURCHCHRI","10075-CHURCHCHRI"]
["10076","CONSORTIUM","CONSORTIUM","10076-CONSORTIUM"]
["10077","DACAARPAK-AFG","DACAARPAK","10077-DACAARPAK"]
["10078","EIRENE-IN CHRIS SERV FOR PEACE","EIRENEIN","10078-EIRENEIN"]
["10079","EMMANUEL INTERNATIONAL","EMMANUELI","10079-EMMANUELI"]
["10080","EU COMMISSION, VENEZUELA","EUCOMMVEN","10080-EUCOMMVEN"]
["10081","FAO/INDIAN OCEAN TUNA COMMISSI","FAOINDIAN","10081-FAOINDIAN"]
["10082","GERMAN RED CROSS","GERREDCROS","10082-GERREDCROS"]
["10083","HANDICAP INTERNATIONAL","HANDICAPI","10083-HANDICAPI"]
["10084","KNCV","KNCV","10084-KNCV"]
["10085","LAND MANAGEMENT&ADM PROJ","LMAP","10085-LMAP"]
["10086","MULTI-SECTORIAL HIV/AIDS PROJE","MULTIAIDS","10086-MULTIAIDS"]
["10087","NETHERLANDS LEPROSY RELIEF","LEPROSYNL","10087-LEPROSYNL"]
["10088","NIC INTERNATIONAL B.V.","NIC","10088-NIC"]
["10089","NORWEGIAN PEOPLES AID","NPA","10089-NPA"]
["10090","NORWEGIAN REFUGEE COUNCIL","REFUGENOR","10090-REFUGENOR"]
["10091","PAR PROJECT","PARPROJECT","10091-PARPROJECT"]
["10092","PSI-CAMBODIA","PSICAMBOD","10092-PSICAMBOD"]
["10093","RIKSREVISIONSVERKET UT/S/UTLAN","RIKULTAN","10093-RIKULTAN"]
["10094","RURAL DEV PROJECT IN BOKEO","RURALDEV","10094-RURALDEV"]
["10095","SWEDISH COOPERATIVE CENTRE","COOPSWE","10095-COOPSWE"]
["10096","TECHNOSERVE-TANZANIA","TECHNOSERV","10096-TECHNOSERV"]
["10097","THE SEC STEERING COMM-TANZANIA","STCOMTANZ","10097-STCOMTANZ"]
["10098","UIC","UIC","10098-UIC"]
["10099","UN INT CRIMINAL TRIB FOR RWAND","UNICTRLRWA","10099-UNICTRLRWA"]
["10100","UNFCCC","UNFCCC","10100-UNFCCC"]
["10101","UNMIK","UNMIK","10101-UNMIK"]
["10102","UNOCHA","UNOCHA","10102-UNOCHA"]
["10103","UNOV, VIENNA","UNOVVIEN","10103-UNOVVIEN"]
["10104","WAEC-GHANA","WAECGHANA","10104-WAECGHANA"]
["10105","WELLCOME TRUST TROPICAL CENTRE","WELLCOME","10105-WELLCOME"]
["10106","WORLD CONCERN - LAO","WORLDCONC","10106-WORLDCONC"]
["10107","YMCA -CARE INTERNATIONAL","YMCA-CARE","10107-YMCA-CARE"]
["10108","ZAMBIA SOCIAL INVESTMENT FUND","SIVZAMBIA","10108-SIVZAMBIA"]
["10109","DET KGL UTENRIKSDEPARTEMENT","DETKGLUT","10109-DETKGLUT"]
["10110","NORWEGIAN LUTHERAN MISSION","LUTHERNNOR","10110-LUTHERNNOR"]
["10111","THE GLOBAL FUND","GLOBALFUND","10111-GLOBALFUND"]
["10112","DANISH EMBASSY-NICARAGUA","EMBDENNIC","10112-EMBDENNIC"]
["10113","MINISTRY OF FINANCE","MOF","10113-MOF"]
["10114","MIN OF LAB, HEALTH AND-GEORGIA","MOLHGEORG","10114-MOLHGEORG"]
["10115","EMBASSY OF INDONESIA","EMBINDONE","10115-EMBINDONE"]
["10116","EMBASSY OF IRELAND ETHIOPIA","EMBIRAETH","10116-EMBIRAETH"]
["10117","MINISTRY OF HEALTH-TONGA","MOHTONGA","10117-MOHTONGA"]
["10118","ROYAL DANISH EMBASSY - MALAWI","EMBDENMLW","10118-EMBDENMLW"]
["10119","DANISH REFUGEE COUNCIL","DANISHREF","10119-DANISHREF"]
["10120","UNAIDS-CHINA","UNAIDSCHI","10120-UNAIDSCHI"]
["10121","UNFPA - ETHIOPIA","UNFPAET","10121-UNFPAET"]
["10122","INT CRIMINAL TRIBUNAL RWANDA","ICTRLRWA","10122-ICTRLRWA"]
["10123","UNDP - URUGUAY","UNDPURU","10123-UNDPURU"]
["10124","NORDIC DEVELOPMENT FUND","NORDIC DEV","10124-NORDIC DEV"]
["10125","MUNICIPO DE QUITO (DONOR)","MUNQUITO","10125-MUNQUITO"]
["10126","Preparatory Comm for Compreh N","CTBTO","10126-CTBTO"]
["10127","CHEVRON MAUNAIGAS  INC - KAZAK","KAZ-CHEVRO","10127-KAZ-CHEVRO"]
["10128","INTERNATIONAL RENASISSANCE FOU","IRF","10128-IRF"]
["10129","YUKOS OIL COMPANY","YUKOS OIL","10129-YUKOS OIL"]
["10130","BRITISH FOREIGN OFFICE - RUSSI","BFCO","10130-BFCO"]
["10131","STATOIL INTERNATIONAL VENEZUEL","STATOIL IN","10131-STATOIL IN"]
["10133","KYR ACCOUNTS RECEIVABLE","KYRAR","10133-KYRAR"]
["10134","YOBE STATE GOVERNMENT","YOBE STATE","10134-YOBE STATE"]
["10135","RIVERS STATE GOVERNMENT","RIVERS STA","10135-RIVERS STA"]
["10136","OYO STATE GOVERNMENT","OYO STATE","10136-OYO STATE"]
["10137","OGUN STATE GOVERNMENT","OGUN STATE","10137-OGUN STATE"]
["10138","KANO STATE GOVERNMENT","KANO STATE","10138-KANO STATE"]
["10139","BORNO STATE GOVERNMENT","BORNO STAT","10139-BORNO STAT"]
["10140","TARABA STATE GOVERNMENT","TARABA STA","10140-TARABA STA"]
["10141","FCT, ABUJA","FCT, ABUJA","10141-FCT, ABUJA"]
["10142","AMERICAN BANK OF ALBANIA","A.B.A.","10142-A.B.A."]
["10143","ALB-MINISTRY OF FOREIGN AFFAIR","ALB-MIN FA","10143-ALB-MIN FA"]
["10144","FUNDACION MALECON 2000 (DONOR)","MALECON","10144-MALECON"]
["10145","PER-MUNICIPALIDAD DE SAN ISIDR","PER-MSI","10145-PER-MSI"]
["10146","PER-REGION LORETO","RLORETO","10146-RLORETO"]
["10147","MINISTERIO DE LA PRODUCCION","PRODUCE","10147-PRODUCE"]
["10148","LBN-MINISTRY OF DISPLACED","LBN-MoD","10148-LBN-MoD"]
["10149","DANISH AFGHANISTAN COMMITTEE","DANISH AFG","10149-DANISH AFG"]
["10150","INTL AGENCY FOR RESEARCH ON CA","INTL AGENC","10150-INTL AGENC"]
["10151","NETHERLANDS EMBASSY MOSCOW","NETHERLAND","10151-NETHERLAND"]
["10152","MEDICAL RESEARCH COUNCIL","MEDICAL RE","10152-MEDICAL RE"]
["10153","UN Department of Safety and Se","UNDSS","10153-UNDSS"]
["10154","INTERNATIONAL WOMEN'S DEVELOPM","IWDA","10154-IWDA"]
["10155","TRYG INSURANCE CO","TRYG INSUR","10155-TRYG INSUR"]
["10156","CONCERN","CONCERN","10156-CONCERN"]
["10157","AFRICAN DEV BANK BORROWER","AFDBB","10157-AFDBB"]
["10158","WORLD BANK BORROWER","WBB","10158-WBB"]
["10159","EUROPEAN COMMISSION","EUCOMM","10159-EUCOMM"]
["10160","THE CONSORTIUM LAO","CONSORLAO","10160-CONSORLAO"]
["10161","ASIAN DEV BANK BORROWER","ASIANDEVBB","10161-ASIANDEVBB"]
["10162","IAPSO MISC VENDORS","IAPSOVEND","10162-IAPSOVEND"]
["10163","MEDICAL EMERGENCY RELIEF INTER","MERLIN","10163-MERLIN"]
["10164","IAPSO TRAINING COURSE CUSTOMER","IAPSOTRGCU","10164-IAPSOTRGCU"]
["10165","PEREZ-GUERRERO TRUST FUND","PGTF","10165-PGTF"]
["10166","BUREAU FOR CRISIS PREVENTION A","BCPR","10166-BCPR"]
["10167","DONORS GROUP","DAG","10167-DAG"]
["10168","COS CEGESTI","CEGESTI","10168-CEGESTI"]
["10170","HARCERSKIE BIURO WYDAWNICZE HO","HORYZONTHY","10170-HORYZONTHY"]
["10171","CENTRE PARLMENTAIRE CANADIEN","CPC","10171-CPC"]
["10172","LINDEN ADVANCEMENT ADVANCE PRO","LEAP","10172-LEAP"]
["10173","COUNCIL OF EUROPE DEVELOPMENT","CEB","10173-CEB"]
["10174","SHELL BP DJIBOUTI","SHELL DJIB","10174-SHELL DJIB"]
["10175","INSTITUTE MULTI-DEMOCRACY","INSTITUTE","10175-INSTITUTE"]
["10176","COL-SECRETARIA DE EDUCACION DE","COLSECEDMA","10176-COLSECEDMA"]
["10177","UNIFIL, NAQUORA","UNIFIL","10177-UNIFIL"]
["10178","UNLB, BRINDISI","UNLB, BRIN","10178-UNLB, BRIN"]
["10179","UNMEE, ETHIOPIA, ERITREA","UNMEE, ETH","10179-UNMEE, ETH"]
["10180","UNMIK, KOSOVO","UNMIK, KOS","10180-UNMIK, KOS"]
["10181","UNMIL, LIBERIA","UNMIL, LIB","10181-UNMIL, LIB"]
["10182","UNMISET, EAST TIMOR","UNMISET, E","10182-UNMISET, E"]
["10183","UNMOGIP, RAWALPINDI","UNMOGIP","10183-UNMOGIP"]
["10184","UNOB, BUJUMBURA","UNOB,BUJU","10184-UNOB,BUJU"]
["10185","UNOHCI, LARNACA","UNOHCI, LA","10185-UNOHCI, LA"]
["10186","UNOMIG, SUKHUMI","UNOMIG","10186-UNOMIG"]
["10187","UNOMB, BOUGAINVILLE","UNOMB","10187-UNOMB"]
["10188","UNSCO, GAZA","UNSCO, GAZ","10188-UNSCO, GAZ"]
["10189","UNTOP, DUSHANBE","UNTOP, DUS","10189-UNTOP, DUS"]
["10190","UNTSO, JERUSALEM","UNTSO, JER","10190-UNTSO, JER"]
["10191","UNCCD, BONN","UNCCD, BON","10191-UNCCD, BON"]
["10192","UNFCCC, BONN","UNFCCC, BO","10192-UNFCCC, BO"]
["10193","BONUCA, BANGUI","BONUCA","10193-BONUCA"]
["10194","ECLAC MEXICO","ECLAC-MEX","10194-ECLAC-MEX"]
["10195","ECLAC-TTO,PORT OF SPAIN","ECLAC-TTO","10195-ECLAC-TTO"]
["10196","ICTR-TZA, ARUSHA","ICTR-ARU","10196-ICTR-ARU"]
["10197","ICTY,THE HAGUE","ICTY,HAGU","10197-ICTY,HAGU"]
["10198","INSTRAW-DOM, SANTO DOMINGO","INSTRAW-DO","10198-INSTRAW-DO"]
["10199","MINUCI-CIV,ABIDJAN","MINUCI-CIV","10199-MINUCI-CIV"]
["10200","MINUGUA-GTM,GUATEMALA","MINUGUA","10200-MINUGUA"]
["10201","MINURSO, LAAYOUNE","MINURSO, L","10201-MINURSO, L"]
["10202","UNAMI, BAGHDAD","UNAMI, BAG","10202-UNAMI, BAG"]
["10203","UNAMA, KABUL","UNAMA, KAB","10203-UNAMA, KAB"]
["10204","UNAMSIL, FREETOWN","UNAMSIL","10204-UNAMSIL"]
["10205","UNDCP/ODCCP, VIENNA","UNDCPODCCP","10205-UNDCPODCCP"]
["10206","UNDOF, CAMP FAQUAR","UNDOF","10206-UNDOF"]
["10207","UNFICYP, NICOSIA","UNFICYP","10207-UNFICYP"]
["10208","SIPAA - ACTIONAID AFRICA","SIPAA","10208-SIPAA"]
["10209","SURVEY ACTION CENTER","SAC","10209-SAC"]
["10210","GUA-NIMD","GUA-NIMD","10210-GUA-NIMD"]
["10211","SERVICIO NACIONAL DE LA MUJER","SERNAM","10211-SERNAM"]
["10212","EMPRESA DE RENOVACION URBANA D","RENOVURBAN","10212-RENOVURBAN"]
["10213","FUNDACION ZERI","FUNDAZERI","10213-FUNDAZERI"]
["10214","INCODER","INCODER","10214-INCODER"]
["10215","NORTH & EAST CR&D PROJECT","NECORD","10215-NECORD"]
["10216","AG. ESPANOLA DE COOPERACION IN","AECI","10216-AECI"]
["10217","AVINA FOUNDATION","AVINA","10217-AVINA"]
["10218","UNIVERSIDAD COLUMBIA","UCOLUMBIA","10218-UCOLUMBIA"]
["10219","TRAIN SEA COAST","TSC","10219-TSC"]
["10220","URZAD MIASTA OSTROW WIELKOPOLS","OSTROW","10220-OSTROW"]
["10221","UN MISSIONS IN BOSNIA AND HERZ","UNMIBH","10221-UNMIBH"]
["10222","FERT FRANCE","FERT","10222-FERT"]
["10223","INSTITUTO NACIONAL DE ESTADIST","INE","10223-INE"]
["10224","INTERCHURCH ORG FOR DEVELOPMEN","ICCO","10224-ICCO"]
["10225","EXPOSURE AND DIALOQUE EU","LUIA","10225-LUIA"]
["10226","LAY VOLUNTEERS INTERNATIONAL A","LUIA","10226-LUIA"]
["10227","AMAZON.COM INC","AMAZON.COM","10227-AMAZON.COM"]
["10228","Aarhus United A/S","AarhusUnit","10228-AarhusUnit"]
["10229","INTERNATIONAL LIVESTOCK RESEAR","ILRI","10229-ILRI"]
["10230","EMBASSY OF ITALY IN VIET NAM","EMITA","10230-EMITA"]
["10231","WEST AFRICAN EXAMINATIONS COUN","WAEC","10231-WAEC"]
["10232","UN FRAMEWORK CONVENTION ON CLI","UNFCCC","10232-UNFCCC"]
["10233","MENSCHEN FUR MENSCHEN FOUNDATI","MFM","10233-MFM"]
["10234","UN CONVENTION TO COMBAT DESERT","UNCCD","10234-UNCCD"]
["10235","DEUTSCHER CARITAS","CARITASGER","10235-CARITASGER"]
["10236","PROJECT AEPA-FAD AFRICA DEV FU","AEPA-FAD","10236-AEPA-FAD"]
["10237","FED MINISTRY FOR ECONOMIC COOP","UNV BMZ","10237-UNV BMZ"]
["10238","UNISDR","UNISDR","10238-UNISDR"]
["10239","FED MINISTRY FOR THE ENVIRO -","BMU","10239-BMU"]
["10240","StopTB-Direct Procurement Clie","StopTBDir","10240-StopTBDir"]
["10241","VIVAT FOUNDATION","VIVAT FOUN","10241-VIVAT FOUN"]
["10242","DANXX","DANXX","10242-DANXX"]
["10243","INTERNATIONAL CENTRE OF INSECT","ICIPE","10243-ICIPE"]
["10244","PEACE X PEACE","PEACE X","10244-PEACE X"]
["10245","OPEN SOCIETY INSTITUTE","OSI","10245-OSI"]
["10246","FINANCIERA NICARAGUENSE DE INV","FINANCIERA","10246-FINANCIERA"]
["10247","IAPSO Customers with Balance d","IAPSOCust","10247-IAPSOCust"]
["10248","BRITISH PETROLEUM","BP","10248-BP"]
["10249","CORP DESARROLLO Y PAZ TOLIMA","TOLIPAZ","10249-TOLIPAZ"]
["10250","International Rice Research in","Internatio","10250-Internatio"]
["10251","ORG FOR THE PROHIBITION CHEMIC","OPCW","10251-OPCW"]
["10252","DANISH RED CROSS","DANISHRC","10252-DANISHRC"]
["10253","NATIONAL COMMISSION FOR PRIVAT","NATIONAL C","10253-NATIONAL C"]
["10254","WEST AFRICAN RICE DEVELOPMENT","WEST AFRIC","10254-WEST AFRIC"]
["10255","JOVENES DEL TERCER MUNDO","JOVENES DE","10255-JOVENES DE"]
["10256","DANISH LUTHERAN MISSION","DANISH LUT","10256-DANISH LUT"]
["10257","FOUNDATION INTERNATIONAL CARRE","CARREFOUR","10257-CARREFOUR"]
["10258","EGYPTIAN TELECOMMUNCATION COMP","EGYPTIAN T","10258-EGYPTIAN T"]
["10259","National Telecom Regulatory Au","NTRA","10259-NTRA"]
["10260","TELECOM EGYPT","TELECOM EG","10260-TELECOM EG"]
["10261","NATIONAL POSTAL ORGANIZATION","NPO","10261-NPO"]
["10262","COMISION NACIONAL PARA EL DESA","CDI","10262-CDI"]
["10263","CHILETABACOS","CHILETABAC","10263-CHILETABAC"]
["10264","CORPORACION PRO ACONCAGUA","PROACONCAG","10264-PROACONCAG"]
["10265","WINROCK INTL INSTITUTE OF AGRI","WINROCK IN","10265-WINROCK IN"]
["10266","UNMOVIC","UNMOVIC","10266-UNMOVIC"]
["10267","MINISTERIO DE COMUNICACIONES","MINCOMUNIC","10267-MINCOMUNIC"]
["10268","AL-TAWAIL MANAGEMENT CONSULTIN","AL-TAWAIL","10268-AL-TAWAIL"]
["10269","SPECIAL OLYMPICS EUROPEEURASIA","SOEE","10269-SOEE"]
["10270","The Japan Women in Development","JWID","10270-JWID"]
["10271","COMISION NACIONAL TELECOMUNICA","CONATEL","10271-CONATEL"]
["10272","INTL RESEARCH EXCH BOARD USA","IREX","10272-IREX"]
["10273","PER-APCI","PER-APCI","10273-PER-APCI"]
["10274","MISISTERIO DE SALUD PUBLICA","MSP","10274-MSP"]
["10275","CANADIAN NEXEN PETROLEUM YEMAN","NEXEN","10275-NEXEN"]
["10276","THE STARR FOUNDATION","STARR FOUN","10276-STARR FOUN"]
["10277","VODAFONE","VODAFONE","10277-VODAFONE"]
["10278","COMISION NACIONAL TELCOMUNICAC","CONATEL","10278-CONATEL"]
["10279","NEW ZEALAND AGY FOR INT'L DEVE","NZAID","10279-NZAID"]
["10280","OSI DEVELOPMENT FOUNDATION (OS","OSIDEV","10280-OSIDEV"]
["10281","DEPT OF FOR AFF & INTL TRADE G","DFAIT","10281-DFAIT"]
["10282","SWISS AGY FOR DEVELOPMENT & CO","SDC","10282-SDC"]
["10283","KREDITANSTALT FUR WIEDERAUFBAU","KFW","10283-KFW"]
["10284","KOSOVO GOVERNMENT","PISGKOSOVO","10284-PISGKOSOVO"]
["10285","FOUNTAIN TRUST BANK PLC","FOUNTAIN","10285-FOUNTAIN"]
["10286","SAVIA - CONSULTORAS, S.A.","SAVIA -COS","10286-SAVIA -COS"]
["10287","AFRICAN COMPREHENSIVE HIV/AIDS","ACHAP","10287-ACHAP"]
["10288","SEC GRAL SIST INTEGRACION CA","SG-SICA","10288-SG-SICA"]
["10289","VAAVU ATOLL OFFICE","VAAVU ATOL","10289-VAAVU ATOL"]
["10290","MIN. OF COMM. SCIENCE AND TECH","MCST","10290-MCST"]
["10291","CANADIAN HIGH COMMISSION","CANADIAN H","10291-CANADIAN H"]
["10292","CYPREA HOTELS","CYPREA","10292-CYPREA"]
["10293","DEPARTMENT OF EXTERNAL RESOURC","DER","10293-DER"]
["10294","G.K.T. PHARMACY","G.K.T. PHA","10294-G.K.T. PHA"]
["10295","NATIONAL CENTRE FOR LINGUISTIC","NCLHR","10295-NCLHR"]
["10296","KPMG","KPMG","10296-KPMG"]
["10297","ORASCOM CONSTRUCTION INDUSTRIE","ORASCOM","10297-ORASCOM"]
["10298","LINKDOTNET","LINKDOTNET","10298-LINKDOTNET"]
["10299","CERCLE KONDRATIEFF","FRENCH NGO","10299-FRENCH NGO"]
["10300","RAIFFEISEN BANK AUSTRIA","BANK","10300-BANK"]
["10301","ELECTIONS CANADA","ELEC CANAD","10301-ELEC CANAD"]
["10302","INTERNATIONAL FOUNDATION FOR E","IFES","10302-IFES"]
["10303","CEDEGE","CEDEGE","10303-CEDEGE"]
["10304","ONCHOCERCIASIS ELIMINATION PRO","OEPA","10304-OEPA"]
["10305","ASCOBANS","ASCOBANS","10305-ASCOBANS"]
["10306","AEWA","AEWA","10306-AEWA"]
["10307","CMS","CMS","10307-CMS"]
["10308","EUROBATS","EUROBATS","10308-EUROBATS"]
["10309","GOBERNACION DE NARINO","GOBNARION","10309-GOBNARION"]
["10310","STATE INSURANCE ORG. OF TURKME","GOSTRAKH","10310-GOSTRAKH"]
["10311","BANQUE NATIONALE DE MAURITANIE","BNM","10311-BNM"]
["10312","FUNDACION FONDO DE DESARROLLO","FDE","10312-FDE"]
["10313","YUG-LOCAL MUNICIPALITIES - NSA","NOVI SAD","10313-NOVI SAD"]
["10314","BRITISH EMBASSY","BRITISH EM","10314-BRITISH EM"]
["10315","ORG FOR SECURITY AND COOPERATI","OSCE","10315-OSCE"]
["10316","World Rehabilitation Fund, Inc","WHF inc.","10316-WHF inc."]
["10317","ADM. AGENT UNDP IRAQ TF","AAUNDGTF","10317-AAUNDGTF"]
["10318","MICRO-SOFT","MICRO-SOFT","10318-MICRO-SOFT"]
["10319","TOTAL OIL AND GAS VENEZUELA","TOTAL","10319-TOTAL"]
["10320","UNITED NATIONS COMPENSATION CO","UNCC","10320-UNCC"]
["10321","MARATHON E.G. PRODUCTIONS LIMI","MARATHON","10321-MARATHON"]
["10322","UNILEVER PLC","UNILEVER","10322-UNILEVER"]
["10323","BEIJING INTERNATIONAL VOLUNTEE","BIVA","10323-BIVA"]
["10324","STANDARD CHARTERED BANK","STANDCHART","10324-STANDCHART"]
["10325","CFX TRAVEL TOURS","CFX TRAVEL","10325-CFX TRAVEL"]
["10326","UN POLITICAL OFFICE FOR SOMALI","UNPOS","10326-UNPOS"]
["10327","TOBAGO HOUSE OF ASSEMBLY","THA","10327-THA"]
["10328","BRITISH COMMISSION","BRITISH CO","10328-BRITISH CO"]
["10329","BRITISH HIGH COMMISSION - SOLO","BHC-SI","10329-BHC-SI"]
["10330","ONUCI-IVORY COAST","ONUCI-IVOR","10330-ONUCI-IVOR"]
["10331","UN Stabilization Mission in Ha","MINUSTAH","10331-MINUSTAH"]
["10332","United Nations Operation in Cô","ONUCI","10332-ONUCI"]
["10333","United Nations Operation in Bu","ONUB","10333-ONUB"]
["10334","UN RELIEF AND WORKS AGENCY","UNRWA","10334-UNRWA"]
["10335","HELVETAS","HELVETAS","10335-HELVETAS"]
["10336","Netherlands Institute for Fish","NIFR","10336-NIFR"]
["10337","Agriculture and Agri-food Cana","AAF","10337-AAF"]
["10338","International Potato Center","IPC","10338-IPC"]
["10339","CDC Building Cambodia","CDC Buildi","10339-CDC Buildi"]
["10340","Birdlife International","BLIUKUM","10340-BLIUKUM"]
["10341","UNDP-BOLIVIA","UNDP-BOLIV","10341-UNDP-BOLIV"]
["10342","OXFAM","OXFAM","10342-OXFAM"]
["10343","THE EURASIA FOUNDATION","THE EURASI","10343-THE EURASI"]
["10344","CHILDREN OF ARMENIA FUND","COAF","10344-COAF"]
["10345","THE IZMIRLIAN FOUNDATION","THE IZMIRL","10345-THE IZMIRL"]
["10346","SECRETARIA DE CULTURA ARTE Y D","SCAD","10346-SCAD"]
["10347","IMPERIAL COLLEGE LONDON","IMPERIAL C","10347-IMPERIAL C"]
["10348","QED GROUP LLC","QED GROUP","10348-QED GROUP"]
["10349","DEVELOPMENT FUND OF NORWAY","FONDET-NO","10349-FONDET-NO"]
["10350","BOLIVA FONDESIF","FONSESIF","10350-FONSESIF"]
["10351","SIPU SWEDISH INSTITUTE","SIPU SWEDI","10351-SIPU SWEDI"]
["10352","BANCO DE DESAROLLO ECONOMICOY","BANDES","10352-BANDES"]
["10353","FOUNDACION  RESERVAS DEL PAIS","FOUNDACION","10353-FOUNDACION"]
["10354","SWISS CONTACT","SWISS CONT","10354-SWISS CONT"]
["10355","PROFIN - COSUDE","PROFIN - C","10355-PROFIN - C"]
["10356","EGYPTIAN COMPANY FOR MOBIL SER","MOBINIL","10356-MOBINIL"]
["10357","BUREAU OF FISHERIES & AQUATIC","BFAR","10357-BFAR"]
["10358","MINISTRY OF HEALTH OF TURKMENI","MINHEALTH","10358-MINHEALTH"]
["10359","YOUTH START PLAN LIMITED","YOUTH STAR","10359-YOUTH STAR"]
["10360","AZERBAIJAN RESEARCH & EDUCATIO","AZRENA","10360-AZRENA"]
["10361","ZAYED FOUNDATION","ZAYED FOUN","10361-ZAYED FOUN"]
["10362","TRAINMAR","TRAINMAR","10362-TRAINMAR"]
["10363","DEP INTERNATIONAL","UB40","10363-UB40"]
["10364","THA -AGRIC. MA, ENV.","THA -DAMAE","10364-THA -DAMAE"]
["10365","FUNDACION TORREMOLINOS","FUNTORREMO","10365-FUNTORREMO"]
["10366","THE CHARITIES FOUNDATION OF AF","AFICS","10366-AFICS"]
["10367","CONGO UNITED STATES ALUMNI ASS","CUSAA","10367-CUSAA"]
["10368","PURICV","PURICV","10368-PURICV"]
["10369","INTERNATIONAL PARTNERSHIP FOR","INTERNATIO","10369-INTERNATIO"]
["10370","RODRIGUES REGIONAL ASSEMBLY","RRA","10370-RRA"]
["10373","KILIKIA CJSC","KILIKIA CJ","10373-KILIKIA CJ"]
["10374","APAVEN CO. LTD","APAVEN CO.","10374-APAVEN CO."]
["10375","HON - PRESIDENCIA DE LA REPUBL","HON - PRES","10375-HON - PRES"]
["10376","EGYPTIAN BIODYNAMIC ASSOCIATIO","EBDA","10376-EBDA"]
["10377","AGA KHAN DEVELOPMENT NETWORK","AKDN","10377-AKDN"]
["10378","COMMISSION ON POPULATION","POPCOM","10378-POPCOM"]
["10379","MINISTRY OF CONSTRUCTION, CHIN","MOC  CHINA","10379-MOC  CHINA"]
["10380","TOBAGO HOUSE OF ASSEMBLY-PUBLI","THA-PUB.UT","10380-THA-PUB.UT"]
["10381","CHRISTIAN CHILDREN'S FUND","CCF","10381-CCF"]
["10382","IAPSO PIA CUSTOMERS","IAPSO PIA","10382-IAPSO PIA"]
["10383","BELGIAN TECHNICAL COOPERATION","BELGIAN TE","10383-BELGIAN TE"]
["10384","GERMAN LEPROSY AND TB RELIEF A","GERMAN LEP","10384-GERMAN LEP"]
["10385","DG OF CDC & EH","DG OF CDC","10385-DG OF CDC"]
["10386","MINISTRY OF FOREIGN TRADE AND","MFTI EGY","10386-MFTI EGY"]
["10387","AIR KORYO","AIR KORYO","10387-AIR KORYO"]
["10388","CHINA NORTHERN AIRLINE","CHINA NORT","10388-CHINA NORT"]
["10389","ROCKEFELLER BROTHERS FUND","ROCKEFELLE","10389-ROCKEFELLE"]
["10390","COMM. FOR RECEPTION, TRUTH & R","COMM. FOR","10390-COMM. FOR"]
["10391","INVESTIGACION Y EDUCACION POPU","IEPA, A.C.","10391-IEPA, A.C."]
["10392","MINISTRY OF COMMERCE, CHINA","MOFCOM","10392-MOFCOM"]
["10393","STATOIL","STATOIL","10393-STATOIL"]
["10394","CONOCO-PHILLIPS","CONOCO-PHI","10394-CONOCO-PHI"]
["10395","FUNDAMENTAL SCHOOL QUALITY PRO","FSQP","10395-FSQP"]
["10396","PUBLIC BROADCASTING SERVICE","PBS","10396-PBS"]
["10397","STICHTING VLUCHTELING","STICHTINGV","10397-STICHTINGV"]
["10398","SHUMEI INTERNATIONAL","SHUMEI INT","10398-SHUMEI INT"]
["10399","ANGAD RUPEE & SONS","ANGAD RUPE","10399-ANGAD RUPE"]
["10400","IAPSO CUSTOMERS 2003 BALANCE","IAPSO 2003","10400-IAPSO 2003"]
["10401","CONSEJO DE LAS AMERICAS","CONSEJOAME","10401-CONSEJOAME"]
["10402","PER-MLAPUNTA","MLAPUNTA","10402-MLAPUNTA"]
["10403","NEWMONT UZBEKISTAN","NEWMONT UZ","10403-NEWMONT UZ"]
["10404","CHARLES STEWART MOTT FOUNDATIO","CSM Found.","10404-CSM Found."]
["10405","ZHYTOMYR MUNICIPALITY","ZHYTOMYR","10405-ZHYTOMYR"]
["10406","PLAN INTERNACIONAL BOLIVIA","BOL - PLAN","10406-BOL - PLAN"]
["10407","VICEMINISTERIO JUVENTUD NINEZ","VIJUNTE","10407-VIJUNTE"]
["10408","SPECIAL COURT FOR SIERRA LEONE","SCSL","10408-SCSL"]
["10409","THE U.S. COMMITTEE FOR THE UND","UNDP-USA","10409-UNDP-USA"]
["10410","UNLAIPCTO","UNLAIPCTO","10410-UNLAIPCTO"]
["10411","PLAN  INTERNACIONAL BOLIVIA","BOV PLAN","10411-BOV PLAN"]
["10412","VICEMINISTERIO JUVENTUD NINEZ","VIJUNTE","10412-VIJUNTE"]
["10413","CRG - SA, MIRCOFINANCE INSTITU","CRG - SA","10413-CRG - SA"]
["10414","FECECAM-BENIN MICROFINANCE INS","FECECAMBEN","10414-FECECAMBEN"]
["10415","WAGES, Microfinance Institutio","WAGES, Mic","10415-WAGES, Mic"]
["10416","ICTDAR","ICTDAR","10416-ICTDAR"]
["10417","DIRECCION DE PREVENCION Y ATEN","DPAE","10417-DPAE"]
["10418","COPREDEH","COPREDEH","10418-COPREDEH"]
["10419","ECONOMIC INSTITUTE, BELGRADE","ECONOMIC I","10419-ECONOMIC I"]
["10420","COMMONWEALTH SECRETARIAT","COMWth","10420-COMWth"]
["10421","COLUMBIA UNIVERSITY","COLUMBIA U","10421-COLUMBIA U"]
["10422","GOBERNACION NORTE DE SANTANDER","GOBNORTED","10422-GOBNORTED"]
["10423","SRIA.DE PLANEACION DEL DESARRO","SriaPIDSLP","10423-SriaPIDSLP"]
["10424","COMITE PERMANENT INTER-ETATS D","CILSS","10424-CILSS"]
["10425","NORWEGIAN EMBASSY","NORWEGIAN","10425-NORWEGIAN"]
["10426","Riksbankens Jubileumsfond","Riksbanken","10426-Riksbanken"]
["10427","BETTER WORLD FUND (FOUNDATION)","BW FUND","10427-BW FUND"]
["10428","NATIONAL RURAL SUPPORT PROGRAM","NRSP-PAK","10428-NRSP-PAK"]
["10429","MUNICIPALIDAD DE GUATEMALA","MUNI-GTM","10429-MUNI-GTM"]
["10430","GOBIERNO DEL ESTADO DE  YUCATA","YUCATAN","10430-YUCATAN"]
["10431","FOPREDEN","FOPREDEN","10431-FOPREDEN"]
["10432","IFRC/PRO VENTION CONSORTIUM","IFRC","10432-IFRC"]
["10433","THE GAP FOUNDATION","THE GAP FO","10433-THE GAP FO"]
["10434","AUTORIDAD PORTUARIA DE GQUIL","AUTORIDAD","10434-AUTORIDAD"]
["10435","Global Knowledge Partnership","Global KnL","10435-Global KnL"]
["10436","Alcaldía de Buenaventura","ALC BUENAV","10436-ALC BUENAV"]
["10437","CONAMA REGION METROPOLITANA","CONAMARM","10437-CONAMARM"]
["10438","PER-CONSEJO NACIONAL DESCENTRA","PER-CND","10438-PER-CND"]
["10439","E7 FUND FOR SUSTAINABLE ENERGY","E7 FUND","10439-E7 FUND"]
["10440","National Council for Human Rig","NCHR","10440-NCHR"]
["10441","Unifem Australia National Comm","Unifem Aus","10441-Unifem Aus"]
["10442","PAKISTAN WATER PARTNERSHIP","PAK PWP","10442-PAK PWP"]
["10443","GAP FOUNDATION GUA/CWI-GAP/03/","GAP GUA/CW","10443-GAP GUA/CW"]
["10444","Unión Inter-Parlamentaria","UIP","10444-UIP"]
["10445","AREA METROPOLITANA VALLE ABURR","AREAMETROP","10445-AREAMETROP"]
["10446","Asociacion Cuba Cooperacion","Asociacion","10446-Asociacion"]
["10447","Foligno Decentralized Coop. Co","Foligno De","10447-Foligno De"]
["10448","Cecina Decentralized Coop. Com","Cecina Dec","10448-Cecina Dec"]
["10449","Bergamo Decentralized Coop. Co","Bergamo De","10449-Bergamo De"]
["10450","Agencia Cuencana de Desarrollo","ACUDIR","10450-ACUDIR"]
["10451","CREMONA DECENTRALIZED COOR COM","CREMONA","10451-CREMONA"]
["10452","ASOCIACION CUBA COOPERACION","CUBACOOP","10452-CUBACOOP"]
["10453","FOLIGNO DECENTRALIZED COOPERAT","FOLIGNO DE","10453-FOLIGNO DE"]
["10454","CECINA DECENTRALIZED COOP COMM","CECINA DEC","10454-CECINA DEC"]
["10455","BERGAMO DECENTRALIZED COOP COM","BERGAMO DE","10455-BERGAMO DE"]
["10456","BEAZ","BEAZ","10456-BEAZ"]
["10457","TRENTO  DECENTRALIZED COOP COM","TRENTO  DE","10457-TRENTO  DE"]
["10458","COMO DECENTRALIZED COOP COMMIT","COMO DECEN","10458-COMO DECEN"]
["10459","FAMSI DECENTRALIZED COOP COMMI","FAMSI","10459-FAMSI"]
["10460","FLORENCIA  DECENTRALIZED COOP","FLORENCIA","10460-FLORENCIA"]
["10461","VIAREGGIO DECENTRALIZED COOP C","VIAREGGIO","10461-VIAREGGIO"]
["10462","BEAZ","BEAZ","10462-BEAZ"]
["10463","REGIONE LOMBARDIA","LOMBARDIA","10463-LOMBARDIA"]
["10464","COL/03/009","COL/03/009","10464-COL/03/009"]
["10465","AGENCIA CATALANA DE COOP AL DE","AGENCIA CA","10465-AGENCIA CA"]
["10466","INT'L INSTITUTE OF TROPICAL AG","INT'L INST","10466-INT'L INST"]
["10467","PER-Congreso de la Repulica","PER-CONGRE","10467-PER-CONGRE"]
["10468","Shell Development Iran B.V.","IRAN-SDI","10468-IRAN-SDI"]
["10469","Agencia Catalana de Cooperació","ESP-ACCD","10469-ESP-ACCD"]
["10470","CORE INTERNATIONAL, INC.","CORE","10470-CORE"]
["10471","DPTO ADM FUNCION PUBLICA","COL-DAFP","10471-COL-DAFP"]
["10472","Government of Montenegro","Gov of Mon","10472-Gov of Mon"]
["10473","TSUNAMI DISASTER DONOR","TSUNAMI","10473-TSUNAMI"]
["10474","INSITUTO NACIONAL DE ESTADISTI","INSITUTO N","10474-INSITUTO N"]
["10475","SERVICIO DE COOPERACION TECNIC","SERCOTEC","10475-SERCOTEC"]
["10476","DIAKONIA SWEDEN","DIAKONIA S","10476-DIAKONIA S"]
["10477","MUNICIPALITY OF ZRENJANIN","ZRENJANIN","10477-ZRENJANIN"]
["10478","CORTE NACIONAL ELECTORAL","CNE","10478-CNE"]
["10479","DEP. ASUNTOS DESARME/UN-LIREC","DAD/UN-LIR","10479-DAD/UN-LIR"]
["10480","USAID","USAID","10480-USAID"]
["10481","ALCALDIA DE SOACHA","ALC.SOACHA","10481-ALC.SOACHA"]
["10482","COMISION NACIONAL FORESTAL","CONAFOR","10482-CONAFOR"]
["10483","INST. COL DE GEOLOGIA Y MINER","INGEOMINAS","10483-INGEOMINAS"]
["10484","REPUBLIC BANK OF TRINIDAD & TO","RBTT BANK","10484-RBTT BANK"]
["10485","Panos Institute West Africa","PANOS","10485-PANOS"]
["10486","GENERALE DE BANQUE DE MAURITAN","MAU-BANQUE","10486-MAU-BANQUE"]
["10487","BANQUE MAURITANIENNE  ISLAMIQU","BANQUE MAU","10487-BANQUE MAU"]
["10488","BHP BILLITON METALS","BHP BILLIT","10488-BHP BILLIT"]
["10489","PHILIPS DO BRASIL LTDA","PHILIPS DO","10489-PHILIPS DO"]
["10490","BRISTOL MEYERS SQUIBB","BRISTOL ME","10490-BRISTOL ME"]
["10491","TELECOM ITALIA BRAZIL","TEL ITA BR","10491-TEL ITA BR"]
["10492","ABN AMRO BANK","ABN AMRO","10492-ABN AMRO"]
["10493","HARIRI FOUNDATION","HARIRI FOU","10493-HARIRI FOU"]
["10494","TOTAL E & P SYRIE","SYR-TOTAL","10494-SYR-TOTAL"]
["10495","UNIVERSIDAD FINIS TERRAE","CHL-UFT","10495-CHL-UFT"]
["10496","IRSN- INSTITUT DE RADIOPROTECT","BEL-IRSN","10496-BEL-IRSN"]
["10497","BIRDLIFE FINLAND","BIRDLIFE","10497-BIRDLIFE"]
["10498","RED NACIONAL DE ARTICULACION P","RENAP","10498-RENAP"]
["10499","PER-MUNICIPALIDAD SAN JUAN LUR","PER-MUN SJ","10499-PER-MUN SJ"]
["10500","UNITED NATIONS FOUNDATION","UN FOUNDAT","10500-UN FOUNDAT"]
["10501","ENVIRONMENTAL FOUNDATION OF JA","EFJAMAICA","10501-EFJAMAICA"]
["10502","IWOKRAMA INT'L CENTRE FOR RAIN","IWOKRAMA","10502-IWOKRAMA"]
["10503","MINISTRY OF FOREIGN AFFAIRS","MFA NORWAY","10503-MFA NORWAY"]
["10504","TURKMEN SOCIETY OF DEAF AND BL","TOS & TOG","10504-TOS & TOG"]
["10505","STMicroElectronics Foundation","STMicroEle","10505-STMicroEle"]
["10506","CHI-MINISTERIO DEL INTERIOR","CHI MinInt","10506-CHI MinInt"]
["10507","CHI MINISTERIO DE JUSTICIA","CHI MINIST","10507-CHI MINIST"]
["10508","TSUNAMI TELETHON COMMISSION","STTC","10508-STTC"]
["10509","NAMAC (AGENCY OF DTI, GOV SA)","NAMAC","10509-NAMAC"]
["10510","MICROSOFT CORPORATION","MIRCOSOFT","10510-MIRCOSOFT"]
["10511","SWISS AGENCY FOR DEVELOPMENT A","SDC-NEPAL","10511-SDC-NEPAL"]
["10512","Comisión Nacional del Medio Am","CONAMA","10512-CONAMA"]
["10513","PER- FONDO ITALO PERUANO","PER- FONDO","10513-PER- FONDO"]
["10514","INT. CENTER MIGRATION POL.DEVP","ICMPD","10514-ICMPD"]
["10515","JB Fernandes Memorial Trust Fu","JB Fernand","10515-JB Fernand"]
["10516","PROBONA","PROBONA","10516-PROBONA"]
["10517","GLOBAL MECHANISM","LEB-GM","10517-LEB-GM"]
["10518","MARIA HUFFMAN - UNICAND","MARIA HUFF","10518-MARIA HUFF"]
["10519","OCCIDENTAL EXPLORATION & PRODU","OCCIDENTAL","10519-OCCIDENTAL"]
["10520","ALCALDIA DE CHIA","ALC. CHIA","10520-ALC. CHIA"]
["10521","ALCALDIA JAGUA DE IBIRICO","ALC JAGUA","10521-ALC JAGUA"]
["10522","TIDES FOUNDATION","TIDES FOUN","10522-TIDES FOUN"]
["10523","MUNICIPIO DE MAHATES","MAHATES","10523-MAHATES"]
["10524","MUNICIPIO DE CALAMAR","COL-CALAMA","10524-COL-CALAMA"]
["10525","SDC-GUYANA","SDC-GUYANA","10525-SDC-GUYANA"]
["10526","AUTOTRADING 2005","AUTOTRADIN","10526-AUTOTRADIN"]
["10527","PER CORP. FIN. DESARROLLO S.A.","PER CORP.","10527-PER CORP."]
["10528","CITY OF ROME","CITY/ROME","10528-CITY/ROME"]
["10529","CONSERVACION INTERNACIONAL","CI","10529-CI"]
["10530","BOSTON UNIVERSITY","BOSTON UNI","10530-BOSTON UNI"]
["10531","OXFORD UNIVERSITY PRESS","OXFORD UNI","10531-OXFORD UNI"]
["10532","PER-INTERNATIONAL IDEA","PER-IDEA","10532-PER-IDEA"]
["10533","UN INSTITUTE FOR DISARMAMENT R","UNIDIR","10533-UNIDIR"]
["10534","TURKISH INTL COOPERATION ADMIN","TICA","10534-TICA"]
["10535","PER -  INTERNATIONAL IDEA","PER-IDEA","10535-PER-IDEA"]
["10536","UZB - Ministry  of Water and A","UZB - MWA","10536-UZB - MWA"]
["10537","GUANGXI STORA ENSO FORESTRY CO","STORA ENSO","10537-STORA ENSO"]
["10538","THE CHARITY SOCIAL FUND ON GEN","ARAL GENOF","10538-ARAL GENOF"]
["10539","HUMAN DIGNITY AND PEACE FOUNDA","HDP","10539-HDP"]
["10540","PER-AGENCIA SUIZA PARA EL DESA","PER-COSUDE","10540-PER-COSUDE"]
["10541","NASSCOM FOUNDATION","NASSCOM","10541-NASSCOM"]
["10542","NORTH-SOUTH CENTRE - COUNCIL O","NSC CE","10542-NSC CE"]
["10543","COL-FONDO NACIONAL DE VIVIENDA","COL-FONVIV","10543-COL-FONVIV"]
["10544","TITAN CHEMICALS CORPORATION BE","TITAN CHEM","10544-TITAN CHEM"]
["10545","INTERNATIONAL IDEA","INT'L IDEA","10545-INT'L IDEA"]
["10546","DANFOSS GROUP","DANFOSS","10546-DANFOSS"]
["10547","GOVERNMENT OF BALOCHISTAN","BALOCH","10547-BALOCH"]
["10548","BEGECA 2005","BEGECA 200","10548-BEGECA 200"]
["10549","WEM 2005","WEM 2005","10549-WEM 2005"]
["10550","GOVERNMENT OF NWFP","GONWFP","10550-GONWFP"]
["10551","NETWORK LEASING CORPORATION","PAK-NLC","10551-PAK-NLC"]
["10552","CROSS RIVER STATE GOVERNMENT","NGA-CROSS","10552-NGA-CROSS"]
["10553","ZAMFARA STATE GOVERNMENT","ZAMFARA ST","10553-ZAMFARA ST"]
["10554","ENUGU STATE GOVERNMENT","NGA-ENUGU","10554-NGA-ENUGU"]
["10555","GOMBE STATE GOVERNMENT","NGA-GOMBE","10555-NGA-GOMBE"]
["10556","LAGOS STATE GOVERNMENT","NGA-LAGOS","10556-NGA-LAGOS"]
["10557","NIGER STATE GOVERNMENT","NGA-NIGER","10557-NGA-NIGER"]
["10558","ABIA STATE GOVERNMENT","NGA-ABIA","10558-NGA-ABIA"]
["10559","ADAMAWA STATE GOVERNMENT","NGA-ADAMAW","10559-NGA-ADAMAW"]
["10560","AKWA IBOM STATE GOVERMENT","NGA-AKWA","10560-NGA-AKWA"]
["10561","BAUCHI  STATE GOVERMENT","NGA-BAUCH","10561-NGA-BAUCH"]
["10562","ONDO STATE GOVERNMENT","ONDO STATE","10562-ONDO STATE"]
["10563","SOKOTO STATE GOVERNMENT","NGA-SOKOTO","10563-NGA-SOKOTO"]
["10564","SALVATION ARMY","GRD-SALVAT","10564-GRD-SALVAT"]
["10565","GOBIERNO VASCO","CUB-GOBVAS","10565-CUB-GOBVAS"]
["10566","HEGOA - DESCENTRALIZED COOPETA","CUB-HEGOA","10566-CUB-HEGOA"]
["10567","EUKAL FONDOA","CUB-EUSKAL","10567-CUB-EUSKAL"]
["10568","ASSOCIATION OF CARIBBEAN STATE","CUB-ACS","10568-CUB-ACS"]
["10569","ONG ERIKSHJALPEN","CUB-ERIKSH","10569-CUB-ERIKSH"]
["10570","TUSCANY REGION","TUSCANY","10570-TUSCANY"]
["10571","DAVID&LUCILLE PACKARD FOUNDATI","PACKARD","10571-PACKARD"]
["10572","TRINIDAD & TOBAGO RED CROSS SO","TT REDCROS","10572-TT REDCROS"]
["10573","INTERNATIONAL FOOD AND POLICY","IFPRI","10573-IFPRI"]
["10574","GRET-GRUPO DE INVERSTIGATCION","ONG-GRET","10574-ONG-GRET"]
["10575","UNIVERSIDAD DE YORK CANADA","CUB-Univyo","10575-CUB-Univyo"]
["10576","INT FUND FOR SAVING THE ARAL S","IFSAS","10576-IFSAS"]
["10577","IAPSO CONSULTANCY SERVICES CUS","CONSULTSER","10577-CONSULTSER"]
["10578","DOEN FOUNDATION","DOEN","10578-DOEN"]
["10579","UNFPA HONDURAS","HON -UNFPA","10579-HON -UNFPA"]
["10580","GOBERNACION DE BOYACA","COL GOBBOY","10580-COL GOBBOY"]
["10581","DEUTSCHE GESELLSCHAFT FUR TECH","GTZ","10581-GTZ"]
["10582","SOKA GAKKAI THAILAND","SOKA GAKKA","10582-SOKA GAKKA"]
["10583","ROLLS-ROYCE (THAILAND) LTD","ROLLSROYCE","10583-ROLLSROYCE"]
["10584","SISTERS OF MERCY","SISTERS","10584-SISTERS"]
["10585","JOHNSON & JOHNSON FAMILY OF CO","JOHNSON &","10585-JOHNSON &"]
["10586","RAOUL WALLENBERG INSTITUTE","RWI","10586-RWI"]
["10587","MINISTRY OF PUB UTILITIES & EN","TRI-MIN EN","10587-TRI-MIN EN"]
["10588","FONDO DE VENTAS POPULARES DE B","FVPB","10588-FVPB"]
["10589","CHECCHI AND COMPANY CONSULTING","CHECCHI","10589-CHECCHI"]
["10590","THE GENERALITAT OF CATALONIA","GENERALITA","10590-GENERALITA"]
["10591","COMITE SIENA","CUB-SIENA","10591-CUB-SIENA"]
["10592","CUB - LIVORNO","LIVORNO","10592-LIVORNO"]
["10593","FONDO CANADA","CUB-FCANAD","10593-CUB-FCANAD"]
["10594","FUNDACION AMISTAD","CUB-AMISTA","10594-CUB-AMISTA"]
["10595","OXFAM CANADA","OXFAM-CANA","10595-OXFAM-CANA"]
["10596","SRC SISTEMSKE INTEGRACIJE","SRC","10596-SRC"]
["10597","INTERNATIONAL VOLLEYBALL FEDER","IVF (FIVB)","10597-IVF (FIVB)"]
["10598","INTEL CORPORATION","INTEL","10598-INTEL"]
["10599","TB DIRECT PROCUREMENT CUSTOMER","TB DIRECT","10599-TB DIRECT"]
["10600","SWEDBIO","SWEDBIO","10600-SWEDBIO"]
["10601","URU - PROG. AGENDA METROPOLITA","PR.AG.MET.","10601-PR.AG.MET."]
["10602","UN-HABITAT","UN-HABITAT","10602-UN-HABITAT"]
["10603","OPEN SOCIETY INITIATIVE FOR S.","OSISA","10603-OSISA"]
["10604","SHELL DE VENEZUELA S.A.","SHELL DE V","10604-SHELL DE V"]
["10605","DEVELOPMENT COOPERATION IRELAN","CDI","10605-CDI"]
["10606","Cisco Systems International BV","Cisco BV","10606-Cisco BV"]
["10607","BYE-CHASHNIKI EXECUTIVE COMMIT","CHASEXECOM","10607-CHASEXECOM"]
["10608","BYE-BEREZA EXECUTIVE COMMITTEE","BEREXECOM","10608-BEREXECOM"]
["10609","BYE-LIDA EXECUTIVE COMMITTEE","LIDAEXECOM","10609-LIDAEXECOM"]
["10610","EUROPEAN BUSINESS CONGRESS","EURBISCONG","10610-EURBISCONG"]
["10611","CITIES ALLIANCE","CITIES ALL","10611-CITIES ALL"]
["10612","CAJA DE VIVIENDA POPULAR","CVP","10612-CVP"]
["10613","METROVIVIENDA","METRIVIVIE","10613-METRIVIVIE"]
["10614","EMPRESA DE RENOVACION URBANA","ERU","10614-ERU"]
["10615","THE CITIGROUP PRIVATE BANK","CITIGROUP","10615-CITIGROUP"]
["10616","NORTHERN AREAS ADMINISTRATION","PAK-NAs","10616-PAK-NAs"]
["10617","BP TRINIDAD AND TOBAGO (BPTT)","TRI-BPTT","10617-TRI-BPTT"]
["10618","MIN OF ENERGY AND ENERGY IND.","TRI-MinEng","10618-TRI-MinEng"]
["10619","TOURISM DEV. CO. LTD (TDC)","TRI-TDC","10619-TRI-TDC"]
["10620","CONFLICT PREVENTION COMPONENT","GCPP","10620-GCPP"]
["10621","ROSAGROFUND","ROSAGROFUN","10621-ROSAGROFUN"]
["10622","PER-MUNI. DIST. VILLA SALVADOR","PER-VILLA","10622-PER-VILLA"]
["10623","PER-MUNI DISTRITAL SJM","PER-SJM","10623-PER-SJM"]
["10624","PER-Muni Dist. Ventanilla","PER-VENTAN","10624-PER-VENTAN"]
["10625","PER - Muni Dist. Comas","PER-COMAS","10625-PER-COMAS"]
["10626","PER-MUNI DIST VENTANILLA","PER-VENTAN","10626-PER-VENTAN"]
["10627","PER-MUNI DISTRITAL ATE","PER-ATE","10627-PER-ATE"]
["10628","PER-MUNI. PROV SAN MARTIN","PER-MUNI.","10628-PER-MUNI."]
["10629","PER-MUNI. PROV. PISCO","PER-PISCO","10629-PER-PISCO"]
["10630","PER-MUNI. PROV. PASCO","PER-PASCO","10630-PER-PASCO"]
["10631","PER-MUNI. DIST. SAN. MARTIN PO","PER-SMP","10631-PER-SMP"]
["10632","PER-MUNIDIST. VILLA MA. TRIUNF","PER-VMT","10632-PER-VMT"]
["10633","PER-MUNI. DIST. PUENTE PIEDRA","PER-PTE PI","10633-PER-PTE PI"]
["10634","PER-MUNI. PROV. PIURA","PER-PIURA","10634-PER-PIURA"]
["10635","PER-MUNI. PROV SAN ROMAN","PER-SN ROM","10635-PER-SN ROM"]
["10636","PER-MUNICIP. PORVINCIAL DE ILO","PER-ILO","10636-PER-ILO"]
["10637","NORWEGIAN CHURCH AID","NCA NORWAY","10637-NCA NORWAY"]
["10638","NATIONALE VROUWEN BEWEGING","SUR-NVB","10638-SUR-NVB"]
["10639","SAUDI COMMITEE FOR PP RELIEF","SAUDI CRPP","10639-SAUDI CRPP"]
["10640","PER-MUNI.DIST.CARABAYLLO","PER-CARABA","10640-PER-CARABA"]
["10641","ITI","ITI","10641-ITI"]
["10642","CDC ATLANTA","CDC ATLANT","10642-CDC ATLANT"]
["10643","FAMILY HEALTH ORGANIZATION","FHI","10643-FHI"]
["10644","MINISTRY OF LOCAL GOVERNMENT","MIN LOCGOV","10644-MIN LOCGOV"]
["10645","MINISTERIO DE ENRGIA Y MINAS","ECU-MEM","10645-ECU-MEM"]
["10646","NOVARTIS","NOVARTIS","10646-NOVARTIS"]
["10647","FIRST DATA WESTERN UNION FOUND","FRST UNION","10647-FRST UNION"]
["10648","PER - MUNICIPALIDAD DISTR. VEN","PER-VENTAN","10648-PER-VENTAN"]
["10649","ENOCK AKWANYI","ENOCK AKWA","10649-ENOCK AKWA"]
["10650","ABINIZA LUGALIKI","ABINIZALUG","10650-ABINIZALUG"]
["10651","TELEFONICA DEL RERU SAA","TELEFONICA","10651-TELEFONICA"]
["10652","PETRA PERDANA","PETRA","10652-PETRA"]
["10653","CORAID","NGO","10653-NGO"]
["10654","ASOCIATIA DE TURISM MONTAN","ASOCMAISUS","10654-ASOCMAISUS"]
["10655","PER-MUNI.DIST.RIMAC","PER-RIMAC","10655-PER-RIMAC"]
["10656","PER-MUNI.DIST.INDEPENDENCIA","PER-INDEPE","10656-PER-INDEPE"]
["10657","FONS CATALA DE COOPERACIO","FONSCATALA","10657-FONSCATALA"]
["10658","FONDO ANDALUZ DE MUNICIPIOS","FAMSI","10658-FAMSI"]
["10659","INTERNATIONAL MINE ACTION TRAI","IMATC","10659-IMATC"]
["10660","DIPLOMATS' SPOUSES ASSOCIATION","DSA","10660-DSA"]
["10661","ORANGE ROMANIA","ORANGE","10661-ORANGE"]
["10662","CIVIL SOCIETY SYSTEMS","TRI-CSS","10662-TRI-CSS"]
["10663","PFIZER MALAYSIA","PFIZERMAL","10663-PFIZERMAL"]
["10664","TORGHAR ENVIRONMENTAL PROTECTI","STEP","10664-STEP"]
["10665","SOCIAL SCIENCE RESEARCH COUNCI","SSRC","10665-SSRC"]
["10666","PER-MUNI.DIST.EL AGUSTINO","PER-AGUSTI","10666-PER-AGUSTI"]
["10667","BUL MINISTRY OF ENVIRONMENT AN","MOEW","10667-MOEW"]
["10668","UNDOF - SYRIA","UNDOF -SYR","10668-UNDOF -SYR"]
["10669","UNRWA - SYRIA","UNRWA-SYR","10669-UNRWA-SYR"]
["10670","UNTSO - SYRIA","UNTSO-SYR","10670-UNTSO-SYR"]
["10671","IOM - SYRIA","IOM - SYR","10671-IOM - SYR"]
["10672","CARIBBEAN REGIONAL NETWORK +","CRN+","10672-CRN+"]
["10673","DIVISION OF HEALTH","DOHSS","10673-DOHSS"]
["10674","BANCO DE FOMENTO","BANCO DE F","10674-BANCO DE F"]
["10675","UNION ASTHMA DRUG FACILITY","ADF","10675-ADF"]
["10676","CONTRALORIA DPTAL DE CALDAS","CONTRACALI","10676-CONTRACALI"]
["10677","UN STAFF COMMITEE FOR TSUNAMI","UNSTAFFCOM","10677-UNSTAFFCOM"]
["10678","MINISTRY OF EDUCATION","MIN OF EDU","10678-MIN OF EDU"]
["10679","CDPMM","CDPMM","10679-CDPMM"]
["10680","WORLD ECONOMIC FORUM","WEF","10680-WEF"]
["10681","VESPUCIO SUR","VESPSUR","10681-VESPSUR"]
["10682","UNMIS","UNMIS","10682-UNMIS"]
["10683","SAUDI ARABIAN BRITISH BANK","SABB","10683-SABB"]
["10684","MINISTRY OF BASIC EDUCATION","MBE-NAMU","10684-MBE-NAMU"]
["10685","INTERNATIONAL DEVELOPMENT ASSO","IDA","10685-IDA"]
["10686","ERF","ERF","10686-ERF"]
["10687","PER FONCODES","FONCODES","10687-FONCODES"]
["10688","IAPSO PIA CUSTOMERS 2006","PIA 2006","10688-PIA 2006"]
["10689","IAPSO PRIVATE CUSTOMERS 2006","PRIV 2006","10689-PRIV 2006"]
["10690","IAPSO WORLD BANK BORROWER 2006","WBB 2006","10690-WBB 2006"]
["10691","IAPSO UNDP CO 2006","UNDPCO2006","10691-UNDPCO2006"]
["10692","BEGECA 2006","BEGECA2006","10692-BEGECA2006"]
["10693","WEM 2006","WEM 2006","10693-WEM 2006"]
["10694","AUTO KJAER 2006","AUTO KJAER","10694-AUTO KJAER"]
["10695","PRIVATE OIL EXPLOITING COMPANY","WOODSIDE","10695-WOODSIDE"]
["10696","UN AGENCIES IN IRAN","UNIRAN","10696-UNIRAN"]
["10697","MINISTRY OF HEALTH - TURKEY","MOH-TURKEY","10697-MOH-TURKEY"]
["10698","CISCO","CISCO","10698-CISCO"]
["10699","WORLD CONSERVATION UNION","IUCN","10699-IUCN"]
["10700","ESSO EXPLORTION ANGOLA LIMITED","AGO-ESSO","10700-AGO-ESSO"]
["10701","FLINDERS ISLAND COUNCIL","FLINDERS","10701-FLINDERS"]
["10702","ROTARY CLUB OF SALAMANDER BAY","ROTARYCLUB","10702-ROTARYCLUB"]
["10703","GOVERMENT OF VANUATU","GOVTOFVAN","10703-GOVTOFVAN"]
["10704","AUTOPISTA CENTRAL","AUTOPISTA","10704-AUTOPISTA"]
["10705","COSTANERA NORTE","COSTANERA","10705-COSTANERA"]
["10706","VESPUCIO NORTE","VESPNORTE","10706-VESPNORTE"]
["10707","HEYDAR ALIYEV FOUNDATION-AZERB","AZE-H.A.F","10707-AZE-H.A.F"]
["10708","ROTARY CLUB OF DUBAI,U.A.E.","ROTARYCLUB","10708-ROTARYCLUB"]
["10709","EMBAJADA DE ITALIA/VENEZUELA","EITALIA","10709-EITALIA"]
["10710","BUL MINISTRY STATE ADMINISTRAT","BUL MSAAR","10710-BUL MSAAR"]
["10711","WORLD CULTURE OPEN (WCO)","WCO","10711-WCO"]
["10712","KOREA INTERN. COOPERATION AGEN","KOICA","10712-KOICA"]
["10713","COMISION NACIONAL DESMINADO","CNAD","10713-CNAD"]
["10714","UNDP AS AA FOR JP PASS THROUGH","UNDP(JPAA)","10714-UNDP(JPAA)"]
["10715","KOREA INTERN.COOPERATION AGNCY","KOICA","10715-KOICA"]
["10716","GRENADA RELIEF FUND","GRENADAREL","10716-GRENADAREL"]
["10717","AEDES","AEDES","10717-AEDES"]
["10718","ARMACELL INTERNATIONAL GMBH","ARMACELL","10718-ARMACELL"]
["10719","MUNICIPIO DE COLTA","MUN.COLTA","10719-MUN.COLTA"]
["10720","GOBERNACION DEL HUILA","GOB.HUILA","10720-GOB.HUILA"]
["10721","IDA-MULTI-DONOR TF ACEH & N SU","IDA-MDTFAN","10721-IDA-MDTFAN"]
["10722","SECRETAIA DE DESARROLLO RURAL,","SEC.DESRUR","10722-SEC.DESRUR"]
["10723","SECRETAROA DE DESARROLLO AGROP","TABASCO","10723-TABASCO"]
["10724","MINISTRY OF INVESTMENT - EGYPT","MI","10724-MI"]
["10725","IDA-MULTI-DONOR TF ACEH & NSUM","IDA-MDTFAN","10725-IDA-MDTFAN"]
["10726","GOBIERNO DEL ESTADO DE VERACRU","GOB.VERACR","10726-GOB.VERACR"]
["10727","GOBIENO DEL ESTADO DE CAMPECHE","GOB.CAMP.S","10727-GOB.CAMP.S"]
["10728","GOBIERNO DEL ESTADO DE OAXACA/","GOB.EDO.OA","10728-GOB.EDO.OA"]
["10729","SYR MINISTRY OF ECONOMY","SYR-MIN.EC","10729-SYR-MIN.EC"]
["10730","SYR MINISTRY OF TRANSPORTATION","SYR-MIN.TR","10730-SYR-MIN.TR"]
["10731","SYRIAN ARAB AIRLINES","SYR.ARAB.A","10731-SYR.ARAB.A"]
["10732","DIPUTACION DE BARCELONA","DIPBARCELO","10732-DIPBARCELO"]
["10733","GOBIENOS ESTATALES","GOB ESTAT","10733-GOB ESTAT"]
["10734","INSTITUTE GLOBAL ENVI STRATEGY","IGES","10734-IGES"]
["10735","NATFUND ECONOMRESEARCH&LEG.INI","NFERLI","10735-NFERLI"]
["10736","JAPAN MINE ACTION SERVICE","JMAS","10736-JMAS"]
["10737","COCA COLA COMPANY","COCA COLA","10737-COCA COLA"]
["10738","AGENCE DU SUD","AGENCE DU","10738-AGENCE DU"]
["10739","PER-CANETE","PER-CANETE","10739-PER-CANETE"]
["10740","PER-HUAROCHIRI","PER-HUAROC","10740-PER-HUAROC"]
["10741","PER-AMAZONAS","PER-AMAZON","10741-PER-AMAZON"]
["10742","PER-BAGUA","PER-BAGUA","10742-PER-BAGUA"]
["10743","PER-ABANCAY","PER-ABANCA","10743-PER-ABANCA"]
["10744","PER-TRUJILLO","PER-TRUJIL","10744-PER-TRUJIL"]
["10745","PER-ICA","PER-ICA","10745-PER-ICA"]
["10746","PER-LA VICTORIA","PER-LA VIC","10746-PER-LA VIC"]
["10747","PER-CALLAO","PER-CALLAO","10747-PER-CALLAO"]
["10748","PER-HUANUCO","PER-HUANUC","10748-PER-HUANUC"]
["10749","PER-LIMA CERCADO","PER-LIMCER","10749-PER-LIMCER"]
["10750","FRIEDRICH EBERT STIFTUNG E.V.","SLOFRIEDRI","10750-SLOFRIEDRI"]
["10751","EGYPT ICT TRUST FUND","EGYPT ICT","10751-EGYPT ICT"]
["10752","NOVOGRAD-VOLYNSKY MUNICIPALITY","NOVVOLMUN","10752-NOVVOLMUN"]
["10753","CENTRO DE INICIATIVAS PARA COO","CU-CICBATA","10753-CU-CICBATA"]
["10754","VALYUT TRANZIT BANK","VTBANK","10754-VTBANK"]
["10755","BRUNSWICK COOPERATION","BRUNSWICK","10755-BRUNSWICK"]
["10756","THE BROOKINGS INSTITUTION","BROOKINGS","10756-BROOKINGS"]
["10757","TTO MINISTRY OF NATIONAL SECUR","TTOMINOFNC","10757-TTOMINOFNC"]
["10758","MANSOUR GROUP","MANGROUP","10758-MANGROUP"]
["10759","CIBIOGEM","CIBIOGEM","10759-CIBIOGEM"]
["10760","SRIA DESARROLLO SOCIAL EDO MIC","SRDESOMICH","10760-SRDESOMICH"]
["10761","SYR MINISTRY OF LOCAL ADMINIST","SYR-MIN","10761-SYR-MIN"]
["10762","HUVAFENFUSHI","HUVAFENFUS","10762-HUVAFENFUS"]
["10763","SYR STATE PLANNING COMMISISION","SYR-SPC","10763-SYR-SPC"]
["10764","SYR MINISTRY OF HOUSING & CONS","SYR-MINH&C","10764-SYR-MINH&C"]
["10765","SYR MINISTRY OF INFORMATION","SYR-MININF","10765-SYR-MININF"]
["10766","SYR MINISTRY OF AGRICULTURE","SYR-MINAGR","10766-SYR-MINAGR"]
["10767","SYR MINISTRY OF JUSTICE","SYR-MINJUS","10767-SYR-MINJUS"]
["10768","SYR MINISTRY OF TOURISM","SYR-MINTOU","10768-SYR-MINTOU"]
["10769","SYR MINISTRY OF FINANCE","SYR-MINFIN","10769-SYR-MINFIN"]
["10770","SYR MINISTRY OF TECHNOLOGY&COM","SYR-MINTEC","10770-SYR-MINTEC"]
["10771","SYR MINISTRY OF INTERIOR","SYR-MININT","10771-SYR-MININT"]
["10772","SYR MINISTRY OF INDUSTRY","SYR-MININD","10772-SYR-MININD"]
["10773","MINISTRY OF HEALTH OF RWANDA","MINISTRY O","10773-MINISTRY O"]
["10774","EW PPP, NETHERLANDS","EW PPP","10774-EW PPP"]
["10775","AL-SHAM SHIPPING COMPANY","SYR-ALSHAM","10775-SYR-ALSHAM"]
["10776","UNIFEM - CSA","UNFEM-CSA","10776-UNFEM-CSA"]
["10777","UNCDF - CSA","UNCDF-CSA","10777-UNCDF-CSA"]
["10778","UNFPA-CSA","UNFPA-CSA","10778-UNFPA-CSA"]
["10779","UNOPS-CSA","UNOPS-CSA","10779-UNOPS-CSA"]
["10780","UN FUND FOR UNIFEM","UNIFEMFUND","10780-UNIFEMFUND"]
["10781","THE HUNTER FOUNDATION","HUNTER F.","10781-HUNTER F."]
["10782","CPLP","CPLP","10782-CPLP"]
["10783","MILLENNIUM PROMISE ALLIANCE, I","MP","10783-MP"]
["10784","SHELL FOUNDATION","SHELLFOUND","10784-SHELLFOUND"]
["10785","ENI PAKISTAN LIMITED","ENI","10785-ENI"]
["10786","MINISTRY OF SOCIAL SOLIDARITY","MOSS","10786-MOSS"]
["10787","FOUNDATION TP","FOUNDATION","10787-FOUNDATION"]
["10788","THE PREM RAWAT FOUNDATION","PREM RAWAT","10788-PREM RAWAT"]
["10789","ONG - IEPALA","CUB-IEPALA","10789-CUB-IEPALA"]
["10790","UNDP/SAS MISC COSTS","UNDP/SAS M","10790-UNDP/SAS M"]
["10791","CRISIS MANAGEMENT INITIATIVE","CMI","10791-CMI"]
["10792","STOCKHOLM INT'L WATER INSTITUT","SIWI","10792-SIWI"]
["10793","UNIIVERSIDAD DE GRANADA","CUB-UGRANA","10793-CUB-UGRANA"]
["10794","ASOCIACION DE AMISTAD MALAGA","CUB-MALAGA","10794-CUB-MALAGA"]
["10795","PROVINCIA DE PAVIA","CUB-PAVIA","10795-CUB-PAVIA"]
["10796","AYUNTAMIENTO DE ZARAGOZA","CUB-ZARAG","10796-CUB-ZARAG"]
["10797","COMITE ZONA CUERO","CUB-ZCUERO","10797-CUB-ZCUERO"]
["10798","AGENCIA ADELANTE","CUB-ADELAN","10798-CUB-ADELAN"]
["10799","HALYK BANK KAZAKHSTAN","HALYK BANK","10799-HALYK BANK"]
["10800","FONAEVI-FONHAPO","FONAEVI","10800-FONAEVI"]
["10801","ONG EUSKADI CUBA","CUB-EUSKAD","10801-CUB-EUSKAD"]
["10802","AYUNT PRAT LLOBREGAT","CUB-AYPRAT","10802-CUB-AYPRAT"]
["10803","CONSEJO NACIONAL DE MODERNIZAC","CONAM","10803-CONAM"]
["10804","EGY - EGYPT MINISTRY OF JUSTIC","EGYMINJUST","10804-EGYMINJUST"]
["10805","EGY - MINIISTRY OF HEALTH & PO","EGYMINISTR","10805-EGYMINISTR"]
["10806","URU-MIN DESARROLLO SOCIAL","MIDES","10806-MIDES"]
["10807","PACIFIC ISLANDS FORUM SECRETAR","PIFS","10807-PIFS"]
["10808","SECRETARIAT OF PACIFIC COMMUNI","SPC","10808-SPC"]
["10809","BRANDIX LANKA LTD","BRANDIX","10809-BRANDIX"]
["10810","SUPPORT TO JOINT INITIATIVES -","SUPPORTUNI","10810-SUPPORTUNI"]
["10811","ECU-CONTRALORIA GENERAL DEL ES","ECU-CGE","10811-ECU-CGE"]
["10812","IDA-DECENTARALIZED SUPPORT FAC","IDA-DSF","10812-IDA-DSF"]
["10813","AUSTRALIAN DIMA","AUS-DIMA","10813-AUS-DIMA"]
["10814","UNICA","UNICA","10814-UNICA"]
["10815","CAMARA DE COMERCIO DE CALI","CCCALI","10815-CCCALI"]
["10816","FUNDACION CAICEDO GONZALEZ","CAICEDO G","10816-CAICEDO G"]
["10817","FUNDACION ATCESIO PAZ PAZ","FUNDACION","10817-FUNDACION"]
["10818","COMITE INTERGREMIAL DEL VALLE","COMITE INT","10818-COMITE INT"]
["10819","UNIVERSIDAD ICESI","UCESI","10819-UCESI"]
["10820","UNIVERSIDAD DE SAN BUENAVENTUR","SAN BTURA","10820-SAN BTURA"]
["10821","UNIVERSIDAD AUTONOMA DE OCCIDE","AUTONONA","10821-AUTONONA"]
["10822","FUND.SMURFIT CARTON DE COL.","SMURFIT","10822-SMURFIT"]
["10823","UNIVERSIDAD JAVERIANA","JAVERIANA","10823-JAVERIANA"]
["10824","FUNDACION PROPAL","PROPAL","10824-PROPAL"]
["10825","FUND.PARQUE TECNOL.DEL SOFTWAR","PARQUESOFT","10825-PARQUESOFT"]
["10826","FUNDACION EPSA","EPSA","10826-EPSA"]
["10827","FUNDACION ALVARALICE","ALVARALICE","10827-ALVARALICE"]
["10828","CAJA DE COMPENSACION FAMILIAR-","COMFANDI","10828-COMFANDI"]
["10829","TERMINAL DE TRANSPORTE DE MANI","TERMINALMZ","10829-TERMINALMZ"]
["10830","INSTITUTO DE VALORIZACION DE M","INVAMA","10830-INVAMA"]
["10831","INWENT","INWENT","10831-INWENT"]
["10832","PER ACCION INTERNATIONAL","ACCION","10832-ACCION"]
["10833","PER CAMINANDO JUNTOS","CAMINANDO","10833-CAMINANDO"]
["10834","JONES DAY FOUNDATION","JONES DAY","10834-JONES DAY"]
["10835","AMERICAN RED CROSS","ARC","10835-ARC"]
["10836","MSU","MSU","10836-MSU"]
["10837","SAILING THE NILE","SAILINGNIL","10837-SAILINGNIL"]
["10838","YARA INTERNATION ASA","FIRM","10838-FIRM"]
["10839","THE WILLIAM AND FLORE HEWLETT","HEWLETTFDT","10839-HEWLETTFDT"]
["10840","CORPORACION PROGRAMA DESARROLL","PRODEPAZAN","10840-PRODEPAZAN"]
["10841","TUR-THE UNION OF CHAMBERS AND","TOBB","10841-TOBB"]
["10842","TUR - UCLG-MEWA","UCLG-MEWA","10842-UCLG-MEWA"]
["10843","FLEMISH GOVERNMENT","VAIS","10843-VAIS"]
["10844","URU-OFICINA NAC SERVICIO CIVIL","ONSC","10844-ONSC"]
["10845","PER - OSITRAN","OSITRAN","10845-OSITRAN"]
["10846","ENERGY & ENERGY EFFICIENCY PSH","REEEP","10846-REEEP"]
["10847","TURKEY THE UNION OF CHAMBERS A","TOBB","10847-TOBB"]
["10848","TUR -UCLG-MEWA","UCLG-MEWA","10848-UCLG-MEWA"]
["10849","AWEPA","AWEPA","10849-AWEPA"]
["10850","INTERNATIONAL LEGAL ASSISTANCE","ILAC","10850-ILAC"]
["10851","VEN-GOBERNACION ESTADO MIRANDA","VEN-MIRAND","10851-VEN-MIRAND"]
["10852","MUNICIPALIDAD DE ANTOFAGASTA","MUNIANTOFA","10852-MUNIANTOFA"]
["10853","TIRI(THE GOVERNANCE-ACCESS LEA","TIRI","10853-TIRI"]
["10854","SMITHSONIAN","SMITHSONIA","10854-SMITHSONIA"]
["10855","SEGIB","SEGIB","10855-SEGIB"]
["10856","URU-INST.DEL NINO Y ADOLESCEN","INAU","10856-INAU"]
["10857","ENVIRONMENTAL PROTECTION AGENC","EPA-SLM","10857-EPA-SLM"]
["10858","KIROVSKE MUNICIPALITY","KIROVSKEM","10858-KIROVSKEM"]
["10859","OMEGA","OMEGA","10859-OMEGA"]
["10860","SUNTEL","SUNTEL","10860-SUNTEL"]
["10861","ALLIANCE OF MAYORS AND MUNICIP","AMICAAL","10861-AMICAAL"]
["10862","GITA MOHAN MITTAL FOUNDATION","GMMFT","10862-GMMFT"]
["10863","INNER TRIP REIYUKAI INTERNATIO","ITRI","10863-ITRI"]
["10864","SUN MICROSYSTEMS,INC.","SUNMICROSY","10864-SUNMICROSY"]
["10865","SYRIA MINISTRY OF HIGHER EDUCA","SYR-MOHE","10865-SYR-MOHE"]
["10866","PER-MOLLENDO","PER-MOLLEN","10866-PER-MOLLEN"]
["10867","COL-CONTRALORIA MPAL DE NEIVA","CONTRNEIVA","10867-CONTRNEIVA"]
["10868","COL-CONTRALORIA DPTAL DE META","CONTRAMETA","10868-CONTRAMETA"]
["10869","UN DEMOCRACY FUND (UNDEF)","UNDEF","10869-UNDEF"]
["10870","MIN. OF FOREIGN AFFAIRS & COOP","MOFACSPAIN","10870-MOFACSPAIN"]
["10871","MINISTRY OF EUROPEAN INTEGRATI","MIE","10871-MIE"]
["10872","SECRETARIA OBJETIVOS DE DESARR","SODEM","10872-SODEM"]
["10873","HIGHER COUNCIL OF LUXOR","HCL","10873-HCL"]
["10874","COL-CONTRALORIA DPTAL DE VALLE","CONTRAVALL","10874-CONTRAVALL"]
["10875","COMPANIA GUATERMALTECA DE NIQU","CGN","10875-CGN"]
["10876","KOMERCIJALNA BANK","KOMBANKBGD","10876-KOMBANKBGD"]
["10877","RAIFFEISEN BANK","RAIFFEISBG","10877-RAIFFEISBG"]
["10878","CORP TURISMO DE CARTAGENA","TURIS CAR","10878-TURIS CAR"]
["10879","THE SUPREME COUNCIL FOR WOMEN","SCW","10879-SCW"]
["10880","CAMARA CIO DE CARTAGENA","CC CTGENA","10880-CC CTGENA"]
["10881","TOTAL S.A.  Multinational Comp","TOTAL S.A.","10881-TOTAL S.A."]
["10882","IBM Mulitnational Company","IBM Mulitn","10882-IBM Mulitn"]
["10883","City of Bonn","City Bonn","10883-City Bonn"]
["10884","PREFECTURA DE SUCUMBIOS","P.SUCUMBIO","10884-P.SUCUMBIO"]
["10885","OPEN SOCIETY INSTITUTE IN WEST","OSIWA","10885-OSIWA"]
["10886","PRIVATE SECTOR -CROATIA","PRIVATESEC","10886-PRIVATESEC"]
["10887","COLUMBIA UNIVERSITY (EARTH INS","EARTH INST","10887-EARTH INST"]
["10888","DHL EXPRESS","DHL","10888-DHL"]
["10889","HOLOPRYSTAN MUNICIPALITY","HOLOPRYSTM","10889-HOLOPRYSTM"]
["10890","MYKOLAYIV MUNICIPALITY","MYKOLAYIVM","10890-MYKOLAYIVM"]
["10891","LACEA","LACEA","10891-LACEA"]
["10892","PFIZER INC","PFIZER","10892-PFIZER"]
["10893","FUNDACION ROSA LUXEMBURGO","CUB-ROSALU","10893-CUB-ROSALU"]
["10894","International Plant Genetic Re","IPGRI","10894-IPGRI"]
["10895","PER-POZUZO","PER-POZUZO","10895-PER-POZUZO"]
["10896","Hindustan Level LTD","Ponds","10896-Ponds"]
["10897","ORACLE - MULTINATIONAL COMPANY","ORACLE","10897-ORACLE"]
["10898","Anadarko Algeria Company LLC","AAC LLC","10898-AAC LLC"]
["10899","TF to the 3 Diseases Fund to F","3DFTF/MMR","10899-3DFTF/MMR"]
["10900","TOTAL E&P INDONESIE","TOTAL IDN","10900-TOTAL IDN"]
["10901","MINISTRY OF ECONOMY","MINECO NRV","10901-MINECO NRV"]
["10902","ENERGY EFFICIENCY FUND","EEFUND HRV","10902-EEFUND HRV"]
["10903","EMBASSY OF NETHERLANDS IN SYRI","SYR-NethEM","10903-SYR-NethEM"]
["10904","Tarek Al-Juffali Foundation","JUFFALIFOU","10904-JUFFALIFOU"]
["10905","SHELL COMPANY -SAUDI ARABIA","SHELL-SAU","10905-SHELL-SAU"]
["10906","THE SAUDI RESEARCH AND MARKETI","SAUDI R&MG","10906-SAUDI R&MG"]
["10907","KOSICE REGIONAL AUTHORITY","SLO-KRA","10907-SLO-KRA"]
["10908","ALMARAI COMPANY","ALMARAI CO","10908-ALMARAI CO"]
["10909","ONG TOTAL","ONG TOTAL","10909-ONG TOTAL"]
["10910","AYUNTAMIENTO DE DONOSTIA","CUB-DONOS","10910-CUB-DONOS"]
["10911","IAPSO PIA CUSTOMERS 2007","IAPSO PIA","10911-IAPSO PIA"]
["10912","IAPSO PRIVATE CUSTOMERS 2007","IAPSO PRIV","10912-IAPSO PRIV"]
["10913","WBB PIA 2007","WBB - WORL","10913-WBB - WORL"]
["10914","IAPSO UNDP PIA 2007","IAPSO UNDP","10914-IAPSO UNDP"]
["10915","BEGECA 2007","BEGECA","10915-BEGECA"]
["10916","WEM 2007","WEM 2007","10916-WEM 2007"]
["10917","DANIDA PIA 2007","DANIDA PIA","10917-DANIDA PIA"]
["10918","WB DEFERRED CUST 2007","WB DEFERRE","10918-WB DEFERRE"]
["10919","PMU INTERLIFE 2007","PMU INTERL","10919-PMU INTERL"]
["10920","MFM - MENSCHEN FUER MENSCHEN 2","MFM 2007","10920-MFM 2007"]
["10921","MSF- MEDECINS SANS FRONTIERES","MSF- MEDEC","10921-MSF- MEDEC"]
["10922","GTZ 2007","GTZ 2007","10922-GTZ 2007"]
["10923","IAPSO TRAINING 2007","IAPSO TRAI","10923-IAPSO TRAI"]
["10924","VNG INTERNATIONAL","VNG","10924-VNG"]
["10925","BP PAKISTAN E&P INC. ISLAMABAD","BP PAK","10925-BP PAK"]
["10926","T&T MANUFACTURERS ASSOCIATION","TTMA","10926-TTMA"]
["10927","GUARDIAN HOLDINGS LIMITED","GHL","10927-GHL"]
["10928","FEM_ITALY NC","FEM_ITALY","10928-FEM_ITALY"]
["10929","General Federation for NGOs&Fo","GFNF","10929-GFNF"]
["10930","SWEDISH ARMED FORCES HQ","SWEDISH AF","10930-SWEDISH AF"]
["10931","FORCE ENVIRONMENTAL","FES USAINC","10931-FES USAINC"]
["10932","BEST FOUNDATION","BEST","10932-BEST"]
["10933","ORG. INTERNATIONALE DE LA FRAN","IEPF","10933-IEPF"]
["10934","DEVELOPMENT GATEWAY FOUNDATION","WEBBASEDSO","10934-WEBBASEDSO"]
["10935","Heinrich Boell Foundation","Heinrich B","10935-Heinrich B"]
["10936","NEW ZEALAND AID","NZAID PEF","10936-NZAID PEF"]
["10937","COL-U EJECUTIVA SERVICIOS PUBL","COL-UESP","10937-COL-UESP"]
["10938","COL-INST.PARA ECONOMIA SOCIAL","COL-IPES","10938-COL-IPES"]
["10939","BG TRINIDAD & TOBAGO","BG TT","10939-BG TT"]
["10940","PMU INTERLIFE SWEDEN 2007","PMU INTERL","10940-PMU INTERL"]
["10941","ELECTION COMMISSION NEPAL 2007","ELECTION C","10941-ELECTION C"]
["10942","ALCALDIA DE FACATATIVA","ALCFACA","10942-ALCFACA"]
["10943","ALL  ARMENIAN FUND","AAF","10943-AAF"]
["10944","UNITED NATIONS SYSTEM STAFF  C","LAS","10944-LAS"]
["10945","BGR - BUL MSPDA","BUL MSPDA","10945-BUL MSPDA"]
["10946","THE SIAM CEMENT PUBLIC COMPANY","SIAMCEMENT","10946-SIAMCEMENT"]
["10947","SHELL PAKISTAN LIMITED","SHELL PAKI","10947-SHELL PAKI"]
["10948","SYRIA NATIONAL POST AUTHORITY","SYR-POSTOF","10948-SYR-POSTOF"]
["10949","LONDON SCHOOL OF HYGIENE & TRO","LONDON SCH","10949-LONDON SCH"]
["10950","CARE YAOUNDE","CARE YAOUN","10950-CARE YAOUN"]
["10951","REGIONE VENETO","REGIONE VE","10951-REGIONE VE"]
["10952","VEOLIA ENVIRONNMENT","VEOLIA ENV","10952-VEOLIA ENV"]
["10953","REGIONE MARCHE","REGIONE MA","10953-REGIONE MA"]
["10954","ASSOCIAZIONE PROGETTO MUSICA","PROGETTO M","10954-PROGETTO M"]
["10955","Price Waterhouse Coopers FAS L","PWC","10955-PWC"]
["10956","COSUDE","COSUDE","10956-COSUDE"]
["10957","FUNDACION CAROLINA","FUNCAROLIN","10957-FUNCAROLIN"]
["10958","ORG.ECONOMIC CO-OPERATION AND","OECD","10958-OECD"]
["10959","ALCALDIA DEL MUNC VALENCIA","ALC.MUN.VL","10959-ALC.MUN.VL"]
["10960","AYBILBAO","AYBILBAO","10960-AYBILBAO"]
["10961","ROSTROS Y VOCES FDS","RYV","10961-RYV"]
["10962","Nicole Kidman","Nicole Kid","10962-Nicole Kid"]
["10963","FUNDACION PANMERICAN PARA EL D","FUPAD","10963-FUPAD"]
["10964","MARIA SHARAPOVA FOUNDATION","MSF","10964-MSF"]
["10965","PER-MUN.DIST.PACHACAMAC","PERMUNPACH","10965-PERMUNPACH"]
["10966","PER-GOB.REGIONAL LA LIBERTAD","GOB REGLIB","10966-GOB REGLIB"]
["10967","GLOBAL PEACE AND SECURITY FUND","GPSF CAN","10967-GPSF CAN"]
["10968","CENTRE FOR TRADE & DEVELOPMENT","CENTAD","10968-CENTAD"]
["10969","UKRAINKA MUNICIPALITY","UKRAINKAM","10969-UKRAINKAM"]
["10970","NOVO-VOLYNSK MUNICIPALITY","N-VOLYNSKM","10970-N-VOLYNSKM"]
["10971","USSC","USSC","10971-USSC"]
["10972","PRIMARIA SECTOR 2","PRIMARIAS2","10972-PRIMARIAS2"]
["10973","SHAREK YOUTH FORUM","SHAREK","10973-SHAREK"]
["10974","UNITED NATIONS PEACE FUND FOR","NEP/P.FUND","10974-NEP/P.FUND"]
["10975","COLDERORTES","COLDERORTE","10975-COLDERORTE"]
["10976","BLACK SEA ECONOMIC CO-OPERATIO","BSEC","10976-BSEC"]
["10977","COMMON FUND - CHOC","CHOC","10977-CHOC"]
["10978","GOVERNORATE OF DAMASCUS","SYR-GOVDAM","10978-SYR-GOVDAM"]
["10979","VENTEKO LTD","VENTEKO","10979-VENTEKO"]
["10980","HALYCH MUNICIPALITY","HALYCH MUN","10980-HALYCH MUN"]
["10981","LUX DEVELOPMENT","LUX DEVELO","10981-LUX DEVELO"]
["10982","OIM","OIM","10982-OIM"]
["10983","SIDOC S.A.","SIDOC S.A.","10983-SIDOC S.A."]
["10984","CARTEL ALFA","CARTELALFA","10984-CARTELALFA"]
["10985","CUAUTITLAN IZCALLI","CUAUTITLAN","10985-CUAUTITLAN"]
["10986","CAMARA DE DIPUTADOS","CAMARA DE","10986-CAMARA DE"]
["10987","SWEDISH CHEMICALS INSPECTORATE","KEMI","10987-KEMI"]
["10988","EGY UNITED NATIONS POPULATION","EGY UNFPA","10988-EGY UNFPA"]
["10989","EGY UNIFEM","EGY UNIFEM","10989-EGY UNIFEM"]
["10990","ALBANIAN ASSOCIATION OF BANKS","AAB","10990-AAB"]
["10991","UN AGENCIES MEXICO","UN AGENMEX","10991-UN AGENMEX"]
["10992","DPAD-FNC-FIDUPREVISORA S.A.","DPAD-FNC-F","10992-DPAD-FNC-F"]
["10993","BUL MINISTRY OF REG DEVT AND P","BUL MRDPW","10993-BUL MRDPW"]
["10994","ICELAND - MIN. FOREIGN AFFAIRS","ICEMINFORA","10994-ICEMINFORA"]
["10995","HONDA-MYS","HONDA-MYS","10995-HONDA-MYS"]
["10996","SHELL KAZAKHSTAN DEVELOPMENT B","SHELLKAZAK","10996-SHELLKAZAK"]
["10997","NADEL","NADEL","10997-NADEL"]
["10998","AMBASADA GRECIA","AMB GRECIA","10998-AMB GRECIA"]
["10999","ACBF","ACBF","10999-ACBF"]
["11000","MOHYLIV-PODILSKYI MUNICIPALITY","MOHYLIVPDM","11000-MOHYLIVPDM"]
["11001","ECOWAS","ECOWAS","11001-ECOWAS"]
["11002","THE CHRISTENSEN FUND","TCF","11002-TCF"]
["11003","FRENCH RED CROSS","FRC","11003-FRC"]
["11004","TURKISH CYPRIOT MEMBER OF CMP","TC MEMBER","11004-TC MEMBER"]
["11005","SIGULDA MUNICIPALITY","SIGULDAMUN","11005-SIGULDAMUN"]
["11006","HIMAL POWER LIMITED","HPL","11006-HPL"]
["11007","UKR MOBILE COMMUNICATIONS","UMC","11007-UMC"]
["11008","SYSTEM CAPITAL MANAGEMENT LTD","SCM LTD","11008-SCM LTD"]
["11009","NIKO INTERNATIONAL LIMITED","NIKO INTL","11009-NIKO INTL"]
["11010","AGROINVESTBANK","AGROINVEST","11010-AGROINVEST"]
["11011","OLYMPUS","OLYMPUS","11011-OLYMPUS"]
["11012","WELFARE ASSOCIATION","WELFARE","11012-WELFARE"]
["11013","BYE-SLAVNEFTEBANK","SLAVNEFTEB","11013-SLAVNEFTEB"]
["11014","BYE-BELPROMSTROIBANK","BELPROMSTR","11014-BELPROMSTR"]
["11015","BYE-BELGAZPROMBANK","BELGAZPROM","11015-BELGAZPROM"]
["11016","BYE-PRIORBANK","PRIORBANK","11016-PRIORBANK"]
["11017","BYE-BELINVESTBANK","BELINVESTB","11017-BELINVESTB"]
["11018","CARNEGIE CORP OF NY (FOUND)","CARNEGIEFO","11018-CARNEGIEFO"]
["11019","FORCE OF NATURE AID FOUNDATION","FON","11019-FON"]
["11020","TOWN OF VUKOVAR","VUKOVAR","11020-VUKOVAR"]
["11021","AFRO-ASIAN RURAL DEV ORG","AARDO","11021-AARDO"]
["11022","PER-PONTIF.UNIV.CATOLICA PERU","PER-PUCP","11022-PER-PUCP"]
["11023","MUTADIS CONSULTANTS","MUTADISCON","11023-MUTADISCON"]
["11024","STUDENT 10K","STUDENT10K","11024-STUDENT10K"]
["11025","INDIA DISASTER MITIGATION","AIDMI","11025-AIDMI"]
["11026","FIORELLA FOR MACARONI AND FOOD","SYRFIORELA","11026-SYRFIORELA"]
["11027","MANUFACTUREES ASSOCIATION - NI","SUBSCRFEES","11027-SUBSCRFEES"]
["11028","PER-GOB.REGIONAL AREQUIPA","GOB REGARE","11028-GOB REGARE"]
["11029","PER-GOBIERNO REGIONAL TUMBES","PER-GRT","11029-PER-GRT"]
["11030","PER-SUPERINT.NACIONAL DE RRPP","PER-SUNARP","11030-PER-SUNARP"]
["11031","MINISTRY OF SOCIAL AFFAIRS AND","SYR-MOSAL","11031-SYR-MOSAL"]
["11032","PER-MUN.DIST.ALTO ALIZANZA TAC","PERMUNALTO","11032-PERMUNALTO"]
["11033","LEBANON RECOVERY FUND","LRF","11033-LRF"]
["11034","LBN - MINISTRY OF TOURISM","MOT","11034-MOT"]
["11035","NATIONAL TELECOMMUNICATION INS","NTI","11035-NTI"]
["11036","SIWA NGO","SIWA NGO","11036-SIWA NGO"]
["11037","PER-MUN.DIST.SELVA ALEGRE","PERMUNSELV","11037-PERMUNSELV"]
["11038","PER-MUN.CAMANA","PERMUNCAMA","11038-PERMUNCAMA"]
["11039","PER.MUN.CHACHAPOYAS","PER.MUN.CH","11039-PER.MUN.CH"]
["11040","PER-MUN.CHICLAYO","PERMUNCHIC","11040-PERMUNCHIC"]
["11041","PER-MUN.DIST.CHIMBOTE","PER-MUN.CH","11041-PER-MUN.CH"]
["11042","PER-MUN.DIST.EL TAMBO","PER-MUN-EL","11042-PER-MUN-EL"]
["11043","PER-MUN.MOYOBAMBA","PER-MUN.MO","11043-PER-MUN.MO"]
["11044","PER-MUN.DIST.PUEBLO NUEVO","PER-MUN.PU","11044-PER-MUN.PU"]
["11045","PER-MUN.PUNO","PER-MUN.PU","11045-PER-MUN.PU"]
["11046","PER-MUN.DIST.SAN SEBASTIAN","PER-MUNSAN","11046-PER-MUNSAN"]
["11047","ARAB AUTHORITY FOR AGR.INVEST&","AAAID","11047-AAAID"]
["11048","VOZNESENSK MUNICIPALITY","VOZNESENSK","11048-VOZNESENSK"]
["11049","MINISTRY OF ENVIRONMENT LVA","LVAMOENV","11049-LVAMOENV"]
["11050","AYUDA EN ACCION MEXICO","AEC","11050-AEC"]
["11051","ROMANIAN ANGEL APPEAL","RAA","11051-RAA"]
["11052","NATIONAL DEMOCRATIC INSTITUTE","NDI","11052-NDI"]
["11053","COL - ALCALDIA INZA","COL-ALINZA","11053-COL-ALINZA"]
["11054","COL - ALCALDIA CALDONO","COL-ALCALD","11054-COL-ALCALD"]
["11055","COL - ALCALDIA TORIBIO","COL-ALTORI","11055-COL-ALTORI"]
["11056","COL-ALCALDIA JAMBALO","COL-ALJAMB","11056-COL-ALJAMB"]
["11057","COL - ALCALDIA SILVIA","COL-ALSILV","11057-COL-ALSILV"]
["11058","COL - ALCALDIA PAEZ","COL-ALPAEZ","11058-COL-ALPAEZ"]
["11059","ASIAN BLIND UNION","ABU","11059-ABU"]
["11060","NATO","NATO","11060-NATO"]
["11061","KAGARLYK MUNICIPALITY","KAGARLYK","11061-KAGARLYK"]
["11062","PETROLEOS MEXICANOS","PEMEX","11062-PEMEX"]
["11063","SECRETARIA MUJER GRO.","SMGED","11063-SMGED"]
["11064","SEP","SEP","11064-SEP"]
["11065","MINISTERUL MDD","MIN MDD","11065-MIN MDD"]
["11066","CITY OF BENKOVAC","BENKOVAC","11066-BENKOVAC"]
["11067","PLITVICKA JEZERA","PLITVICE","11067-PLITVICE"]
["11068","TOWN OF ILOK","ILOK","11068-ILOK"]
["11069","COL-CONSEJO SUPERIOR DE LA JUD","C.S.JUDICA","11069-C.S.JUDICA"]
["11070","EST ADELANTO MUJERES Y EQUID G","CEAMEG","11070-CEAMEG"]
["11071","CEPN","CEPN","11071-CEPN"]
["11072","AECI-AGENCIA ESPANOLA DE COOPE","SYR-AECI","11072-SYR-AECI"]
["11073","FONDS SOLIDARITE NUMBERIQUE","FSN","11073-FSN"]
["11074","AGENCE FRANCAISE DE DEVELOPPEM","AFD","11074-AFD"]
["11075","GAZ DE FRANCE","GDF","11075-GDF"]
["11076","COMISION DE TRANSITO DE GUAYAS","COMTRANGUA","11076-COMTRANGUA"]
["11077","PER-MUNI.DOST. COLCABAMBA","PER-MUN.CO","11077-PER-MUN.CO"]
["11078","KHAZANAH","KHAZANAH","11078-KHAZANAH"]
["11079","HOMENET SOUTH ASIA","HOMENET SO","11079-HOMENET SO"]
["11080","GOBIERNO DEL ESTADO DE JALISCO","GOB JALISC","11080-GOB JALISC"]
["11081","COL-ALCALDIA DE TUNJA","ALCALTUNJA","11081-ALCALTUNJA"]
["11082","COL-INSTITUTO DE TURISMO META","METATURISM","11082-METATURISM"]
["11083","MINISTRY OF POST AND TELECOMMU","MPT","11083-MPT"]
["11084","COL-FUNDACION MANUEL MEJIA","FUNMANMEJI","11084-FUNMANMEJI"]
["11085","MINISTERIO DE DESARROLLO URBAN","MINISTERI","11085-MINISTERI"]
["11086","UC RUSAL","UC RUSAL","11086-UC RUSAL"]
["11087","ORG. ISLAMIC CONFERENCE","OIC","11087-OIC"]
["11088","UNIIIC","UNIIIC","11088-UNIIIC"]
["11089","COL-FONDO FINANCIERO DE PROYEC","COL-FONDAD","11089-COL-FONDAD"]
["11090","COL-FEDERACION NACIONAL DE AVI","COL-FENAVI","11090-COL-FENAVI"]
["11091","COL-ASOC COL PARA AVANCE DE LA","COL-ASOCIA","11091-COL-ASOCIA"]
["11092","CSPR AS RB","CSPR AS RB","11092-CSPR AS RB"]
["11093","MINISTERUL MDLP","MIN MDLP","11093-MIN MDLP"]
["11094","FUNDACION GIGANTE, A.C.","FG","11094-FG"]
["11095","EDOMEX","EDOMEX","11095-EDOMEX"]
["11096","MUZEUL ETNOGRAFIE BV","MZM ETNOBV","11096-MZM ETNOBV"]
["11097","GOBIERNO DEL DF","GOB DF","11097-GOB DF"]
["11098","Algeria Relief Donors","Algeria rf","11098-Algeria rf"]
["11099","DEUTSCHE POST AG","DPAG","11099-DPAG"]
["11100","PROVINCIAL REHABILITATION TEAM","PRT - KHOS","11100-PRT - KHOS"]
["11101","BGR - MINISTRY OF FOREIGN AFFA","MOFA","11101-MOFA"]
["11102","HOLCIM ( SLOVAKIA),A.S.","HOLCIM","11102-HOLCIM"]
["11103","ONE UN FUND -TANZANIA(JP)","TZ UN FUND","11103-TZ UN FUND"]
["11104","BRITISH EMBASSY TASHKENT","BRITEMBAST","11104-BRITEMBAST"]
["11105","CONCERN MONARCH OJSC","CONCERN MO","11105-CONCERN MO"]
["11106","FONDO AMBIENTAL NACIONAL","FONDO AMBI","11106-FONDO AMBI"]
["11107","Splitsko-dalmatinska county","SDCounty","11107-SDCounty"]
["11108","MUNICIPALITY SUNJA","SUNJA","11108-SUNJA"]
["11109","MUNICIPALITY KRNJAK","KRNJAK","11109-KRNJAK"]
["11110","MUNICIPALITY BARILOVIC","BARILOVIC","11110-BARILOVIC"]
["11111","Royal Danish Embassy in Syria","SYR-DanEmb","11111-SYR-DanEmb"]
["11112","Royal Ministry of Foreign Affa","RMFANorway","11112-RMFANorway"]
["11113","Davidson College","Davidson","11113-Davidson"]
["11114","LUGHANSK MUNCIPALITY","LUGHANSK","11114-LUGHANSK"]
["11115","International HIV/AIDS Allianc","Alliance","11115-Alliance"]
["11116","COWI A/S","COWI","11116-COWI"]
["11117","SLOVNAFT, A.S.","SLOVNAFT,","11117-SLOVNAFT,"]
["11118","PER-FORSUR","PER-FORSUR","11118-PER-FORSUR"]
["11119","RUDETRANS GMB H","RUDETRANS","11119-RUDETRANS"]
["11120","OPEC Fund for International De","OPEC Fund","11120-OPEC Fund"]
["11121","Servico De Integracao Social","Conexao","11121-Conexao"]
["11122","Al Maktoum Foundation","MBRF","11122-MBRF"]
["11123","MINURCAT - UN MISSION IN CENTR","MINURCAT","11123-MINURCAT"]
["11124","Contraloria General","CHI-CGR","11124-CHI-CGR"]
["11125","Ahli united Bank BSC","Ahli unite","11125-Ahli unite"]
["11126","Fundacion Cultural de la Ciuda","FCCM","11126-FCCM"]
["11127","UNOSCL","UNOSCL","11127-UNOSCL"]
["11128","TAG Heuer SA","TAGHeuerSA","11128-TAGHeuerSA"]
["11129","Comite Multi Bailleur","CMD YAOUND","11129-CMD YAOUND"]
["11130","COL-CONGRESO DE LA REPUBLICA","COL-CONGRE","11130-COL-CONGRE"]
["11131","Rubizhne Municipality","Rubizhne","11131-Rubizhne"]
["11132","Les Amis Du Liban a Monaco","ALM","11132-ALM"]
["11133","Mersin Ticaret ve Sanayi Odasi","MTSO","11133-MTSO"]
["11134","Caakkale Ticaret Borsasi","CTB","11134-CTB"]
["11135","AB Droit Audiovisuel","AZIMUTH","11135-AZIMUTH"]
["11136","Tulchyn Municipality","Tulchyn","11136-Tulchyn"]
["11137","WEST AFRICAN ECONOMIC AND MONE","UEMOA","11137-UEMOA"]
["11138","Center for Development & ENV","CDE","11138-CDE"]
["11139","Government of Timor'Leste","GOTL","11139-GOTL"]
["11140","Japanese international Coopera","SYR-JICA","11140-SYR-JICA"]
["11141","UNTSO - Lebanon","LBN-UNTSO","11141-LBN-UNTSO"]
["11142","Cinema for Peace","Cine-Peace","11142-Cine-Peace"]
["11143","Embassy of United States of Am","US Embassy","11143-US Embassy"]
["11144","Fordham University, Leitner Ce","ECHM","11144-ECHM"]
["11145","URU-FONDO PARA LA CONVERGENCIA","FOCEM","11145-FOCEM"]
["11146","University Of Damascus","SYRUnivDam","11146-SYRUnivDam"]
["11147","SCA Slovakia","SLO-SCA","11147-SLO-SCA"]
["11148","Council Of Local Authorities","LAuthorts","11148-LAuthorts"]
["11149","dbb akademie","dbb akadem","11149-dbb akadem"]
["11150","Myanmar Relief Donor","MMR RELIEF","11150-MMR RELIEF"]
["11151","FUNDACION WAL-MART DE MEXICO,A","FWM","11151-FWM"]
["11152","MINISTRY OF FAMILY, VETERANS","MFVAIS","11152-MFVAIS"]
["11153","PER - GOB REG SAN MARTIN","PER-GR SM","11153-PER-GR SM"]
["11154","PER - GOB REG AMAZONAS","PER-GR AMA","11154-PER-GR AMA"]
["11155","PER - GOB REG LAMBAYEQUE","PER-GR LAM","11155-PER-GR LAM"]
["11156","PER - GOB REG ANCASH","PER-GR AN","11156-PER-GR AN"]
["11157","PER - GOB REG PIURA","PER-GR PIU","11157-PER-GR PIU"]
["11158","PER - GOB REG CAJAMARCA","PER-GR CAJ","11158-PER-GR CAJ"]
["11159","SEMAFO GUINEE SA","SEM GUI SA","11159-SEM GUI SA"]
["11160","Embajada de Italia en Mexico","Embajada d","11160-Embajada d"]
["11161","PER-MINISTERIO DE DEFENSA","PER-MINDEF","11161-PER-MINDEF"]
["11162","PER-MINJUS DONACIONES","MINJUS-DON","11162-MINJUS-DON"]
["11163","CHINA RELIEF DONOR","CHINA FUND","11163-CHINA FUND"]
["11164","FUNDACION PLAN INTERNATIONAL","FUNDACIONP","11164-FUNDACIONP"]
["11165","POGAR","POGAR","11165-POGAR"]
["11166","IARC/WHO","IARC/WHO","11166-IARC/WHO"]
["11167","DOLYNA MUNICIPALITY","DOLYNAM","11167-DOLYNAM"]
["11168","CARE-BANGLADESH","CARE-BANGL","11168-CARE-BANGL"]
["11169","SAKY MUNICIPALITY","SAKYMUN","11169-SAKYMUN"]
["11170","International AIDS Society(IAS","IAS","11170-IAS"]
["11171","INTERNATIONAL RESCUE COMMITTEE","INTRESCOMM","11171-INTRESCOMM"]
["11172","Carnegie Endowment for Int'l P","CEIP","11172-CEIP"]
["11173","UNMACC","UNMACC","11173-UNMACC"]
["11174","MINISTRY OF HEALTH","SYR -MOH","11174-SYR -MOH"]
["11175","MINISTRY OF HEALTH","HRV-MHSW","11175-HRV-MHSW"]
["11176","METAC","LBN-METAC","11176-LBN-METAC"]
["11177","CADBURY HOLDINGS LTD","CADBURY","11177-CADBURY"]
["11178","BUL State Agency for Informati","BUL SAITC","11178-BUL SAITC"]
["11179","International Criminal Court","ICC","11179-ICC"]
["11180","URU-MIN DE INDUSTRIA, ENERGIA","MIEM","11180-MIEM"]
["11181","Norwegian Petroleum Directorat","NPD","11181-NPD"]
["11182","\"Manes\" Benevolent  Foundation","Manes","11182-Manes"]
["11183","CHL-MINISTERIO DEL TRABAJO","MINTRAB","11183-MINTRAB"]
["11184","Ministerio del Trabajo","MINTRAB","11184-MINTRAB"]
["11185","PER-BIBLIOTECA NACIONAL","PER-BNP","11185-PER-BNP"]
["11186","Yamaha Motor Co, LTD","Yamaha","11186-Yamaha"]
["11187","JSC Severstal","Severstal","11187-Severstal"]
["11188","Palestine Investment Fund","PIF","11188-PIF"]
["11189","UNIVERSITY OF  OSLO","OSLO UNIV","11189-OSLO UNIV"]
["11190","SPAIN MDG FUND","SPAIN MDG","11190-SPAIN MDG"]
["11191","Khalifa bn Zayed Al Nehayan Fo","Khalifa fo","11191-Khalifa fo"]
["11192","UN Register of Damage - UNROD","UNROD","11192-UNROD"]
["11193","DZHANKOJ MUNICIPALITY","DZHANKOJ","11193-DZHANKOJ"]
["11194","State Property Committee of Uz","State Prop","11194-State Prop"]
["11195","MA'AN Development Center","MA'AN","11195-MA'AN"]
["11196","GENERALITAT VALENCIANA (DONOR)","VALENCIANA","11196-VALENCIANA"]
["11197","International Development Rese","IDRC","11197-IDRC"]
["11198","Foundation for Advanced Studie","FASID","11198-FASID"]
["11199","PERUSIC MUNICIPALITY","PERUSIC","11199-PERUSIC"]
["11200","Management Training and Adviso","MTAC","11200-MTAC"]
["11201","Armenian General Benevolent Un","AGBU","11201-AGBU"]
["11202","AJG Foundation","Addie Gutt","11202-Addie Gutt"]
["11203","ORANGE Moldova","ORANGE","11203-ORANGE"]
["11204","SWEDISH RESCUE SERVICES AGENCY","SRSA","11204-SRSA"]
["11205","AMISOM","AMISOM","11205-AMISOM"]
["11206","University of Gothenburg","UNIVGOTHEN","11206-UNIVGOTHEN"]
["11207","US Department of State","USDOS G/TI","11207-USDOS G/TI"]
["11208","MINISTERIO DE ECONOMIA","MINECON","11208-MINECON"]
["11209","FNC","FNC","11209-FNC"]
["11210","EIF UNOPS TFM","EIF TFM","11210-EIF TFM"]
["11211","IRISH AID","IRE AID","11211-IRE AID"]
["11212","World Resource Institute","WRI","11212-WRI"]
["11213","AL-TON TRADING CO","SYR-ALTON","11213-SYR-ALTON"]
["11214","Emaar Syria Co. Ltd","SYR-EMAAR","11214-SYR-EMAAR"]
["11215","SYRIAN TELECOM ESTABLISHMENT","SYR-TELCOM","11215-SYR-TELCOM"]
["11216","Central Electoral Commission","CECMoldova","11216-CECMoldova"]
["11217","Berghof Foundation for Peace S","BFPS","11217-BFPS"]
["11218","MOLDCELL","MOLDCELL","11218-MOLDCELL"]
["11219","REGIONE LIGURIA","REGIONELIG","11219-REGIONELIG"]
["11220","CAJA GRANADA","CAJAGRANAD","11220-CAJAGRANAD"]
["11221","INTEN MUNICIPAL DE CANELONES","IMC","11221-IMC"]
["11222","MDG Cnetre","MDG Cnetre","11222-MDG Cnetre"]
["11223","PGE Polska Grupa","PGE Polska","11223-PGE Polska"]
["11224","Russian Healthcare Foundation","RUSHEALTH","11224-RUSHEALTH"]
["11225","MASHAV","MASHAV","11225-MASHAV"]
["11226","CRPM-FRANCE","CRPM","11226-CRPM"]
["11227","Italian Min. for Foreign Affai","ITA MAE","11227-ITA MAE"]
["11228","Royal Society Protection of Bi","RSPB","11228-RSPB"]
["11229","UNICEF Morocco","UNICEF","11229-UNICEF"]
["11230","URU-CAMARA DE REPRESENTANTES","CAMARA REP","11230-CAMARA REP"]
["11231","THE COLLEGE PREPARATORY SCHOOL","THE COLLEG","11231-THE COLLEG"]
["11232","ISAGEN S.A.E.S.P.","ISAGEN","11232-ISAGEN"]
["11233","SER Min Econ Reg Devt","SER MERD","11233-SER MERD"]
["11234","Australian Agency for Int'l De","AusAID","11234-AusAID"]
["11235","Shell Pet. Dev. Comp. of Nig (","SPDC","11235-SPDC"]
["11236","URU-AGESIC","AGESIC","11236-AGESIC"]
["11237","URU-MIN DE TRABAJO Y SEG SOCIA","MTSS","11237-MTSS"]
["11238","BRA-MINISTERIO DO MEIO AMBIENT","MMA","11238-MMA"]
["11239","BRA-FUNDACAO NACIONAL DO INDIO","FUNAI","11239-FUNAI"]
["11240","BRA-MIN DESENVOL  VIMENTO AGRA","MDA","11240-MDA"]
["11241","FUN. ANTONIO RESTREPO BARCO","ANTRESBAR","11241-ANTRESBAR"]
["11242","Orascom Telecom Holding","OT","11242-OT"]
["11243","HUMANITY UNITED","HUMANITY U","11243-HUMANITY U"]
["11244","MINIST. COORD. DESARR. SOCIAL","MCDS","11244-MCDS"]
["11245","PA RESOURCES AB","PARAB","11245-PARAB"]
["11246","AVON Foundation","AVON Found","11246-AVON Found"]
["11247","GOBIERNO REGIONAL TARAPACA","GORETRPACA","11247-GORETRPACA"]
["11248","BRA-Inst. Chico. Mendes de Con","ICMBio","11248-ICMBio"]
["11249","AVON Foundation","AVON Found","11249-AVON Found"]
["11250","Hungarian National Committee,","Hungarian","11250-Hungarian"]
["11251","CZE-MINISTRY FOREIGN AFFAIRS","CZE-MINFAF","11251-CZE-MINFAF"]
["11252","IDPAC","Convenio d","11252-Convenio d"]
["11253","Orascom Construction Industrie","OCI","11253-OCI"]
["11254","BYE-TECHNOBANK","TECHNOBAN","11254-TECHNOBAN"]
["11255","Region Bretagne","Region Bre","11255-Region Bre"]
["11256","BYE-BANK MOSCOW-MINSK","MOSC-MINSK","11256-MOSC-MINSK"]
["11257","International Institute for En","IIED","11257-IIED"]
["11258","Government of Sindh","GoSindh","11258-GoSindh"]
["11259","SEDEFRSUR Chiapas","SEDEFRSUR","11259-SEDEFRSUR"]
["11260","EGY - Industrial Modernisation","IMC","11260-IMC"]
["11261","LOUIS BONDUELLE FOUNDATION","BONDUELLE","11261-BONDUELLE"]
["11262","OIC-UNESCO","OIC-UNESCO","11262-OIC-UNESCO"]
["11263","UNEP-TEEB","TEEB","11263-TEEB"]
["11264","FERRARA","FERRARA","11264-FERRARA"]
["11265","DIE","DIE","11265-DIE"]
["11266","Austrian Development Agency","ADA","11266-ADA"]
["11267","INTEREST UNIFEM","IUNCR","11267-IUNCR"]
["11268","Delta State Government","DeltaState","11268-DeltaState"]
["11269","BYE-ALFA-BANK","ALFA-BANK","11269-ALFA-BANK"]
["11270","BYE-BELARUSBANK","BELARUSBAN","11270-BELARUSBAN"]
["11271","WCC Armenia Interchurch Charit","WCC_Ch.F.","11271-WCC_Ch.F."]
["11272","Millennium Cities Initiative","MCI","11272-MCI"]
["11273","Misr for Clearance,Settlement","MCSD","11273-MCSD"]
["11274","BYE-ABSOLUTBANK","ABSOLUTBAN","11274-ABSOLUTBAN"]
["11275","BYE-BEL INDUSTRIAL BANK","BELINDUSTR","11275-BELINDUSTR"]
["11276","BYE-BELSWISSBANK","BELSWISSBA","11276-BELSWISSBA"]
["11277","BYE-CREDEXBANK","CREDEXBANK","11277-CREDEXBANK"]
["11278","Multi-Donor Trust Fund Office","MDTF1","11278-MDTF1"]
["11279","BADIL Resource Center","BADIL Reso","11279-BADIL Reso"]
["11280","FUNDACION DESARROLLO INTEGRAL","F.D.I.","11280-F.D.I."]
["11281","GASES DE OCCIDENTE","FGO","11281-FGO"]
["11282","INDUSTRIA ENVASES S. A.","IND. ENVAS","11282-IND. ENVAS"]
["11283","Comite de Parma","PARMA","11283-PARMA"]
["11284","MTN Ghana Foundation","MTN Gh","11284-MTN Gh"]
["11285","EGY-Min. of. Environ. Affairs.","EGY-MinEnv","11285-EGY-MinEnv"]
["11286","Turkish International Cooperat","TIKA","11286-TIKA"]
["11287","KEMCO","Energy","11287-Energy"]
["11288","Mitsui & CO. Ltd","Mitsui & C","11288-Mitsui & C"]
["11289","RDH Hungary","HUN-RDH","11289-HUN-RDH"]
["11290","BYE-TRUSTBANK","TRUSTBANK","11290-TRUSTBANK"]
["11291","AL-QUDS OPEN UNIVERSITY","QOU","11291-QOU"]
["11292","N. IRELAND COOPERATION OVERSEA","N. IRELAND","11292-N. IRELAND"]
["11293","BFV SG","BFV SG","11293-BFV SG"]
["11294","ROTARY CLUB MAHAMASINA","ROTARY","11294-ROTARY"]
["11295","SHCHELKINE MUNICIPALITY","SHCHELKINE","11295-SHCHELKINE"]
["11296","COMITE DE MILAN","MILAN","11296-MILAN"]
["11297","REGIONE PUGLIA","REGIONE PU","11297-REGIONE PU"]
["11298","FORD FOUNDATION JAKARTA","FF JAKARTA","11298-FF JAKARTA"]
["11299","CENTRO MARIO MOLINA, A.C.","CEMMAC","11299-CEMMAC"]
["11300","LAURENT GARNIER SADEV94","SADEV94","11300-SADEV94"]
["11301","N. IRELAND COOPERATION OVERSEA","N. IRELAND","11301-N. IRELAND"]
["11302","TAKSVARKKI RY - ODW FINLAND","ODW FINLAN","11302-ODW FINLAN"]
["11303","ZADAR COUNTY","ZADAR","11303-ZADAR"]
["11304","GRID-Arendal","GRID-Arend","11304-GRID-Arend"]
["11305","MINISTERIO DE TURISMO","MINISTERIO","11305-MINISTERIO"]
["11306","BYE BELAGROPROMBANK","BELAGROPRO","11306-BELAGROPRO"]
["11307","Province de florence","ProvFloren","11307-ProvFloren"]
["11308","IKEA SOCIAL INITIATIVE","IKEASI","11308-IKEASI"]
["11309","PLAN GUINEE","PLAN/G","11309-PLAN/G"]
["11310","Institute Development of Studi","Institute","11310-Institute"]
["11311","FECD","FECD","11311-FECD"]
["11312","Coffey Int. Development Ltd.","Coffey","11312-Coffey"]
["11313","Asia Society","Asia Socie","11313-Asia Socie"]
["11314","MDTFO/JP_Indig_Rights_GUA","JP-GT Indg","11314-JP-GT Indg"]
["11315","MDTFO/JP_Gov/Public_Admin_LAO","JP-LA Gvrn","11315-JP-LA Gvrn"]
["11316","BYE-HOUMKREDITBANK","BYE-HOUMKR","11316-BYE-HOUMKR"]
["11317","BYE-BELROSBANK","BELROSBANK","11317-BELROSBANK"]
["11318","Laurent Garnier","SADEV 94","11318-SADEV 94"]
["11319","BYE-EUROBANK","EUROBANK","11319-EUROBANK"]
["11320","BYE-TCBANK","TRADCAPBAN","11320-TRADCAPBAN"]
["11321","Custodian of Two Holy Mosq. Ca","CTHMCR","11321-CTHMCR"]
["11322","Palestine Monetary Authority","Palestine","11322-Palestine"]
["11323","Secretaria de Gobernacion","SEGOB","11323-SEGOB"]
["11324","ORANTA INSURANCE COMPANY","ORANTA","11324-ORANTA"]
["11325","Ministry of Finance Slovak Rep","MOF SLO","11325-MOF SLO"]
["11326","Diputacion de Huwelva","Huelva","11326-Huelva"]
["11327","Sociedad De Imagen Y Promocion","Galicia","11327-Galicia"]
["11328","City of Livorno","CoL","11328-CoL"]
["11329","CORPORACION ANDINA DE FOMENTO","CAF","11329-CAF"]
["11330","Childern & Mother Welfare Soci","Child & Mo","11330-Child & Mo"]
["11331","WORLD ENERGY CONGRESS MONTREAL","WEC MONTRE","11331-WEC MONTRE"]
["11332","Commonwealth Local Governance","CLGF","11332-CLGF"]
["11333","Embraco Slovakia, s.r.o.","Embraco","11333-Embraco"]
["11334","BYE-PARITETBANK","Paritetban","11334-Paritetban"]
["11335","BYE-BELVNESHECONOMBANK","BELVNESH","11335-BELVNESH"]
["11336","Ministry of Finance of the Rep","SRB-MOF","11336-SRB-MOF"]
["11337","UAE-Abu Dhabi-Department of Ec","UAE-AD-DOE","11337-UAE-AD-DOE"]
["11338","MDTFO/JP_TLS_INFUSE","JP_TP_INFU","11338-JP_TP_INFU"]
["11339","Ministry of Youth & Sport SRB","MoYS SRB","11339-MoYS SRB"]
["11340","MDTFO/JP_LBR_Gender_Equality","LBR_Gen_Eq","11340-LBR_Gen_Eq"]
["11341","MDTFO/JP_TLS_Local_Govt_Supp","TLS_Lo_Gov","11341-TLS_Lo_Gov"]
["11342","MDTFO/JP_UN_Country_Fund_BTN","BTN_One_UN","11342-BTN_One_UN"]
["11343","MDTFO/JP_Kiribati_One_UN_Fund","KIR_One_UN","11343-KIR_One_UN"]
["11344","MDTFO/JP_UN_Country_Fund_PNG","PNG_One_UN","11344-PNG_One_UN"]
["11345","MDTFO/JP_Comm_Climate_Change","UN_CBA","11345-UN_CBA"]
["11346","FUNDACION EMILIO MORO","EMILIO MOR","11346-EMILIO MOR"]
["11347","ALCI Lodi","ALCI Lodi","11347-ALCI Lodi"]
["11348","PER-GOB REGIONAL JUNIN","PER-GR JUN","11348-PER-GR JUN"]
["11349","General Elections Commision (C","CEC","11349-CEC"]
["11350","BENKOVAC CITY","BENKOVAC","11350-BENKOVAC"]
["11351","CITY OF OTOCAC","OTOCAC","11351-OTOCAC"]
["11352","WSSCC UNOPS","WSSCC","11352-WSSCC"]
["11353","Cultural Fund","Cultural F","11353-Cultural F"]
["11354","BYE-BELNARODNYBANK","Belnarbank","11354-Belnarbank"]
["11355","Coneval","Coneval","11355-Coneval"]
["11356","MEDCO","MEDCO","11356-MEDCO"]
["11357","TOPUSKO MUNICIPALITY","Topusko","11357-Topusko"]
["11358","PLASKI MUNICIPALITY","Plaski","11358-Plaski"]
["11359","TOWN OF GVOZD","Gvozd","11359-Gvozd"]
["11360","SLUNJ TOWN","Slunj","11360-Slunj"]
["11361","SNAP-SISTEMA NACIONAL DE AREAS","SNAP","11361-SNAP"]
["11362","UNOCHA/Central_Emg_Resp_Fund","CERF","11362-CERF"]
["11363","MDTFO\\JP_Peace_Building_Fund","PBF","11363-PBF"]
["11364","MDTFO\\JP_MDG-F_Conflict_&_PB","MDGF_Confl","11364-MDGF_Confl"]
["11365","MDTFO\\JP_Central_Fund_Influenz","CFIA","11365-CFIA"]
["11366","MDTFO/JP_Expanded_Fund_Window","EFW","11366-EFW"]
["11367","Ministry of Environment protec","MEP-KAZAKH","11367-MEP-KAZAKH"]
["11368","Min. of National Security T&T","MNS T&T","11368-MNS T&T"]
["11369","TAMKEEN(Labour Fund)","TAMKEEN","11369-TAMKEEN"]
["11370","Conservation des Especes Anima","CEPA","11370-CEPA"]
["11371","TF to the LIFT Fund","LIFT\\TF\\MM","11371-LIFT\\TF\\MM"]
["11372","GOB-REG METROPOLITANO SANTIAGO","GRMS","11372-GRMS"]
["11373","AEXCID","AEXCID","11373-AEXCID"]
["11374","Govern de les illes Balears","BALEARS","11374-BALEARS"]
["11375","VOJNIC MUNICIPALITY","Vojnic","11375-Vojnic"]
["11376","Institute of public administra","BIPA","11376-BIPA"]
["11377","PETRINJ A TOWN","PETRINJA","11377-PETRINJA"]
["11378","Danish Institute for Int'l Stu","DIIS","11378-DIIS"]
["11379","AFD-French development agency","AFD-THAI","11379-AFD-THAI"]
["11380","VITORIA GASTEIZ","VITORIAGAS","11380-VITORIAGAS"]
["11381","FUNDACION ETEA","FUND.ETEA","11381-FUND.ETEA"]
["11382","CARE MADAGASCAR","CARE MADAG","11382-CARE MADAG"]
["11383","KNIN CITY","KNIN","11383-KNIN"]
["11384","DVOR Municipality","DVOR","11384-DVOR"]
["11385","MINISTERIO SEC GRAL DE GOBEIRN","SEGEGOB","11385-SEGEGOB"]
["11386","GLINA TOWN","Glina","11386-Glina"]
["11387","The Royal Norwegian Embassy in","EMBNOR","11387-EMBNOR"]
["11388","CITY OF ZAGREB","CITY OF ZA","11388-CITY OF ZA"]
["11389","Ayuntamiento de Lasarte","Ayu Lasart","11389-Ayu Lasart"]
["11390","General  Organization  for You","General  O","11390-General  O"]
["11391","eGovernment Authority","eGOV","11391-eGOV"]
["11392","Council of  Representatives","NUWAB","11392-NUWAB"]
["11393","Ayuntamiento de san sebastian","San Sebast","11393-San Sebast"]
["11394","Multiple Donors To MDTF","MultiDonor","11394-MultiDonor"]
["11395","PER-TRIBUNAL CONSTITUCIONAL","PER-TRIBUN","11395-PER-TRIBUN"]
["11396","Expanded DaO Funding Window","EFW_DaO","11396-EFW_DaO"]
["11397","Shura Council","Shura","11397-Shura"]
["11398","BYE-SOMBELBANK","SOMBEL","11398-SOMBEL"]
["11399","AEGIS Business Solutions Ltd.","Aegis","11399-Aegis"]
["11400","MDTFO/JP_Sierra_Leone_MDTF","SL_MDTF","11400-SL_MDTF"]
["11401","MDTFO/JP_FM_Eliminate_Violence","FM_AEVAM","11401-FM_AEVAM"]
["11402","GALDU","GALDU","11402-GALDU"]
["11403","SDC-Swiss Agency For Developme","SDC","11403-SDC"]
["11404","Center for information (CINFO)","CINFO","11404-CINFO"]
["11405","Erste bank  ad  Novi Sad","Erste bank","11405-Erste bank"]
["11406","Piraeus bank AD Beogard","Piraeus","11406-Piraeus"]
["11407","SEDESCO Chiapas","SEDESCO Ch","11407-SEDESCO Ch"]
["11408","Millenium  Challenge  Corporat","MCC","11408-MCC"]
["11409","UNICEF CEE/CIS","UNICEF CEE","11409-UNICEF CEE"]
["11410","Foreign common wealth ofice","Foreign co","11410-Foreign co"]
["11411","BYE-POLESSKI STATE UNIVERSITY","BYE-POLESS","11411-BYE-POLESS"]
["11412","The  Carter Center","Carter Cen","11412-Carter Cen"]
["11413","BYE DELTABANK","Deltabank","11413-Deltabank"]
["11414","UNOPS TFM","UNOPS TFM","11414-UNOPS TFM"]
["11415","BRA-MinCiencia & Tecnologia","BRA-MCT","11415-BRA-MCT"]
["11416","TF to health PONREPP Fund","HPF/TF/MMR","11416-HPF/TF/MMR"]
["11417","PER-GOB REG TACNA","PER-GR TAC","11417-PER-GR TAC"]
["11418","NYZHNIOHIRSKY MUNICIPALITY","NYZHNIOHIR","11418-NYZHNIOHIR"]
["11419","Live Lebanon","LiveLeb","11419-LiveLeb"]
["11420","MDTFO/JP_Stabilization_&_Recov","CRF_DRC","11420-CRF_DRC"]
["11421","PER-MINAM","PER-MINAM","11421-PER-MINAM"]
["11422","BHP Billiton","BHP Billit","11422-BHP Billit"]
["11423","SYRIA MTN","SYRIA MTN","11423-SYRIA MTN"]
["11424","MDTFO/JP_Moldova_JILDP","JP_MD_LDP","11424-JP_MD_LDP"]
["11425","MDTFO/JP_nepal_LPCDP","JP_NP_LGCP","11425-JP_NP_LGCP"]
["11426","Mariene Informative Service BV","Maris","11426-Maris"]
["11427","PER_CEPLAN","PER_CEPLAN","11427-PER_CEPLAN"]
["11428","Vnesheconombank","Vneshecono","11428-Vneshecono"]
["11429","Region Phone Alpes","RhoneAlpes","11429-RhoneAlpes"]
["11430","Region Poitou Charentes","Poitou Chr","11430-Poitou Chr"]
["11431","GOVERNMENT OF QUEBEC","Quebec","11431-Quebec"]
["11432","Federal Office for the Environ","FOEN","11432-FOEN"]
["11433","Atlantic LNG","LNG","11433-LNG"]
["11434","Hiroshima Peacebuilders Centre","HPC Japan","11434-HPC Japan"]
["11435","Haiti Relief Donors","HTI Relief","11435-HTI Relief"]
["11436","KARLOVAC COUNTY","KARLOVAC C","11436-KARLOVAC C"]
["11437","MDTFO/Jp_Uganda_GenderEquality","JP_UGA_Gen","11437-JP_UGA_Gen"]
["11438","Croatian National Competitiven","NCC","11438-NCC"]
["11439","The National Gas Company of Tr","NGC","11439-NGC"]
["11440","UDBINA MUNICIPALITY","UDBINA","11440-UDBINA"]
["11441","SIBENIK_KNIN COUNTY","SIBENIK","11441-SIBENIK"]
["11442","LIKA-SENJ COUNTY","LIKA","11442-LIKA"]
["11443","Foundation of  Partnerships in","FPH","11443-FPH"]
["11444","VOLYA","VOLYA","11444-VOLYA"]
["11445","EIF Trust Fund manager","EIF TFM","11445-EIF TFM"]
["11446","Over seas Development Institut","Over seas","11446-Over seas"]
["11447","Government of South Australia","South Aul","11447-South Aul"]
["11449","Foundation for Global Compact","Foundation","11449-Foundation"]
["11450","MDTFO/JP_Lesotho_one_UN_Fund","LSO_One_fe","11450-LSO_One_fe"]
["11451","MDTFO/JP_Comros_One_UN_Fund","Com_One_Fd","11451-Com_One_Fd"]
["11452","BeMobile","BeMobile","11452-BeMobile"]
["11453","BENFICA Foundation","BENFICA FD","11453-BENFICA FD"]
["11454","DONBAS FUEL ENERGY COMPANY","DTEK","11454-DTEK"]
["11455","MDTFO/JP-Montengro_UN__Cty_Fun","ME_UN_FUND","11455-ME_UN_FUND"]
["11456","MDTFO/JP_Kyrgyzstan_One_Fund","KG_One_Fd","11456-KG_One_Fd"]
["11457","HILFSWERK DER EVANGELISCHEN KI","HEKS","11457-HEKS"]
["11458","Network of Associations of loc","NALAS","11458-NALAS"]
["11459","PER-Registro Nacional de Ident","PER-RENIEC","11459-PER-RENIEC"]
["11460","The Europian Parliament","EUPAR","11460-EUPAR"]
["11461","ANESVAD Foundation","ANESVAD","11461-ANESVAD"]
["11462","Banco Santander  SA","Banco Sant","11462-Banco Sant"]
["11463","ECU PNFPEES","PNFPEES","11463-PNFPEES"]
["11464","Arab African International  ba","AAIB","11464-AAIB"]
["11465","Family Development foundation","FDF","11465-FDF"]
["11466","Misr Insurance Company","MI","11466-MI"]
["11467","Siemens technologies SAE","Siemens EG","11467-Siemens EG"]
["11468","For East  broadcasting company","Far-east-b","11468-Far-east-b"]
["11469","United Nations operation in Da","UNAMID","11469-UNAMID"]
["11470","Oracle education foundation","ORacle","11470-ORacle"]
["11471","SPECIAL TRIBUNAL FOR LEBANON","STL","11471-STL"]
["11472","Korean American Association of","KAAGNY","11472-KAAGNY"]
["11473","River transport Authority","RTA","11473-RTA"]
["11474","Egyptian National Institute fo","ENIT","11474-ENIT"]
["11475","Egyptian national railways","ENR","11475-ENR"]
["11476","Authority for Land & Dry Ports","Authority","11476-Authority"]
["11477","Authority for  maritime  safet","GAMS","11477-GAMS"]
["11478","Authority of Road and Bridges","GARBLT","11478-GARBLT"]
["11479","Ministry of  transport","MOT","11479-MOT"]
["11480","Authority for Tunnels","NAT","11480-NAT"]
["11481","OPORTUNIDADES","OPORTUNIDA","11481-OPORTUNIDA"]
["11482","GD AULM Chisinau Mun Council","GD AULM","11482-GD AULM"]
["11483","AYUNTAMIENTO DE MALAGA","MALAGA","11483-MALAGA"]
["11484","OPORTUNIDADES","OPORTUNIDA","11484-OPORTUNIDA"]
["11485","HIAS","HIAS","11485-HIAS"]
["11486","BRA-Governo Estado Amapa","BRA-Govern","11486-BRA-Govern"]
["11487","Cia Segurous Aliances do brasi","CiaAlianca","11487-CiaAlianca"]
["11488","Caixa Economica federal","Caixa","11488-Caixa"]
["11489","Gobierno del Estado de Quintan","QUINTANARO","11489-QUINTANARO"]
["11490","FMCN,A.C","FMCN","11490-FMCN"]
["11491","Dana Gas Company","Dana Gas C","11491-Dana Gas C"]
["11492","Bayelsa state government","Bayelsa st","11492-Bayelsa st"]
["11493","Anambra State Government","Anambra St","11493-Anambra St"]
["11494","Benue State Governement","Benue stat","11494-Benue stat"]
["11495","Kaduna state government","Kaduna sta","11495-Kaduna sta"]
["11496","LUGANSK CITY COUNCIL","LCC","11496-LCC"]
["11497","NADRA LUGANSCHINY","NADRA LUGA","11497-NADRA LUGA"]
["11498","Norwegian Vekst Foundation","Norwegian","11498-Norwegian"]
["11499","LEB-Ministry of education","MoE","11499-MoE"]
["11501","PROMEXICO","PROMEXICO","11501-PROMEXICO"]
["11502","MDTFO/JP_UNDG_HAITI_RECONSTRUC","UNDG","11502-UNDG"]
["11503","Dragon Oil Turkmenistan Ltd.","Dragon Oil","11503-Dragon Oil"]